Workbook

Sheet Display1
B1: First!$O$1:$N$35 | D1: =IF(E5="N","B",IF(E5=0,"#",IF(E5=1,"#.0",IF(E5=2,"#.00",IF(E5=3,"#.000",IF(E5=4,"#.0000",IF(E5=5,"#.00000",IF(E5=6,"#.000000",IF(E5=7,"#.0000000"))))))))) -> #.00 | E1: CQG Globex E-Mini S&P 500 Open Options Positions Dashboard
A2: First!$O$1:$N$35 | B2: First!$I$1:$J$35 | C2: First!$AE$1:$AF$35 | D2: Account | F2: Symbols: | G2: EW1 | H2: EW2 | I2: EW3 | J2: EW4 | M2: EW | U2: EP | AA2: Chicago | AD2: Underlying Symbols
B3: First!$U$1:$V$35 | C3: First!$AJ$1:$AK$35 | F3: M&Yr: | G3: ?1 | H3: ?1 | I3: ?1 | J3: ?1 | K3: ?2 | M3: ?1 | N3: ?2 | O3: ?3 | P3: ?4 | R3: ?5 | T3: ?6 | U3: ?1 | V3: ?2 | W3: ?3 | X3: ?4 | Y3: ?5 | Z3: ?6 | AA3: =RTD("cqg.rtd", ,"SystemInfo", "Linetime") -> 42465.56626 | AD3: EP?1 | AE3: EP?2 | AF3: EP?3
B4: First!$Z$1:$AA$35 | C4: First!$AO$1:$AP$35 | D4: Full | E4: Decimals | F4: Step | G4: Open | I4: OTE Use Settle vs Theo | K4: Last | M4: Time of Last Trade | O4: Bid | P4: Bid | R4: TheoVal | T4: Ask | U4: Ask | V4: Current Positions Full Symbols | Y4: Contract | Z4: Contract | AA4: IV | AB4: Vega | AC4: Delta | AD4: Gamma | AE4: Theta | AF4: DTE
C5: FALSE | D5: Symbols | E5: 2 | F5: 50 | G5: Position | K5: Trade | M5: =RTD("cqg.rtd", ,"SystemInfo", "Linetime") -> 42465.56626 | O5: Volume | P5: -0.02 | T5: 0.02 | U5: Volume | Y5: Volume | Z5: Open Int
C6: =IF(LOOKUP(1,First!A1:A2728)<>1,0,1) -> 1 | D6: =IF(C6=1,VLOOKUP(First!I1,INDIRECT($A$2),2),"") ->  | G6: =IF(C6=1,IF(H6>0,"Long ","Short "),"") ->  | H6: =IF(C6=1,RTD("cqg.rtd", ,"OrderData", ""&D6&"", "", "OpenPosition",""&$D$3&""),"") ->  | I6: =IF(AND(C6=1,$C$5=TRUE),H6*(RTD("cqg.rtd", ,"ContractData",D6, "TheoreticalValue",, "T")-RTD("cqg.rtd",,"ContractData",D6,"Y_Settlement",,"T"))*50,IF(C6=1,RTD("cqg.rtd", ,"OrderData",""&D6&"", "", "OpenTradeEquity",""&$D$3&""),"")) ->  | K6: =IF(C6=0,"",IF($D$1="B",RTD("cqg.rtd", ,"ContractData",D6, "LastTrade",,"B"),TEXT(RTD("cqg.rtd", ,"ContractData",D6, "LastTrade",, "T"),$D$1))) ->  | L6: =IF(RTD("cqg.rtd",,"ContractData",D6,"LastTrade",,"T")<RTD("cqg.rtd",,"ContractData",D6,"Bid",,"T"),1,IF(RTD("cqg.rtd",,"ContractData",D6,"LastTrade",,"T")>RTD("cqg.rtd",,"ContractData",D6,"Ask",,"T"),1,0)) ->  | M6: =IF(C6=1,RTD("cqg.rtd", ,"ContractData",D6, "TMLastTrade",, "T"),"") ->  | N6: =IFERROR(IF(C6=1,MOD($AE$2-M6,1),""),"") ->  | O6: =IF(C6=1,RTD("cqg.rtd", ,"ContractData",D6, "MT_LastBidVolume",, "T"),"") ->  | P6: =IF(C6=0,"",IF($D$1="B",RTD("cqg.rtd", ,"ContractData",D6, "Bid",,"B"),TEXT(RTD("cqg.rtd", ,"ContractData",D6, "Bid",, "T"),$D$1))) ->  | Q6: =IF(R6="",0,IF(R6-P6<$P$5,1,0)) ->  | R6: =IF(C6=0,"",IF(LEFT(D6,1)="F","",IF($D$1="B",RTD("cqg.rtd", ,"ContractData",D6, "TheoreticalValue",,"B"),TEXT(RTD("cqg.rtd", ,"ContractData",D6, "TheoreticalValue",, "T"),$D$1)))) ->  | S6: =IF(R6="",0,IF(R6-T6>$T$5,1,0)) ->  | T6: =IF(C6=0,"",IF($D$1="B",RTD("cqg.rtd", ,"ContractData",D6, "Ask",,"B"),TEXT(RTD("cqg.rtd", ,"ContractData",D6, "Ask",, "T"),$D$1))) ->  | U6: =IF(C6=1,RTD("cqg.rtd", ,"ContractData",D6, "MT_LastAskVolume",, "T"),"") ->  | V6: =D6 ->  | Y6: =IF(C6=1,RTD("cqg.rtd", ,"ContractData",D6, "T_CVol",, "T"),"") ->  | Z6: =IF(C6=1,RTD("cqg.rtd", ,"ContractData",D6, "COI",, "T"),"") ->  | AA6: =IF(C6=1,RTD("cqg.rtd", ,"ContractData",D6, "ImpliedVolatility",, "T"),"") ->  | AB6: =IFERROR(IF(C6=1,RTD("cqg.rtd", ,"ContractData",D6, "Vega",, "T")*H6,""),"") ->  | AC6: =IFERROR(IF(C6=0,"",IF(LEFT(D6,1)="F",H6*100,H6*RTD("cqg.rtd",,"ContractData",D6,"Delta",,"T")))*$Y$41,"") ->  | AD6: =IFERROR(IF(C6=1,RTD("cqg.rtd",,"ContractData",D6,"Gamma",,"T")*H6*$AA$41,""),"") ->  | AE6: =IFERROR(IF(C6=1,RTD("cqg.rtd", ,"ContractData",D6, "Theta",, "T")*ABS(H6),""),"") ->  | AF6: =IF(C6=0,"",IF(LEFT(D6,1)="F",(RTD("cqg.rtd",,"ContractData",D6,"ExpirationDate",,"T")-TODAY()),RTD("cqg.rtd",,"ContractData",D6,"OptionDaysToExp",,"T"))) -> 
C7: =IF(LOOKUP(2,First!A1:A2728)<>2,0,1) -> 0 | D7: =IF(C7=1,VLOOKUP(First!I2,INDIRECT($A$2),2),"") ->  | G7: =IF(C7=1,IF(H7>0,"Long ","Short "),"") ->  | H7: =IF(C7=1,RTD("cqg.rtd", ,"OrderData", ""&D7&"", "", "OpenPosition",""&$D$3&""),"") ->  | I7: =IF(AND(C7=1,$C$5=TRUE),H7*(RTD("cqg.rtd", ,"ContractData",D7, "TheoreticalValue",, "T")-RTD("cqg.rtd",,"ContractData",D7,"Y_Settlement",,"T"))*50,IF(C7=1,RTD("cqg.rtd", ,"OrderData",""&D7&"", "", "OpenTradeEquity",""&$D$3&""),"")) ->  | K7: =IF(C7=0,"",IF($D$1="B",RTD("cqg.rtd", ,"ContractData",D7, "LastTrade",,"B"),TEXT(RTD("cqg.rtd", ,"ContractData",D7, "LastTrade",, "T"),$D$1))) ->  | L7: =IF(RTD("cqg.rtd",,"ContractData",D7,"LastTrade",,"T")<RTD("cqg.rtd",,"ContractData",D7,"Bid",,"T"),1,IF(RTD("cqg.rtd",,"ContractData",D7,"LastTrade",,"T")>RTD("cqg.rtd",,"ContractData",D7,"Ask",,"T"),1,0)) -> 0 | M7: =IF(C7=1,RTD("cqg.rtd", ,"ContractData",D7, "TMLastTrade",, "T"),"") ->  | N7: =IFERROR(IF(C7=1,MOD($AE$2-M7,1),""),"") ->  | O7: =IF(C7=1,RTD("cqg.rtd", ,"ContractData",D7, "MT_LastBidVolume",, "T"),"") ->  | P7: =IF(C7=0,"",IF($D$1="B",RTD("cqg.rtd", ,"ContractData",D7, "Bid",,"B"),TEXT(RTD("cqg.rtd", ,"ContractData",D7, "Bid",, "T"),$D$1))) ->  | Q7: =IF(R7="",0,IF(R7-P7<$P$5,1,0)) -> 0 | R7: =IF(C7=0,"",IF(LEFT(D7,1)="F","",IF($D$1="B",RTD("cqg.rtd", ,"ContractData",D7, "TheoreticalValue",,"B"),TEXT(RTD("cqg.rtd", ,"ContractData",D7, "TheoreticalValue",, "T"),$D$1)))) ->  | S7: =IF(R7="",0,IF(R7-T7>$T$5,1,0)) -> 0 | T7: =IF(C7=0,"",IF($D$1="B",RTD("cqg.rtd", ,"ContractData",D7, "Ask",,"B"),TEXT(RTD("cqg.rtd", ,"ContractData",D7, "Ask",, "T"),$D$1))) ->  | U7: =IF(C7=1,RTD("cqg.rtd", ,"ContractData",D7, "MT_LastAskVolume",, "T"),"") ->  | Y7: =IF(C7=1,RTD("cqg.rtd", ,"ContractData",D7, "T_CVol",, "T"),"") ->  | Z7: =IF(C7=1,RTD("cqg.rtd", ,"ContractData",D7, "COI",, "T"),"") ->  | AA7: =IF(C7=1,RTD("cqg.rtd", ,"ContractData",D7, "ImpliedVolatility",, "T"),"") ->  | AB7: =IFERROR(IF(C7=1,RTD("cqg.rtd", ,"ContractData",D7, "Vega",, "T")*H7,""),"") ->  | AC7: =IFERROR(IF(C7=0,"",IF(LEFT(D7,1)="F",H7*100,H7*RTD("cqg.rtd",,"ContractData",D7,"Delta",,"T")))*$Y$41,"") ->  | AD7: =IFERROR(IF(C7=1,RTD("cqg.rtd",,"ContractData",D7,"Gamma",,"T")*H7*$AA$41,""),"") ->  | AE7: =IFERROR(IF(C7=1,RTD("cqg.rtd", ,"ContractData",D7, "Theta",, "T")*ABS(H7),""),"") ->  | AF7: =IF(C7=0,"",IF(LEFT(D7,1)="F",(RTD("cqg.rtd",,"ContractData",D7,"ExpirationDate",,"T")-TODAY()),RTD("cqg.rtd",,"ContractData",D7,"OptionDaysToExp",,"T"))) -> 
C8: =IF(LOOKUP(3,First!A1:A2728)<>3,0,1) -> 0 | D8: =IF(C8=1,VLOOKUP(First!I3,INDIRECT($A$2),2),"") ->  | G8: =IF(C8=1,IF(H8>0,"Long ","Short "),"") ->  | H8: =IF(C8=1,RTD("cqg.rtd", ,"OrderData", ""&D8&"", "", "OpenPosition",""&$D$3&""),"") ->  | I8: =IF(AND(C8=1,$C$5=TRUE),H8*(RTD("cqg.rtd", ,"ContractData",D8, "TheoreticalValue",, "T")-RTD("cqg.rtd",,"ContractData",D8,"Y_Settlement",,"T"))*50,IF(C8=1,RTD("cqg.rtd", ,"OrderData",""&D8&"", "", "OpenTradeEquity",""&$D$3&""),"")) ->  | K8: =IF(C8=0,"",IF($D$1="B",RTD("cqg.rtd", ,"ContractData",D8, "LastTrade",,"B"),TEXT(RTD("cqg.rtd", ,"ContractData",D8, "LastTrade",, "T"),$D$1))) ->  | L8: =IF(RTD("cqg.rtd",,"ContractData",D8,"LastTrade",,"T")<RTD("cqg.rtd",,"ContractData",D8,"Bid",,"T"),1,IF(RTD("cqg.rtd",,"ContractData",D8,"LastTrade",,"T")>RTD("cqg.rtd",,"ContractData",D8,"Ask",,"T"),1,0)) -> 0 | M8: =IF(C8=1,RTD("cqg.rtd", ,"ContractData",D8, "TMLastTrade",, "T"),"") ->  | O8: =IF(C8=1,RTD("cqg.rtd", ,"ContractData",D8, "MT_LastBidVolume",, "T"),"") ->  | P8: =IF(C8=0,"",IF($D$1="B",RTD("cqg.rtd", ,"ContractData",D8, "Bid",,"B"),TEXT(RTD("cqg.rtd", ,"ContractData",D8, "Bid",, "T"),$D$1))) ->  | Q8: 0 | R8: =IF(C8=0,"",IF(LEFT(D8,1)="F","",IF($D$1="B",RTD("cqg.rtd", ,"ContractData",D8, "TheoreticalValue",,"B"),TEXT(RTD("cqg.rtd", ,"ContractData",D8, "TheoreticalValue",, "T"),$D$1)))) ->  | S8: 0 | T8: =IF(C8=0,"",IF($D$1="B",RTD("cqg.rtd", ,"ContractData",D8, "Ask",,"B"),TEXT(RTD("cqg.rtd", ,"ContractData",D8, "Ask",, "T"),$D$1))) ->  | U8: =IF(C8=1,RTD("cqg.rtd", ,"ContractData",D8, "MT_LastAskVolume",, "T"),"") ->  | Y8: =IF(C8=1,RTD("cqg.rtd", ,"ContractData",D8, "T_CVol",, "T"),"") ->  | Z8: =IF(C8=1,RTD("cqg.rtd", ,"ContractData",D8, "COI",, "T"),"") ->  | AA8: =IF(C8=1,RTD("cqg.rtd", ,"ContractData",D8, "ImpliedVolatility",, "T"),"") ->  | AB8: =IFERROR(IF(C8=1,RTD("cqg.rtd", ,"ContractData",D8, "Vega",, "T")*H8,""),"") ->  | AC8: =IFERROR(IF(C8=0,"",IF(LEFT(D8,1)="F",H8*100,H8*RTD("cqg.rtd",,"ContractData",D8,"Delta",,"T")))*$Y$41,"") ->  | AD8: =IFERROR(IF(C8=1,RTD("cqg.rtd",,"ContractData",D8,"Gamma",,"T")*H8*$AA$41,""),"") ->  | AE8: =IFERROR(IF(C8=1,RTD("cqg.rtd", ,"ContractData",D8, "Theta",, "T")*ABS(H8),""),"") ->  | AF8: =IF(C8=0,"",IF(LEFT(D8,1)="F",(RTD("cqg.rtd",,"ContractData",D8,"ExpirationDate",,"T")-TODAY()),RTD("cqg.rtd",,"ContractData",D8,"OptionDaysToExp",,"T"))) -> 
C9: =IF(LOOKUP(4,First!A1:A2728)<>4,0,1) -> 0 | D9: =IF(C9=1,VLOOKUP(First!I4,INDIRECT($A$2),2),"") ->  | H9: =IF(C9=1,RTD("cqg.rtd", ,"OrderData", ""&D9&"", "", "OpenPosition",""&$D$3&""),"") ->  | I9: =IF(AND(C9=1,$C$5=TRUE),H9*(RTD("cqg.rtd", ,"ContractData",D9, "TheoreticalValue",, "T")-RTD("cqg.rtd",,"ContractData",D9,"Y_Settlement",,"T"))*50,IF(C9=1,RTD("cqg.rtd", ,"OrderData",""&D9&"", "", "OpenTradeEquity",""&$D$3&""),"")) ->  | K9: =IF(C9=0,"",IF($D$1="B",RTD("cqg.rtd", ,"ContractData",D9, "LastTrade",,"B"),TEXT(RTD("cqg.rtd", ,"ContractData",D9, "LastTrade",, "T"),$D$1))) ->  | L9: =IF(RTD("cqg.rtd",,"ContractData",D9,"LastTrade",,"T")<RTD("cqg.rtd",,"ContractData",D9,"Bid",,"T"),1,IF(RTD("cqg.rtd",,"ContractData",D9,"LastTrade",,"T")>RTD("cqg.rtd",,"ContractData",D9,"Ask",,"T"),1,0)) -> 0 | M9: =IF(C9=1,RTD("cqg.rtd", ,"ContractData",D9, "TMLastTrade",, "T"),"") ->  | O9: =IF(C9=1,RTD("cqg.rtd", ,"ContractData",D9, "MT_LastBidVolume",, "T"),"") ->  | P9: =IF(C9=0,"",IF($D$1="B",RTD("cqg.rtd", ,"ContractData",D9, "Bid",,"B"),TEXT(RTD("cqg.rtd", ,"ContractData",D9, "Bid",, "T"),$D$1))) ->  | Q9: 0 | R9: =IF(C9=0,"",IF(LEFT(D9,1)="F","",IF($D$1="B",RTD("cqg.rtd", ,"ContractData",D9, "TheoreticalValue",,"B"),TEXT(RTD("cqg.rtd", ,"ContractData",D9, "TheoreticalValue",, "T"),$D$1)))) ->  | S9: 0 | T9: =IF(C9=0,"",IF($D$1="B",RTD("cqg.rtd", ,"ContractData",D9, "Ask",,"B"),TEXT(RTD("cqg.rtd", ,"ContractData",D9, "Ask",, "T"),$D$1))) ->  | U9: =IF(C9=1,RTD("cqg.rtd", ,"ContractData",D9, "MT_LastAskVolume",, "T"),"") ->  | Y9: =IF(C9=1,RTD("cqg.rtd", ,"ContractData",D9, "T_CVol",, "T"),"") ->  | Z9: =IF(C9=1,RTD("cqg.rtd", ,"ContractData",D9, "COI",, "T"),"") ->  | AA9: =IF(C9=1,RTD("cqg.rtd", ,"ContractData",D9, "ImpliedVolatility",, "T"),"") ->  | AB9: =IFERROR(IF(C9=1,RTD("cqg.rtd", ,"ContractData",D9, "Vega",, "T")*H9,""),"") ->  | AC9: =IFERROR(IF(C9=0,"",IF(LEFT(D9,1)="F",H9*100,H9*RTD("cqg.rtd",,"ContractData",D9,"Delta",,"T")))*$Y$41,"") ->  | AD9: =IFERROR(IF(C9=1,RTD("cqg.rtd",,"ContractData",D9,"Gamma",,"T")*H9*$AA$41,""),"") ->  | AE9: =IFERROR(IF(C9=1,RTD("cqg.rtd", ,"ContractData",D9, "Theta",, "T")*ABS(H9),""),"") ->  | AF9: =IF(C9=0,"",IF(LEFT(D9,1)="F",(RTD("cqg.rtd",,"ContractData",D9,"ExpirationDate",,"T")-TODAY()),RTD("cqg.rtd",,"ContractData",D9,"OptionDaysToExp",,"T"))) -> 
C10: =IF(LOOKUP(5,First!A1:A2728)<>5,0,1) -> 0 | D10: =IF(C10=1,VLOOKUP(First!I5,INDIRECT($A$2),2),"") ->  | H10: =IF(C10=1,RTD("cqg.rtd", ,"OrderData", ""&D10&"", "", "OpenPosition",""&$D$3&""),"") ->  | I10: =IF(AND(C10=1,$C$5=TRUE),H10*(RTD("cqg.rtd", ,"ContractData",D10, "TheoreticalValue",, "T")-RTD("cqg.rtd",,"ContractData",D10,"Y_Settlement",,"T"))*50,IF(C10=1,RTD("cqg.rtd", ,"OrderData",""&D10&"", "", "OpenTradeEquity",""&$D$3&""),"")) ->  | K10: =IF(C10=0,"",IF($D$1="B",RTD("cqg.rtd", ,"ContractData",D10, "LastTrade",,"B"),TEXT(RTD("cqg.rtd", ,"ContractData",D10, "LastTrade",, "T"),$D$1))) ->  | L10: =IF(RTD("cqg.rtd",,"ContractData",D10,"LastTrade",,"T")<RTD("cqg.rtd",,"ContractData",D10,"Bid",,"T"),1,IF(RTD("cqg.rtd",,"ContractData",D10,"LastTrade",,"T")>RTD("cqg.rtd",,"ContractData",D10,"Ask",,"T"),1,0)) -> 0 | M10: =IF(C10=1,RTD("cqg.rtd", ,"ContractData",D10, "TMLastTrade",, "T"),"") ->  | O10: =IF(C10=1,RTD("cqg.rtd", ,"ContractData",D10, "MT_LastBidVolume",, "T"),"") ->  | P10: =IF(C10=0,"",IF($D$1="B",RTD("cqg.rtd", ,"ContractData",D10, "Bid",,"B"),TEXT(RTD("cqg.rtd", ,"ContractData",D10, "Bid",, "T"),$D$1))) ->  | Q10: 0 | R10: =IF(C10=0,"",IF(LEFT(D10,1)="F","",IF($D$1="B",RTD("cqg.rtd", ,"ContractData",D10, "TheoreticalValue",,"B"),TEXT(RTD("cqg.rtd", ,"ContractData",D10, "TheoreticalValue",, "T"),$D$1)))) ->  | S10: 0 | T10: =IF(C10=0,"",IF($D$1="B",RTD("cqg.rtd", ,"ContractData",D10, "Ask",,"B"),TEXT(RTD("cqg.rtd", ,"ContractData",D10, "Ask",, "T"),$D$1))) ->  | U10: =IF(C10=1,RTD("cqg.rtd", ,"ContractData",D10, "MT_LastAskVolume",, "T"),"") ->  | Y10: =IF(C10=1,RTD("cqg.rtd", ,"ContractData",D10, "T_CVol",, "T"),"") ->  | Z10: =IF(C10=1,RTD("cqg.rtd", ,"ContractData",D10, "COI",, "T"),"") ->  | AA10: =IF(C10=1,RTD("cqg.rtd", ,"ContractData",D10, "ImpliedVolatility",, "T"),"") ->  | AB10: =IFERROR(IF(C10=1,RTD("cqg.rtd", ,"ContractData",D10, "Vega",, "T")*H10,""),"") ->  | AC10: =IFERROR(IF(C10=0,"",IF(LEFT(D10,1)="F",H10*100,H10*RTD("cqg.rtd",,"ContractData",D10,"Delta",,"T")))*$Y$41,"") ->  | AD10: =IFERROR(IF(C10=1,RTD("cqg.rtd",,"ContractData",D10,"Gamma",,"T")*H10*$AA$41,""),"") ->  | AE10: =IFERROR(IF(C10=1,RTD("cqg.rtd", ,"ContractData",D10, "Theta",, "T")*ABS(H10),""),"") ->  | AF10: =IF(C10=0,"",IF(LEFT(D10,1)="F",(RTD("cqg.rtd",,"ContractData",D10,"ExpirationDate",,"T")-TODAY()),RTD("cqg.rtd",,"ContractData",D10,"OptionDaysToExp",,"T"))) -> 
C11: =IF(LOOKUP(6,First!A1:A2728)<>6,0,1) -> 0 | D11: =IF(C11=1,VLOOKUP(First!I6,INDIRECT($A$2),2),"") ->  | H11: =IF(C11=1,RTD("cqg.rtd", ,"OrderData", ""&D11&"", "", "OpenPosition",""&$D$3&""),"") ->  | I11: =IF(AND(C11=1,$C$5=TRUE),H11*(RTD("cqg.rtd", ,"ContractData",D11, "TheoreticalValue",, "T")-RTD("cqg.rtd",,"ContractData",D11,"Y_Settlement",,"T"))*50,IF(C11=1,RTD("cqg.rtd", ,"OrderData",""&D11&"", "", "OpenTradeEquity",""&$D$3&""),"")) ->  | K11: =IF(C11=0,"",IF($D$1="B",RTD("cqg.rtd", ,"ContractData",D11, "LastTrade",,"B"),TEXT(RTD("cqg.rtd", ,"ContractData",D11, "LastTrade",, "T"),$D$1))) ->  | L11: =IF(RTD("cqg.rtd",,"ContractData",D11,"LastTrade",,"T")<RTD("cqg.rtd",,"ContractData",D11,"Bid",,"T"),1,IF(RTD("cqg.rtd",,"ContractData",D11,"LastTrade",,"T")>RTD("cqg.rtd",,"ContractData",D11,"Ask",,"T"),1,0)) -> 0 | M11: =IF(C11=1,RTD("cqg.rtd", ,"ContractData",D11, "TMLastTrade",, "T"),"") ->  | O11: =IF(C11=1,RTD("cqg.rtd", ,"ContractData",D11, "MT_LastBidVolume",, "T"),"") ->  | P11: =IF(C11=0,"",IF($D$1="B",RTD("cqg.rtd", ,"ContractData",D11, "Bid",,"B"),TEXT(RTD("cqg.rtd", ,"ContractData",D11, "Bid",, "T"),$D$1))) ->  | Q11: 0 | R11: =IF(C11=0,"",IF(LEFT(D11,1)="F","",IF($D$1="B",RTD("cqg.rtd", ,"ContractData",D11, "TheoreticalValue",,"B"),TEXT(RTD("cqg.rtd", ,"ContractData",D11, "TheoreticalValue",, "T"),$D$1)))) ->  | S11: 0 | T11: =IF(C11=0,"",IF($D$1="B",RTD("cqg.rtd", ,"ContractData",D11, "Ask",,"B"),TEXT(RTD("cqg.rtd", ,"ContractData",D11, "Ask",, "T"),$D$1))) ->  | U11: =IF(C11=1,RTD("cqg.rtd", ,"ContractData",D11, "MT_LastAskVolume",, "T"),"") ->  | Y11: =IF(C11=1,RTD("cqg.rtd", ,"ContractData",D11, "T_CVol",, "T"),"") ->  | Z11: =IF(C11=1,RTD("cqg.rtd", ,"ContractData",D11, "COI",, "T"),"") ->  | AA11: =IF(C11=1,RTD("cqg.rtd", ,"ContractData",D11, "ImpliedVolatility",, "T"),"") ->  | AB11: =IFERROR(IF(C11=1,RTD("cqg.rtd", ,"ContractData",D11, "Vega",, "T")*H11,""),"") ->  | AC11: =IFERROR(IF(C11=0,"",IF(LEFT(D11,1)="F",H11*100,H11*RTD("cqg.rtd",,"ContractData",D11,"Delta",,"T")))*$Y$41,"") ->  | AD11: =IFERROR(IF(C11=1,RTD("cqg.rtd",,"ContractData",D11,"Gamma",,"T")*H11*$AA$41,""),"") ->  | AE11: =IFERROR(IF(C11=1,RTD("cqg.rtd", ,"ContractData",D11, "Theta",, "T")*ABS(H11),""),"") ->  | AF11: =IF(C11=0,"",IF(LEFT(D11,1)="F",(RTD("cqg.rtd",,"ContractData",D11,"ExpirationDate",,"T")-TODAY()),RTD("cqg.rtd",,"ContractData",D11,"OptionDaysToExp",,"T"))) -> 
C12: =IF(LOOKUP(7,First!A1:A2728)<>7,0,1) -> 0 | D12: =IF(C12=1,VLOOKUP(First!I7,INDIRECT($A$2),2),"") ->  | H12: =IF(C12=1,RTD("cqg.rtd", ,"OrderData", ""&D12&"", "", "OpenPosition",""&$D$3&""),"") ->  | I12: =IF(AND(C12=1,$C$5=TRUE),H12*(RTD("cqg.rtd", ,"ContractData",D12, "TheoreticalValue",, "T")-RTD("cqg.rtd",,"ContractData",D12,"Y_Settlement",,"T"))*50,IF(C12=1,RTD("cqg.rtd", ,"OrderData",""&D12&"", "", "OpenTradeEquity",""&$D$3&""),"")) ->  | K12: =IF(C12=0,"",IF($D$1="B",RTD("cqg.rtd", ,"ContractData",D12, "LastTrade",,"B"),TEXT(RTD("cqg.rtd", ,"ContractData",D12, "LastTrade",, "T"),$D$1))) ->  | L12: =IF(RTD("cqg.rtd",,"ContractData",D12,"LastTrade",,"T")<RTD("cqg.rtd",,"ContractData",D12,"Bid",,"T"),1,IF(RTD("cqg.rtd",,"ContractData",D12,"LastTrade",,"T")>RTD("cqg.rtd",,"ContractData",D12,"Ask",,"T"),1,0)) -> 0 | M12: =IF(C12=1,RTD("cqg.rtd", ,"ContractData",D12, "TMLastTrade",, "T"),"") ->  | O12: =IF(C12=1,RTD("cqg.rtd", ,"ContractData",D12, "MT_LastBidVolume",, "T"),"") ->  | P12: =IF(C12=0,"",IF($D$1="B",RTD("cqg.rtd", ,"ContractData",D12, "Bid",,"B"),TEXT(RTD("cqg.rtd", ,"ContractData",D12, "Bid",, "T"),$D$1))) ->  | Q12: 0 | R12: =IF(C12=0,"",IF(LEFT(D12,1)="F","",IF($D$1="B",RTD("cqg.rtd", ,"ContractData",D12, "TheoreticalValue",,"B"),TEXT(RTD("cqg.rtd", ,"ContractData",D12, "TheoreticalValue",, "T"),$D$1)))) ->  | S12: 0 | T12: =IF(C12=0,"",IF($D$1="B",RTD("cqg.rtd", ,"ContractData",D12, "Ask",,"B"),TEXT(RTD("cqg.rtd", ,"ContractData",D12, "Ask",, "T"),$D$1))) ->  | U12: =IF(C12=1,RTD("cqg.rtd", ,"ContractData",D12, "MT_LastAskVolume",, "T"),"") ->  | Y12: =IF(C12=1,RTD("cqg.rtd", ,"ContractData",D12, "T_CVol",, "T"),"") ->  | Z12: =IF(C12=1,RTD("cqg.rtd", ,"ContractData",D12, "COI",, "T"),"") ->  | AA12: =IF(C12=1,RTD("cqg.rtd", ,"ContractData",D12, "ImpliedVolatility",, "T"),"") ->  | AB12: =IFERROR(IF(C12=1,RTD("cqg.rtd", ,"ContractData",D12, "Vega",, "T")*H12,""),"") ->  | AC12: =IFERROR(IF(C12=0,"",IF(LEFT(D12,1)="F",H12*100,H12*RTD("cqg.rtd",,"ContractData",D12,"Delta",,"T")))*$Y$41,"") ->  | AD12: =IFERROR(IF(C12=1,RTD("cqg.rtd",,"ContractData",D12,"Gamma",,"T")*H12*$AA$41,""),"") ->  | AE12: =IFERROR(IF(C12=1,RTD("cqg.rtd", ,"ContractData",D12, "Theta",, "T")*ABS(H12),""),"") ->  | AF12: =IF(C12=0,"",IF(LEFT(D12,1)="F",(RTD("cqg.rtd",,"ContractData",D12,"ExpirationDate",,"T")-TODAY()),RTD("cqg.rtd",,"ContractData",D12,"OptionDaysToExp",,"T"))) -> 
C13: =IF(LOOKUP(8,First!A1:A2728)<>8,0,1) -> 0 | D13: =IF(C13=1,VLOOKUP(First!I8,INDIRECT($A$2),2),"") ->  | G13: =IF(C13=1,IF(H13>0,"Long ","Short "),"") ->  | H13: =IF(C13=1,RTD("cqg.rtd", ,"OrderData", ""&D13&"", "", "OpenPosition",""&$D$3&""),"") ->  | I13: =IF(AND(C13=1,$C$5=TRUE),H13*(RTD("cqg.rtd", ,"ContractData",D13, "TheoreticalValue",, "T")-RTD("cqg.rtd",,"ContractData",D13,"Y_Settlement",,"T"))*50,IF(C13=1,RTD("cqg.rtd", ,"OrderData",""&D13&"", "", "OpenTradeEquity",""&$D$3&""),"")) ->  | K13: =IF(C13=0,"",IF($D$1="B",RTD("cqg.rtd", ,"ContractData",D13, "LastTrade",,"B"),TEXT(RTD("cqg.rtd", ,"ContractData",D13, "LastTrade",, "T"),$D$1))) ->  | L13: =IF(RTD("cqg.rtd",,"ContractData",D13,"LastTrade",,"T")<RTD("cqg.rtd",,"ContractData",D13,"Bid",,"T"),1,IF(RTD("cqg.rtd",,"ContractData",D13,"LastTrade",,"T")>RTD("cqg.rtd",,"ContractData",D13,"Ask",,"T"),1,0)) -> 0 | M13: =IF(C13=1,RTD("cqg.rtd", ,"ContractData",D13, "TMLastTrade",, "T"),"") ->  | O13: =IF(C13=1,RTD("cqg.rtd", ,"ContractData",D13, "MT_LastBidVolume",, "T"),"") ->  | P13: =IF(C13=0,"",IF($D$1="B",RTD("cqg.rtd", ,"ContractData",D13, "Bid",,"B"),TEXT(RTD("cqg.rtd", ,"ContractData",D13, "Bid",, "T"),$D$1))) ->  | Q13: 0 | R13: =IF(C13=0,"",IF(LEFT(D13,1)="F","",IF($D$1="B",RTD("cqg.rtd", ,"ContractData",D13, "TheoreticalValue",,"B"),TEXT(RTD("cqg.rtd", ,"ContractData",D13, "TheoreticalValue",, "T"),$D$1)))) ->  | S13: 0 | T13: =IF(C13=0,"",IF($D$1="B",RTD("cqg.rtd", ,"ContractData",D13, "Ask",,"B"),TEXT(RTD("cqg.rtd", ,"ContractData",D13, "Ask",, "T"),$D$1))) ->  | U13: =IF(C13=1,RTD("cqg.rtd", ,"ContractData",D13, "MT_LastAskVolume",, "T"),"") ->  | Y13: =IF(C13=1,RTD("cqg.rtd", ,"ContractData",D13, "T_CVol",, "T"),"") ->  | Z13: =IF(C13=1,RTD("cqg.rtd", ,"ContractData",D13, "COI",, "T"),"") ->  | AA13: =IF(C13=1,RTD("cqg.rtd", ,"ContractData",D13, "ImpliedVolatility",, "T"),"") ->  | AB13: =IFERROR(IF(C13=1,RTD("cqg.rtd", ,"ContractData",D13, "Vega",, "T")*H13,""),"") ->  | AC13: =IFERROR(IF(C13=0,"",IF(LEFT(D13,1)="F",H13*100,H13*RTD("cqg.rtd",,"ContractData",D13,"Delta",,"T")))*$Y$41,"") ->  | AD13: =IFERROR(IF(C13=1,RTD("cqg.rtd",,"ContractData",D13,"Gamma",,"T")*H13*$AA$41,""),"") ->  | AE13: =IFERROR(IF(C13=1,RTD("cqg.rtd", ,"ContractData",D13, "Theta",, "T")*ABS(H13),""),"") ->  | AF13: =IF(C13=0,"",IF(LEFT(D13,1)="F",(RTD("cqg.rtd",,"ContractData",D13,"ExpirationDate",,"T")-TODAY()),RTD("cqg.rtd",,"ContractData",D13,"OptionDaysToExp",,"T"))) -> 
C14: =IF(LOOKUP(9,First!A1:A2728)<>9,0,1) -> 0 | D14: =IF(C14=1,VLOOKUP(First!I9,INDIRECT($A$2),2),"") ->  | H14: =IF(C14=1,RTD("cqg.rtd", ,"OrderData", ""&D14&"", "", "OpenPosition",""&$D$3&""),"") ->  | I14: =IF(AND(C14=1,$C$5=TRUE),H14*(RTD("cqg.rtd", ,"ContractData",D14, "TheoreticalValue",, "T")-RTD("cqg.rtd",,"ContractData",D14,"Y_Settlement",,"T"))*50,IF(C14=1,RTD("cqg.rtd", ,"OrderData",""&D14&"", "", "OpenTradeEquity",""&$D$3&""),"")) ->  | K14: =IF(C14=0,"",IF($D$1="B",RTD("cqg.rtd", ,"ContractData",D14, "LastTrade",,"B"),TEXT(RTD("cqg.rtd", ,"ContractData",D14, "LastTrade",, "T"),$D$1))) ->  | L14: =IF(RTD("cqg.rtd",,"ContractData",D14,"LastTrade",,"T")<RTD("cqg.rtd",,"ContractData",D14,"Bid",,"T"),1,IF(RTD("cqg.rtd",,"ContractData",D14,"LastTrade",,"T")>RTD("cqg.rtd",,"ContractData",D14,"Ask",,"T"),1,0)) -> 0 | M14: =IF(C14=1,RTD("cqg.rtd", ,"ContractData",D14, "TMLastTrade",, "T"),"") ->  | O14: =IF(C14=1,RTD("cqg.rtd", ,"ContractData",D14, "MT_LastBidVolume",, "T"),"") ->  | P14: =IF(C14=0,"",IF($D$1="B",RTD("cqg.rtd", ,"ContractData",D14, "Bid",,"B"),TEXT(RTD("cqg.rtd", ,"ContractData",D14, "Bid",, "T"),$D$1))) ->  | Q14: 0 | R14: =IF(C14=0,"",IF(LEFT(D14,1)="F","",IF($D$1="B",RTD("cqg.rtd", ,"ContractData",D14, "TheoreticalValue",,"B"),TEXT(RTD("cqg.rtd", ,"ContractData",D14, "TheoreticalValue",, "T"),$D$1)))) ->  | S14: 0 | T14: =IF(C14=0,"",IF($D$1="B",RTD("cqg.rtd", ,"ContractData",D14, "Ask",,"B"),TEXT(RTD("cqg.rtd", ,"ContractData",D14, "Ask",, "T"),$D$1))) ->  | U14: =IF(C14=1,RTD("cqg.rtd", ,"ContractData",D14, "MT_LastAskVolume",, "T"),"") ->  | Y14: =IF(C14=1,RTD("cqg.rtd", ,"ContractData",D14, "T_CVol",, "T"),"") ->  | Z14: =IF(C14=1,RTD("cqg.rtd", ,"ContractData",D14, "COI",, "T"),"") ->  | AA14: =IF(C14=1,RTD("cqg.rtd", ,"ContractData",D14, "ImpliedVolatility",, "T"),"") ->  | AB14: =IFERROR(IF(C14=1,RTD("cqg.rtd", ,"ContractData",D14, "Vega",, "T")*H14,""),"") ->  | AC14: =IFERROR(IF(C14=0,"",IF(LEFT(D14,1)="F",H14*100,H14*RTD("cqg.rtd",,"ContractData",D14,"Delta",,"T")))*$Y$41,"") ->  | AD14: =IFERROR(IF(C14=1,RTD("cqg.rtd",,"ContractData",D14,"Gamma",,"T")*H14*$AA$41,""),"") ->  | AE14: =IFERROR(IF(C14=1,RTD("cqg.rtd", ,"ContractData",D14, "Theta",, "T")*ABS(H14),""),"") ->  | AF14: =IF(C14=0,"",IF(LEFT(D14,1)="F",(RTD("cqg.rtd",,"ContractData",D14,"ExpirationDate",,"T")-TODAY()),RTD("cqg.rtd",,"ContractData",D14,"OptionDaysToExp",,"T"))) -> 
C15: =IF(LOOKUP(10,First!A1:A2728)<>10,0,1) -> 0 | D15: =IF(C15=1,VLOOKUP(First!I10,INDIRECT($A$2),2),"") ->  | H15: =IF(C15=1,RTD("cqg.rtd", ,"OrderData", ""&D15&"", "", "OpenPosition",""&$D$3&""),"") ->  | I15: =IF(AND(C15=1,$C$5=TRUE),H15*(RTD("cqg.rtd", ,"ContractData",D15, "TheoreticalValue",, "T")-RTD("cqg.rtd",,"ContractData",D15,"Y_Settlement",,"T"))*50,IF(C15=1,RTD("cqg.rtd", ,"OrderData",""&D15&"", "", "OpenTradeEquity",""&$D$3&""),"")) ->  | K15: =IF(C15=0,"",IF($D$1="B",RTD("cqg.rtd", ,"ContractData",D15, "LastTrade",,"B"),TEXT(RTD("cqg.rtd", ,"ContractData",D15, "LastTrade",, "T"),$D$1))) ->  | L15: =IF(RTD("cqg.rtd",,"ContractData",D15,"LastTrade",,"T")<RTD("cqg.rtd",,"ContractData",D15,"Bid",,"T"),1,IF(RTD("cqg.rtd",,"ContractData",D15,"LastTrade",,"T")>RTD("cqg.rtd",,"ContractData",D15,"Ask",,"T"),1,0)) -> 0 | M15: =IF(C15=1,RTD("cqg.rtd", ,"ContractData",D15, "TMLastTrade",, "T"),"") ->  | O15: =IF(C15=1,RTD("cqg.rtd", ,"ContractData",D15, "MT_LastBidVolume",, "T"),"") ->  | P15: =IF(C15=0,"",IF($D$1="B",RTD("cqg.rtd", ,"ContractData",D15, "Bid",,"B"),TEXT(RTD("cqg.rtd", ,"ContractData",D15, "Bid",, "T"),$D$1))) ->  | Q15: =IF(R15="",0,IF(R15-P15<$P$5,1,0)) -> 0 | R15: =IF(C15=0,"",IF(LEFT(D15,1)="F","",IF($D$1="B",RTD("cqg.rtd", ,"ContractData",D15, "TheoreticalValue",,"B"),TEXT(RTD("cqg.rtd", ,"ContractData",D15, "TheoreticalValue",, "T"),$D$1)))) ->  | S15: 0 | T15: =IF(C15=0,"",IF($D$1="B",RTD("cqg.rtd", ,"ContractData",D15, "Ask",,"B"),TEXT(RTD("cqg.rtd", ,"ContractData",D15, "Ask",, "T"),$D$1))) ->  | U15: =IF(C15=1,RTD("cqg.rtd", ,"ContractData",D15, "MT_LastAskVolume",, "T"),"") ->  | Y15: =IF(C15=1,RTD("cqg.rtd", ,"ContractData",D15, "T_CVol",, "T"),"") ->  | Z15: =IF(C15=1,RTD("cqg.rtd", ,"ContractData",D15, "COI",, "T"),"") ->  | AA15: =IF(C15=1,RTD("cqg.rtd", ,"ContractData",D15, "ImpliedVolatility",, "T"),"") ->  | AB15: =IFERROR(IF(C15=1,RTD("cqg.rtd", ,"ContractData",D15, "Vega",, "T")*H15,""),"") ->  | AC15: =IFERROR(IF(C15=0,"",IF(LEFT(D15,1)="F",H15*100,H15*RTD("cqg.rtd",,"ContractData",D15,"Delta",,"T")))*$Y$41,"") ->  | AD15: =IFERROR(IF(C15=1,RTD("cqg.rtd",,"ContractData",D15,"Gamma",,"T")*H15*$AA$41,""),"") ->  | AE15: =IFERROR(IF(C15=1,RTD("cqg.rtd", ,"ContractData",D15, "Theta",, "T")*ABS(H15),""),"") ->  | AF15: =IF(C15=0,"",IF(LEFT(D15,1)="F",(RTD("cqg.rtd",,"ContractData",D15,"ExpirationDate",,"T")-TODAY()),RTD("cqg.rtd",,"ContractData",D15,"OptionDaysToExp",,"T"))) -> 
C16: =IF(LOOKUP(11,First!A1:A2728)<>11,0,1) -> 0 | D16: =IF(C16=1,VLOOKUP(First!I11,INDIRECT($A$2),2),"") ->  | G16: =IF(C16=1,IF(H16>0,"Long ","Short "),"") ->  | H16: =IF(C16=1,RTD("cqg.rtd", ,"OrderData", ""&D16&"", "", "OpenPosition",""&$D$3&""),"") ->  | I16: =IF(AND(C16=1,$C$5=TRUE),H16*(RTD("cqg.rtd", ,"ContractData",D16, "TheoreticalValue",, "T")-RTD("cqg.rtd",,"ContractData",D16,"Y_Settlement",,"T"))*50,IF(C16=1,RTD("cqg.rtd", ,"OrderData",""&D16&"", "", "OpenTradeEquity",""&$D$3&""),"")) ->  | K16: =IF(C16=0,"",IF($D$1="B",RTD("cqg.rtd", ,"ContractData",D16, "LastTrade",,"B"),TEXT(RTD("cqg.rtd", ,"ContractData",D16, "LastTrade",, "T"),$D$1))) ->  | L16: =IF(RTD("cqg.rtd",,"ContractData",D16,"LastTrade",,"T")<RTD("cqg.rtd",,"ContractData",D16,"Bid",,"T"),1,IF(RTD("cqg.rtd",,"ContractData",D16,"LastTrade",,"T")>RTD("cqg.rtd",,"ContractData",D16,"Ask",,"T"),1,0)) -> 0 | M16: =IF(C16=1,RTD("cqg.rtd", ,"ContractData",D16, "TMLastTrade",, "T"),"") ->  | O16: =IF(C16=1,RTD("cqg.rtd", ,"ContractData",D16, "MT_LastBidVolume",, "T"),"") ->  | P16: =IF(C16=0,"",IF($D$1="B",RTD("cqg.rtd", ,"ContractData",D16, "Bid",,"B"),TEXT(RTD("cqg.rtd", ,"ContractData",D16, "Bid",, "T"),$D$1))) ->  | Q16: 0 | R16: =IF(C16=0,"",IF(LEFT(D16,1)="F","",IF($D$1="B",RTD("cqg.rtd", ,"ContractData",D16, "TheoreticalValue",,"B"),TEXT(RTD("cqg.rtd", ,"ContractData",D16, "TheoreticalValue",, "T"),$D$1)))) ->  | S16: 0 | T16: =IF(C16=0,"",IF($D$1="B",RTD("cqg.rtd", ,"ContractData",D16, "Ask",,"B"),TEXT(RTD("cqg.rtd", ,"ContractData",D16, "Ask",, "T"),$D$1))) ->  | U16: =IF(C16=1,RTD("cqg.rtd", ,"ContractData",D16, "MT_LastAskVolume",, "T"),"") ->  | Y16: =IF(C16=1,RTD("cqg.rtd", ,"ContractData",D16, "T_CVol",, "T"),"") ->  | Z16: =IF(C16=1,RTD("cqg.rtd", ,"ContractData",D16, "COI",, "T"),"") ->  | AA16: =IF(C16=1,RTD("cqg.rtd", ,"ContractData",D16, "ImpliedVolatility",, "T"),"") ->  | AB16: =IFERROR(IF(C16=1,RTD("cqg.rtd", ,"ContractData",D16, "Vega",, "T")*H16,""),"") ->  | AC16: =IFERROR(IF(C16=0,"",IF(LEFT(D16,1)="F",H16*100,H16*RTD("cqg.rtd",,"ContractData",D16,"Delta",,"T")))*$Y$41,"") ->  | AD16: =IFERROR(IF(C16=1,RTD("cqg.rtd",,"ContractData",D16,"Gamma",,"T")*H16*$AA$41,""),"") ->  | AE16: =IFERROR(IF(C16=1,RTD("cqg.rtd", ,"ContractData",D16, "Theta",, "T")*ABS(H16),""),"") ->  | AF16: =IF(C16=0,"",IF(LEFT(D16,1)="F",(RTD("cqg.rtd",,"ContractData",D16,"ExpirationDate",,"T")-TODAY()),RTD("cqg.rtd",,"ContractData",D16,"OptionDaysToExp",,"T"))) -> 
C17: =IF(LOOKUP(12,First!A1:A2728)<>12,0,1) -> 0 | D17: =IF(C17=1,VLOOKUP(First!I12,INDIRECT($A$2),2),"") ->  | H17: =IF(C17=1,RTD("cqg.rtd", ,"OrderData", ""&D17&"", "", "OpenPosition",""&$D$3&""),"") ->  | I17: =IF(AND(C17=1,$C$5=TRUE),H17*(RTD("cqg.rtd", ,"ContractData",D17, "TheoreticalValue",, "T")-RTD("cqg.rtd",,"ContractData",D17,"Y_Settlement",,"T"))*50,IF(C17=1,RTD("cqg.rtd", ,"OrderData",""&D17&"", "", "OpenTradeEquity",""&$D$3&""),"")) ->  | K17: =IF(C17=0,"",IF($D$1="B",RTD("cqg.rtd", ,"ContractData",D17, "LastTrade",,"B"),TEXT(RTD("cqg.rtd", ,"ContractData",D17, "LastTrade",, "T"),$D$1))) ->  | L17: =IF(RTD("cqg.rtd",,"ContractData",D17,"LastTrade",,"T")<RTD("cqg.rtd",,"ContractData",D17,"Bid",,"T"),1,IF(RTD("cqg.rtd",,"ContractData",D17,"LastTrade",,"T")>RTD("cqg.rtd",,"ContractData",D17,"Ask",,"T"),1,0)) -> 0 | M17: =IF(C17=1,RTD("cqg.rtd", ,"ContractData",D17, "TMLastTrade",, "T"),"") ->  | O17: =IF(C17=1,RTD("cqg.rtd", ,"ContractData",D17, "MT_LastBidVolume",, "T"),"") ->  | P17: =IF(C17=0,"",IF($D$1="B",RTD("cqg.rtd", ,"ContractData",D17, "Bid",,"B"),TEXT(RTD("cqg.rtd", ,"ContractData",D17, "Bid",, "T"),$D$1))) ->  | Q17: 0 | R17: =IF(C17=0,"",IF(LEFT(D17,1)="F","",IF($D$1="B",RTD("cqg.rtd", ,"ContractData",D17, "TheoreticalValue",,"B"),TEXT(RTD("cqg.rtd", ,"ContractData",D17, "TheoreticalValue",, "T"),$D$1)))) ->  | S17: 0 | T17: =IF(C17=0,"",IF($D$1="B",RTD("cqg.rtd", ,"ContractData",D17, "Ask",,"B"),TEXT(RTD("cqg.rtd", ,"ContractData",D17, "Ask",, "T"),$D$1))) ->  | U17: =IF(C17=1,RTD("cqg.rtd", ,"ContractData",D17, "MT_LastAskVolume",, "T"),"") ->  | Y17: =IF(C17=1,RTD("cqg.rtd", ,"ContractData",D17, "T_CVol",, "T"),"") ->  | Z17: =IF(C17=1,RTD("cqg.rtd", ,"ContractData",D17, "COI",, "T"),"") ->  | AA17: =IF(C17=1,RTD("cqg.rtd", ,"ContractData",D17, "ImpliedVolatility",, "T"),"") ->  | AB17: =IFERROR(IF(C17=1,RTD("cqg.rtd", ,"ContractData",D17, "Vega",, "T")*H17,""),"") ->  | AC17: =IFERROR(IF(C17=0,"",IF(LEFT(D17,1)="F",H17*100,H17*RTD("cqg.rtd",,"ContractData",D17,"Delta",,"T")))*$Y$41,"") ->  | AD17: =IFERROR(IF(C17=1,RTD("cqg.rtd",,"ContractData",D17,"Gamma",,"T")*H17*$AA$41,""),"") ->  | AE17: =IFERROR(IF(C17=1,RTD("cqg.rtd", ,"ContractData",D17, "Theta",, "T")*ABS(H17),""),"") ->  | AF17: =IF(C17=0,"",IF(LEFT(D17,1)="F",(RTD("cqg.rtd",,"ContractData",D17,"ExpirationDate",,"T")-TODAY()),RTD("cqg.rtd",,"ContractData",D17,"OptionDaysToExp",,"T"))) -> 
C18: =IF(LOOKUP(13,First!A1:A2728)<>13,0,1) -> 0 | D18: =IF(C18=1,VLOOKUP(First!I13,INDIRECT($A$2),2),"") ->  | H18: =IF(C18=1,RTD("cqg.rtd", ,"OrderData", ""&D18&"", "", "OpenPosition",""&$D$3&""),"") ->  | I18: =IF(AND(C18=1,$C$5=TRUE),H18*(RTD("cqg.rtd", ,"ContractData",D18, "TheoreticalValue",, "T")-RTD("cqg.rtd",,"ContractData",D18,"Y_Settlement",,"T"))*50,IF(C18=1,RTD("cqg.rtd", ,"OrderData",""&D18&"", "", "OpenTradeEquity",""&$D$3&""),"")) ->  | K18: =IF(C18=0,"",IF($D$1="B",RTD("cqg.rtd", ,"ContractData",D18, "LastTrade",,"B"),TEXT(RTD("cqg.rtd", ,"ContractData",D18, "LastTrade",, "T"),$D$1))) ->  | L18: =IF(RTD("cqg.rtd",,"ContractData",D18,"LastTrade",,"T")<RTD("cqg.rtd",,"ContractData",D18,"Bid",,"T"),1,IF(RTD("cqg.rtd",,"ContractData",D18,"LastTrade",,"T")>RTD("cqg.rtd",,"ContractData",D18,"Ask",,"T"),1,0)) -> 0 | M18: =IF(C18=1,RTD("cqg.rtd", ,"ContractData",D18, "TMLastTrade",, "T"),"") ->  | O18: =IF(C18=1,RTD("cqg.rtd", ,"ContractData",D18, "MT_LastBidVolume",, "T"),"") ->  | P18: =IF(C18=0,"",IF($D$1="B",RTD("cqg.rtd", ,"ContractData",D18, "Bid",,"B"),TEXT(RTD("cqg.rtd", ,"ContractData",D18, "Bid",, "T"),$D$1))) ->  | Q18: 0 | R18: =IF(C18=0,"",IF(LEFT(D18,1)="F","",IF($D$1="B",RTD("cqg.rtd", ,"ContractData",D18, "TheoreticalValue",,"B"),TEXT(RTD("cqg.rtd", ,"ContractData",D18, "TheoreticalValue",, "T"),$D$1)))) ->  | S18: 0 | T18: =IF(C18=0,"",IF($D$1="B",RTD("cqg.rtd", ,"ContractData",D18, "Ask",,"B"),TEXT(RTD("cqg.rtd", ,"ContractData",D18, "Ask",, "T"),$D$1))) ->  | U18: =IF(C18=1,RTD("cqg.rtd", ,"ContractData",D18, "MT_LastAskVolume",, "T"),"") ->  | Y18: =IF(C18=1,RTD("cqg.rtd", ,"ContractData",D18, "T_CVol",, "T"),"") ->  | Z18: =IF(C18=1,RTD("cqg.rtd", ,"ContractData",D18, "COI",, "T"),"") ->  | AA18: =IF(C18=1,RTD("cqg.rtd", ,"ContractData",D18, "ImpliedVolatility",, "T"),"") ->  | AB18: =IFERROR(IF(C18=1,RTD("cqg.rtd", ,"ContractData",D18, "Vega",, "T")*H18,""),"") ->  | AC18: =IFERROR(IF(C18=0,"",IF(LEFT(D18,1)="F",H18*100,H18*RTD("cqg.rtd",,"ContractData",D18,"Delta",,"T")))*$Y$41,"") ->  | AD18: =IFERROR(IF(C18=1,RTD("cqg.rtd",,"ContractData",D18,"Gamma",,"T")*H18*$AA$41,""),"") ->  | AE18: =IFERROR(IF(C18=1,RTD("cqg.rtd", ,"ContractData",D18, "Theta",, "T")*ABS(H18),""),"") ->  | AF18: =IF(C18=0,"",IF(LEFT(D18,1)="F",(RTD("cqg.rtd",,"ContractData",D18,"ExpirationDate",,"T")-TODAY()),RTD("cqg.rtd",,"ContractData",D18,"OptionDaysToExp",,"T"))) -> 
C19: =IF(LOOKUP(14,First!A1:A2728)<>14,0,1) -> 0 | D19: =IF(C19=1,VLOOKUP(First!I14,INDIRECT($A$2),2),"") ->  | H19: =IF(C19=1,RTD("cqg.rtd", ,"OrderData", ""&D19&"", "", "OpenPosition",""&$D$3&""),"") ->  | I19: =IF(AND(C19=1,$C$5=TRUE),H19*(RTD("cqg.rtd", ,"ContractData",D19, "TheoreticalValue",, "T")-RTD("cqg.rtd",,"ContractData",D19,"Y_Settlement",,"T"))*50,IF(C19=1,RTD("cqg.rtd", ,"OrderData",""&D19&"", "", "OpenTradeEquity",""&$D$3&""),"")) ->  | K19: =IF(C19=0,"",IF($D$1="B",RTD("cqg.rtd", ,"ContractData",D19, "LastTrade",,"B"),TEXT(RTD("cqg.rtd", ,"ContractData",D19, "LastTrade",, "T"),$D$1))) ->  | L19: =IF(RTD("cqg.rtd",,"ContractData",D19,"LastTrade",,"T")<RTD("cqg.rtd",,"ContractData",D19,"Bid",,"T"),1,IF(RTD("cqg.rtd",,"ContractData",D19,"LastTrade",,"T")>RTD("cqg.rtd",,"ContractData",D19,"Ask",,"T"),1,0)) -> 0 | M19: =IF(C19=1,RTD("cqg.rtd", ,"ContractData",D19, "TMLastTrade",, "T"),"") ->  | O19: =IF(C19=1,RTD("cqg.rtd", ,"ContractData",D19, "MT_LastBidVolume",, "T"),"") ->  | P19: =IF(C19=0,"",IF($D$1="B",RTD("cqg.rtd", ,"ContractData",D19, "Bid",,"B"),TEXT(RTD("cqg.rtd", ,"ContractData",D19, "Bid",, "T"),$D$1))) ->  | Q19: 0 | R19: =IF(C19=0,"",IF(LEFT(D19,1)="F","",IF($D$1="B",RTD("cqg.rtd", ,"ContractData",D19, "TheoreticalValue",,"B"),TEXT(RTD("cqg.rtd", ,"ContractData",D19, "TheoreticalValue",, "T"),$D$1)))) ->  | S19: 0 | T19: =IF(C19=0,"",IF($D$1="B",RTD("cqg.rtd", ,"ContractData",D19, "Ask",,"B"),TEXT(RTD("cqg.rtd", ,"ContractData",D19, "Ask",, "T"),$D$1))) ->  | U19: =IF(C19=1,RTD("cqg.rtd", ,"ContractData",D19, "MT_LastAskVolume",, "T"),"") ->  | Y19: =IF(C19=1,RTD("cqg.rtd", ,"ContractData",D19, "T_CVol",, "T"),"") ->  | Z19: =IF(C19=1,RTD("cqg.rtd", ,"ContractData",D19, "COI",, "T"),"") ->  | AA19: =IF(C19=1,RTD("cqg.rtd", ,"ContractData",D19, "ImpliedVolatility",, "T"),"") ->  | AB19: =IFERROR(IF(C19=1,RTD("cqg.rtd", ,"ContractData",D19, "Vega",, "T")*H19,""),"") ->  | AC19: =IFERROR(IF(C19=0,"",IF(LEFT(D19,1)="F",H19*100,H19*RTD("cqg.rtd",,"ContractData",D19,"Delta",,"T")))*$Y$41,"") ->  | AD19: =IFERROR(IF(C19=1,RTD("cqg.rtd",,"ContractData",D19,"Gamma",,"T")*H19*$AA$41,""),"") ->  | AE19: =IFERROR(IF(C19=1,RTD("cqg.rtd", ,"ContractData",D19, "Theta",, "T")*ABS(H19),""),"") ->  | AF19: =IF(C19=0,"",IF(LEFT(D19,1)="F",(RTD("cqg.rtd",,"ContractData",D19,"ExpirationDate",,"T")-TODAY()),RTD("cqg.rtd",,"ContractData",D19,"OptionDaysToExp",,"T"))) -> 
C20: =IF(LOOKUP(15,First!A1:A2728)<>15,0,1) -> 0 | D20: =IF(C20=1,VLOOKUP(First!I15,INDIRECT($A$2),2),"") ->  | H20: =IF(C20=1,RTD("cqg.rtd", ,"OrderData", ""&D20&"", "", "OpenPosition",""&$D$3&""),"") ->  | I20: =IF(AND(C20=1,$C$5=TRUE),H20*(RTD("cqg.rtd", ,"ContractData",D20, "TheoreticalValue",, "T")-RTD("cqg.rtd",,"ContractData",D20,"Y_Settlement",,"T"))*50,IF(C20=1,RTD("cqg.rtd", ,"OrderData",""&D20&"", "", "OpenTradeEquity",""&$D$3&""),"")) ->  | K20: =IF(C20=0,"",IF($D$1="B",RTD("cqg.rtd", ,"ContractData",D20, "LastTrade",,"B"),TEXT(RTD("cqg.rtd", ,"ContractData",D20, "LastTrade",, "T"),$D$1))) ->  | L20: =IF(RTD("cqg.rtd",,"ContractData",D20,"LastTrade",,"T")<RTD("cqg.rtd",,"ContractData",D20,"Bid",,"T"),1,IF(RTD("cqg.rtd",,"ContractData",D20,"LastTrade",,"T")>RTD("cqg.rtd",,"ContractData",D20,"Ask",,"T"),1,0)) -> 0 | M20: =IF(C20=1,RTD("cqg.rtd", ,"ContractData",D20, "TMLastTrade",, "T"),"") ->  | O20: =IF(C20=1,RTD("cqg.rtd", ,"ContractData",D20, "MT_LastBidVolume",, "T"),"") ->  | P20: =IF(C20=0,"",IF($D$1="B",RTD("cqg.rtd", ,"ContractData",D20, "Bid",,"B"),TEXT(RTD("cqg.rtd", ,"ContractData",D20, "Bid",, "T"),$D$1))) ->  | Q20: 0 | R20: =IF(C20=0,"",IF(LEFT(D20,1)="F","",IF($D$1="B",RTD("cqg.rtd", ,"ContractData",D20, "TheoreticalValue",,"B"),TEXT(RTD("cqg.rtd", ,"ContractData",D20, "TheoreticalValue",, "T"),$D$1)))) ->  | S20: 0 | T20: =IF(C20=0,"",IF($D$1="B",RTD("cqg.rtd", ,"ContractData",D20, "Ask",,"B"),TEXT(RTD("cqg.rtd", ,"ContractData",D20, "Ask",, "T"),$D$1))) ->  | U20: =IF(C20=1,RTD("cqg.rtd", ,"ContractData",D20, "MT_LastAskVolume",, "T"),"") ->  | Y20: =IF(C20=1,RTD("cqg.rtd", ,"ContractData",D20, "T_CVol",, "T"),"") ->  | Z20: =IF(C20=1,RTD("cqg.rtd", ,"ContractData",D20, "COI",, "T"),"") ->  | AA20: =IF(C20=1,RTD("cqg.rtd", ,"ContractData",D20, "ImpliedVolatility",, "T"),"") ->  | AB20: =IFERROR(IF(C20=1,RTD("cqg.rtd", ,"ContractData",D20, "Vega",, "T")*H20,""),"") ->  | AC20: =IFERROR(IF(C20=0,"",IF(LEFT(D20,1)="F",H20*100,H20*RTD("cqg.rtd",,"ContractData",D20,"Delta",,"T")))*$Y$41,"") ->  | AD20: =IFERROR(IF(C20=1,RTD("cqg.rtd",,"ContractData",D20,"Gamma",,"T")*H20*$AA$41,""),"") ->  | AE20: =IFERROR(IF(C20=1,RTD("cqg.rtd", ,"ContractData",D20, "Theta",, "T")*ABS(H20),""),"") ->  | AF20: =IF(C20=0,"",IF(LEFT(D20,1)="F",(RTD("cqg.rtd",,"ContractData",D20,"ExpirationDate",,"T")-TODAY()),RTD("cqg.rtd",,"ContractData",D20,"OptionDaysToExp",,"T"))) -> 
C21: =IF(LOOKUP(16,First!A1:A2728)<>16,0,1) -> 0 | D21: =IF(C21=1,VLOOKUP(First!I16,INDIRECT($A$2),2),"") ->  | H21: =IF(C21=1,RTD("cqg.rtd", ,"OrderData", ""&D21&"", "", "OpenPosition",""&$D$3&""),"") ->  | I21: =IF(AND(C21=1,$C$5=TRUE),H21*(RTD("cqg.rtd", ,"ContractData",D21, "TheoreticalValue",, "T")-RTD("cqg.rtd",,"ContractData",D21,"Y_Settlement",,"T"))*50,IF(C21=1,RTD("cqg.rtd", ,"OrderData",""&D21&"", "", "OpenTradeEquity",""&$D$3&""),"")) ->  | K21: =IF(C21=0,"",IF($D$1="B",RTD("cqg.rtd", ,"ContractData",D21, "LastTrade",,"B"),TEXT(RTD("cqg.rtd", ,"ContractData",D21, "LastTrade",, "T"),$D$1))) ->  | L21: =IF(RTD("cqg.rtd",,"ContractData",D21,"LastTrade",,"T")<RTD("cqg.rtd",,"ContractData",D21,"Bid",,"T"),1,IF(RTD("cqg.rtd",,"ContractData",D21,"LastTrade",,"T")>RTD("cqg.rtd",,"ContractData",D21,"Ask",,"T"),1,0)) -> 0 | M21: =IF(C21=1,RTD("cqg.rtd", ,"ContractData",D21, "TMLastTrade",, "T"),"") ->  | O21: =IF(C21=1,RTD("cqg.rtd", ,"ContractData",D21, "MT_LastBidVolume",, "T"),"") ->  | P21: =IF(C21=0,"",IF($D$1="B",RTD("cqg.rtd", ,"ContractData",D21, "Bid",,"B"),TEXT(RTD("cqg.rtd", ,"ContractData",D21, "Bid",, "T"),$D$1))) ->  | Q21: 0 | R21: =IF(C21=0,"",IF(LEFT(D21,1)="F","",IF($D$1="B",RTD("cqg.rtd", ,"ContractData",D21, "TheoreticalValue",,"B"),TEXT(RTD("cqg.rtd", ,"ContractData",D21, "TheoreticalValue",, "T"),$D$1)))) ->  | S21: 0 | T21: =IF(C21=0,"",IF($D$1="B",RTD("cqg.rtd", ,"ContractData",D21, "Ask",,"B"),TEXT(RTD("cqg.rtd", ,"ContractData",D21, "Ask",, "T"),$D$1))) ->  | U21: =IF(C21=1,RTD("cqg.rtd", ,"ContractData",D21, "MT_LastAskVolume",, "T"),"") ->  | Y21: =IF(C21=1,RTD("cqg.rtd", ,"ContractData",D21, "T_CVol",, "T"),"") ->  | Z21: =IF(C21=1,RTD("cqg.rtd", ,"ContractData",D21, "COI",, "T"),"") ->  | AA21: =IF(C21=1,RTD("cqg.rtd", ,"ContractData",D21, "ImpliedVolatility",, "T"),"") ->  | AB21: =IFERROR(IF(C21=1,RTD("cqg.rtd", ,"ContractData",D21, "Vega",, "T")*H21,""),"") ->  | AC21: =IFERROR(IF(C21=0,"",IF(LEFT(D21,1)="F",H21*100,H21*RTD("cqg.rtd",,"ContractData",D21,"Delta",,"T")))*$Y$41,"") ->  | AD21: =IFERROR(IF(C21=1,RTD("cqg.rtd",,"ContractData",D21,"Gamma",,"T")*H21*$AA$41,""),"") ->  | AE21: =IFERROR(IF(C21=1,RTD("cqg.rtd", ,"ContractData",D21, "Theta",, "T")*ABS(H21),""),"") ->  | AF21: =IF(C21=0,"",IF(LEFT(D21,1)="F",(RTD("cqg.rtd",,"ContractData",D21,"ExpirationDate",,"T")-TODAY()),RTD("cqg.rtd",,"ContractData",D21,"OptionDaysToExp",,"T"))) -> 
C22: =IF(LOOKUP(17,First!A1:A2728)<>17,0,1) -> 0 | D22: =IF(C22=1,VLOOKUP(First!I17,INDIRECT($A$2),2),"") ->  | H22: =IF(C22=1,RTD("cqg.rtd", ,"OrderData", ""&D22&"", "", "OpenPosition",""&$D$3&""),"") ->  | I22: =IF(AND(C22=1,$C$5=TRUE),H22*(RTD("cqg.rtd", ,"ContractData",D22, "TheoreticalValue",, "T")-RTD("cqg.rtd",,"ContractData",D22,"Y_Settlement",,"T"))*50,IF(C22=1,RTD("cqg.rtd", ,"OrderData",""&D22&"", "", "OpenTradeEquity",""&$D$3&""),"")) ->  | K22: =IF(C22=0,"",IF($D$1="B",RTD("cqg.rtd", ,"ContractData",D22, "LastTrade",,"B"),TEXT(RTD("cqg.rtd", ,"ContractData",D22, "LastTrade",, "T"),$D$1))) ->  | L22: =IF(RTD("cqg.rtd",,"ContractData",D22,"LastTrade",,"T")<RTD("cqg.rtd",,"ContractData",D22,"Bid",,"T"),1,IF(RTD("cqg.rtd",,"ContractData",D22,"LastTrade",,"T")>RTD("cqg.rtd",,"ContractData",D22,"Ask",,"T"),1,0)) -> 0 | M22: =IF(C22=1,RTD("cqg.rtd", ,"ContractData",D22, "TMLastTrade",, "T"),"") ->  | O22: =IF(C22=1,RTD("cqg.rtd", ,"ContractData",D22, "MT_LastBidVolume",, "T"),"") ->  | P22: =IF(C22=0,"",IF($D$1="B",RTD("cqg.rtd", ,"ContractData",D22, "Bid",,"B"),TEXT(RTD("cqg.rtd", ,"ContractData",D22, "Bid",, "T"),$D$1))) ->  | Q22: 0 | R22: =IF(C22=0,"",IF(LEFT(D22,1)="F","",IF($D$1="B",RTD("cqg.rtd", ,"ContractData",D22, "TheoreticalValue",,"B"),TEXT(RTD("cqg.rtd", ,"ContractData",D22, "TheoreticalValue",, "T"),$D$1)))) ->  | S22: 0 | T22: =IF(C22=0,"",IF($D$1="B",RTD("cqg.rtd", ,"ContractData",D22, "Ask",,"B"),TEXT(RTD("cqg.rtd", ,"ContractData",D22, "Ask",, "T"),$D$1))) ->  | U22: =IF(C22=1,RTD("cqg.rtd", ,"ContractData",D22, "MT_LastAskVolume",, "T"),"") ->  | Y22: =IF(C22=1,RTD("cqg.rtd", ,"ContractData",D22, "T_CVol",, "T"),"") ->  | Z22: =IF(C22=1,RTD("cqg.rtd", ,"ContractData",D22, "COI",, "T"),"") ->  | AA22: =IF(C22=1,RTD("cqg.rtd", ,"ContractData",D22, "ImpliedVolatility",, "T"),"") ->  | AB22: =IFERROR(IF(C22=1,RTD("cqg.rtd", ,"ContractData",D22, "Vega",, "T")*H22,""),"") ->  | AC22: =IFERROR(IF(C22=0,"",IF(LEFT(D22,1)="F",H22*100,H22*RTD("cqg.rtd",,"ContractData",D22,"Delta",,"T")))*$Y$41,"") ->  | AD22: =IFERROR(IF(C22=1,RTD("cqg.rtd",,"ContractData",D22,"Gamma",,"T")*H22*$AA$41,""),"") ->  | AE22: =IFERROR(IF(C22=1,RTD("cqg.rtd", ,"ContractData",D22, "Theta",, "T")*ABS(H22),""),"") ->  | AF22: =IF(C22=0,"",IF(LEFT(D22,1)="F",(RTD("cqg.rtd",,"ContractData",D22,"ExpirationDate",,"T")-TODAY()),RTD("cqg.rtd",,"ContractData",D22,"OptionDaysToExp",,"T"))) -> 
C23: =IF(LOOKUP(18,First!A1:A2728)<>18,0,1) -> 0 | D23: =IF(C23=1,VLOOKUP(First!I18,INDIRECT($A$2),2),"") ->  | H23: =IF(C23=1,RTD("cqg.rtd", ,"OrderData", ""&D23&"", "", "OpenPosition",""&$D$3&""),"") ->  | I23: =IF(AND(C23=1,$C$5=TRUE),H23*(RTD("cqg.rtd", ,"ContractData",D23, "TheoreticalValue",, "T")-RTD("cqg.rtd",,"ContractData",D23,"Y_Settlement",,"T"))*50,IF(C23=1,RTD("cqg.rtd", ,"OrderData",""&D23&"", "", "OpenTradeEquity",""&$D$3&""),"")) ->  | K23: =IF(C23=0,"",IF($D$1="B",RTD("cqg.rtd", ,"ContractData",D23, "LastTrade",,"B"),TEXT(RTD("cqg.rtd", ,"ContractData",D23, "LastTrade",, "T"),$D$1))) ->  | L23: =IF(RTD("cqg.rtd",,"ContractData",D23,"LastTrade",,"T")<RTD("cqg.rtd",,"ContractData",D23,"Bid",,"T"),1,IF(RTD("cqg.rtd",,"ContractData",D23,"LastTrade",,"T")>RTD("cqg.rtd",,"ContractData",D23,"Ask",,"T"),1,0)) -> 0 | M23: =IF(C23=1,RTD("cqg.rtd", ,"ContractData",D23, "TMLastTrade",, "T"),"") ->  | O23: =IF(C23=1,RTD("cqg.rtd", ,"ContractData",D23, "MT_LastBidVolume",, "T"),"") ->  | P23: =IF(C23=0,"",IF($D$1="B",RTD("cqg.rtd", ,"ContractData",D23, "Bid",,"B"),TEXT(RTD("cqg.rtd", ,"ContractData",D23, "Bid",, "T"),$D$1))) ->  | Q23: 0 | R23: =IF(C23=0,"",IF(LEFT(D23,1)="F","",IF($D$1="B",RTD("cqg.rtd", ,"ContractData",D23, "TheoreticalValue",,"B"),TEXT(RTD("cqg.rtd", ,"ContractData",D23, "TheoreticalValue",, "T"),$D$1)))) ->  | S23: 0 | T23: =IF(C23=0,"",IF($D$1="B",RTD("cqg.rtd", ,"ContractData",D23, "Ask",,"B"),TEXT(RTD("cqg.rtd", ,"ContractData",D23, "Ask",, "T"),$D$1))) ->  | U23: =IF(C23=1,RTD("cqg.rtd", ,"ContractData",D23, "MT_LastAskVolume",, "T"),"") ->  | Y23: =IF(C23=1,RTD("cqg.rtd", ,"ContractData",D23, "T_CVol",, "T"),"") ->  | Z23: =IF(C23=1,RTD("cqg.rtd", ,"ContractData",D23, "COI",, "T"),"") ->  | AA23: =IF(C23=1,RTD("cqg.rtd", ,"ContractData",D23, "ImpliedVolatility",, "T"),"") ->  | AB23: =IFERROR(IF(C23=1,RTD("cqg.rtd", ,"ContractData",D23, "Vega",, "T")*H23,""),"") ->  | AC23: =IFERROR(IF(C23=0,"",IF(LEFT(D23,1)="F",H23*100,H23*RTD("cqg.rtd",,"ContractData",D23,"Delta",,"T")))*$Y$41,"") ->  | AD23: =IFERROR(IF(C23=1,RTD("cqg.rtd",,"ContractData",D23,"Gamma",,"T")*H23*$AA$41,""),"") ->  | AE23: =IFERROR(IF(C23=1,RTD("cqg.rtd", ,"ContractData",D23, "Theta",, "T")*ABS(H23),""),"") ->  | AF23: =IF(C23=0,"",IF(LEFT(D23,1)="F",(RTD("cqg.rtd",,"ContractData",D23,"ExpirationDate",,"T")-TODAY()),RTD("cqg.rtd",,"ContractData",D23,"OptionDaysToExp",,"T"))) -> 
C24: =IF(LOOKUP(19,First!A1:A2728)<>19,0,1) -> 0 | D24: =IF(C24=1,VLOOKUP(First!I19,INDIRECT($A$2),2),"") ->  | H24: =IF(C24=1,RTD("cqg.rtd", ,"OrderData", ""&D24&"", "", "OpenPosition",""&$D$3&""),"") ->  | I24: =IF(AND(C24=1,$C$5=TRUE),H24*(RTD("cqg.rtd", ,"ContractData",D24, "TheoreticalValue",, "T")-RTD("cqg.rtd",,"ContractData",D24,"Y_Settlement",,"T"))*50,IF(C24=1,RTD("cqg.rtd", ,"OrderData",""&D24&"", "", "OpenTradeEquity",""&$D$3&""),"")) ->  | K24: =IF(C24=0,"",IF($D$1="B",RTD("cqg.rtd", ,"ContractData",D24, "LastTrade",,"B"),TEXT(RTD("cqg.rtd", ,"ContractData",D24, "LastTrade",, "T"),$D$1))) ->  | L24: =IF(RTD("cqg.rtd",,"ContractData",D24,"LastTrade",,"T")<RTD("cqg.rtd",,"ContractData",D24,"Bid",,"T"),1,IF(RTD("cqg.rtd",,"ContractData",D24,"LastTrade",,"T")>RTD("cqg.rtd",,"ContractData",D24,"Ask",,"T"),1,0)) -> 0 | M24: =IF(C24=1,RTD("cqg.rtd", ,"ContractData",D24, "TMLastTrade",, "T"),"") ->  | O24: =IF(C24=1,RTD("cqg.rtd", ,"ContractData",D24, "MT_LastBidVolume",, "T"),"") ->  | P24: =IF(C24=0,"",IF($D$1="B",RTD("cqg.rtd", ,"ContractData",D24, "Bid",,"B"),TEXT(RTD("cqg.rtd", ,"ContractData",D24, "Bid",, "T"),$D$1))) ->  | Q24: 0 | R24: =IF(C24=0,"",IF(LEFT(D24,1)="F","",IF($D$1="B",RTD("cqg.rtd", ,"ContractData",D24, "TheoreticalValue",,"B"),TEXT(RTD("cqg.rtd", ,"ContractData",D24, "TheoreticalValue",, "T"),$D$1)))) ->  | S24: 0 | T24: =IF(C24=0,"",IF($D$1="B",RTD("cqg.rtd", ,"ContractData",D24, "Ask",,"B"),TEXT(RTD("cqg.rtd", ,"ContractData",D24, "Ask",, "T"),$D$1))) ->  | U24: =IF(C24=1,RTD("cqg.rtd", ,"ContractData",D24, "MT_LastAskVolume",, "T"),"") ->  | Y24: =IF(C24=1,RTD("cqg.rtd", ,"ContractData",D24, "T_CVol",, "T"),"") ->  | Z24: =IF(C24=1,RTD("cqg.rtd", ,"ContractData",D24, "COI",, "T"),"") ->  | AA24: =IF(C24=1,RTD("cqg.rtd", ,"ContractData",D24, "ImpliedVolatility",, "T"),"") ->  | AB24: =IFERROR(IF(C24=1,RTD("cqg.rtd", ,"ContractData",D24, "Vega",, "T")*H24,""),"") ->  | AC24: =IFERROR(IF(C24=0,"",IF(LEFT(D24,1)="F",H24*100,H24*RTD("cqg.rtd",,"ContractData",D24,"Delta",,"T")))*$Y$41,"") ->  | AD24: =IFERROR(IF(C24=1,RTD("cqg.rtd",,"ContractData",D24,"Gamma",,"T")*H24*$AA$41,""),"") ->  | AE24: =IFERROR(IF(C24=1,RTD("cqg.rtd", ,"ContractData",D24, "Theta",, "T")*ABS(H24),""),"") ->  | AF24: =IF(C24=0,"",IF(LEFT(D24,1)="F",(RTD("cqg.rtd",,"ContractData",D24,"ExpirationDate",,"T")-TODAY()),RTD("cqg.rtd",,"ContractData",D24,"OptionDaysToExp",,"T"))) -> 
C25: =IF(LOOKUP(20,First!A1:A2728)<>20,0,1) -> 0 | D25: =IF(C25=1,VLOOKUP(First!I20,INDIRECT($A$2),2),"") ->  | H25: =IF(C25=1,RTD("cqg.rtd", ,"OrderData", ""&D25&"", "", "OpenPosition",""&$D$3&""),"") ->  | I25: =IF(AND(C25=1,$C$5=TRUE),H25*(RTD("cqg.rtd", ,"ContractData",D25, "TheoreticalValue",, "T")-RTD("cqg.rtd",,"ContractData",D25,"Y_Settlement",,"T"))*50,IF(C25=1,RTD("cqg.rtd", ,"OrderData",""&D25&"", "", "OpenTradeEquity",""&$D$3&""),"")) ->  | K25: =IF(C25=0,"",IF($D$1="B",RTD("cqg.rtd", ,"ContractData",D25, "LastTrade",,"B"),TEXT(RTD("cqg.rtd", ,"ContractData",D25, "LastTrade",, "T"),$D$1))) ->  | L25: =IF(RTD("cqg.rtd",,"ContractData",D25,"LastTrade",,"T")<RTD("cqg.rtd",,"ContractData",D25,"Bid",,"T"),1,IF(RTD("cqg.rtd",,"ContractData",D25,"LastTrade",,"T")>RTD("cqg.rtd",,"ContractData",D25,"Ask",,"T"),1,0)) -> 0 | M25: =IF(C25=1,RTD("cqg.rtd", ,"ContractData",D25, "TMLastTrade",, "T"),"") ->  | O25: =IF(C25=1,RTD("cqg.rtd", ,"ContractData",D25, "MT_LastBidVolume",, "T"),"") ->  | P25: =IF(C25=0,"",IF($D$1="B",RTD("cqg.rtd", ,"ContractData",D25, "Bid",,"B"),TEXT(RTD("cqg.rtd", ,"ContractData",D25, "Bid",, "T"),$D$1))) ->  | Q25: 0 | R25: =IF(C25=0,"",IF(LEFT(D25,1)="F","",IF($D$1="B",RTD("cqg.rtd", ,"ContractData",D25, "TheoreticalValue",,"B"),TEXT(RTD("cqg.rtd", ,"ContractData",D25, "TheoreticalValue",, "T"),$D$1)))) ->  | S25: 0 | T25: =IF(C25=0,"",IF($D$1="B",RTD("cqg.rtd", ,"ContractData",D25, "Ask",,"B"),TEXT(RTD("cqg.rtd", ,"ContractData",D25, "Ask",, "T"),$D$1))) ->  | U25: =IF(C25=1,RTD("cqg.rtd", ,"ContractData",D25, "MT_LastAskVolume",, "T"),"") ->  | Y25: =IF(C25=1,RTD("cqg.rtd", ,"ContractData",D25, "T_CVol",, "T"),"") ->  | Z25: =IF(C25=1,RTD("cqg.rtd", ,"ContractData",D25, "COI",, "T"),"") ->  | AA25: =IF(C25=1,RTD("cqg.rtd", ,"ContractData",D25, "ImpliedVolatility",, "T"),"") ->  | AB25: =IFERROR(IF(C25=1,RTD("cqg.rtd", ,"ContractData",D25, "Vega",, "T")*H25,""),"") ->  | AC25: =IFERROR(IF(C25=0,"",IF(LEFT(D25,1)="F",H25*100,H25*RTD("cqg.rtd",,"ContractData",D25,"Delta",,"T")))*$Y$41,"") ->  | AD25: =IFERROR(IF(C25=1,RTD("cqg.rtd",,"ContractData",D25,"Gamma",,"T")*H25*$AA$41,""),"") ->  | AE25: =IFERROR(IF(C25=1,RTD("cqg.rtd", ,"ContractData",D25, "Theta",, "T")*ABS(H25),""),"") ->  | AF25: =IF(C25=0,"",IF(LEFT(D25,1)="F",(RTD("cqg.rtd",,"ContractData",D25,"ExpirationDate",,"T")-TODAY()),RTD("cqg.rtd",,"ContractData",D25,"OptionDaysToExp",,"T"))) -> 
C26: =IF(LOOKUP(21,First!A1:A2728)<>21,0,1) -> 0 | D26: =IF(C26=1,VLOOKUP(First!I21,INDIRECT($A$2),2),"") ->  | H26: =IF(C26=1,RTD("cqg.rtd", ,"OrderData", ""&D26&"", "", "OpenPosition",""&$D$3&""),"") ->  | I26: =IF(AND(C26=1,$C$5=TRUE),H26*(RTD("cqg.rtd", ,"ContractData",D26, "TheoreticalValue",, "T")-RTD("cqg.rtd",,"ContractData",D26,"Y_Settlement",,"T"))*50,IF(C26=1,RTD("cqg.rtd", ,"OrderData",""&D26&"", "", "OpenTradeEquity",""&$D$3&""),"")) ->  | K26: =IF(C26=0,"",IF($D$1="B",RTD("cqg.rtd", ,"ContractData",D26, "LastTrade",,"B"),TEXT(RTD("cqg.rtd", ,"ContractData",D26, "LastTrade",, "T"),$D$1))) ->  | L26: =IF(RTD("cqg.rtd",,"ContractData",D26,"LastTrade",,"T")<RTD("cqg.rtd",,"ContractData",D26,"Bid",,"T"),1,IF(RTD("cqg.rtd",,"ContractData",D26,"LastTrade",,"T")>RTD("cqg.rtd",,"ContractData",D26,"Ask",,"T"),1,0)) -> 0 | M26: =IF(C26=1,RTD("cqg.rtd", ,"ContractData",D26, "TMLastTrade",, "T"),"") ->  | O26: =IF(C26=1,RTD("cqg.rtd", ,"ContractData",D26, "MT_LastBidVolume",, "T"),"") ->  | P26: =IF(C26=0,"",IF($D$1="B",RTD("cqg.rtd", ,"ContractData",D26, "Bid",,"B"),TEXT(RTD("cqg.rtd", ,"ContractData",D26, "Bid",, "T"),$D$1))) ->  | Q26: 0 | R26: =IF(C26=0,"",IF(LEFT(D26,1)="F","",IF($D$1="B",RTD("cqg.rtd", ,"ContractData",D26, "TheoreticalValue",,"B"),TEXT(RTD("cqg.rtd", ,"ContractData",D26, "TheoreticalValue",, "T"),$D$1)))) ->  | S26: 0 | T26: =IF(C26=0,"",IF($D$1="B",RTD("cqg.rtd", ,"ContractData",D26, "Ask",,"B"),TEXT(RTD("cqg.rtd", ,"ContractData",D26, "Ask",, "T"),$D$1))) ->  | U26: =IF(C26=1,RTD("cqg.rtd", ,"ContractData",D26, "MT_LastAskVolume",, "T"),"") ->  | Y26: =IF(C26=1,RTD("cqg.rtd", ,"ContractData",D26, "T_CVol",, "T"),"") ->  | Z26: =IF(C26=1,RTD("cqg.rtd", ,"ContractData",D26, "COI",, "T"),"") ->  | AA26: =IF(C26=1,RTD("cqg.rtd", ,"ContractData",D26, "ImpliedVolatility",, "T"),"") ->  | AB26: =IFERROR(IF(C26=1,RTD("cqg.rtd", ,"ContractData",D26, "Vega",, "T")*H26,""),"") ->  | AC26: =IFERROR(IF(C26=0,"",IF(LEFT(D26,1)="F",H26*100,H26*RTD("cqg.rtd",,"ContractData",D26,"Delta",,"T")))*$Y$41,"") ->  | AD26: =IFERROR(IF(C26=1,RTD("cqg.rtd",,"ContractData",D26,"Gamma",,"T")*H26*$AA$41,""),"") ->  | AE26: =IFERROR(IF(C26=1,RTD("cqg.rtd", ,"ContractData",D26, "Theta",, "T")*ABS(H26),""),"") ->  | AF26: =IF(C26=0,"",IF(LEFT(D26,1)="F",(RTD("cqg.rtd",,"ContractData",D26,"ExpirationDate",,"T")-TODAY()),RTD("cqg.rtd",,"ContractData",D26,"OptionDaysToExp",,"T"))) -> 
C27: =IF(LOOKUP(22,First!A1:A2728)<>22,0,1) -> 0 | D27: =IF(C27=1,VLOOKUP(First!I22,INDIRECT($A$2),2),"") ->  | H27: =IF(C27=1,RTD("cqg.rtd", ,"OrderData", ""&D27&"", "", "OpenPosition",""&$D$3&""),"") ->  | I27: =IF(AND(C27=1,$C$5=TRUE),H27*(RTD("cqg.rtd", ,"ContractData",D27, "TheoreticalValue",, "T")-RTD("cqg.rtd",,"ContractData",D27,"Y_Settlement",,"T"))*50,IF(C27=1,RTD("cqg.rtd", ,"OrderData",""&D27&"", "", "OpenTradeEquity",""&$D$3&""),"")) ->  | K27: =IF(C27=0,"",IF($D$1="B",RTD("cqg.rtd", ,"ContractData",D27, "LastTrade",,"B"),TEXT(RTD("cqg.rtd", ,"ContractData",D27, "LastTrade",, "T"),$D$1))) ->  | L27: =IF(RTD("cqg.rtd",,"ContractData",D27,"LastTrade",,"T")<RTD("cqg.rtd",,"ContractData",D27,"Bid",,"T"),1,IF(RTD("cqg.rtd",,"ContractData",D27,"LastTrade",,"T")>RTD("cqg.rtd",,"ContractData",D27,"Ask",,"T"),1,0)) -> 0 | M27: =IF(C27=1,RTD("cqg.rtd", ,"ContractData",D27, "TMLastTrade",, "T"),"") ->  | O27: =IF(C27=1,RTD("cqg.rtd", ,"ContractData",D27, "MT_LastBidVolume",, "T"),"") ->  | P27: =IF(C27=0,"",IF($D$1="B",RTD("cqg.rtd", ,"ContractData",D27, "Bid",,"B"),TEXT(RTD("cqg.rtd", ,"ContractData",D27, "Bid",, "T"),$D$1))) ->  | Q27: 0 | R27: =IF(C27=0,"",IF(LEFT(D27,1)="F","",IF($D$1="B",RTD("cqg.rtd", ,"ContractData",D27, "TheoreticalValue",,"B"),TEXT(RTD("cqg.rtd", ,"ContractData",D27, "TheoreticalValue",, "T"),$D$1)))) ->  | S27: 0 | T27: =IF(C27=0,"",IF($D$1="B",RTD("cqg.rtd", ,"ContractData",D27, "Ask",,"B"),TEXT(RTD("cqg.rtd", ,"ContractData",D27, "Ask",, "T"),$D$1))) ->  | U27: =IF(C27=1,RTD("cqg.rtd", ,"ContractData",D27, "MT_LastAskVolume",, "T"),"") ->  | Y27: =IF(C27=1,RTD("cqg.rtd", ,"ContractData",D27, "T_CVol",, "T"),"") ->  | Z27: =IF(C27=1,RTD("cqg.rtd", ,"ContractData",D27, "COI",, "T"),"") ->  | AA27: =IF(C27=1,RTD("cqg.rtd", ,"ContractData",D27, "ImpliedVolatility",, "T"),"") ->  | AB27: =IFERROR(IF(C27=1,RTD("cqg.rtd", ,"ContractData",D27, "Vega",, "T")*H27,""),"") ->  | AC27: =IFERROR(IF(C27=0,"",IF(LEFT(D27,1)="F",H27*100,H27*RTD("cqg.rtd",,"ContractData",D27,"Delta",,"T")))*$Y$41,"") ->  | AD27: =IFERROR(IF(C27=1,RTD("cqg.rtd",,"ContractData",D27,"Gamma",,"T")*H27*$AA$41,""),"") ->  | AE27: =IFERROR(IF(C27=1,RTD("cqg.rtd", ,"ContractData",D27, "Theta",, "T")*ABS(H27),""),"") ->  | AF27: =IF(C27=0,"",IF(LEFT(D27,1)="F",(RTD("cqg.rtd",,"ContractData",D27,"ExpirationDate",,"T")-TODAY()),RTD("cqg.rtd",,"ContractData",D27,"OptionDaysToExp",,"T"))) -> 
C28: =IF(LOOKUP(23,First!A1:A2728)<>23,0,1) -> 0 | D28: =IF(C28=1,VLOOKUP(First!I23,INDIRECT($A$2),2),"") ->  | H28: =IF(C28=1,RTD("cqg.rtd", ,"OrderData", ""&D28&"", "", "OpenPosition",""&$D$3&""),"") ->  | I28: =IF(AND(C28=1,$C$5=TRUE),H28*(RTD("cqg.rtd", ,"ContractData",D28, "TheoreticalValue",, "T")-RTD("cqg.rtd",,"ContractData",D28,"Y_Settlement",,"T"))*50,IF(C28=1,RTD("cqg.rtd", ,"OrderData",""&D28&"", "", "OpenTradeEquity",""&$D$3&""),"")) ->  | K28: =IF(C28=0,"",IF($D$1="B",RTD("cqg.rtd", ,"ContractData",D28, "LastTrade",,"B"),TEXT(RTD("cqg.rtd", ,"ContractData",D28, "LastTrade",, "T"),$D$1))) ->  | L28: =IF(RTD("cqg.rtd",,"ContractData",D28,"LastTrade",,"T")<RTD("cqg.rtd",,"ContractData",D28,"Bid",,"T"),1,IF(RTD("cqg.rtd",,"ContractData",D28,"LastTrade",,"T")>RTD("cqg.rtd",,"ContractData",D28,"Ask",,"T"),1,0)) -> 0 | M28: =IF(C28=1,RTD("cqg.rtd", ,"ContractData",D28, "TMLastTrade",, "T"),"") ->  | O28: =IF(C28=1,RTD("cqg.rtd", ,"ContractData",D28, "MT_LastBidVolume",, "T"),"") ->  | P28: =IF(C28=0,"",IF($D$1="B",RTD("cqg.rtd", ,"ContractData",D28, "Bid",,"B"),TEXT(RTD("cqg.rtd", ,"ContractData",D28, "Bid",, "T"),$D$1))) ->  | Q28: 0 | R28: =IF(C28=0,"",IF(LEFT(D28,1)="F","",IF($D$1="B",RTD("cqg.rtd", ,"ContractData",D28, "TheoreticalValue",,"B"),TEXT(RTD("cqg.rtd", ,"ContractData",D28, "TheoreticalValue",, "T"),$D$1)))) ->  | S28: 0 | T28: =IF(C28=0,"",IF($D$1="B",RTD("cqg.rtd", ,"ContractData",D28, "Ask",,"B"),TEXT(RTD("cqg.rtd", ,"ContractData",D28, "Ask",, "T"),$D$1))) ->  | U28: =IF(C28=1,RTD("cqg.rtd", ,"ContractData",D28, "MT_LastAskVolume",, "T"),"") ->  | Y28: =IF(C28=1,RTD("cqg.rtd", ,"ContractData",D28, "T_CVol",, "T"),"") ->  | Z28: =IF(C28=1,RTD("cqg.rtd", ,"ContractData",D28, "COI",, "T"),"") ->  | AA28: =IF(C28=1,RTD("cqg.rtd", ,"ContractData",D28, "ImpliedVolatility",, "T"),"") ->  | AB28: =IFERROR(IF(C28=1,RTD("cqg.rtd", ,"ContractData",D28, "Vega",, "T")*H28,""),"") ->  | AC28: =IFERROR(IF(C28=0,"",IF(LEFT(D28,1)="F",H28*100,H28*RTD("cqg.rtd",,"ContractData",D28,"Delta",,"T")))*$Y$41,"") ->  | AD28: =IFERROR(IF(C28=1,RTD("cqg.rtd",,"ContractData",D28,"Gamma",,"T")*H28*$AA$41,""),"") ->  | AE28: =IFERROR(IF(C28=1,RTD("cqg.rtd", ,"ContractData",D28, "Theta",, "T")*ABS(H28),""),"") ->  | AF28: =IF(C28=0,"",IF(LEFT(D28,1)="F",(RTD("cqg.rtd",,"ContractData",D28,"ExpirationDate",,"T")-TODAY()),RTD("cqg.rtd",,"ContractData",D28,"OptionDaysToExp",,"T"))) -> 
C29: =IF(LOOKUP(24,First!A1:A2728)<>24,0,1) -> 0 | D29: =IF(C29=1,VLOOKUP(First!I24,INDIRECT($A$2),2),"") ->  | H29: =IF(C29=1,RTD("cqg.rtd", ,"OrderData", ""&D29&"", "", "OpenPosition",""&$D$3&""),"") ->  | I29: =IF(AND(C29=1,$C$5=TRUE),H29*(RTD("cqg.rtd", ,"ContractData",D29, "TheoreticalValue",, "T")-RTD("cqg.rtd",,"ContractData",D29,"Y_Settlement",,"T"))*50,IF(C29=1,RTD("cqg.rtd", ,"OrderData",""&D29&"", "", "OpenTradeEquity",""&$D$3&""),"")) ->  | K29: =IF(C29=0,"",IF($D$1="B",RTD("cqg.rtd", ,"ContractData",D29, "LastTrade",,"B"),TEXT(RTD("cqg.rtd", ,"ContractData",D29, "LastTrade",, "T"),$D$1))) ->  | L29: =IF(RTD("cqg.rtd",,"ContractData",D29,"LastTrade",,"T")<RTD("cqg.rtd",,"ContractData",D29,"Bid",,"T"),1,IF(RTD("cqg.rtd",,"ContractData",D29,"LastTrade",,"T")>RTD("cqg.rtd",,"ContractData",D29,"Ask",,"T"),1,0)) -> 0 | M29: =IF(C29=1,RTD("cqg.rtd", ,"ContractData",D29, "TMLastTrade",, "T"),"") ->  | O29: =IF(C29=1,RTD("cqg.rtd", ,"ContractData",D29, "MT_LastBidVolume",, "T"),"") ->  | P29: =IF(C29=0,"",IF($D$1="B",RTD("cqg.rtd", ,"ContractData",D29, "Bid",,"B"),TEXT(RTD("cqg.rtd", ,"ContractData",D29, "Bid",, "T"),$D$1))) ->  | Q29: 0 | R29: =IF(C29=0,"",IF(LEFT(D29,1)="F","",IF($D$1="B",RTD("cqg.rtd", ,"ContractData",D29, "TheoreticalValue",,"B"),TEXT(RTD("cqg.rtd", ,"ContractData",D29, "TheoreticalValue",, "T"),$D$1)))) ->  | S29: 0 | T29: =IF(C29=0,"",IF($D$1="B",RTD("cqg.rtd", ,"ContractData",D29, "Ask",,"B"),TEXT(RTD("cqg.rtd", ,"ContractData",D29, "Ask",, "T"),$D$1))) ->  | U29: =IF(C29=1,RTD("cqg.rtd", ,"ContractData",D29, "MT_LastAskVolume",, "T"),"") ->  | Y29: =IF(C29=1,RTD("cqg.rtd", ,"ContractData",D29, "T_CVol",, "T"),"") ->  | Z29: =IF(C29=1,RTD("cqg.rtd", ,"ContractData",D29, "COI",, "T"),"") ->  | AA29: =IF(C29=1,RTD("cqg.rtd", ,"ContractData",D29, "ImpliedVolatility",, "T"),"") ->  | AB29: =IFERROR(IF(C29=1,RTD("cqg.rtd", ,"ContractData",D29, "Vega",, "T")*H29,""),"") ->  | AC29: =IFERROR(IF(C29=0,"",IF(LEFT(D29,1)="F",H29*100,H29*RTD("cqg.rtd",,"ContractData",D29,"Delta",,"T")))*$Y$41,"") ->  | AD29: =IFERROR(IF(C29=1,RTD("cqg.rtd",,"ContractData",D29,"Gamma",,"T")*H29*$AA$41,""),"") ->  | AE29: =IFERROR(IF(C29=1,RTD("cqg.rtd", ,"ContractData",D29, "Theta",, "T")*ABS(H29),""),"") ->  | AF29: =IF(C29=0,"",IF(LEFT(D29,1)="F",(RTD("cqg.rtd",,"ContractData",D29,"ExpirationDate",,"T")-TODAY()),RTD("cqg.rtd",,"ContractData",D29,"OptionDaysToExp",,"T"))) -> 
C30: =IF(LOOKUP(25,First!A1:A2728)<>25,0,1) -> 0 | D30: =IF(C30=1,VLOOKUP(First!I25,INDIRECT($A$2),2),"") ->  | H30: =IF(C30=1,RTD("cqg.rtd", ,"OrderData", ""&D30&"", "", "OpenPosition",""&$D$3&""),"") ->  | I30: =IF(AND(C30=1,$C$5=TRUE),H30*(RTD("cqg.rtd", ,"ContractData",D30, "TheoreticalValue",, "T")-RTD("cqg.rtd",,"ContractData",D30,"Y_Settlement",,"T"))*50,IF(C30=1,RTD("cqg.rtd", ,"OrderData",""&D30&"", "", "OpenTradeEquity",""&$D$3&""),"")) ->  | K30: =IF(C30=0,"",IF($D$1="B",RTD("cqg.rtd", ,"ContractData",D30, "LastTrade",,"B"),TEXT(RTD("cqg.rtd", ,"ContractData",D30, "LastTrade",, "T"),$D$1))) ->  | L30: =IF(RTD("cqg.rtd",,"ContractData",D30,"LastTrade",,"T")<RTD("cqg.rtd",,"ContractData",D30,"Bid",,"T"),1,IF(RTD("cqg.rtd",,"ContractData",D30,"LastTrade",,"T")>RTD("cqg.rtd",,"ContractData",D30,"Ask",,"T"),1,0)) -> 0 | M30: =IF(C30=1,RTD("cqg.rtd", ,"ContractData",D30, "TMLastTrade",, "T"),"") ->  | O30: =IF(C30=1,RTD("cqg.rtd", ,"ContractData",D30, "MT_LastBidVolume",, "T"),"") ->  | P30: =IF(C30=0,"",IF($D$1="B",RTD("cqg.rtd", ,"ContractData",D30, "Bid",,"B"),TEXT(RTD("cqg.rtd", ,"ContractData",D30, "Bid",, "T"),$D$1))) ->  | Q30: 0 | R30: =IF(C30=0,"",IF(LEFT(D30,1)="F","",IF($D$1="B",RTD("cqg.rtd", ,"ContractData",D30, "TheoreticalValue",,"B"),TEXT(RTD("cqg.rtd", ,"ContractData",D30, "TheoreticalValue",, "T"),$D$1)))) ->  | S30: 0 | T30: =IF(C30=0,"",IF($D$1="B",RTD("cqg.rtd", ,"ContractData",D30, "Ask",,"B"),TEXT(RTD("cqg.rtd", ,"ContractData",D30, "Ask",, "T"),$D$1))) ->  | U30: =IF(C30=1,RTD("cqg.rtd", ,"ContractData",D30, "MT_LastAskVolume",, "T"),"") ->  | Y30: =IF(C30=1,RTD("cqg.rtd", ,"ContractData",D30, "T_CVol",, "T"),"") ->  | Z30: =IF(C30=1,RTD("cqg.rtd", ,"ContractData",D30, "COI",, "T"),"") ->  | AA30: =IF(C30=1,RTD("cqg.rtd", ,"ContractData",D30, "ImpliedVolatility",, "T"),"") ->  | AB30: =IFERROR(IF(C30=1,RTD("cqg.rtd", ,"ContractData",D30, "Vega",, "T")*H30,""),"") ->  | AC30: =IFERROR(IF(C30=0,"",IF(LEFT(D30,1)="F",H30*100,H30*RTD("cqg.rtd",,"ContractData",D30,"Delta",,"T")))*$Y$41,"") ->  | AD30: =IFERROR(IF(C30=1,RTD("cqg.rtd",,"ContractData",D30,"Gamma",,"T")*H30*$AA$41,""),"") ->  | AE30: =IFERROR(IF(C30=1,RTD("cqg.rtd", ,"ContractData",D30, "Theta",, "T")*ABS(H30),""),"") ->  | AF30: =IF(C30=0,"",IF(LEFT(D30,1)="F",(RTD("cqg.rtd",,"ContractData",D30,"ExpirationDate",,"T")-TODAY()),RTD("cqg.rtd",,"ContractData",D30,"OptionDaysToExp",,"T"))) -> 
C31: =IF(LOOKUP(26,First!A1:A2728)<>26,0,1) -> 0 | D31: =IF(C31=1,VLOOKUP(First!I26,INDIRECT($A$2),2),"") ->  | H31: =IF(C31=1,RTD("cqg.rtd", ,"OrderData", ""&D31&"", "", "OpenPosition",""&$D$3&""),"") ->  | I31: =IF(AND(C31=1,$C$5=TRUE),H31*(RTD("cqg.rtd", ,"ContractData",D31, "TheoreticalValue",, "T")-RTD("cqg.rtd",,"ContractData",D31,"Y_Settlement",,"T"))*50,IF(C31=1,RTD("cqg.rtd", ,"OrderData",""&D31&"", "", "OpenTradeEquity",""&$D$3&""),"")) ->  | K31: =IF(C31=0,"",IF($D$1="B",RTD("cqg.rtd", ,"ContractData",D31, "LastTrade",,"B"),TEXT(RTD("cqg.rtd", ,"ContractData",D31, "LastTrade",, "T"),$D$1))) ->  | L31: =IF(RTD("cqg.rtd",,"ContractData",D31,"LastTrade",,"T")<RTD("cqg.rtd",,"ContractData",D31,"Bid",,"T"),1,IF(RTD("cqg.rtd",,"ContractData",D31,"LastTrade",,"T")>RTD("cqg.rtd",,"ContractData",D31,"Ask",,"T"),1,0)) -> 0 | M31: =IF(C31=1,RTD("cqg.rtd", ,"ContractData",D31, "TMLastTrade",, "T"),"") ->  | O31: =IF(C31=1,RTD("cqg.rtd", ,"ContractData",D31, "MT_LastBidVolume",, "T"),"") ->  | P31: =IF(C31=0,"",IF($D$1="B",RTD("cqg.rtd", ,"ContractData",D31, "Bid",,"B"),TEXT(RTD("cqg.rtd", ,"ContractData",D31, "Bid",, "T"),$D$1))) ->  | Q31: 0 | R31: =IF(C31=0,"",IF(LEFT(D31,1)="F","",IF($D$1="B",RTD("cqg.rtd", ,"ContractData",D31, "TheoreticalValue",,"B"),TEXT(RTD("cqg.rtd", ,"ContractData",D31, "TheoreticalValue",, "T"),$D$1)))) ->  | S31: 0 | T31: =IF(C31=0,"",IF($D$1="B",RTD("cqg.rtd", ,"ContractData",D31, "Ask",,"B"),TEXT(RTD("cqg.rtd", ,"ContractData",D31, "Ask",, "T"),$D$1))) ->  | U31: =IF(C31=1,RTD("cqg.rtd", ,"ContractData",D31, "MT_LastAskVolume",, "T"),"") ->  | Y31: =IF(C31=1,RTD("cqg.rtd", ,"ContractData",D31, "T_CVol",, "T"),"") ->  | Z31: =IF(C31=1,RTD("cqg.rtd", ,"ContractData",D31, "COI",, "T"),"") ->  | AA31: =IF(C31=1,RTD("cqg.rtd", ,"ContractData",D31, "ImpliedVolatility",, "T"),"") ->  | AB31: =IFERROR(IF(C31=1,RTD("cqg.rtd", ,"ContractData",D31, "Vega",, "T")*H31,""),"") ->  | AC31: =IFERROR(IF(C31=0,"",IF(LEFT(D31,1)="F",H31*100,H31*RTD("cqg.rtd",,"ContractData",D31,"Delta",,"T")))*$Y$41,"") ->  | AD31: =IFERROR(IF(C31=1,RTD("cqg.rtd",,"ContractData",D31,"Gamma",,"T")*H31*$AA$41,""),"") ->  | AE31: =IFERROR(IF(C31=1,RTD("cqg.rtd", ,"ContractData",D31, "Theta",, "T")*ABS(H31),""),"") ->  | AF31: =IF(C31=0,"",IF(LEFT(D31,1)="F",(RTD("cqg.rtd",,"ContractData",D31,"ExpirationDate",,"T")-TODAY()),RTD("cqg.rtd",,"ContractData",D31,"OptionDaysToExp",,"T"))) -> 
C32: =IF(LOOKUP(27,First!A1:A2728)<>27,0,1) -> 0 | D32: =IF(C32=1,VLOOKUP(First!I27,INDIRECT($A$2),2),"") ->  | H32: =IF(C32=1,RTD("cqg.rtd", ,"OrderData", ""&D32&"", "", "OpenPosition",""&$D$3&""),"") ->  | I32: =IF(AND(C32=1,$C$5=TRUE),H32*(RTD("cqg.rtd", ,"ContractData",D32, "TheoreticalValue",, "T")-RTD("cqg.rtd",,"ContractData",D32,"Y_Settlement",,"T"))*50,IF(C32=1,RTD("cqg.rtd", ,"OrderData",""&D32&"", "", "OpenTradeEquity",""&$D$3&""),"")) ->  | K32: =IF(C32=0,"",IF($D$1="B",RTD("cqg.rtd", ,"ContractData",D32, "LastTrade",,"B"),TEXT(RTD("cqg.rtd", ,"ContractData",D32, "LastTrade",, "T"),$D$1))) ->  | L32: =IF(RTD("cqg.rtd",,"ContractData",D32,"LastTrade",,"T")<RTD("cqg.rtd",,"ContractData",D32,"Bid",,"T"),1,IF(RTD("cqg.rtd",,"ContractData",D32,"LastTrade",,"T")>RTD("cqg.rtd",,"ContractData",D32,"Ask",,"T"),1,0)) -> 0 | M32: =IF(C32=1,RTD("cqg.rtd", ,"ContractData",D32, "TMLastTrade",, "T"),"") ->  | O32: =IF(C32=1,RTD("cqg.rtd", ,"ContractData",D32, "MT_LastBidVolume",, "T"),"") ->  | P32: =IF(C32=0,"",IF($D$1="B",RTD("cqg.rtd", ,"ContractData",D32, "Bid",,"B"),TEXT(RTD("cqg.rtd", ,"ContractData",D32, "Bid",, "T"),$D$1))) ->  | Q32: 0 | R32: =IF(C32=0,"",IF(LEFT(D32,1)="F","",IF($D$1="B",RTD("cqg.rtd", ,"ContractData",D32, "TheoreticalValue",,"B"),TEXT(RTD("cqg.rtd", ,"ContractData",D32, "TheoreticalValue",, "T"),$D$1)))) ->  | S32: 0 | T32: =IF(C32=0,"",IF($D$1="B",RTD("cqg.rtd", ,"ContractData",D32, "Ask",,"B"),TEXT(RTD("cqg.rtd", ,"ContractData",D32, "Ask",, "T"),$D$1))) ->  | U32: =IF(C32=1,RTD("cqg.rtd", ,"ContractData",D32, "MT_LastAskVolume",, "T"),"") ->  | Y32: =IF(C32=1,RTD("cqg.rtd", ,"ContractData",D32, "T_CVol",, "T"),"") ->  | Z32: =IF(C32=1,RTD("cqg.rtd", ,"ContractData",D32, "COI",, "T"),"") ->  | AA32: =IF(C32=1,RTD("cqg.rtd", ,"ContractData",D32, "ImpliedVolatility",, "T"),"") ->  | AB32: =IFERROR(IF(C32=1,RTD("cqg.rtd", ,"ContractData",D32, "Vega",, "T")*H32,""),"") ->  | AC32: =IFERROR(IF(C32=0,"",IF(LEFT(D32,1)="F",H32*100,H32*RTD("cqg.rtd",,"ContractData",D32,"Delta",,"T")))*$Y$41,"") ->  | AD32: =IFERROR(IF(C32=1,RTD("cqg.rtd",,"ContractData",D32,"Gamma",,"T")*H32*$AA$41,""),"") ->  | AE32: =IFERROR(IF(C32=1,RTD("cqg.rtd", ,"ContractData",D32, "Theta",, "T")*ABS(H32),""),"") ->  | AF32: =IF(C32=0,"",IF(LEFT(D32,1)="F",(RTD("cqg.rtd",,"ContractData",D32,"ExpirationDate",,"T")-TODAY()),RTD("cqg.rtd",,"ContractData",D32,"OptionDaysToExp",,"T"))) -> 
C33: =IF(LOOKUP(28,First!A1:A2728)<>28,0,1) -> 0 | D33: =IF(C33=1,VLOOKUP(First!I28,INDIRECT($A$2),2),"") ->  | H33: =IF(C33=1,RTD("cqg.rtd", ,"OrderData", ""&D33&"", "", "OpenPosition",""&$D$3&""),"") ->  | I33: =IF(AND(C33=1,$C$5=TRUE),H33*(RTD("cqg.rtd", ,"ContractData",D33, "TheoreticalValue",, "T")-RTD("cqg.rtd",,"ContractData",D33,"Y_Settlement",,"T"))*50,IF(C33=1,RTD("cqg.rtd", ,"OrderData",""&D33&"", "", "OpenTradeEquity",""&$D$3&""),"")) ->  | K33: =IF(C33=0,"",IF($D$1="B",RTD("cqg.rtd", ,"ContractData",D33, "LastTrade",,"B"),TEXT(RTD("cqg.rtd", ,"ContractData",D33, "LastTrade",, "T"),$D$1))) ->  | L33: =IF(RTD("cqg.rtd",,"ContractData",D33,"LastTrade",,"T")<RTD("cqg.rtd",,"ContractData",D33,"Bid",,"T"),1,IF(RTD("cqg.rtd",,"ContractData",D33,"LastTrade",,"T")>RTD("cqg.rtd",,"ContractData",D33,"Ask",,"T"),1,0)) -> 0 | M33: =IF(C33=1,RTD("cqg.rtd", ,"ContractData",D33, "TMLastTrade",, "T"),"") ->  | O33: =IF(C33=1,RTD("cqg.rtd", ,"ContractData",D33, "MT_LastBidVolume",, "T"),"") ->  | P33: =IF(C33=0,"",IF($D$1="B",RTD("cqg.rtd", ,"ContractData",D33, "Bid",,"B"),TEXT(RTD("cqg.rtd", ,"ContractData",D33, "Bid",, "T"),$D$1))) ->  | Q33: 0 | R33: =IF(C33=0,"",IF(LEFT(D33,1)="F","",IF($D$1="B",RTD("cqg.rtd", ,"ContractData",D33, "TheoreticalValue",,"B"),TEXT(RTD("cqg.rtd", ,"ContractData",D33, "TheoreticalValue",, "T"),$D$1)))) ->  | S33: 0 | T33: =IF(C33=0,"",IF($D$1="B",RTD("cqg.rtd", ,"ContractData",D33, "Ask",,"B"),TEXT(RTD("cqg.rtd", ,"ContractData",D33, "Ask",, "T"),$D$1))) ->  | U33: =IF(C33=1,RTD("cqg.rtd", ,"ContractData",D33, "MT_LastAskVolume",, "T"),"") ->  | Y33: =IF(C33=1,RTD("cqg.rtd", ,"ContractData",D33, "T_CVol",, "T"),"") ->  | Z33: =IF(C33=1,RTD("cqg.rtd", ,"ContractData",D33, "COI",, "T"),"") ->  | AA33: =IF(C33=1,RTD("cqg.rtd", ,"ContractData",D33, "ImpliedVolatility",, "T"),"") ->  | AB33: =IFERROR(IF(C33=1,RTD("cqg.rtd", ,"ContractData",D33, "Vega",, "T")*H33,""),"") ->  | AC33: =IFERROR(IF(C33=0,"",IF(LEFT(D33,1)="F",H33*100,H33*RTD("cqg.rtd",,"ContractData",D33,"Delta",,"T")))*$Y$41,"") ->  | AD33: =IFERROR(IF(C33=1,RTD("cqg.rtd",,"ContractData",D33,"Gamma",,"T")*H33*$AA$41,""),"") ->  | AE33: =IFERROR(IF(C33=1,RTD("cqg.rtd", ,"ContractData",D33, "Theta",, "T")*ABS(H33),""),"") ->  | AF33: =IF(C33=0,"",IF(LEFT(D33,1)="F",(RTD("cqg.rtd",,"ContractData",D33,"ExpirationDate",,"T")-TODAY()),RTD("cqg.rtd",,"ContractData",D33,"OptionDaysToExp",,"T"))) -> 
C34: =IF(LOOKUP(29,First!A1:A2728)<>29,0,1) -> 0 | D34: =IF(C34=1,VLOOKUP(First!I29,INDIRECT($A$2),2),"") ->  | H34: =IF(C34=1,RTD("cqg.rtd", ,"OrderData", ""&D34&"", "", "OpenPosition",""&$D$3&""),"") ->  | I34: =IF(AND(C34=1,$C$5=TRUE),H34*(RTD("cqg.rtd", ,"ContractData",D34, "TheoreticalValue",, "T")-RTD("cqg.rtd",,"ContractData",D34,"Y_Settlement",,"T"))*50,IF(C34=1,RTD("cqg.rtd", ,"OrderData",""&D34&"", "", "OpenTradeEquity",""&$D$3&""),"")) ->  | K34: =IF(C34=0,"",IF($D$1="B",RTD("cqg.rtd", ,"ContractData",D34, "LastTrade",,"B"),TEXT(RTD("cqg.rtd", ,"ContractData",D34, "LastTrade",, "T"),$D$1))) ->  | L34: =IF(RTD("cqg.rtd",,"ContractData",D34,"LastTrade",,"T")<RTD("cqg.rtd",,"ContractData",D34,"Bid",,"T"),1,IF(RTD("cqg.rtd",,"ContractData",D34,"LastTrade",,"T")>RTD("cqg.rtd",,"ContractData",D34,"Ask",,"T"),1,0)) -> 0 | M34: =IF(C34=1,RTD("cqg.rtd", ,"ContractData",D34, "TMLastTrade",, "T"),"") ->  | O34: =IF(C34=1,RTD("cqg.rtd", ,"ContractData",D34, "MT_LastBidVolume",, "T"),"") ->  | P34: =IF(C34=0,"",IF($D$1="B",RTD("cqg.rtd", ,"ContractData",D34, "Bid",,"B"),TEXT(RTD("cqg.rtd", ,"ContractData",D34, "Bid",, "T"),$D$1))) ->  | Q34: 0 | R34: =IF(C34=0,"",IF(LEFT(D34,1)="F","",IF($D$1="B",RTD("cqg.rtd", ,"ContractData",D34, "TheoreticalValue",,"B"),TEXT(RTD("cqg.rtd", ,"ContractData",D34, "TheoreticalValue",, "T"),$D$1)))) ->  | S34: 0 | T34: =IF(C34=0,"",IF($D$1="B",RTD("cqg.rtd", ,"ContractData",D34, "Ask",,"B"),TEXT(RTD("cqg.rtd", ,"ContractData",D34, "Ask",, "T"),$D$1))) ->  | U34: =IF(C34=1,RTD("cqg.rtd", ,"ContractData",D34, "MT_LastAskVolume",, "T"),"") ->  | Y34: =IF(C34=1,RTD("cqg.rtd", ,"ContractData",D34, "T_CVol",, "T"),"") ->  | Z34: =IF(C34=1,RTD("cqg.rtd", ,"ContractData",D34, "COI",, "T"),"") ->  | AA34: =IF(C34=1,RTD("cqg.rtd", ,"ContractData",D34, "ImpliedVolatility",, "T"),"") ->  | AB34: =IFERROR(IF(C34=1,RTD("cqg.rtd", ,"ContractData",D34, "Vega",, "T")*H34,""),"") ->  | AC34: =IFERROR(IF(C34=0,"",IF(LEFT(D34,1)="F",H34*100,H34*RTD("cqg.rtd",,"ContractData",D34,"Delta",,"T")))*$Y$41,"") ->  | AD34: =IFERROR(IF(C34=1,RTD("cqg.rtd",,"ContractData",D34,"Gamma",,"T")*H34*$AA$41,""),"") ->  | AE34: =IFERROR(IF(C34=1,RTD("cqg.rtd", ,"ContractData",D34, "Theta",, "T")*ABS(H34),""),"") ->  | AF34: =IF(C34=0,"",IF(LEFT(D34,1)="F",(RTD("cqg.rtd",,"ContractData",D34,"ExpirationDate",,"T")-TODAY()),RTD("cqg.rtd",,"ContractData",D34,"OptionDaysToExp",,"T"))) -> 
C35: =IF(LOOKUP(30,First!A1:A2728)<>30,0,1) -> 0 | D35: =IF(C35=1,VLOOKUP(First!I30,INDIRECT($A$2),2),"") ->  | H35: =IF(C35=1,RTD("cqg.rtd", ,"OrderData", ""&D35&"", "", "OpenPosition",""&$D$3&""),"") ->  | I35: =IF(AND(C35=1,$C$5=TRUE),H35*(RTD("cqg.rtd", ,"ContractData",D35, "TheoreticalValue",, "T")-RTD("cqg.rtd",,"ContractData",D35,"Y_Settlement",,"T"))*50,IF(C35=1,RTD("cqg.rtd", ,"OrderData",""&D35&"", "", "OpenTradeEquity",""&$D$3&""),"")) ->  | K35: =IF(C35=0,"",IF($D$1="B",RTD("cqg.rtd", ,"ContractData",D35, "LastTrade",,"B"),TEXT(RTD("cqg.rtd", ,"ContractData",D35, "LastTrade",, "T"),$D$1))) ->  | L35: =IF(RTD("cqg.rtd",,"ContractData",D35,"LastTrade",,"T")<RTD("cqg.rtd",,"ContractData",D35,"Bid",,"T"),1,IF(RTD("cqg.rtd",,"ContractData",D35,"LastTrade",,"T")>RTD("cqg.rtd",,"ContractData",D35,"Ask",,"T"),1,0)) -> 0 | M35: =IF(C35=1,RTD("cqg.rtd", ,"ContractData",D35, "TMLastTrade",, "T"),"") ->  | O35: =IF(C35=1,RTD("cqg.rtd", ,"ContractData",D35, "MT_LastBidVolume",, "T"),"") ->  | P35: =IF(C35=0,"",IF($D$1="B",RTD("cqg.rtd", ,"ContractData",D35, "Bid",,"B"),TEXT(RTD("cqg.rtd", ,"ContractData",D35, "Bid",, "T"),$D$1))) ->  | Q35: 0 | R35: =IF(C35=0,"",IF(LEFT(D35,1)="F","",IF($D$1="B",RTD("cqg.rtd", ,"ContractData",D35, "TheoreticalValue",,"B"),TEXT(RTD("cqg.rtd", ,"ContractData",D35, "TheoreticalValue",, "T"),$D$1)))) ->  | S35: 0 | T35: =IF(C35=0,"",IF($D$1="B",RTD("cqg.rtd", ,"ContractData",D35, "Ask",,"B"),TEXT(RTD("cqg.rtd", ,"ContractData",D35, "Ask",, "T"),$D$1))) ->  | U35: =IF(C35=1,RTD("cqg.rtd", ,"ContractData",D35, "MT_LastAskVolume",, "T"),"") ->  | Y35: =IF(C35=1,RTD("cqg.rtd", ,"ContractData",D35, "T_CVol",, "T"),"") ->  | Z35: =IF(C35=1,RTD("cqg.rtd", ,"ContractData",D35, "COI",, "T"),"") ->  | AA35: =IF(C35=1,RTD("cqg.rtd", ,"ContractData",D35, "ImpliedVolatility",, "T"),"") ->  | AB35: =IFERROR(IF(C35=1,RTD("cqg.rtd", ,"ContractData",D35, "Vega",, "T")*H35,""),"") ->  | AC35: =IFERROR(IF(C35=0,"",IF(LEFT(D35,1)="F",H35*100,H35*RTD("cqg.rtd",,"ContractData",D35,"Delta",,"T")))*$Y$41,"") ->  | AD35: =IFERROR(IF(C35=1,RTD("cqg.rtd",,"ContractData",D35,"Gamma",,"T")*H35*$AA$41,""),"") ->  | AE35: =IFERROR(IF(C35=1,RTD("cqg.rtd", ,"ContractData",D35, "Theta",, "T")*ABS(H35),""),"") ->  | AF35: =IF(C35=0,"",IF(LEFT(D35,1)="F",(RTD("cqg.rtd",,"ContractData",D35,"ExpirationDate",,"T")-TODAY()),RTD("cqg.rtd",,"ContractData",D35,"OptionDaysToExp",,"T"))) -> 
C36: =IF(LOOKUP(31,First!A1:A2728)<>31,0,1) -> 0 | D36: =IF(C36=1,VLOOKUP(First!I31,INDIRECT($A$2),2),"") ->  | H36: =IF(C36=1,RTD("cqg.rtd", ,"OrderData", ""&D36&"", "", "OpenPosition",""&$D$3&""),"") ->  | I36: =IF(AND(C36=1,$C$5=TRUE),H36*(RTD("cqg.rtd", ,"ContractData",D36, "TheoreticalValue",, "T")-RTD("cqg.rtd",,"ContractData",D36,"Y_Settlement",,"T"))*50,IF(C36=1,RTD("cqg.rtd", ,"OrderData",""&D36&"", "", "OpenTradeEquity",""&$D$3&""),"")) ->  | K36: =IF(C36=0,"",IF($D$1="B",RTD("cqg.rtd", ,"ContractData",D36, "LastTrade",,"B"),TEXT(RTD("cqg.rtd", ,"ContractData",D36, "LastTrade",, "T"),$D$1))) ->  | L36: =IF(RTD("cqg.rtd",,"ContractData",D36,"LastTrade",,"T")<RTD("cqg.rtd",,"ContractData",D36,"Bid",,"T"),1,IF(RTD("cqg.rtd",,"ContractData",D36,"LastTrade",,"T")>RTD("cqg.rtd",,"ContractData",D36,"Ask",,"T"),1,0)) -> 0 | M36: =IF(C36=1,RTD("cqg.rtd", ,"ContractData",D36, "TMLastTrade",, "T"),"") ->  | O36: =IF(C36=1,RTD("cqg.rtd", ,"ContractData",D36, "MT_LastBidVolume",, "T"),"") ->  | P36: =IF(C36=0,"",IF($D$1="B",RTD("cqg.rtd", ,"ContractData",D36, "Bid",,"B"),TEXT(RTD("cqg.rtd", ,"ContractData",D36, "Bid",, "T"),$D$1))) ->  | Q36: 0 | R36: =IF(C36=0,"",IF(LEFT(D36,1)="F","",IF($D$1="B",RTD("cqg.rtd", ,"ContractData",D36, "TheoreticalValue",,"B"),TEXT(RTD("cqg.rtd", ,"ContractData",D36, "TheoreticalValue",, "T"),$D$1)))) ->  | S36: 0 | T36: =IF(C36=0,"",IF($D$1="B",RTD("cqg.rtd", ,"ContractData",D36, "Ask",,"B"),TEXT(RTD("cqg.rtd", ,"ContractData",D36, "Ask",, "T"),$D$1))) ->  | U36: =IF(C36=1,RTD("cqg.rtd", ,"ContractData",D36, "MT_LastAskVolume",, "T"),"") ->  | Y36: =IF(C36=1,RTD("cqg.rtd", ,"ContractData",D36, "T_CVol",, "T"),"") ->  | Z36: =IF(C36=1,RTD("cqg.rtd", ,"ContractData",D36, "COI",, "T"),"") ->  | AA36: =IF(C36=1,RTD("cqg.rtd", ,"ContractData",D36, "ImpliedVolatility",, "T"),"") ->  | AB36: =IFERROR(IF(C36=1,RTD("cqg.rtd", ,"ContractData",D36, "Vega",, "T")*H36,""),"") ->  | AC36: =IFERROR(IF(C36=0,"",IF(LEFT(D36,1)="F",H36*100,H36*RTD("cqg.rtd",,"ContractData",D36,"Delta",,"T")))*$Y$41,"") ->  | AD36: =IFERROR(IF(C36=1,RTD("cqg.rtd",,"ContractData",D36,"Gamma",,"T")*H36*$AA$41,""),"") ->  | AE36: =IFERROR(IF(C36=1,RTD("cqg.rtd", ,"ContractData",D36, "Theta",, "T")*ABS(H36),""),"") ->  | AF36: =IF(C36=0,"",IF(LEFT(D36,1)="F",(RTD("cqg.rtd",,"ContractData",D36,"ExpirationDate",,"T")-TODAY()),RTD("cqg.rtd",,"ContractData",D36,"OptionDaysToExp",,"T"))) -> 
C37: =IF(LOOKUP(32,First!A1:A2728)<>32,0,1) -> 0 | D37: =IF(C37=1,VLOOKUP(First!I32,INDIRECT($A$2),2),"") ->  | H37: =IF(C37=1,RTD("cqg.rtd", ,"OrderData", ""&D37&"", "", "OpenPosition",""&$D$3&""),"") ->  | I37: =IF(AND(C37=1,$C$5=TRUE),H37*(RTD("cqg.rtd", ,"ContractData",D37, "TheoreticalValue",, "T")-RTD("cqg.rtd",,"ContractData",D37,"Y_Settlement",,"T"))*50,IF(C37=1,RTD("cqg.rtd", ,"OrderData",""&D37&"", "", "OpenTradeEquity",""&$D$3&""),"")) ->  | K37: =IF(C37=0,"",IF($D$1="B",RTD("cqg.rtd", ,"ContractData",D37, "LastTrade",,"B"),TEXT(RTD("cqg.rtd", ,"ContractData",D37, "LastTrade",, "T"),$D$1))) ->  | L37: =IF(RTD("cqg.rtd",,"ContractData",D37,"LastTrade",,"T")<RTD("cqg.rtd",,"ContractData",D37,"Bid",,"T"),1,IF(RTD("cqg.rtd",,"ContractData",D37,"LastTrade",,"T")>RTD("cqg.rtd",,"ContractData",D37,"Ask",,"T"),1,0)) -> 0 | M37: =IF(C37=1,RTD("cqg.rtd", ,"ContractData",D37, "TMLastTrade",, "T"),"") ->  | O37: =IF(C37=1,RTD("cqg.rtd", ,"ContractData",D37, "MT_LastBidVolume",, "T"),"") ->  | P37: =IF(C37=0,"",IF($D$1="B",RTD("cqg.rtd", ,"ContractData",D37, "Bid",,"B"),TEXT(RTD("cqg.rtd", ,"ContractData",D37, "Bid",, "T"),$D$1))) ->  | Q37: 0 | R37: =IF(C37=0,"",IF(LEFT(D37,1)="F","",IF($D$1="B",RTD("cqg.rtd", ,"ContractData",D37, "TheoreticalValue",,"B"),TEXT(RTD("cqg.rtd", ,"ContractData",D37, "TheoreticalValue",, "T"),$D$1)))) ->  | S37: 0 | T37: =IF(C37=0,"",IF($D$1="B",RTD("cqg.rtd", ,"ContractData",D37, "Ask",,"B"),TEXT(RTD("cqg.rtd", ,"ContractData",D37, "Ask",, "T"),$D$1))) ->  | U37: =IF(C37=1,RTD("cqg.rtd", ,"ContractData",D37, "MT_LastAskVolume",, "T"),"") ->  | Y37: =IF(C37=1,RTD("cqg.rtd", ,"ContractData",D37, "T_CVol",, "T"),"") ->  | Z37: =IF(C37=1,RTD("cqg.rtd", ,"ContractData",D37, "COI",, "T"),"") ->  | AA37: =IF(C37=1,RTD("cqg.rtd", ,"ContractData",D37, "ImpliedVolatility",, "T"),"") ->  | AB37: =IFERROR(IF(C37=1,RTD("cqg.rtd", ,"ContractData",D37, "Vega",, "T")*H37,""),"") ->  | AC37: =IFERROR(IF(C37=0,"",IF(LEFT(D37,1)="F",H37*100,H37*RTD("cqg.rtd",,"ContractData",D37,"Delta",,"T")))*$Y$41,"") ->  | AD37: =IFERROR(IF(C37=1,RTD("cqg.rtd",,"ContractData",D37,"Gamma",,"T")*H37*$AA$41,""),"") ->  | AE37: =IFERROR(IF(C37=1,RTD("cqg.rtd", ,"ContractData",D37, "Theta",, "T")*ABS(H37),""),"") ->  | AF37: =IF(C37=0,"",IF(LEFT(D37,1)="F",(RTD("cqg.rtd",,"ContractData",D37,"ExpirationDate",,"T")-TODAY()),RTD("cqg.rtd",,"ContractData",D37,"OptionDaysToExp",,"T"))) -> 
C38: =IF(LOOKUP(33,First!A1:A2728)<>33,0,1) -> 0 | D38: =IF(C38=1,VLOOKUP(First!I33,INDIRECT($A$2),2),"") ->  | H38: =IF(C38=1,RTD("cqg.rtd", ,"OrderData", ""&D38&"", "", "OpenPosition",""&$D$3&""),"") ->  | I38: =IF(AND(C38=1,$C$5=TRUE),H38*(RTD("cqg.rtd", ,"ContractData",D38, "TheoreticalValue",, "T")-RTD("cqg.rtd",,"ContractData",D38,"Y_Settlement",,"T"))*50,IF(C38=1,RTD("cqg.rtd", ,"OrderData",""&D38&"", "", "OpenTradeEquity",""&$D$3&""),"")) ->  | K38: =IF(C38=0,"",IF($D$1="B",RTD("cqg.rtd", ,"ContractData",D38, "LastTrade",,"B"),TEXT(RTD("cqg.rtd", ,"ContractData",D38, "LastTrade",, "T"),$D$1))) ->  | L38: =IF(RTD("cqg.rtd",,"ContractData",D38,"LastTrade",,"T")<RTD("cqg.rtd",,"ContractData",D38,"Bid",,"T"),1,IF(RTD("cqg.rtd",,"ContractData",D38,"LastTrade",,"T")>RTD("cqg.rtd",,"ContractData",D38,"Ask",,"T"),1,0)) -> 0 | M38: =IF(C38=1,RTD("cqg.rtd", ,"ContractData",D38, "TMLastTrade",, "T"),"") ->  | O38: =IF(C38=1,RTD("cqg.rtd", ,"ContractData",D38, "MT_LastBidVolume",, "T"),"") ->  | P38: =IF(C38=0,"",IF($D$1="B",RTD("cqg.rtd", ,"ContractData",D38, "Bid",,"B"),TEXT(RTD("cqg.rtd", ,"ContractData",D38, "Bid",, "T"),$D$1))) ->  | Q38: 0 | R38: =IF(C38=0,"",IF(LEFT(D38,1)="F","",IF($D$1="B",RTD("cqg.rtd", ,"ContractData",D38, "TheoreticalValue",,"B"),TEXT(RTD("cqg.rtd", ,"ContractData",D38, "TheoreticalValue",, "T"),$D$1)))) ->  | S38: 0 | T38: =IF(C38=0,"",IF($D$1="B",RTD("cqg.rtd", ,"ContractData",D38, "Ask",,"B"),TEXT(RTD("cqg.rtd", ,"ContractData",D38, "Ask",, "T"),$D$1))) ->  | U38: =IF(C38=1,RTD("cqg.rtd", ,"ContractData",D38, "MT_LastAskVolume",, "T"),"") ->  | Y38: =IF(C38=1,RTD("cqg.rtd", ,"ContractData",D38, "T_CVol",, "T"),"") ->  | Z38: =IF(C38=1,RTD("cqg.rtd", ,"ContractData",D38, "COI",, "T"),"") ->  | AA38: =IF(C38=1,RTD("cqg.rtd", ,"ContractData",D38, "ImpliedVolatility",, "T"),"") ->  | AB38: =IFERROR(IF(C38=1,RTD("cqg.rtd", ,"ContractData",D38, "Vega",, "T")*H38,""),"") ->  | AC38: =IFERROR(IF(C38=0,"",IF(LEFT(D38,1)="F",H38*100,H38*RTD("cqg.rtd",,"ContractData",D38,"Delta",,"T")))*$Y$41,"") ->  | AD38: =IFERROR(IF(C38=1,RTD("cqg.rtd",,"ContractData",D38,"Gamma",,"T")*H38*$AA$41,""),"") ->  | AE38: =IFERROR(IF(C38=1,RTD("cqg.rtd", ,"ContractData",D38, "Theta",, "T")*ABS(H38),""),"") ->  | AF38: =IF(C38=0,"",IF(LEFT(D38,1)="F",(RTD("cqg.rtd",,"ContractData",D38,"ExpirationDate",,"T")-TODAY()),RTD("cqg.rtd",,"ContractData",D38,"OptionDaysToExp",,"T"))) -> 
C39: =IF(LOOKUP(34,First!A1:A2728)<>34,0,1) -> 0 | D39: =IF(C39=1,VLOOKUP(First!I34,INDIRECT($A$2),2),"") ->  | H39: =IF(C39=1,RTD("cqg.rtd", ,"OrderData", ""&D39&"", "", "OpenPosition",""&$D$3&""),"") ->  | I39: =IF(AND(C39=1,$C$5=TRUE),H39*(RTD("cqg.rtd", ,"ContractData",D39, "TheoreticalValue",, "T")-RTD("cqg.rtd",,"ContractData",D39,"Y_Settlement",,"T"))*50,IF(C39=1,RTD("cqg.rtd", ,"OrderData",""&D39&"", "", "OpenTradeEquity",""&$D$3&""),"")) ->  | K39: =IF(C39=0,"",IF($D$1="B",RTD("cqg.rtd", ,"ContractData",D39, "LastTrade",,"B"),TEXT(RTD("cqg.rtd", ,"ContractData",D39, "LastTrade",, "T"),$D$1))) ->  | L39: =IF(RTD("cqg.rtd",,"ContractData",D39,"LastTrade",,"T")<RTD("cqg.rtd",,"ContractData",D39,"Bid",,"T"),1,IF(RTD("cqg.rtd",,"ContractData",D39,"LastTrade",,"T")>RTD("cqg.rtd",,"ContractData",D39,"Ask",,"T"),1,0)) -> 0 | M39: =IF(C39=1,RTD("cqg.rtd", ,"ContractData",D39, "TMLastTrade",, "T"),"") ->  | O39: =IF(C39=1,RTD("cqg.rtd", ,"ContractData",D39, "MT_LastBidVolume",, "T"),"") ->  | P39: =IF(C39=0,"",IF($D$1="B",RTD("cqg.rtd", ,"ContractData",D39, "Bid",,"B"),TEXT(RTD("cqg.rtd", ,"ContractData",D39, "Bid",, "T"),$D$1))) ->  | Q39: 0 | R39: =IF(C39=0,"",IF(LEFT(D39,1)="F","",IF($D$1="B",RTD("cqg.rtd", ,"ContractData",D39, "TheoreticalValue",,"B"),TEXT(RTD("cqg.rtd", ,"ContractData",D39, "TheoreticalValue",, "T"),$D$1)))) ->  | S39: 0 | T39: =IF(C39=0,"",IF($D$1="B",RTD("cqg.rtd", ,"ContractData",D39, "Ask",,"B"),TEXT(RTD("cqg.rtd", ,"ContractData",D39, "Ask",, "T"),$D$1))) ->  | U39: =IF(C39=1,RTD("cqg.rtd", ,"ContractData",D39, "MT_LastAskVolume",, "T"),"") ->  | Y39: =IF(C39=1,RTD("cqg.rtd", ,"ContractData",D39, "T_CVol",, "T"),"") ->  | Z39: =IF(C39=1,RTD("cqg.rtd", ,"ContractData",D39, "COI",, "T"),"") ->  | AA39: =IF(C39=1,RTD("cqg.rtd", ,"ContractData",D39, "ImpliedVolatility",, "T"),"") ->  | AB39: =IFERROR(IF(C39=1,RTD("cqg.rtd", ,"ContractData",D39, "Vega",, "T")*H39,""),"") ->  | AC39: =IFERROR(IF(C39=0,"",IF(LEFT(D39,1)="F",H39*100,H39*RTD("cqg.rtd",,"ContractData",D39,"Delta",,"T")))*$Y$41,"") ->  | AD39: =IFERROR(IF(C39=1,RTD("cqg.rtd",,"ContractData",D39,"Gamma",,"T")*H39*$AA$41,""),"") ->  | AE39: =IFERROR(IF(C39=1,RTD("cqg.rtd", ,"ContractData",D39, "Theta",, "T")*ABS(H39),""),"") ->  | AF39: =IF(C39=0,"",IF(LEFT(D39,1)="F",(RTD("cqg.rtd",,"ContractData",D39,"ExpirationDate",,"T")-TODAY()),RTD("cqg.rtd",,"ContractData",D39,"OptionDaysToExp",,"T"))) -> 
C40: =IF(LOOKUP(35,First!A1:A2728)<>35,0,1) -> 0 | D40: =IF(C40=1,VLOOKUP(First!I35,INDIRECT($A$2),2),"") ->  | H40: =IF(C40=1,RTD("cqg.rtd", ,"OrderData", ""&D40&"", "", "OpenPosition",""&$D$3&""),"") ->  | I40: =IF(AND(C40=1,$C$5=TRUE),H40*(RTD("cqg.rtd", ,"ContractData",D40, "TheoreticalValue",, "T")-RTD("cqg.rtd",,"ContractData",D40,"Y_Settlement",,"T"))*50,IF(C40=1,RTD("cqg.rtd", ,"OrderData",""&D40&"", "", "OpenTradeEquity",""&$D$3&""),"")) ->  | K40: =IF(C40=0,"",IF($D$1="B",RTD("cqg.rtd", ,"ContractData",D40, "LastTrade",,"B"),TEXT(RTD("cqg.rtd", ,"ContractData",D40, "LastTrade",, "T"),$D$1))) ->  | L40: =IF(RTD("cqg.rtd",,"ContractData",D40,"LastTrade",,"T")<RTD("cqg.rtd",,"ContractData",D40,"Bid",,"T"),1,IF(RTD("cqg.rtd",,"ContractData",D40,"LastTrade",,"T")>RTD("cqg.rtd",,"ContractData",D40,"Ask",,"T"),1,0)) -> 0 | M40: =IF(C40=1,RTD("cqg.rtd", ,"ContractData",D40, "TMLastTrade",, "T"),"") ->  | O40: =IF(C40=1,RTD("cqg.rtd", ,"ContractData",D40, "MT_LastBidVolume",, "T"),"") ->  | P40: =IF(C40=0,"",IF($D$1="B",RTD("cqg.rtd", ,"ContractData",D40, "Bid",,"B"),TEXT(RTD("cqg.rtd", ,"ContractData",D40, "Bid",, "T"),$D$1))) ->  | Q40: 0 | R40: =IF(C40=0,"",IF(LEFT(D40,1)="F","",IF($D$1="B",RTD("cqg.rtd", ,"ContractData",D40, "TheoreticalValue",,"B"),TEXT(RTD("cqg.rtd", ,"ContractData",D40, "TheoreticalValue",, "T"),$D$1)))) ->  | S40: 0 | T40: =IF(C40=0,"",IF($D$1="B",RTD("cqg.rtd", ,"ContractData",D40, "Ask",,"B"),TEXT(RTD("cqg.rtd", ,"ContractData",D40, "Ask",, "T"),$D$1))) ->  | U40: =IF(C40=1,RTD("cqg.rtd", ,"ContractData",D40, "MT_LastAskVolume",, "T"),"") ->  | Y40: =IF(C40=1,RTD("cqg.rtd", ,"ContractData",D40, "T_CVol",, "T"),"") ->  | Z40: =IF(C40=1,RTD("cqg.rtd", ,"ContractData",D40, "COI",, "T"),"") ->  | AA40: =IF(C40=1,RTD("cqg.rtd", ,"ContractData",D40, "ImpliedVolatility",, "T"),"") ->  | AB40: =IFERROR(IF(C40=1,RTD("cqg.rtd", ,"ContractData",D40, "Vega",, "T")*H40,""),"") ->  | AC40: =IFERROR(IF(C40=0,"",IF(LEFT(D40,1)="F",H40*100,H40*RTD("cqg.rtd",,"ContractData",D40,"Delta",,"T")))*$Y$41,"") ->  | AD40: =IFERROR(IF(C40=1,RTD("cqg.rtd",,"ContractData",D40,"Gamma",,"T")*H40*$AA$41,""),"") ->  | AE40: =IFERROR(IF(C40=1,RTD("cqg.rtd", ,"ContractData",D40, "Theta",, "T")*ABS(H40),""),"") ->  | AF40: =IF(C40=0,"",IF(LEFT(D40,1)="F",(RTD("cqg.rtd",,"ContractData",D40,"ExpirationDate",,"T")-TODAY()),RTD("cqg.rtd",,"ContractData",D40,"OptionDaysToExp",,"T"))) -> 
C41: =IF(OR(RTD("cqg.rtd",,"ContractData",AD3,"ExpirationDate",,"T")-TODAY()<K42,RTD("cqg.rtd",,"ContractData",AE3,"ExpirationDate",,"T")-TODAY()<V42,RTD("cqg.rtd",,"ContractData",AF3,"ExpirationDate",,"T")-TODAY()<AD42),1,0) -> 0 | D41: Summary | G41: =IF(H41>0,"Long ","Short ") ->  | H41: =SUM(H6:H40) ->  | I41: =SUM(I6:I40) ->  | M41: =IF(C41=1,"You have entered a number of days to expiration that exceeds the underlying contract expiration date","") ->  | X41: Delta X | Y41: 1 | Z41: Gamma X | AA41: 100 | AB41: =SUM(AB6:AB40) -> 0 | AC41: =SUM(AC6:AC40) -> 0 | AD41: =SUM(AD6:AD40) -> 0 | AE41: =SUM(AE6:AE40) -> 0
D42: Probaility of the Underlying Price using Days-to-Expiration: | K42: 10 | M42: Days | O42: Probaility of the Underlying Price using Days-to-Expiration: | V42: 15 | W42: Days | X42: Probaility of the Underlying Price using Days-to-Expiration: | AD42: 30 | AE42: Days
D43: Market: | F43: =RTD("cqg.rtd", ,"ContractData",AD3,"LongDescription",, "T") -> E-Mini S&P 500, Jun 16 | O43: Market: | P43: =RTD("cqg.rtd", ,"ContractData",AE3,"LongDescription",, "T") -> E-Mini S&P 500, Sep 16 | Y43: Market: | Z43: =RTD("cqg.rtd", ,"ContractData",AF3,"LongDescription",, "T") -> E-Mini S&P 500, Dec 16
D44: -2 Sdev | F44: -1 SDev | H44: Last | J44: +1 SDev | L44: +2 SDev | O44: -2 Sdev | Q44: -1 SDev | T44: Last | U44: +1 SDev | W44: +2 SDev | X44: -2 SDev | Z44: -1 SDev | AB44: Last | AD44: +1 SDev | AE44: +2 SDev
D45: =IFERROR(TEXT(RTD("cqg.rtd",,"ContractData",AD3,"LastQuote",,"T")-(2*RTD("cqg.rtd",,"ContractData",AD3,"LastQuote",,"T")*RTD("cqg.rtd",,"ContractData","C.US."&AD3,"AverageVolatility",,"T")*SQRT(K42/365)),$D$1),"") -> 1954.61 | F45: =IFERROR(TEXT(RTD("cqg.rtd",,"ContractData",AD3,"LastQuote",,"T")-(RTD("cqg.rtd",,"ContractData",AD3,"LastQuote",,"T")*RTD("cqg.rtd",,"ContractData","C.US."&AD3,"AverageVolatility",,"T")*SQRT(K42/365)),$D$1),"") -> 1999.05 | H45: =IF($D$1="B",RTD("cqg.rtd", ,"ContractData",AD3, "LastTrade",,"B"),TEXT(RTD("cqg.rtd", ,"ContractData",AD3, "LastTrade",, "T"),$D$1)) -> 2043.75 | J45: =IFERROR(TEXT(RTD("cqg.rtd",,"ContractData",AD3,"LastQuote",,"T")+(RTD("cqg.rtd",,"ContractData",AD3,"LastQuote",,"T")*RTD("cqg.rtd",,"ContractData","C.US."&AD3,"AverageVolatility",,"T")*SQRT(K42/365)),$D$1),"") -> 2087.95 | L45: =IFERROR(TEXT(RTD("cqg.rtd",,"ContractData",AD3,"LastQuote",,"T")+(2*RTD("cqg.rtd",,"ContractData",AD3,"LastQuote",,"T")*RTD("cqg.rtd",,"ContractData","C.US."&AD3,"AverageVolatility",,"T")*SQRT(K42/365)),$D$1),"") -> 2132.39 | O45: =IFERROR(TEXT(RTD("cqg.rtd",,"ContractData",AE3,"LastQuote",,"T")-(2*RTD("cqg.rtd",,"ContractData",AE3,"LastQuote",,"T")*RTD("cqg.rtd",,"ContractData","C.US."&AE3,"AverageVolatility",,"T")*SQRT(V42/365)),$D$1),"") -> 1920.05 | P45: =IFERROR(TEXT(RTD("cqg.rtd",,"ContractData",AE3,"LastQuote",,"T")-(RTD("cqg.rtd",,"ContractData",AE3,"LastQuote",,"T")*RTD("cqg.rtd",,"ContractData","C.US."&AE3,"AverageVolatility",,"T")*SQRT(V42/365)),$D$1),"") -> 1977.65 | T45: =IF($D$1="B",RTD("cqg.rtd", ,"ContractData",AE3, "LastTrade",,"B"),TEXT(RTD("cqg.rtd", ,"ContractData",AE3, "LastTrade",, "T"),$D$1)) -> 2035.75 | U45: =IFERROR(TEXT(RTD("cqg.rtd",,"ContractData",AE3,"LastQuote",,"T")+(RTD("cqg.rtd",,"ContractData",AE3,"LastQuote",,"T")*RTD("cqg.rtd",,"ContractData","C.US."&AE3,"AverageVolatility",,"T")*SQRT(V42/365)),$D$1),"") -> 2092.85 | W45: =IFERROR(TEXT(RTD("cqg.rtd",,"ContractData",AE3,"LastQuote",,"T")+(2*RTD("cqg.rtd",,"ContractData",AE3,"LastQuote",,"T")*RTD("cqg.rtd",,"ContractData","C.US."&AE3,"AverageVolatility",,"T")*SQRT(V42/365)),$D$1),"") -> 2150.45 | X45: =IFERROR(TEXT(RTD("cqg.rtd",,"ContractData",AF3,"LastQuote",,"T")-(2*RTD("cqg.rtd",,"ContractData",AF3,"LastQuote",,"T")*RTD("cqg.rtd",,"ContractData","C.US."&AF3,"AverageVolatility",,"T")*SQRT(AD42/365)),$D$1),"") -> 1855.74 | Z45: =IFERROR(TEXT(RTD("cqg.rtd",,"ContractData",AF3,"LastQuote",,"T")-(RTD("cqg.rtd",,"ContractData",AF3,"LastQuote",,"T")*RTD("cqg.rtd",,"ContractData","C.US."&AF3,"AverageVolatility",,"T")*SQRT(AD42/365)),$D$1),"") -> 1941.87 | AB45: =IF($D$1="B",RTD("cqg.rtd", ,"ContractData",AF3, "LastTrade",,"B"),TEXT(RTD("cqg.rtd", ,"ContractData",AF3, "LastTrade",, "T"),$D$1)) -> 2029.50 | AD45: =IFERROR(TEXT(RTD("cqg.rtd",,"ContractData",AF3,"LastQuote",,"T")+(RTD("cqg.rtd",,"ContractData",AF3,"LastQuote",,"T")*RTD("cqg.rtd",,"ContractData","C.US."&AF3,"AverageVolatility",,"T")*SQRT(AD42/365)),$D$1),"") -> 2114.13 | AE45: =IFERROR(TEXT(RTD("cqg.rtd",,"ContractData",AF3,"LastQuote",,"T")+(2*RTD("cqg.rtd",,"ContractData",AF3,"LastQuote",,"T")*RTD("cqg.rtd",,"ContractData","C.US."&AF3,"AverageVolatility",,"T")*SQRT(AD42/365)),$D$1),"") -> 2200.26
D46: Copyright © 2016 | G46: Designed by Thom Hartle | M46: =RTD("cqg.rtd", ,"SystemInfo", "Linetime") -> 42465.56626

Sheet Display2
D1: =Display1!D1 -> #.00
D2: CQG Globex E-mini S&P 500 Open Options Positions Dashboard
D4: Account | G4: Symbols: | I4: =Display1!G2 -> EW1 | K4: =Display1!H2 -> EW2 | N4: =Display1!I2 -> EW3 | P4: =Display1!J2 -> EW4 | U4: =Display1!M2 -> EW | AJ4: Underlying Symbols
D5: =Display1!D3 -> 0 | G5: M&Yr: | I5: =Display1!G3 -> ?1 | K5: =Display1!H3 -> ?1 | N5: =Display1!I3 -> ?1 | P5: =Display1!J3 -> ?1 | S5: =Display1!K3 -> ?2 | U5: =Display1!M3 -> ?1 | X5: =Display1!N3 -> ?2 | Z5: =Display1!O3 -> ?3 | AC5: =Display1!P3 -> ?4 | AE5: =Display1!R3 -> ?5 | AH5: =Display1!T3 -> ?6 | AJ5: =Display1!V3 -> ?2 | AM5: =Display1!W3 -> ?3 | AO5: =Display1!X3 -> ?4
D13: Total Positions Summary: | I13: =Display1!G41 ->  | K13: =Display1!H41 ->  | N13: OTE: | O13: =Display1!I41 ->  | S13: VEGA: | U13: =Display1!AB41 -> 0 | X13: DELTA: | Z13: =Display1!AC41 -> 0 | AC13: GAMMA: | AE13: =Display1!AD41 -> 0 | AH13: THETA: | AJ13: =Display1!AE41 -> 0
D14: =D16 -> 2016-05-06 | I14: =I16 -> 2016-04-08 | N14: =N16 -> 2016-07-15 | S14: =S16 -> 2016-04-22 | X14: =X16 -> 2016-05-27 | AC14: =AC16 -> 2016-04-29 | AH14: =AH16 -> 2016-05-31 | AM14: =AM16 -> 2016-06-30 | AR14: =AR16 -> 2016-07-29 | AW14: =AW16 -> 2016-08-31 | BB14: =BB16 -> 2016-09-30
D15: =LEFT(RTD("cqg.rtd", ,"ContractData","C."&I4&I5, "LongDescription",, "T"),21) -> E-Mini S&P 500 Week 1 | I15: =LEFT(RTD("cqg.rtd", ,"ContractData","C."&K4&K5, "LongDescription",, "T"),21) -> E-Mini S&P 500 Week 2 | N15: =LEFT(RTD("cqg.rtd", ,"ContractData","C."&N4&N5, "LongDescription",, "T"),21) -> E-mini S&P 500 Week 3 | S15: =LEFT(RTD("cqg.rtd", ,"ContractData","C."&P4&P5, "LongDescription",, "T"),21) -> E-mini S&P 500 Week 4 | X15: =LEFT(RTD("cqg.rtd", ,"ContractData","C."&P4&S5, "LongDescription",, "T"),21) -> E-mini S&P 500 Week 4 | AC15: =LEFT(RTD("cqg.rtd", ,"ContractData","C."&U4&U5, "LongDescription",, "T"),18) -> E-Mini S&P 500 EOM | AH15: =LEFT(RTD("cqg.rtd", ,"ContractData","C."&U4&X5, "LongDescription",, "T"),18) -> E-Mini S&P 500 EOM | AM15: =LEFT(RTD("cqg.rtd", ,"ContractData","C."&U4&Z5, "LongDescription",, "T"),18) -> E-Mini S&P 500 EOM | AR15: =LEFT(RTD("cqg.rtd", ,"ContractData","C."&U4&AC5, "LongDescription",, "T"),18) -> E-Mini S&P 500 EOM | AW15: =LEFT(RTD("cqg.rtd", ,"ContractData","C."&U4&AE5, "LongDescription",, "T"),18) -> E-Mini S&P 500 EOM | BB15: =LEFT(RTD("cqg.rtd", ,"ContractData","C."&U4&AH5, "LongDescription",, "T"),18) -> E-Mini S&P 500 EOM
D16: =RTD("cqg.rtd", ,"ContractData", "C."&I4&I5, "ExpirationDate",, "T") -> 2016-05-06 | F16: DTE: | G16: =RTD("cqg.rtd", ,"ContractData", "C."&I4&I5, "OptionDaysToExp",, "T") -> 31 | I16: =RTD("cqg.rtd", ,"ContractData", "C."&K4&K5, "ExpirationDate",, "T") -> 2016-04-08 | K16: DTE: | L16: =RTD("cqg.rtd", ,"ContractData", "C."&K4&K5, "OptionDaysToExp",, "T") -> 3 | N16: =RTD("cqg.rtd", ,"ContractData", "C."&N4&N5, "ExpirationDate",, "T") -> 2016-07-15 | P16: DTE: | Q16: =RTD("cqg.rtd", ,"ContractData", "C."&N4&N5, "OptionDaysToExp",, "T") -> 101 | S16: =RTD("cqg.rtd", ,"ContractData", "C."&P4&P5, "ExpirationDate",, "T") -> 2016-04-22 | U16: DTE: | V16: =RTD("cqg.rtd", ,"ContractData", "C."&P4&P5, "OptionDaysToExp",, "T") -> 17 | X16: =RTD("cqg.rtd", ,"ContractData", "C."&P4&S5, "ExpirationDate",, "T") -> 2016-05-27 | Z16: DTE: | AA16: =RTD("cqg.rtd", ,"ContractData", "C."&P4&S5, "OptionDaysToExp",, "T") -> 52 | AC16: =RTD("cqg.rtd", ,"ContractData", "C."&U4&U5, "ExpirationDate",, "T") -> 2016-04-29 | AE16: DTE: | AF16: =RTD("cqg.rtd", ,"ContractData", "C."&U4&U5, "OptionDaysToExp",, "T") -> 24 | AH16: =RTD("cqg.rtd", ,"ContractData", "C."&U4&X5, "ExpirationDate",, "T") -> 2016-05-31 | AJ16: DTE: | AK16: =RTD("cqg.rtd", ,"ContractData", "C."&U4&X5, "OptionDaysToExp",, "T") -> 56 | AM16: =RTD("cqg.rtd", ,"ContractData", "C."&U4&Z5, "ExpirationDate",, "T") -> 2016-06-30 | AO16: DTE: | AP16: =RTD("cqg.rtd", ,"ContractData", "C."&U4&Z5, "OptionDaysToExp",, "T") -> 86 | AR16: =RTD("cqg.rtd", ,"ContractData", "C."&U4&AC5, "ExpirationDate",, "T") -> 2016-07-29 | AT16: DTE: | AU16: =RTD("cqg.rtd", ,"ContractData", "C."&U4&AC5, "OptionDaysToExp",, "T") -> 115 | AW16: =RTD("cqg.rtd", ,"ContractData", "C."&U4&AE5, "ExpirationDate",, "T") -> 2016-08-31 | AY16: DTE: | AZ16: =RTD("cqg.rtd", ,"ContractData", "C."&U4&AE5, "OptionDaysToExp",, "T") -> 148 | BB16: =RTD("cqg.rtd", ,"ContractData", "C."&U4&AH5, "ExpirationDate",, "T") -> 2016-09-30 | BD16: DTE: | BE16: =RTD("cqg.rtd", ,"ContractData", "C."&U4&AH5, "OptionDaysToExp",, "T") -> 178
D17: ='First (2)'!Z19 ->  | E17: ='First (2)'!V19 ->  | F17: ='First (2)'!AA19 ->  | G17: =IFERROR(ABS(D17)+ABS(F17),"") ->  | I17: ='First (3)'!Z19 ->  | J17: ='First (3)'!AE19 ->  | K17: ='First (3)'!AA19 ->  | L17: =IFERROR(ABS(I17)+ABS(K17),"") ->  | N17: ='First (4)'!Z19 ->  | O17: ='First (4)'!V19 ->  | P17: ='First (4)'!AA19 ->  | Q17: =IFERROR(N17+P17,"") ->  | S17: ='First (5)'!Z19 ->  | T17: ='First (5)'!V19 ->  | U17: ='First (5)'!AA19 ->  | V17: =IFERROR(ABS(S17)+ABS(U17),"") ->  | X17: ='First (6)'!Z19 ->  | Y17: ='First (6)'!V19 ->  | Z17: ='First (6)'!AA19 ->  | AA17: =IFERROR(ABS(X17)+ABS(Z17),"") ->  | AC17: ='First (7)'!Z19 ->  | AD17: ='First (7)'!V19 ->  | AE17: ='First (7)'!AA19 ->  | AF17: =IFERROR(ABS(AC17)+ABS(AE17),"") ->  | AH17: ='First (8)'!Z19 ->  | AI17: ='First (8)'!V19 ->  | AJ17: ='First (8)'!AA19 ->  | AK17: =IFERROR(ABS(AH17)+ABS(AJ17),"") ->  | AM17: ='First (9)'!Z19 ->  | AN17: ='First (9)'!V19 ->  | AO17: ='First (9)'!AA19 ->  | AP17: =IFERROR(ABS(AM17)+ABS(AO17),"") ->  | AR17: ='First (10)'!Z19 ->  | AS17: ='First (10)'!V19 ->  | AT17: ='First (10)'!AA19 ->  | AU17: =IFERROR(ABS(AR17)+ABS(AT17),"") ->  | AW17: ='First (11)'!Z19 ->  | AX17: ='First (11)'!V19 ->  | AY17: ='First (11)'!AA19 ->  | AZ17: =IFERROR(ABS(AW17)+ABS(AY17),"") ->  | BB17: ='First (12)'!Z19 ->  | BC17: ='First (12)'!V19 ->  | BD17: ='First (12)'!AA19 ->  | BE17: =IFERROR(ABS(BB17)+ABS(BD17),"") -> 
D18: ='First (2)'!Z20 ->  | E18: ='First (2)'!V20 ->  | F18: ='First (2)'!AA20 ->  | I18: ='First (3)'!Z20 ->  | J18: ='First (3)'!V20 ->  | K18: ='First (3)'!AA20 ->  | N18: ='First (4)'!Z20 ->  | O18: ='First (4)'!V20 ->  | P18: ='First (4)'!AA20 ->  | S18: ='First (5)'!Z20 ->  | T18: ='First (5)'!V20 ->  | U18: ='First (5)'!AA20 ->  | X18: ='First (6)'!Z20 ->  | Y18: ='First (6)'!V20 ->  | Z18: ='First (6)'!AA20 ->  | AC18: ='First (7)'!Z20 ->  | AD18: ='First (7)'!V20 ->  | AE18: ='First (7)'!AA20 ->  | AH18: ='First (8)'!Z20 ->  | AI18: ='First (8)'!V20 ->  | AJ18: ='First (8)'!AA20 ->  | AM18: ='First (9)'!Z20 ->  | AN18: ='First (9)'!V20 ->  | AO18: ='First (9)'!AA20 ->  | AR18: ='First (10)'!Z20 ->  | AS18: ='First (10)'!V20 ->  | AT18: ='First (10)'!AA20 ->  | AW18: ='First (11)'!Z20 ->  | AX18: ='First (11)'!V20 ->  | AY18: ='First (11)'!AA20 ->  | BB18: ='First (12)'!Z20 ->  | BC18: ='First (12)'!V20 ->  | BD18: ='First (12)'!AA20 -> 
D19: ='First (2)'!Z21 ->  | E19: ='First (2)'!V21 ->  | F19: ='First (2)'!AA21 ->  | I19: ='First (3)'!Z21 ->  | J19: ='First (3)'!V21 ->  | K19: ='First (3)'!AA21 ->  | N19: ='First (4)'!Z21 ->  | O19: ='First (4)'!V21 ->  | P19: ='First (4)'!AA21 ->  | S19: ='First (5)'!Z21 ->  | T19: ='First (5)'!V21 ->  | U19: ='First (5)'!AA21 ->  | X19: ='First (6)'!Z21 ->  | Y19: ='First (6)'!V21 ->  | Z19: ='First (6)'!AA21 ->  | AC19: ='First (7)'!Z21 ->  | AD19: ='First (7)'!V21 ->  | AE19: ='First (7)'!AA21 ->  | AH19: ='First (8)'!Z21 ->  | AI19: ='First (8)'!V21 ->  | AJ19: ='First (8)'!AA21 ->  | AM19: ='First (9)'!Z21 ->  | AN19: ='First (9)'!V21 ->  | AO19: ='First (9)'!AA21 ->  | AR19: ='First (10)'!Z21 ->  | AS19: ='First (10)'!V21 ->  | AT19: ='First (10)'!AA21 ->  | AW19: ='First (11)'!Z21 ->  | AX19: ='First (11)'!V21 ->  | AY19: ='First (11)'!AA21 ->  | BB19: ='First (12)'!Z21 ->  | BC19: ='First (12)'!V21 ->  | BD19: ='First (12)'!AA21 -> 
D20: ='First (2)'!Z22 ->  | E20: ='First (2)'!V22 ->  | F20: ='First (2)'!AA22 ->  | I20: ='First (3)'!Z22 ->  | J20: ='First (3)'!V22 ->  | K20: ='First (3)'!AA22 ->  | N20: ='First (4)'!Z22 ->  | O20: ='First (4)'!V22 ->  | P20: ='First (4)'!AA22 ->  | S20: ='First (5)'!Z22 ->  | T20: ='First (5)'!V22 ->  | U20: ='First (5)'!AA22 ->  | X20: ='First (6)'!Z22 ->  | Y20: ='First (6)'!V22 ->  | Z20: ='First (6)'!AA22 ->  | AC20: ='First (7)'!Z22 ->  | AD20: ='First (7)'!V22 ->  | AE20: ='First (7)'!AA22 ->  | AH20: ='First (8)'!Z22 ->  | AI20: ='First (8)'!V22 ->  | AJ20: ='First (8)'!AA22 ->  | AM20: ='First (9)'!Z22 ->  | AN20: ='First (9)'!V22 ->  | AO20: ='First (9)'!AA22 ->  | AR20: ='First (10)'!Z22 ->  | AS20: ='First (10)'!V22 ->  | AT20: ='First (10)'!AA22 ->  | AW20: ='First (11)'!Z22 ->  | AX20: ='First (11)'!V22 ->  | AY20: ='First (11)'!AA22 ->  | BB20: ='First (12)'!Z22 ->  | BC20: ='First (12)'!V22 ->  | BD20: ='First (12)'!AA22 -> 
D21: ='First (2)'!Z23 ->  | E21: ='First (2)'!V23 ->  | F21: ='First (2)'!AA23 ->  | I21: ='First (3)'!Z23 ->  | J21: ='First (3)'!V23 ->  | K21: ='First (3)'!AA23 ->  | N21: ='First (4)'!Z23 ->  | O21: ='First (4)'!V23 ->  | P21: ='First (4)'!AA23 ->  | S21: ='First (5)'!Z23 ->  | T21: ='First (5)'!V23 ->  | U21: ='First (5)'!AA23 ->  | X21: ='First (6)'!Z23 ->  | Y21: ='First (6)'!V23 ->  | Z21: ='First (6)'!AA23 ->  | AC21: ='First (7)'!Z23 ->  | AD21: ='First (7)'!V23 ->  | AE21: ='First (7)'!AA23 ->  | AH21: ='First (8)'!Z23 ->  | AI21: ='First (8)'!V23 ->  | AJ21: ='First (8)'!AA23 ->  | AM21: ='First (9)'!Z23 ->  | AN21: ='First (9)'!V23 ->  | AO21: ='First (9)'!AA23 ->  | AR21: ='First (10)'!Z23 ->  | AS21: ='First (10)'!V23 ->  | AT21: ='First (10)'!AA23 ->  | AW21: ='First (11)'!Z23 ->  | AX21: ='First (11)'!V23 ->  | AY21: ='First (11)'!AA23 ->  | BB21: ='First (12)'!Z23 ->  | BC21: ='First (12)'!V23 ->  | BD21: ='First (12)'!AA23 -> 
D22: ='First (2)'!Z24 ->  | E22: ='First (2)'!V24 ->  | F22: ='First (2)'!AA24 ->  | I22: ='First (3)'!Z24 ->  | J22: ='First (3)'!V24 ->  | K22: ='First (3)'!AA24 ->  | N22: ='First (4)'!Z24 ->  | O22: ='First (4)'!V24 ->  | P22: ='First (4)'!AA24 ->  | S22: ='First (5)'!Z24 ->  | T22: ='First (5)'!V24 ->  | U22: ='First (5)'!AA24 ->  | X22: ='First (6)'!Z24 ->  | Y22: ='First (6)'!V24 ->  | Z22: ='First (6)'!AA24 ->  | AC22: ='First (7)'!Z24 ->  | AD22: ='First (7)'!V24 ->  | AE22: ='First (7)'!AA24 ->  | AH22: ='First (8)'!Z24 ->  | AI22: ='First (8)'!V24 ->  | AJ22: ='First (8)'!AA24 ->  | AM22: ='First (9)'!Z24 ->  | AN22: ='First (9)'!V24 ->  | AO22: ='First (9)'!AA24 ->  | AR22: ='First (10)'!Z24 ->  | AS22: ='First (10)'!V24 ->  | AT22: ='First (10)'!AA24 ->  | AW22: ='First (11)'!Z24 ->  | AX22: ='First (11)'!V24 ->  | AY22: ='First (11)'!AA24 ->  | BB22: ='First (12)'!Z24 ->  | BC22: ='First (12)'!V24 ->  | BD22: ='First (12)'!AA24 -> 
D23: ='First (2)'!Z25 ->  | E23: ='First (2)'!V25 ->  | F23: ='First (2)'!AA25 ->  | I23: ='First (3)'!Z25 ->  | J23: ='First (3)'!V25 ->  | K23: ='First (3)'!AA25 ->  | N23: ='First (4)'!Z25 ->  | O23: ='First (4)'!V25 ->  | P23: ='First (4)'!AA25 ->  | S23: ='First (5)'!Z25 ->  | T23: ='First (5)'!V25 ->  | U23: ='First (5)'!AA25 ->  | X23: ='First (6)'!Z25 ->  | Y23: ='First (6)'!V25 ->  | Z23: ='First (6)'!AA25 ->  | AC23: ='First (7)'!Z25 ->  | AD23: ='First (7)'!V25 ->  | AE23: ='First (7)'!AA25 ->  | AH23: ='First (8)'!Z25 ->  | AI23: ='First (8)'!V25 ->  | AJ23: ='First (8)'!AA25 ->  | AM23: ='First (9)'!Z25 ->  | AN23: ='First (9)'!V25 ->  | AO23: ='First (9)'!AA25 ->  | AR23: ='First (10)'!Z25 ->  | AS23: ='First (10)'!V25 ->  | AT23: ='First (10)'!AA25 ->  | AW23: ='First (11)'!Z25 ->  | AX23: ='First (11)'!V25 ->  | AY23: ='First (11)'!AA25 ->  | BB23: ='First (12)'!Z25 ->  | BC23: ='First (12)'!V25 ->  | BD23: ='First (12)'!AA25 -> 
D24: ='First (2)'!Z26 ->  | E24: ='First (2)'!V26 ->  | F24: ='First (2)'!AA26 ->  | I24: ='First (3)'!Z26 ->  | J24: ='First (3)'!V26 ->  | K24: ='First (3)'!AA26 ->  | N24: ='First (4)'!Z26 ->  | O24: ='First (4)'!V26 ->  | P24: ='First (4)'!AA26 ->  | S24: ='First (5)'!Z26 ->  | T24: ='First (5)'!V26 ->  | U24: ='First (5)'!AA26 ->  | X24: ='First (6)'!Z26 ->  | Y24: ='First (6)'!V26 ->  | Z24: ='First (6)'!AA26 ->  | AC24: ='First (7)'!Z26 ->  | AD24: ='First (7)'!V26 ->  | AE24: ='First (7)'!AA26 ->  | AH24: ='First (8)'!Z26 ->  | AI24: ='First (8)'!V26 ->  | AJ24: ='First (8)'!AA26 ->  | AM24: ='First (9)'!Z26 ->  | AN24: ='First (9)'!V26 ->  | AO24: ='First (9)'!AA26 ->  | AR24: ='First (10)'!Z26 ->  | AS24: ='First (10)'!V26 ->  | AT24: ='First (10)'!AA26 ->  | AW24: ='First (11)'!Z26 ->  | AX24: ='First (11)'!V26 ->  | AY24: ='First (11)'!AA26 ->  | BB24: ='First (12)'!Z26 ->  | BC24: ='First (12)'!V26 ->  | BD24: ='First (12)'!AA26 -> 
D25: ='First (2)'!Z27 ->  | E25: ='First (2)'!V27 ->  | F25: ='First (2)'!AA27 ->  | I25: ='First (3)'!Z27 ->  | J25: ='First (3)'!V27 ->  | K25: ='First (3)'!AA27 ->  | N25: ='First (4)'!Z27 ->  | O25: ='First (4)'!V27 ->  | P25: ='First (4)'!AA27 ->  | S25: ='First (5)'!Z27 ->  | T25: ='First (5)'!V27 ->  | U25: ='First (5)'!AA27 ->  | X25: ='First (6)'!Z27 ->  | Y25: ='First (6)'!V27 ->  | Z25: ='First (6)'!AA27 ->  | AC25: ='First (7)'!Z27 ->  | AD25: ='First (7)'!V27 ->  | AE25: ='First (7)'!AA27 ->  | AH25: ='First (8)'!Z27 ->  | AI25: ='First (8)'!V27 ->  | AJ25: ='First (8)'!AA27 ->  | AM25: ='First (9)'!Z27 ->  | AN25: ='First (9)'!V27 ->  | AO25: ='First (9)'!AA27 ->  | AR25: ='First (10)'!Z27 ->  | AS25: ='First (10)'!V27 ->  | AT25: ='First (10)'!AA27 ->  | AW25: ='First (11)'!Z27 ->  | AX25: ='First (11)'!V27 ->  | AY25: ='First (11)'!AA27 ->  | BB25: ='First (12)'!Z27 ->  | BC25: ='First (12)'!V27 ->  | BD25: ='First (12)'!AA27 -> 
D26: ='First (2)'!Z28 ->  | E26: ='First (2)'!V28 ->  | F26: ='First (2)'!AA28 ->  | I26: ='First (3)'!Z28 ->  | J26: ='First (3)'!V28 ->  | K26: ='First (3)'!AA28 ->  | N26: ='First (4)'!Z28 ->  | O26: ='First (4)'!V28 ->  | P26: ='First (4)'!AA28 ->  | S26: ='First (5)'!Z28 ->  | T26: ='First (5)'!V28 ->  | U26: ='First (5)'!AA28 ->  | X26: ='First (6)'!Z28 ->  | Y26: ='First (6)'!V28 ->  | Z26: ='First (6)'!AA28 ->  | AC26: ='First (7)'!Z28 ->  | AD26: ='First (7)'!V28 ->  | AE26: ='First (7)'!AA28 ->  | AH26: ='First (8)'!Z28 ->  | AI26: ='First (8)'!V28 ->  | AJ26: ='First (8)'!AA28 ->  | AM26: ='First (9)'!Z28 ->  | AN26: ='First (9)'!V28 ->  | AO26: ='First (9)'!AA28 ->  | AR26: ='First (10)'!Z28 ->  | AS26: ='First (10)'!V28 ->  | AT26: ='First (10)'!AA28 ->  | AW26: ='First (11)'!Z28 ->  | AX26: ='First (11)'!V28 ->  | AY26: ='First (11)'!AA28 ->  | BB26: ='First (12)'!Z28 ->  | BC26: ='First (12)'!V28 ->  | BD26: ='First (12)'!AA28 -> 
D27: ='First (2)'!Z29 -> Specified Account or FcmAccountId is inconsistent with current login to gateway | E27: ='First (2)'!V29 -> 20400 | F27: ='First (2)'!AA29 -> Specified Account or FcmAccountId is inconsistent with current login to gateway | G27: =IFERROR(ABS(D27)+ABS(F27),"") ->  | I27: ='First (3)'!Z29 -> Specified Account or FcmAccountId is inconsistent with current login to gateway | J27: ='First (3)'!V29 -> 20400 | K27: ='First (3)'!AA29 -> Specified Account or FcmAccountId is inconsistent with current login to gateway | L27: =IFERROR(ABS(I27)+ABS(K27),"") ->  | N27: ='First (4)'!Z29 -> Specified Account or FcmAccountId is inconsistent with current login to gateway | O27: ='First (4)'!V29 -> 20350 | P27: ='First (4)'!AA29 -> Specified Account or FcmAccountId is inconsistent with current login to gateway | Q27: =IFERROR(N27+P27,"") ->  | S27: ='First (5)'!Z29 -> Specified Account or FcmAccountId is inconsistent with current login to gateway | T27: ='First (5)'!V29 -> 20400 | U27: ='First (5)'!AA29 -> Specified Account or FcmAccountId is inconsistent with current login to gateway | V27: =IFERROR(ABS(S27)+ABS(U27),"") ->  | X27: ='First (6)'!Z29 -> Specified Account or FcmAccountId is inconsistent with current login to gateway | Y27: ='First (6)'!V29 -> 20400 | Z27: ='First (6)'!AA29 -> Specified Account or FcmAccountId is inconsistent with current login to gateway | AA27: =IFERROR(ABS(X27)+ABS(Z27),"") ->  | AC27: ='First (7)'!Z29 -> Specified Account or FcmAccountId is inconsistent with current login to gateway | AD27: ='First (7)'!V29 -> 20400 | AE27: ='First (7)'!AA29 -> Specified Account or FcmAccountId is inconsistent with current login to gateway | AF27: =IFERROR(ABS(AC27)+ABS(AE27),"") ->  | AH27: ='First (8)'!Z29 -> Specified Account or FcmAccountId is inconsistent with current login to gateway | AI27: ='First (8)'!V29 -> 20400 | AJ27: ='First (8)'!AA29 -> Specified Account or FcmAccountId is inconsistent with current login to gateway | AK27: =IFERROR(ABS(AH27)+ABS(AJ27),"") ->  | AM27: ='First (9)'!Z29 -> Specified Account or FcmAccountId is inconsistent with current login to gateway | AN27: ='First (9)'!V29 -> 20350 | AO27: ='First (9)'!AA29 -> Specified Account or FcmAccountId is inconsistent with current login to gateway | AP27: =IFERROR(ABS(AM27)+ABS(AO27),"") ->  | AR27: ='First (10)'!Z29 -> Specified Account or FcmAccountId is inconsistent with current login to gateway | AS27: ='First (10)'!V29 -> 20350 | AT27: ='First (10)'!AA29 -> Specified Account or FcmAccountId is inconsistent with current login to gateway | AU27: =IFERROR(ABS(AR27)+ABS(AT27),"") ->  | AV27: 0 | AW27: ='First (11)'!Z29 -> Specified Account or FcmAccountId is inconsistent with current login to gateway | AX27: ='First (11)'!V29 -> 20350 | AY27: ='First (11)'!AA29 -> Specified Account or FcmAccountId is inconsistent with current login to gateway | AZ27: =IFERROR(ABS(AW27)+ABS(AY27),"") ->  | BB27: ='First (12)'!Z29 -> Specified Account or FcmAccountId is inconsistent with current login to gateway | BC27: ='First (12)'!V29 -> 20250 | BD27: ='First (12)'!AA29 -> Specified Account or FcmAccountId is inconsistent with current login to gateway | BE27: =IFERROR(ABS(BB27)+ABS(BD27),"") -> 
D28: ='First (2)'!Z30 ->  | E28: ='First (2)'!V30 ->  | F28: ='First (2)'!AA30 ->  | I28: ='First (3)'!Z30 ->  | J28: ='First (3)'!V30 ->  | K28: ='First (3)'!AA30 ->  | N28: ='First (4)'!Z30 ->  | O28: ='First (4)'!V30 ->  | P28: ='First (4)'!AA30 ->  | Q28: =IFERROR(N28+P28,"") ->  | S28: ='First (5)'!Z30 ->  | T28: ='First (5)'!V30 ->  | U28: ='First (5)'!AA30 ->  | X28: ='First (6)'!Z30 ->  | Y28: ='First (6)'!V30 ->  | Z28: ='First (6)'!AA30 ->  | AC28: ='First (7)'!Z30 ->  | AD28: ='First (7)'!V30 ->  | AE28: ='First (7)'!AA30 ->  | AH28: ='First (8)'!Z30 ->  | AI28: ='First (8)'!V30 ->  | AJ28: ='First (8)'!AA30 ->  | AM28: ='First (9)'!Z30 ->  | AN28: ='First (9)'!V30 ->  | AO28: ='First (9)'!AA30 ->  | AR28: ='First (10)'!Z30 ->  | AS28: ='First (10)'!V30 ->  | AT28: ='First (10)'!AA30 ->  | AW28: ='First (11)'!Z30 ->  | AX28: ='First (11)'!V30 ->  | AY28: ='First (11)'!AA30 ->  | BB28: ='First (12)'!Z30 ->  | BC28: ='First (12)'!V30 ->  | BD28: ='First (12)'!AA30 -> 
D29: ='First (2)'!Z31 ->  | E29: ='First (2)'!V31 ->  | F29: ='First (2)'!AA31 ->  | I29: ='First (3)'!Z31 ->  | J29: ='First (3)'!V31 ->  | K29: ='First (3)'!AA31 ->  | N29: ='First (4)'!Z31 ->  | O29: ='First (4)'!V31 ->  | P29: ='First (4)'!AA31 ->  | S29: ='First (5)'!Z31 ->  | T29: ='First (5)'!V31 ->  | U29: ='First (5)'!AA31 ->  | X29: ='First (6)'!Z31 ->  | Y29: ='First (6)'!V31 ->  | Z29: ='First (6)'!AA31 ->  | AC29: ='First (7)'!Z31 ->  | AD29: ='First (7)'!V31 ->  | AE29: ='First (7)'!AA31 ->  | AH29: ='First (8)'!Z31 ->  | AI29: ='First (8)'!V31 ->  | AJ29: ='First (8)'!AA31 ->  | AM29: ='First (9)'!Z31 ->  | AN29: ='First (9)'!V31 ->  | AO29: ='First (9)'!AA31 ->  | AR29: ='First (10)'!Z31 ->  | AS29: ='First (10)'!V31 ->  | AT29: ='First (10)'!AA31 ->  | AW29: ='First (11)'!Z31 ->  | AX29: ='First (11)'!V31 ->  | AY29: ='First (11)'!AA31 ->  | BB29: ='First (12)'!Z31 ->  | BC29: ='First (12)'!V31 ->  | BD29: ='First (12)'!AA31 -> 
D30: ='First (2)'!Z32 ->  | E30: ='First (2)'!V32 ->  | F30: ='First (2)'!AA32 ->  | I30: ='First (3)'!Z32 ->  | J30: ='First (3)'!V32 ->  | K30: ='First (3)'!AA32 ->  | N30: ='First (4)'!Z32 ->  | O30: ='First (4)'!V32 ->  | P30: ='First (4)'!AA32 ->  | S30: ='First (5)'!Z32 ->  | T30: ='First (5)'!V32 ->  | U30: ='First (5)'!AA32 ->  | X30: ='First (6)'!Z32 ->  | Y30: ='First (6)'!V32 ->  | Z30: ='First (6)'!AA32 ->  | AC30: ='First (7)'!Z32 ->  | AD30: ='First (7)'!V32 ->  | AE30: ='First (7)'!AA32 ->  | AH30: ='First (8)'!Z32 ->  | AI30: ='First (8)'!V32 ->  | AJ30: ='First (8)'!AA32 ->  | AM30: ='First (9)'!Z32 ->  | AN30: ='First (9)'!V32 ->  | AO30: ='First (9)'!AA32 ->  | AR30: ='First (10)'!Z32 ->  | AS30: ='First (10)'!V32 ->  | AT30: ='First (10)'!AA32 ->  | AW30: ='First (11)'!Z32 ->  | AX30: ='First (11)'!V32 ->  | AY30: ='First (11)'!AA32 ->  | BB30: ='First (12)'!Z32 ->  | BC30: ='First (12)'!V32 ->  | BD30: ='First (12)'!AA32 -> 
D31: ='First (2)'!Z33 ->  | E31: ='First (2)'!V33 ->  | F31: ='First (2)'!AA33 ->  | I31: ='First (3)'!Z33 ->  | J31: ='First (3)'!V33 ->  | K31: ='First (3)'!AA33 ->  | N31: ='First (4)'!Z33 ->  | O31: ='First (4)'!V33 ->  | P31: ='First (4)'!AA33 ->  | S31: ='First (5)'!Z33 ->  | T31: ='First (5)'!V33 ->  | U31: ='First (5)'!AA33 ->  | X31: ='First (6)'!Z33 ->  | Y31: ='First (6)'!V33 ->  | Z31: ='First (6)'!AA33 ->  | AC31: ='First (7)'!Z33 ->  | AD31: ='First (7)'!V33 ->  | AE31: ='First (7)'!AA33 ->  | AH31: ='First (8)'!Z33 ->  | AI31: ='First (8)'!V33 ->  | AJ31: ='First (8)'!AA33 ->  | AM31: ='First (9)'!Z33 ->  | AN31: ='First (9)'!V33 ->  | AO31: ='First (9)'!AA33 ->  | AR31: ='First (10)'!Z33 ->  | AS31: ='First (10)'!V33 ->  | AT31: ='First (10)'!AA33 ->  | AW31: ='First (11)'!Z33 ->  | AX31: ='First (11)'!V33 ->  | AY31: ='First (11)'!AA33 ->  | BB31: ='First (12)'!Z33 ->  | BC31: ='First (12)'!V33 ->  | BD31: ='First (12)'!AA33 -> 
D32: ='First (2)'!Z34 ->  | E32: ='First (2)'!V34 ->  | F32: ='First (2)'!AA34 ->  | I32: ='First (3)'!Z34 ->  | J32: ='First (3)'!V34 ->  | K32: ='First (3)'!AA34 ->  | N32: ='First (4)'!Z34 ->  | O32: ='First (4)'!V34 ->  | P32: ='First (4)'!AA34 ->  | S32: ='First (5)'!Z34 ->  | T32: ='First (5)'!V34 ->  | U32: ='First (5)'!AA34 ->  | X32: ='First (6)'!Z34 ->  | Y32: ='First (6)'!V34 ->  | Z32: ='First (6)'!AA34 ->  | AC32: ='First (7)'!Z34 ->  | AD32: ='First (7)'!V34 ->  | AE32: ='First (7)'!AA34 ->  | AH32: ='First (8)'!Z34 ->  | AI32: ='First (8)'!V34 ->  | AJ32: ='First (8)'!AA34 ->  | AM32: ='First (9)'!Z34 ->  | AN32: ='First (9)'!V34 ->  | AO32: ='First (9)'!AA34 ->  | AR32: ='First (10)'!Z34 ->  | AS32: ='First (10)'!V34 ->  | AT32: ='First (10)'!AA34 ->  | AW32: ='First (11)'!Z34 ->  | AX32: ='First (11)'!V34 ->  | AY32: ='First (11)'!AA34 ->  | BB32: ='First (12)'!Z34 ->  | BC32: ='First (12)'!V34 ->  | BD32: ='First (12)'!AA34 -> 
D33: ='First (2)'!Z35 ->  | E33: ='First (2)'!V35 ->  | F33: ='First (2)'!AA35 ->  | I33: ='First (3)'!Z35 ->  | J33: ='First (3)'!V35 ->  | K33: ='First (3)'!AA35 ->  | N33: ='First (4)'!Z35 ->  | O33: ='First (4)'!V35 ->  | P33: ='First (4)'!AA35 ->  | S33: ='First (5)'!Z35 ->  | T33: ='First (5)'!V35 ->  | U33: ='First (5)'!AA35 ->  | X33: ='First (6)'!Z35 ->  | Y33: ='First (6)'!V35 ->  | Z33: ='First (6)'!AA35 ->  | AC33: ='First (7)'!Z35 ->  | AD33: ='First (7)'!V35 ->  | AE33: ='First (7)'!AA35 ->  | AH33: ='First (8)'!Z35 ->  | AI33: ='First (8)'!V35 ->  | AJ33: ='First (8)'!AA35 ->  | AM33: ='First (9)'!Z35 ->  | AN33: ='First (9)'!V35 ->  | AO33: ='First (9)'!AA35 ->  | AR33: ='First (10)'!Z35 ->  | AS33: ='First (10)'!V35 ->  | AT33: ='First (10)'!AA35 ->  | AW33: ='First (11)'!Z35 ->  | AX33: ='First (11)'!V35 ->  | AY33: ='First (11)'!AA35 ->  | BB33: ='First (12)'!Z35 ->  | BC33: ='First (12)'!V35 ->  | BD33: ='First (12)'!AA35 -> 
D34: ='First (2)'!Z36 ->  | E34: ='First (2)'!V36 ->  | F34: ='First (2)'!AA36 ->  | I34: ='First (3)'!Z36 ->  | J34: ='First (3)'!V36 ->  | K34: ='First (3)'!AA36 ->  | N34: ='First (4)'!Z36 ->  | O34: ='First (4)'!V36 ->  | P34: ='First (4)'!AA36 ->  | S34: ='First (5)'!Z36 ->  | T34: ='First (5)'!V36 ->  | U34: ='First (5)'!AA36 ->  | X34: ='First (6)'!Z36 ->  | Y34: ='First (6)'!V36 ->  | Z34: ='First (6)'!AA36 ->  | AC34: ='First (7)'!Z36 ->  | AD34: ='First (7)'!V36 ->  | AE34: ='First (7)'!AA36 ->  | AH34: ='First (8)'!Z36 ->  | AI34: ='First (8)'!V36 ->  | AJ34: ='First (8)'!AA36 ->  | AM34: ='First (9)'!Z36 ->  | AN34: ='First (9)'!V36 ->  | AO34: ='First (9)'!AA36 ->  | AR34: ='First (10)'!Z36 ->  | AS34: ='First (10)'!V36 ->  | AT34: ='First (10)'!AA36 ->  | AW34: ='First (11)'!Z36 ->  | AX34: ='First (11)'!V36 ->  | AY34: ='First (11)'!AA36 ->  | BB34: ='First (12)'!Z36 ->  | BC34: ='First (12)'!V36 ->  | BD34: ='First (12)'!AA36 -> 
D35: ='First (2)'!Z37 ->  | E35: ='First (2)'!V37 ->  | F35: ='First (2)'!AA37 ->  | I35: ='First (3)'!Z37 ->  | J35: ='First (3)'!V37 ->  | K35: ='First (3)'!AA37 ->  | N35: ='First (4)'!Z37 ->  | O35: ='First (4)'!V37 ->  | P35: ='First (4)'!AA37 ->  | S35: ='First (5)'!Z37 ->  | T35: ='First (5)'!V37 ->  | U35: ='First (5)'!AA37 ->  | X35: ='First (6)'!Z37 ->  | Y35: ='First (6)'!V37 ->  | Z35: ='First (6)'!AA37 ->  | AC35: ='First (7)'!Z37 ->  | AD35: ='First (7)'!V37 ->  | AE35: ='First (7)'!AA37 ->  | AH35: ='First (8)'!Z37 ->  | AI35: ='First (8)'!V37 ->  | AJ35: ='First (8)'!AA37 ->  | AM35: ='First (9)'!Z37 ->  | AN35: ='First (9)'!V37 ->  | AO35: ='First (9)'!AA37 ->  | AR35: ='First (10)'!Z37 ->  | AS35: ='First (10)'!V37 ->  | AT35: ='First (10)'!AA37 ->  | AW35: ='First (11)'!Z37 ->  | AX35: ='First (11)'!V37 ->  | AY35: ='First (11)'!AA37 ->  | BB35: ='First (12)'!Z37 ->  | BC35: ='First (12)'!V37 ->  | BD35: ='First (12)'!AA37 -> 
D36: ='First (2)'!Z38 ->  | E36: ='First (2)'!V38 ->  | F36: ='First (2)'!AA38 ->  | I36: ='First (3)'!Z38 ->  | J36: ='First (3)'!V38 ->  | K36: ='First (3)'!AA38 ->  | N36: ='First (4)'!Z38 ->  | O36: ='First (4)'!V38 ->  | P36: ='First (4)'!AA38 ->  | S36: ='First (5)'!Z38 ->  | T36: ='First (5)'!V38 ->  | U36: ='First (5)'!AA38 ->  | X36: ='First (6)'!Z38 ->  | Y36: ='First (6)'!V38 ->  | Z36: ='First (6)'!AA38 ->  | AC36: ='First (7)'!Z38 ->  | AD36: ='First (7)'!V38 ->  | AE36: ='First (7)'!AA38 ->  | AH36: ='First (8)'!Z38 ->  | AI36: ='First (8)'!V38 ->  | AJ36: ='First (8)'!AA38 ->  | AM36: ='First (9)'!Z38 ->  | AN36: ='First (9)'!V38 ->  | AO36: ='First (9)'!AA38 ->  | AR36: ='First (10)'!Z38 ->  | AS36: ='First (10)'!V38 ->  | AT36: ='First (10)'!AA38 ->  | AW36: ='First (11)'!Z38 ->  | AX36: ='First (11)'!V38 ->  | AY36: ='First (11)'!AA38 ->  | BB36: ='First (12)'!Z38 ->  | BC36: ='First (12)'!V38 ->  | BD36: ='First (12)'!AA38 -> 
D37: ='First (2)'!Z39 ->  | E37: ='First (2)'!V39 ->  | F37: ='First (2)'!AA39 ->  | I37: ='First (3)'!Z39 ->  | J37: ='First (3)'!V39 ->  | K37: ='First (3)'!AA39 ->  | N37: ='First (4)'!Z39 ->  | O37: ='First (4)'!V39 ->  | P37: ='First (4)'!AA39 ->  | S37: ='First (5)'!Z39 ->  | T37: ='First (5)'!V39 ->  | U37: ='First (5)'!AA39 ->  | X37: ='First (6)'!Z39 ->  | Y37: ='First (6)'!V39 ->  | Z37: ='First (6)'!AA39 ->  | AC37: ='First (7)'!Z39 ->  | AD37: ='First (7)'!V39 ->  | AE37: ='First (7)'!AA39 ->  | AH37: ='First (8)'!Z39 ->  | AI37: ='First (8)'!V39 ->  | AJ37: ='First (8)'!AA39 ->  | AM37: ='First (9)'!Z39 ->  | AN37: ='First (9)'!V39 ->  | AO37: ='First (9)'!AA39 ->  | AR37: ='First (10)'!Z39 ->  | AS37: ='First (10)'!V39 ->  | AT37: ='First (10)'!AA39 ->  | AW37: ='First (11)'!Z39 ->  | AX37: ='First (11)'!V39 ->  | AY37: ='First (11)'!AA39 ->  | BB37: ='First (12)'!Z39 ->  | BC37: ='First (12)'!V39 ->  | BD37: ='First (12)'!AA39 -> 
D38: Calls | E38: Strike | F38: Puts | I38: Calls | J38: Strike | K38: Puts | N38: Calls | O38: Strike | P38: Puts | S38: Calls | T38: Strike | U38: Puts | X38: Calls | Y38: Strike | Z38: Puts | AC38: Calls | AD38: Strike | AE38: Puts | AH38: Calls | AI38: Strike | AJ38: Puts | AM38: Calls | AN38: Strike | AO38: Puts | AR38: Calls | AS38: Strike | AT38: Puts | AW38: Calls | AX38: Strike | AY38: Puts | BB38: Calls | BC38: Strike | BD38: Puts
D39: =SUMIF(D17:D37,">0")-SUMIF(D17:D37,"<0") -> 0 | F39: =SUMIF(F17:F37,">0")-SUMIF(F17:F37,"<0") -> 0 | I39: =SUMIF(I17:I37,">0")-SUMIF(I17:I37,"<0") -> 0 | K39: =SUMIF(K17:K37,">0")-SUMIF(K17:K37,"<0") -> 0 | N39: =SUMIF(N17:N37,">0")-SUMIF(N17:N37,"<0") -> 0 | P39: =SUMIF(P17:P37,">0")-SUMIF(P17:P37,"<0") -> 0 | S39: =SUMIF(S17:S37,">0")-SUMIF(S17:S37,"<0") -> 0 | U39: =SUMIF(U17:U37,">0")-SUMIF(U17:U37,"<0") -> 0 | X39: =SUMIF(X17:X37,">0")-SUMIF(X17:X37,"<0") -> 0 | Z39: =SUMIF(Z17:Z37,">0")-SUMIF(Z17:Z37,"<0") -> 0 | AC39: =SUMIF(AC17:AC37,">0")-SUMIF(AC17:AC37,"<0") -> 0 | AE39: =SUMIF(AE17:AE37,">0")-SUMIF(AE17:AE37,"<0") -> 0 | AH39: =SUMIF(AH17:AH37,">0")-SUMIF(AH17:AH37,"<0") -> 0 | AJ39: =SUMIF(AJ17:AJ37,">0")-SUMIF(AJ17:AJ37,"<0") -> 0 | AM39: =SUMIF(AM17:AM37,">0")-SUMIF(AM17:AM37,"<0") -> 0 | AO39: =SUMIF(AO17:AO37,">0")-SUMIF(AO17:AO37,"<0") -> 0 | AR39: =SUMIF(AR17:AR37,">0")-SUMIF(AR17:AR37,"<0") -> 0 | AT39: =SUMIF(AT17:AT37,">0")-SUMIF(AT17:AT37,"<0") -> 0 | AW39: =SUMIF(AW17:AW37,">0")-SUMIF(AW17:AW37,"<0") -> 0 | AY39: =SUMIF(AY17:AY37,">0")-SUMIF(AY17:AY37,"<0") -> 0 | BB39: =SUMIF(BB17:BB37,">0")-SUMIF(BB17:BB37,"<0") -> 0 | BD39: =SUMIF(BD17:BD37,">0")-SUMIF(BD17:BD37,"<0") -> 0
D40: =D42 -> 2016-04-15 | I40: =I42 -> 2016-05-20 | N40: =N42 -> 2016-06-17 | S40: =S42 -> 2016-09-16 | X40: =X42 -> 2016-12-16 | AC40: =AC42 -> 2017-03-17 | AG40: FALSE | AI40: Use Futures | AM40: Position: | AO40: Long | AR40: Qty: | AS40: 0 | BG40: Long
D41: =LEFT(RTD("cqg.rtd", ,"ContractData","C."&Display1!U2&Display1!U3&"", "LongDescription",, "T"),21) -> E-Mini S&P 500 Option | I41: =LEFT(RTD("cqg.rtd", ,"ContractData","C."&Display1!U2&Display1!V3&"", "LongDescription",, "T"),21) -> E-Mini S&P 500 Option | N41: =LEFT(RTD("cqg.rtd", ,"ContractData","C."&Display1!U2&Display1!W3&"", "LongDescription",, "T"),21) -> E-Mini S&P 500 Option | S41: =LEFT(RTD("cqg.rtd", ,"ContractData","C."&Display1!U2&Display1!X3&"", "LongDescription",, "T"),21) -> E-Mini S&P 500 Option | X41: =LEFT(RTD("cqg.rtd", ,"ContractData","C."&Display1!U2&Display1!Y3&"", "LongDescription",, "T"),21) -> E-Mini S&P 500 Option | AC41: =LEFT(RTD("cqg.rtd", ,"ContractData","C."&Display1!U2&Display1!Z3&"", "LongDescription",, "T"),21) -> E-Mini S&P 500 Option | AI41: Exp | AJ41: DTE | AK41: DELTA | AM41: VEGA | AO41: GAMMA | AR41: THETA | AT41: Futures | AU41: Exp | AX41: DTE | AY41: Position | BB41: Qty | BC41: Open Trade Eqty | BG41: Short
D42: =RTD("cqg.rtd", ,"ContractData", "C."&Display1!U2&Display1!U3&"", "ExpirationDate",, "T") -> 2016-04-15 | F42: DTE: | G42: =RTD("cqg.rtd", ,"ContractData","C."&Display1!U2&Display1!U3&"", "OptionDaysToExp",, "T") -> 10 | I42: =RTD("cqg.rtd", ,"ContractData","C."&Display1!U2&Display1!V3&"", "ExpirationDate",, "T") -> 2016-05-20 | K42: DTE: | L42: =RTD("cqg.rtd", ,"ContractData","C."&Display1!U2&Display1!V3&"", "OptionDaysToExp",, "T") -> 45 | N42: =RTD("cqg.rtd", ,"ContractData","C."&Display1!U2&Display1!W3&"", "ExpirationDate",, "T") -> 2016-06-17 | P42: DTE: | Q42: =RTD("cqg.rtd", ,"ContractData","C."&Display1!U2&Display1!W3&"", "OptionDaysToExp",, "T") -> 73 | S42: =RTD("cqg.rtd", ,"ContractData","C."&Display1!U2&Display1!X3&"", "ExpirationDate",, "T") -> 2016-09-16 | U42: DTE: | V42: =RTD("cqg.rtd", ,"ContractData","C."&Display1!U2&Display1!X3&"", "OptionDaysToExp",, "T") -> 164 | X42: =RTD("cqg.rtd", ,"ContractData","C."&Display1!U2&Display1!Y3&"", "ExpirationDate",, "T") -> 2016-12-16 | Z42: DTE: | AA42: =RTD("cqg.rtd", ,"ContractData","C."&Display1!U2&Display1!Y3&"", "OptionDaysToExp",, "T") -> 255 | AC42: =RTD("cqg.rtd", ,"ContractData","C."&Display1!U2&Display1!Z3&"", "ExpirationDate",, "T") -> 2017-03-17 | AE42: DTE: | AF42: =RTD("cqg.rtd", ,"ContractData","C."&Display1!U2&Display1!Z3&"", "OptionDaysToExp",, "T") -> 346 | AI42: EW1 | AJ42: =G16 -> 31 | AK42: =IFERROR(IF('First (2)'!AC50=0,"",'First (2)'!AC50)*Display1!Y41,"") ->  | AM42: =IFERROR(IF('First (2)'!AE50=0,"",'First (2)'!AE50),"") ->  | AO42: =IFERROR(IF('First (2)'!AG50=0,"",'First (2)'!AG50)*Display1!AA41,"") ->  | AR42: =IFERROR(IF('First (2)'!AI50=0,"",'First (2)'!AI50),"") ->  | AU42: =RIGHT(First!B2726,5) -> EPM16 | AX42: =RTD("cqg.rtd", ,"ContractData",First!B2726, "ExpirationDate",, "T")-TODAY() -> 73 | AY42: =IF(BB42=0,"",IF(BB42>0,"Long","Short")) -> Long | BB42: =First!C2726 -> At least one of <account> and <FCMAccountId> parameters should be specified | BC42: =First!F2726 -> At least one of <account> and <FCMAccountId> parameters should be specified
D43: ='First (13)'!Z19 ->  | E43: ='First (13)'!V19 ->  | F43: ='First (13)'!AA19 ->  | G43: =IFERROR(ABS(D43)+ABS(F43),"") ->  | I43: ='First (14)'!Z19 ->  | J43: ='First (14)'!V19 ->  | K43: ='First (14)'!AA19 ->  | L43: =IFERROR(ABS(I43)+ABS(K43),"") ->  | N43: ='First (15)'!Z19 ->  | O43: ='First (15)'!V19 ->  | P43: ='First (15)'!AA19 ->  | Q43: =IFERROR(ABS(N43)+ABS(P43),"") ->  | S43: ='First (16)'!Z19 ->  | T43: ='First (16)'!V19 ->  | U43: ='First (16)'!AA19 ->  | V43: =IFERROR(ABS(S43)+ABS(U43),"") ->  | X43: ='First (17)'!Z19 ->  | Y43: ='First (17)'!V19 ->  | Z43: ='First (17)'!AA19 ->  | AA43: =IFERROR(ABS(X43)+ABS(Z43),"") ->  | AC43: ='First (18)'!Z19 ->  | AD43: ='First (18)'!V19 ->  | AE43: ='First (18)'!AA19 ->  | AF43: =IFERROR(ABS(AC43)+ABS(AE43),"") ->  | AH43: Front Month | AI43: EW2 | AJ43: =L16 -> 3 | AK43: =IFERROR(IF('First (3)'!AC50=0,"",'First (3)'!AC50)*Display1!Y41,"") ->  | AM43: =IFERROR(IF('First (3)'!AE50=0,"",'First (3)'!AE50),"") ->  | AO43: =IFERROR(IF('First (3)'!AG50=0,"",'First (3)'!AG50)*Display1!AA41,"") ->  | AR43: =IFERROR(IF('First (3)'!AI50=0,"",'First (3)'!AI50),"") ->  | AU43: =RIGHT(First!B2727,5) -> EPU16 | AX43: =RTD("cqg.rtd", ,"ContractData",First!B2727, "ExpirationDate",, "T")-TODAY() -> 164 | AY43: =IF(BB43=0,"",IF(BB43>0,"Long","Short")) -> Long | BB43: =First!C2727 -> At least one of <account> and <FCMAccountId> parameters should be specified | BC43: =First!F2727 -> At least one of <account> and <FCMAccountId> parameters should be specified
D44: ='First (13)'!Z20 ->  | E44: ='First (13)'!V20 ->  | F44: ='First (13)'!AA20 ->  | I44: ='First (14)'!Z20 ->  | J44: ='First (14)'!V20 ->  | K44: ='First (14)'!AA20 ->  | N44: ='First (15)'!Z20 ->  | O44: ='First (15)'!V20 ->  | P44: ='First (15)'!AA20 ->  | S44: ='First (16)'!Z20 ->  | T44: ='First (16)'!V20 ->  | U44: ='First (16)'!AA20 ->  | X44: ='First (17)'!Z20 ->  | Y44: ='First (17)'!V20 ->  | Z44: ='First (17)'!AA20 ->  | AC44: ='First (18)'!Z20 ->  | AD44: ='First (18)'!V20 ->  | AE44: ='First (18)'!AA20 ->  | AI44: EW3 | AJ44: =Q16 -> 101 | AK44: =IFERROR(IF('First (4)'!AC50=0,"",'First (4)'!AC50)*Display1!Y41,"") ->  | AM44: =IFERROR(IF('First (4)'!AE50=0,"",'First (4)'!AE50),"") ->  | AO44: =IFERROR(IF('First (4)'!AG50=0,"",'First (4)'!AG50)*Display1!AA41,"") ->  | AR44: =IFERROR(IF('First (4)'!AI50=0,"",'First (4)'!AI50),"") ->  | AU44: =RIGHT(First!B2728,5) -> EPZ16 | AX44: =RTD("cqg.rtd", ,"ContractData",First!B2728, "ExpirationDate",, "T")-TODAY() -> 255 | AY44: =IF(BB44=0,"",IF(BB44>0,"Long","Short")) -> Long | BB44: =First!C2728 -> At least one of <account> and <FCMAccountId> parameters should be specified | BC44: =First!F2728 -> At least one of <account> and <FCMAccountId> parameters should be specified
D45: ='First (13)'!Z21 ->  | E45: ='First (13)'!V21 ->  | F45: ='First (13)'!AA21 ->  | I45: ='First (14)'!Z21 ->  | J45: ='First (14)'!V21 ->  | K45: ='First (14)'!AA21 ->  | N45: ='First (15)'!Z21 ->  | O45: ='First (15)'!V21 ->  | P45: ='First (15)'!AA21 ->  | S45: ='First (16)'!Z21 ->  | T45: ='First (16)'!V21 ->  | U45: ='First (16)'!AA21 ->  | X45: ='First (17)'!Z21 ->  | Y45: ='First (17)'!V21 ->  | Z45: ='First (17)'!AA21 ->  | AC45: ='First (18)'!Z21 ->  | AD45: ='First (18)'!V21 ->  | AE45: ='First (18)'!AA21 ->  | AG45: FALSE | AI45: EW4 | AJ45: =V16 -> 17 | AK45: =IFERROR(IF('First (5)'!AC50=0,"",'First (5)'!AC50)*Display1!Y41,"") ->  | AM45: =IFERROR(IF('First (5)'!AE50=0,"",'First (5)'!AE50),"") ->  | AO45: =IFERROR(IF('First (5)'!AG50=0,"",'First (5)'!AG50)*Display1!AA41,"") ->  | AR45: =IFERROR(IF('First (5)'!AI50=0,"",'First (5)'!AI50),"") ->  | AU45: Use Futures | AY45: Position: | BA45: Short | BD45: Qty: | BE45: 0
D46: ='First (13)'!Z22 ->  | E46: ='First (13)'!V22 ->  | F46: ='First (13)'!AA22 ->  | I46: ='First (14)'!Z22 ->  | J46: ='First (14)'!V22 ->  | K46: ='First (14)'!AA22 ->  | N46: ='First (15)'!Z22 ->  | O46: ='First (15)'!V22 ->  | P46: ='First (15)'!AA22 ->  | S46: ='First (16)'!Z22 ->  | T46: ='First (16)'!V22 ->  | U46: ='First (16)'!AA22 ->  | X46: ='First (17)'!Z22 ->  | Y46: ='First (17)'!V22 ->  | Z46: ='First (17)'!AA22 ->  | AC46: ='First (18)'!Z22 ->  | AD46: ='First (18)'!V22 ->  | AE46: ='First (18)'!AA22 ->  | AI46: EW | AJ46: =AF16 -> 24 | AK46: =IFERROR(IF('First (7)'!AC50=0,"",'First (7)'!AC50)*Display1!Y41,"") ->  | AM46: =IFERROR(IF('First (7)'!AE50=0,"",'First (7)'!AE50),"") ->  | AO46: =IFERROR(IF('First (7)'!AG50=0,"",'First (7)'!AG50)*Display1!AA41,"") ->  | AR46: =IFERROR(IF('First (7)'!AI50=0,"",'First (7)'!AI50),"") ->  | AT46: Fourth Month | AU46: Exp | AV46: DTE | AX46: DELTA | AY46: VEGA | BB46: GAMMA | BD46: THETA
D47: ='First (13)'!Z23 ->  | E47: ='First (13)'!V23 ->  | F47: ='First (13)'!AA23 ->  | I47: ='First (14)'!Z23 ->  | J47: ='First (14)'!V23 ->  | K47: ='First (14)'!AA23 ->  | N47: ='First (15)'!Z23 ->  | O47: ='First (15)'!V23 ->  | P47: ='First (15)'!AA23 ->  | S47: ='First (16)'!Z23 ->  | T47: ='First (16)'!V23 ->  | U47: ='First (16)'!AA23 ->  | X47: ='First (17)'!Z23 ->  | Y47: ='First (17)'!V23 ->  | Z47: ='First (17)'!AA23 ->  | AC47: ='First (18)'!Z23 ->  | AD47: ='First (18)'!V23 ->  | AE47: ='First (18)'!AA23 ->  | AI47: EP | AJ47: =G42 -> 10 | AK47: =IFERROR(IF('First (13)'!AC50=0,"",'First (13)'!AC50)*Display1!Y41,"") ->  | AM47: =IFERROR(IF('First (13)'!AE50=0,"",'First (13)'!AE50),"") ->  | AO47: =IFERROR(IF('First (13)'!AG50=0,"",'First (13)'!AG50)*Display1!AA41,"") ->  | AR47: =IFERROR(IF('First (13)'!AI50=0,"",'First (13)'!AI50),"") ->  | AU47: EW | AV47: =AU16 -> 115 | AX47: =IFERROR(IF('First (10)'!AC50=0,"",'First (10)'!AC50)*Display1!Y41,"") ->  | AY47: =IFERROR(IF('First (10)'!AE50=0,"",'First (10)'!AE50),"") ->  | BB47: =IFERROR(IF('First (10)'!AG50=0,"",'First (10)'!AG50)*Display1!AA41,"") ->  | BD47: =IFERROR(IF('First (10)'!AI50=0,"",'First (10)'!AI50),"") -> 
D48: ='First (13)'!Z24 ->  | E48: ='First (13)'!V24 ->  | F48: ='First (13)'!AA24 ->  | I48: ='First (14)'!Z24 ->  | J48: ='First (14)'!V24 ->  | K48: ='First (14)'!AA24 ->  | N48: ='First (15)'!Z24 ->  | O48: ='First (15)'!V24 ->  | P48: ='First (15)'!AA24 ->  | S48: ='First (16)'!Z24 ->  | T48: ='First (16)'!V24 ->  | U48: ='First (16)'!AA24 ->  | X48: ='First (17)'!Z24 ->  | Y48: ='First (17)'!V24 ->  | Z48: ='First (17)'!AA24 ->  | AC48: ='First (18)'!Z24 ->  | AD48: ='First (18)'!V24 ->  | AE48: ='First (18)'!AA24 ->  | AI48: Total | AJ48: =IF(AG40=TRUE,IF(AO40=" Long",(AS40*100)+SUM(AK42:AL47),(-AS40*100)+SUM(AK42:AL47)),SUM(AK42:AL47)) -> 0 | AM48: =SUM(AM42:AN47) -> 0 | AO48: =SUM(AO42:AP47) -> 0 | AR48: =SUM(AR42:AS47) -> 0 | AU48: EP | AV48: =V42 -> 164 | AX48: =IFERROR(IF('First (16)'!AC50=0,"",'First (16)'!AC50)*Display1!Y41,"") ->  | AY48: =IFERROR(IF('First (16)'!AE50=0,"",'First (16)'!AE50),"") ->  | BB48: =IFERROR(IF('First (16)'!AG50=0,"",'First (16)'!AG50)*Display1!AA41,"") ->  | BD48: =IFERROR(IF('First (16)'!AI50=0,"",'First (16)'!AI50),"") -> 
D49: ='First (13)'!Z25 ->  | E49: ='First (13)'!V25 ->  | F49: ='First (13)'!AA25 ->  | I49: ='First (14)'!Z25 ->  | J49: ='First (14)'!V25 ->  | K49: ='First (14)'!AA25 ->  | N49: ='First (15)'!Z25 ->  | O49: ='First (15)'!V25 ->  | P49: ='First (15)'!AA25 ->  | S49: ='First (16)'!Z25 ->  | T49: ='First (16)'!V25 ->  | U49: ='First (16)'!AA25 ->  | X49: ='First (17)'!Z25 ->  | Y49: ='First (17)'!V25 ->  | Z49: ='First (17)'!AA25 ->  | AC49: ='First (18)'!Z25 ->  | AD49: ='First (18)'!V25 ->  | AE49: ='First (18)'!AA25 ->  | AG49: FALSE | AI49: Use Futures | AM49: Position: | AO49: Long | AR49: Qty: | AS49: 0 | AU49: Total | AV49: =IF(AG45=TRUE,IF(BA45=" Long",(BE45*100)+SUM(AX47:AX48),(-BE45*100)+SUM(AX47:AX48)),SUM(AX47:AX48)) -> 0 | AY49: =IF(SUM(AY47:AZ48)=0,"",SUM(AY47:AZ48)) ->  | BB49: =IF(SUM(BA47:BC48)=0,"",SUM(BA47:BC48)) ->  | BD49: =IF(SUM(BD47:BE48)=0,"",SUM(BD47:BE48)) -> 
D50: ='First (13)'!Z26 ->  | E50: ='First (13)'!V26 ->  | F50: ='First (13)'!AA26 ->  | I50: ='First (14)'!Z26 ->  | J50: ='First (14)'!V26 ->  | K50: ='First (14)'!AA26 ->  | N50: ='First (15)'!Z26 ->  | O50: ='First (15)'!V26 ->  | P50: ='First (15)'!AA26 ->  | S50: ='First (16)'!Z26 ->  | T50: ='First (16)'!V26 ->  | U50: ='First (16)'!AA26 ->  | X50: ='First (17)'!Z26 ->  | Y50: ='First (17)'!V26 ->  | Z50: ='First (17)'!AA26 ->  | AC50: ='First (18)'!Z26 ->  | AD50: ='First (18)'!V26 ->  | AE50: ='First (18)'!AA26 ->  | AG50: FALSE | AH50: Second Month | AI50: Exp | AJ50: DTE | AK50: DELTA | AM50: VEGA | AO50: GAMMA | AQ50: THETA | AU50: Use Futures | AY50: Position: | BA50: Short | BD50: Qty: | BE50: 0
D51: ='First (13)'!Z27 ->  | E51: ='First (13)'!V27 ->  | F51: ='First (13)'!AA27 ->  | I51: ='First (14)'!Z27 ->  | J51: ='First (14)'!V27 ->  | K51: ='First (14)'!AA27 ->  | N51: ='First (15)'!Z27 ->  | O51: ='First (15)'!V27 ->  | P51: ='First (15)'!AA27 ->  | S51: ='First (16)'!Z27 ->  | T51: ='First (16)'!V27 ->  | U51: ='First (16)'!AA27 ->  | X51: ='First (17)'!Z27 ->  | Y51: ='First (17)'!V27 ->  | Z51: ='First (17)'!AA27 ->  | AC51: ='First (18)'!Z27 ->  | AD51: ='First (18)'!V27 ->  | AE51: ='First (18)'!AA27 ->  | AI51: EW4 | AJ51: =AA16 -> 52 | AK51: =IFERROR(IF('First (6)'!AC50=0,"",'First (6)'!AC50)*Display1!Y41,"") ->  | AM51: =IFERROR(IF('First (6)'!AE50=0,"",'First (6)'!AE50),"") ->  | AO51: =IFERROR(IF('First (6)'!AG50=0,"",'First (6)'!AG50)*Display1!AA41,"") ->  | AQ51: =IFERROR(IF('First (6)'!AI50=0,"",'First (6)'!AI50),"") ->  | AT51: Fifth Month | AU51: Exp | AV51: DTE | AX51: DELTA | AY51: VEGA | BB51: GAMMA | BD51: THETA
D52: ='First (13)'!Z28 ->  | E52: ='First (13)'!V28 ->  | F52: ='First (13)'!AA28 ->  | I52: ='First (14)'!Z28 ->  | J52: ='First (14)'!V28 ->  | K52: ='First (14)'!AA28 ->  | N52: ='First (15)'!Z28 ->  | O52: ='First (15)'!V28 ->  | P52: ='First (15)'!AA28 ->  | S52: ='First (16)'!Z28 ->  | T52: ='First (16)'!V28 ->  | U52: ='First (16)'!AA28 ->  | X52: ='First (17)'!Z28 ->  | Y52: ='First (17)'!V28 ->  | Z52: ='First (17)'!AA28 ->  | AC52: ='First (18)'!Z28 ->  | AD52: ='First (18)'!V28 ->  | AE52: ='First (18)'!AA28 ->  | AI52: EW | AJ52: =AK16 -> 56 | AK52: =IFERROR(IF('First (8)'!AC50=0,"",'First (8)'!AC50)*Display1!Y41,"") ->  | AM52: =IFERROR(IF('First (8)'!AE50=0,"",'First (8)'!AE50),"") ->  | AO52: =IFERROR(IF('First (8)'!AG50=0,"",'First (8)'!AG50)*Display1!AA41,"") ->  | AQ52: =IFERROR(IF('First (8)'!AI50=0,"",'First (8)'!AI50),"") ->  | AU52: EW | AV52: =AZ16 -> 148 | AX52: =IFERROR(IF('First (11)'!AC50=0,"",'First (11)'!AC50)*Display1!Y41,"") ->  | AY52: =IFERROR(IF('First (11)'!AE50=0,"",'First (11)'!AE50),"") ->  | BB52: =IFERROR(IF('First (11)'!AG50=0,"",'First (11)'!AG50)*Display1!AA41,"") ->  | BD52: =IFERROR(IF('First (11)'!AI50=0,"",'First (11)'!AI50),"") -> 
D53: ='First (13)'!Z29 -> Specified Account or FcmAccountId is inconsistent with current login to gateway | E53: ='First (13)'!V29 -> 20400 | F53: ='First (13)'!AA29 -> Specified Account or FcmAccountId is inconsistent with current login to gateway | G53: =IFERROR(ABS(D53)+ABS(F53),"") ->  | I53: ='First (14)'!Z29 -> Specified Account or FcmAccountId is inconsistent with current login to gateway | J53: ='First (14)'!V29 -> 20400 | K53: ='First (14)'!AA29 -> Specified Account or FcmAccountId is inconsistent with current login to gateway | L53: =IFERROR(ABS(I53)+ABS(K53),"") ->  | N53: ='First (15)'!Z29 -> Specified Account or FcmAccountId is inconsistent with current login to gateway | O53: ='First (15)'!V29 -> 20400 | P53: ='First (15)'!AA29 -> Specified Account or FcmAccountId is inconsistent with current login to gateway | Q53: =IFERROR(ABS(N53)+ABS(P53),"") ->  | S53: ='First (16)'!Z29 -> Specified Account or FcmAccountId is inconsistent with current login to gateway | T53: ='First (16)'!V29 -> 20350 | U53: ='First (16)'!AA29 -> Specified Account or FcmAccountId is inconsistent with current login to gateway | V53: =IFERROR(ABS(S53)+ABS(U53),"") ->  | X53: ='First (17)'!Z29 -> Specified Account or FcmAccountId is inconsistent with current login to gateway | Y53: ='First (17)'!V29 -> 20250 | Z53: ='First (17)'!AA29 -> Specified Account or FcmAccountId is inconsistent with current login to gateway | AA53: =IFERROR(ABS(X53)+ABS(Z53),"") ->  | AC53: ='First (18)'!Z29 -> Specified Account or FcmAccountId is inconsistent with current login to gateway | AD53: ='First (18)'!V29 -> 20150 | AE53: ='First (18)'!AA29 -> Specified Account or FcmAccountId is inconsistent with current login to gateway | AF53: =IFERROR(ABS(AC53)+ABS(AE53),"") ->  | AI53: EP | AJ53: =L42 -> 45 | AK53: =IFERROR(IF('First (14)'!AC50=0,"",'First (14)'!AC50)*Display1!Y41,"") ->  | AM53: =IFERROR(IF('First (14)'!AE50=0,"",'First (14)'!AE50),"") ->  | AO53: =IFERROR(IF('First (14)'!AG50=0,"",'First (14)'!AG50)*Display1!AA41,"") ->  | AQ53: =IFERROR(IF('First (14)'!AI50=0,"",'First (14)'!AI50),"") ->  | AU53: EP | AV53: =AA42 -> 255 | AX53: =IFERROR(IF('First (17)'!AC50=0,"",'First (17)'!AC50)*Display1!Y41,"") ->  | AY53: =IFERROR(IF('First (17)'!AE50=0,"",'First (17)'!AE50),"") ->  | BB53: =IFERROR(IF('First (17)'!AG50=0,"",'First (17)'!AG50)*Display1!AA41,"") ->  | BD53: =IFERROR(IF('First (17)'!AG50=0,"",'First (17)'!AG50*100),"") -> 
D54: ='First (13)'!Z30 ->  | E54: ='First (13)'!V30 ->  | F54: ='First (13)'!AA30 ->  | I54: ='First (14)'!Z30 ->  | J54: ='First (14)'!V30 ->  | K54: ='First (14)'!AA30 ->  | N54: ='First (15)'!Z30 ->  | O54: ='First (15)'!V30 ->  | P54: ='First (15)'!AA30 ->  | S54: ='First (16)'!Z30 ->  | T54: ='First (16)'!V30 ->  | U54: ='First (16)'!AA30 ->  | X54: ='First (17)'!Z30 ->  | Y54: ='First (17)'!V30 ->  | Z54: ='First (17)'!AA30 ->  | AC54: ='First (18)'!Z30 ->  | AD54: ='First (18)'!V30 ->  | AE54: ='First (18)'!AA30 ->  | AI54: Total | AJ54: =IF(AG49=TRUE,IF(AO49=" Long",(AS49*100)+SUM(AK51:AL53),(-AS49*100)+SUM(AK51:AL53)),SUM(AK51:AL53)) -> 0 | AM54: =IF(SUM(AM51:AN53)=0,"",SUM(AM51:AN53)) ->  | AO54: =IF(SUM(AO51:AP53)=0,"",SUM(AO51:AP53)) ->  | AQ54: =IF(SUM(AQ51:AS53)=0,"",SUM(AQ51:AS53)) ->  | AU54: Total | AV54: =IF(AG50=TRUE,IF(BA50=" Long",(BE50*100)+SUM(AX52:AX53),(-BE50*100)+SUM(AX52:AX53)),SUM(AX52:AX53)) -> 0 | AY54: =IF(SUM(AY52:AZ53)=0,"",SUM(AY52:AZ53)) ->  | BB54: =IF(SUM(BB52:BC53)=0,"",SUM(BB52:BC53)) ->  | BD54: =IF(SUM(BD52:BE53)=0,"",SUM(BD52:BE53)) -> 
D55: ='First (13)'!Z31 ->  | E55: ='First (13)'!V31 ->  | F55: ='First (13)'!AA31 ->  | I55: ='First (14)'!Z31 ->  | J55: ='First (14)'!V31 ->  | K55: ='First (14)'!AA31 ->  | N55: ='First (15)'!Z31 ->  | O55: ='First (15)'!V31 ->  | P55: ='First (15)'!AA31 ->  | S55: ='First (16)'!Z31 ->  | T55: ='First (16)'!V31 ->  | U55: ='First (16)'!AA31 ->  | X55: ='First (17)'!Z31 ->  | Y55: ='First (17)'!V31 ->  | Z55: ='First (17)'!AA31 ->  | AC55: ='First (18)'!Z31 ->  | AD55: ='First (18)'!V31 ->  | AE55: ='First (18)'!AA31 ->  | AG55: FALSE | AI55: Use Futures | AM55: Position: | AO55: Long | AR55: Qty: | AS55: 0 | AU55: Use Futures | AY55: Position: | BA55: Short | BD55: Qty: | BE55: 0
D56: ='First (13)'!Z32 ->  | E56: ='First (13)'!V32 ->  | F56: ='First (13)'!AA32 ->  | I56: ='First (14)'!Z32 ->  | J56: ='First (14)'!V32 ->  | K56: ='First (14)'!AA32 ->  | N56: ='First (15)'!Z32 ->  | O56: ='First (15)'!V32 ->  | P56: ='First (15)'!AA32 ->  | S56: ='First (16)'!Z32 ->  | T56: ='First (16)'!V32 ->  | U56: ='First (16)'!AA32 ->  | X56: ='First (17)'!Z32 ->  | Y56: ='First (17)'!V32 ->  | Z56: ='First (17)'!AA32 ->  | AC56: ='First (18)'!Z32 ->  | AD56: ='First (18)'!V32 ->  | AE56: ='First (18)'!AA32 ->  | AG56: FALSE | AH56: Third Month | AI56: Exp | AJ56: DTE | AK56: DELTA | AM56: VEGA | AO56: GAMMA | AQ56: THETA | AT56: Sixth Month | AU56: Exp | AV56: DTE | AX56: DELTA | AY56: VEGA | BB56: GAMMA | BD56: THETA
D57: ='First (13)'!Z33 ->  | E57: ='First (13)'!V33 ->  | F57: ='First (13)'!AA33 ->  | I57: ='First (14)'!Z33 ->  | J57: ='First (14)'!V33 ->  | K57: ='First (14)'!AA33 ->  | N57: ='First (15)'!Z33 ->  | O57: ='First (15)'!V33 ->  | P57: ='First (15)'!AA33 ->  | S57: ='First (16)'!Z33 ->  | T57: ='First (16)'!V33 ->  | U57: ='First (16)'!AA33 ->  | X57: ='First (17)'!Z33 ->  | Y57: ='First (17)'!V33 ->  | Z57: ='First (17)'!AA33 ->  | AC57: ='First (18)'!Z33 ->  | AD57: ='First (18)'!V33 ->  | AE57: ='First (18)'!AA33 ->  | AI57: EW | AJ57: =AP16 -> 86 | AK57: =IFERROR(IF('First (9)'!AC50=0,"",'First (9)'!AC50)*Display1!Y41,"") ->  | AM57: =IFERROR(IF('First (9)'!AE50=0,"",'First (9)'!AE50),"") ->  | AO57: =IFERROR(IF('First (9)'!AG50=0,"",'First (9)'!AG50)*Display1!AA41,"") ->  | AQ57: =IFERROR(IF('First (9)'!AG50=0,"",'First (9)'!AG50*100),"") ->  | AU57: EW | AV57: =BE16 -> 178 | AX57: =IFERROR(IF('First (12)'!AC50=0,"",'First (12)'!AC50),"") ->  | AY57: =IFERROR(IF('First (12)'!AE50=0,"",'First (12)'!AE50),"") ->  | BB57: =IFERROR(IF('First (12)'!AG50=0,"",'First (12)'!AG50)*Display1!AA41,"") ->  | BD57: =IFERROR(IF('First (12)'!AI50=0,"",'First (12)'!AI50),"") -> 
D58: ='First (13)'!Z34 ->  | E58: ='First (13)'!V34 ->  | F58: ='First (13)'!AA34 ->  | I58: ='First (14)'!Z34 ->  | J58: ='First (14)'!V34 ->  | K58: ='First (14)'!AA34 ->  | N58: ='First (15)'!Z34 ->  | O58: ='First (15)'!V34 ->  | P58: ='First (15)'!AA34 ->  | S58: ='First (16)'!Z34 ->  | T58: ='First (16)'!V34 ->  | U58: ='First (16)'!AA34 ->  | X58: ='First (17)'!Z34 ->  | Y58: ='First (17)'!V34 ->  | Z58: ='First (17)'!AA34 ->  | AA58: =IFERROR(ABS(X59)+ABS(Z58),"") ->  | AC58: ='First (18)'!Z34 ->  | AD58: ='First (18)'!V34 ->  | AE58: ='First (18)'!AA34 ->  | AI58: EP | AJ58: =Q42 -> 73 | AK58: =IFERROR(IF('First (15)'!AC50=0,"",'First (15)'!AC50)*Display1!Y41,"") ->  | AM58: =IFERROR(IF('First (15)'!AE50=0,"",'First (15)'!AE50),"") ->  | AO58: =IFERROR(IF('First (15)'!AG50=0,"",'First (15)'!AG50)*Display1!AA41,"") ->  | AQ58: =IFERROR(IF('First (15)'!AG50=0,"",'First (15)'!AG50*100),"") ->  | AU58: EP | AV58: =AF42 -> 346 | AX58: =IFERROR(IF('First (18)'!AC50=0,"",'First (18)'!AC50),"") ->  | AY58: =IFERROR(IF('First (18)'!AE50=0,"",'First (18)'!AE50),"") ->  | BB58: =IFERROR(IF('First (18)'!AG50=0,"",'First (18)'!AG50)*Display1!AA41,"") ->  | BD58: =IFERROR(IF('First (18)'!AI50=0,"",'First (18)'!AI50),"") -> 
D59: ='First (13)'!Z35 ->  | E59: ='First (13)'!V35 ->  | F59: ='First (13)'!AA35 ->  | I59: ='First (14)'!Z35 ->  | J59: ='First (14)'!V35 ->  | K59: ='First (14)'!AA35 ->  | N59: ='First (15)'!Z35 ->  | O59: ='First (15)'!V35 ->  | P59: ='First (15)'!AA35 ->  | S59: ='First (16)'!Z35 ->  | T59: ='First (16)'!V35 ->  | U59: ='First (16)'!AA35 ->  | X59: ='First (17)'!Z35 ->  | Y59: ='First (17)'!V35 ->  | Z59: ='First (17)'!AA35 ->  | AA59: =IFERROR(ABS(#REF!)+ABS(Z59),"") ->  | AC59: ='First (18)'!Z35 ->  | AD59: ='First (18)'!V35 ->  | AE59: ='First (18)'!AA35 ->  | AI59: Total | AJ59: =IF(AG55=TRUE,IF(AO55=" Long",(AS55*100)+SUM(AK57:AL58),(-AS55*100)+SUM(AK57:AL58)),SUM(AK57:AL58)) -> 0 | AM59: =IF(SUM(AM57:AN58)=0,"",SUM(AM57:AN58)) ->  | AO59: =IF(SUM(AO57:AP58)=0,"",SUM(AO57:AP58)) ->  | AQ59: =IF(SUM(AQ57:AS58)=0,"",SUM(AQ57:AS58)) ->  | AU59: Total | AW59: =IF(AG56=TRUE,IF(BA55=" Long",(BE55*100)+SUM(AX57:AX58),(-BE55*100)+SUM(AX57:AX58)),SUM(AX57:AX58)) -> 0 | AY59: =IF(SUM(AY57:AZ58)=0,"",SUM(AY57:AZ58)) ->  | BB59: =IF(SUM(BB57:BC58)=0,"",SUM(BB57:BC58)) ->  | BD59: =IF(SUM(BD57:BE58)=0,"",SUM(BD57:BE58)) -> 
D60: ='First (13)'!Z36 ->  | E60: ='First (13)'!V36 ->  | F60: ='First (13)'!AA36 ->  | I60: ='First (14)'!Z36 ->  | J60: ='First (14)'!V36 ->  | K60: ='First (14)'!AA36 ->  | N60: ='First (15)'!Z36 ->  | O60: ='First (15)'!V36 ->  | P60: ='First (15)'!AA36 ->  | S60: ='First (16)'!Z36 ->  | T60: ='First (16)'!V36 ->  | U60: ='First (16)'!AA36 ->  | X60: ='First (17)'!Z36 ->  | Y60: ='First (17)'!V36 ->  | Z60: ='First (17)'!AA36 ->  | AC60: ='First (18)'!Z36 ->  | AD60: ='First (18)'!V36 ->  | AE60: ='First (18)'!AA36 ->  | AH60: Total Positions Summary
D61: ='First (13)'!Z37 ->  | E61: ='First (13)'!V37 ->  | F61: ='First (13)'!AA37 ->  | I61: ='First (14)'!Z37 ->  | J61: ='First (14)'!V37 ->  | K61: ='First (14)'!AA37 ->  | N61: ='First (15)'!Z37 ->  | O61: ='First (15)'!V37 ->  | P61: ='First (15)'!AA37 ->  | S61: ='First (16)'!Z37 ->  | T61: ='First (16)'!V37 ->  | U61: ='First (16)'!AA37 ->  | X61: ='First (17)'!Z37 ->  | Y61: ='First (17)'!V37 ->  | Z61: ='First (17)'!AA37 ->  | AC61: ='First (18)'!Z37 ->  | AD61: ='First (18)'!V37 ->  | AE61: ='First (18)'!AA37 -> 
D62: ='First (13)'!Z38 ->  | E62: ='First (13)'!V38 ->  | F62: ='First (13)'!AA38 ->  | I62: ='First (14)'!Z38 ->  | J62: ='First (14)'!V38 ->  | K62: ='First (14)'!AA38 ->  | N62: ='First (15)'!Z38 ->  | O62: ='First (15)'!V38 ->  | P62: ='First (15)'!AA38 ->  | S62: ='First (16)'!Z38 ->  | T62: ='First (16)'!V38 ->  | U62: ='First (16)'!AA38 ->  | X62: ='First (17)'!Z38 ->  | Y62: ='First (17)'!V38 ->  | Z62: ='First (17)'!AA38 ->  | AC62: ='First (18)'!Z38 ->  | AD62: ='First (18)'!V38 ->  | AE62: ='First (18)'!AA38 ->  | AH62: =IFERROR(Display1!G41,"") ->  | AJ62: =IFERROR(Display1!H41,"") ->  | AM62: OTE: | AO62: =IFERROR(Display1!I41,"") ->  | BB62: =RTD("cqg.rtd", ,"SystemInfo", "Linetime") -> 42465.56626
D63: ='First (13)'!Z39 ->  | E63: ='First (13)'!V39 ->  | F63: ='First (13)'!AA39 ->  | I63: ='First (14)'!Z39 ->  | J63: ='First (14)'!V39 ->  | K63: ='First (14)'!AA39 ->  | N63: ='First (15)'!Z39 ->  | O63: ='First (15)'!V39 ->  | P63: ='First (15)'!AA39 ->  | Q63: =IFERROR(ABS(N63)+ABS(P63),"") ->  | S63: ='First (16)'!Z39 ->  | T63: ='First (16)'!V39 ->  | U63: ='First (16)'!AA39 ->  | X63: ='First (17)'!Z39 ->  | Y63: ='First (17)'!V39 ->  | Z63: ='First (17)'!AA39 ->  | AC63: ='First (18)'!Z39 ->  | AD63: ='First (18)'!V39 ->  | AE63: ='First (18)'!AA39 -> 
D64: Calls | E64: Strike | F64: Puts | I64: Calls | J64: Strike | K64: Puts | N64: Calls | O64: Strike | P64: Puts | S64: Calls | T64: Strike | U64: Puts | X64: Calls | Y64: Strike | Z64: Puts | AC64: Calls | AD64: Strike | AE64: Puts | AH64: VEGA: | AJ64: =IFERROR(U13,"") -> 0 | AN64: DELTA: | AP64: =IFERROR(Z13,"") -> 0 | AT64: GAMMA: | AX64: =IFERROR(AE13,"") -> 0 | AZ64: THETA: | BC64: =IFERROR(AJ13,"") -> 0
D65: =SUMIF(D43:D63,">0")-SUMIF(D43:D63,"<0") -> 0 | F65: =SUMIF(F43:F63,">0")-SUMIF(F43:F63,"<0") -> 0 | I65: =SUMIF(I43:I63,">0")-SUMIF(I43:I63,"<0") -> 0 | K65: =SUMIF(K43:K63,">0")-SUMIF(K43:K63,"<0") -> 0 | N65: =SUMIF(N43:N63,">0")-SUMIF(N43:N63,"<0") -> 0 | P65: =SUMIF(P43:P63,">0")-SUMIF(P43:P63,"<0") -> 0 | S65: =SUMIF(S43:S63,">0")-SUMIF(S43:S63,"<0") -> 0 | U65: =SUMIF(U43:U63,">0")-SUMIF(U43:U63,"<0") -> 0 | X65: =SUMIF(X43:X63,">0")-SUMIF(X43:X63,"<0") -> 0 | Z65: =SUMIF(Z43:Z63,">0")-SUMIF(Z43:Z63,"<0") -> 0 | AC65: =SUMIF(AC43:AC63,">0")-SUMIF(AC43:AC63,"<0") -> 0 | AE65: =SUMIF(AE43:AE63,">0")-SUMIF(AE43:AE63,"<0") -> 0
D66: Copyright © 2016 | I66: Designed by Thom Hartle | AH66: =NOW() -> 2016-04-05T12:35:25.380

Sheet Instructions
B13: The symbols used are displayed along the top and cannot be changed. | L13: OTE can now be set to use yesterday's settlement versus today's theoretical value.
B14: Enter in your account in the top left hand corner.
B15: The Greeks are multiplied by the number of contracts.
B16: You can sort the positions by clicking the Sort buttons. | L16: You can multiply the Delta and Gamma by a value.
B24: The bottom portion of the display details the summary of the positions and the Greeks.
B25: Below the summary is a table estimating the first and second standard deviations of the underlying price at a user input of days to expiration.
B26: The underlying symbols are pulled from the top of the dashboard and use the average volatility for at-the-money option.
B27: If you enter in an underlying symbol with a wildcard, then the average volatility will be the at-the-money option using the same wildcard.
B28: If you enter in an underlying symbol with an expiration month, then the at-the-money option will use the same symbol for the average volatility.
E31: Display 2 | O31: Display 2
E32: Options are grouped by type and expiration. | O32: A summary of Greeks by front month, second month, etc., are avaialable.
E33: The positions are both long and shorts | O33: Choose to include the Deltas of futures outrights in the Deltas, select long or short, and the quantity.
E34: If the DTE is 5 or less then it is highlight in red.
E39: The at-the-money strike is highlighted by the blue box.
E40: It is picked when the dashboard is opened.
E41: The ATM will not change.

Sheet First (2) (hidden)
A1: =IF(ISTEXT(RTD("cqg.rtd",,"OrderData",""&B1&"","","OpenPosition",""&Display1!$D$3&"")),0,IF(RTD("cqg.rtd",,"OrderData",""&B1&"","","OpenPosition",""&Display1!$D$3&"")<>0,1,0)) -> 0 | C1: =IF(LOOKUP(D1,$A$1:$A$80)<>D1,0,1) -> 1 | D1: 1 | E1: =IF(C1=1,VLOOKUP(D1,$A$1:$B$80,2),0) -> C.US.EW1K1620400 | F1: =IFERROR(VLOOKUP($U$1-39,$D$1:$E$80,2,FALSE),0) -> 0 | G1: =IF(LOOKUP(D81,$A$81:$A$161)<>D81,0,1) -> 1 | H1: 1 | I1: =IF(G1=1,VLOOKUP(H1,$A$81:$B$161,2),0) -> P.US.EW1K1620400 | J1: =IFERROR(VLOOKUP($V$1-39,$H$1:$I$80,2,FALSE),0) -> 0 | K1: =IF(E1=0,"",RIGHT(E1,5)*1) -> 20400 | L1: =IF(K1="","",COUNT($K$1:$K$160)-(RANK(K1,$K$1:$K$160)+COUNTIF($K$1:K1,K1)-1)+1) -> 2 | M1: =E1 -> C.US.EW1K1620400 | N1: 1 | O1: =VLOOKUP(N1,$L$1:$M$160,2,FALSE) -> P.US.EW1K1620400 | P1: =IFERROR(RIGHT(O1,5)*1,"") -> 20400 | Q1: =IF(P1="","",IF(P1=P2,1,0)) -> 1 | R1: =IF(Q1=0,P1,P2) -> 20400 | S1: =IF(R1="","",IF(R1=R2,1,0)) -> 0 | T1: =IF(S1=0,R1,R2) -> 20400 | U1: =IFERROR(MATCH(B40,E1:E80,0),0) -> 1 | V1: =MATCH(B121,I1:I80,1) -> 1 | W1: =MATCH(J40,O1:O22,0) -> 1 | X1: =Display1!G2 -> EW1 | Y1: =Display1!G3 -> ?1 | Z1: =Display2!D5 -> 0
A2: =IF(OR(ISTEXT(RTD("cqg.rtd",,"OrderData",""&B2&"","","OpenPosition",""&Display1!$D$3&"")),RTD("cqg.rtd",,"OrderData",""&B2&"","","OpenPosition",""&Display1!$D$3&"")=0),A1+0.0001,INT(A1)+1) -> 0.0001 | C2: =IF(LOOKUP(D2,$A$1:$A$80)<>D2,0,1) -> 0 | D2: =D1+1 -> 2 | E2: =IF(C2=1,VLOOKUP(D2,$A$1:$B$80,2),0) -> 0 | F2: =IFERROR(VLOOKUP($U$1-38,$D$1:$E$80,2,FALSE),0) -> 0 | G2: =IF(LOOKUP(D82,$A$81:$A$161)<>D82,0,1) -> 0 | H2: =H1+1 -> 2 | I2: =IF(G2=1,VLOOKUP(H2,$A$81:$B$161,2),0) -> 0 | J2: =IFERROR(VLOOKUP($V$1-38,$H$1:$I$80,2,FALSE),0) -> 0 | K2: =IF(E2=0,"",RIGHT(E2,5)*1) ->  | L2: =IF(K2="","",COUNT($K$1:$K$160)-(RANK(K2,$K$1:$K$160)+COUNTIF($K$1:K2,K2)-1)+1) ->  | M2: =E2 -> 0 | N2: =N1+1 -> 2 | O2: =VLOOKUP(N2,$L$1:$M$160,2,FALSE) -> C.US.EW1K1620400 | P2: =IFERROR(RIGHT(O2,5)*1,"") -> 20400 | Q2: =IF(P2="","",IF(P2=P3,1,0)) -> 0 | R2: =IF(AND(Q2=0,Q1<>1,P2<>R1),P2,P3) ->  | S2: =IF(R2="","",IF(R2=R3,1,0)) ->  | T2: =IF(AND(S1=0,S1<>1,R2<>T1),R2,R3) ->  | V2: =INDIRECT("R"&W1) -> 20400 | W2: =MATCH(V2,T1:T158) -> 1
A3: =IF(OR(ISTEXT(RTD("cqg.rtd",,"OrderData",""&B3&"","","OpenPosition",""&Display1!$D$3&"")),RTD("cqg.rtd",,"OrderData",""&B3&"","","OpenPosition",""&Display1!$D$3&"")=0),A2+0.0001,INT(A2)+1) -> 0.0002 | C3: 0 | D3: =D2+1 -> 3 | E3: 0 | F3: =IFERROR(VLOOKUP($U$1-37,$D$1:$E$80,2,FALSE),0) -> 0 | G3: 0 | H3: =H2+1 -> 3 | I3: 0 | J3: =IFERROR(VLOOKUP($V$1-37,$H$1:$I$80,2,FALSE),0) -> 0 | L3: =IF(K3="","",COUNT($K$1:$K$160)-(RANK(K3,$K$1:$K$160)+COUNTIF($K$1:K3,K3)-1)+1) ->  | M3: 0 | N3: =N2+1 -> 3 | O3: =VLOOKUP(N3,$L$1:$M$160,2,FALSE) ->  | Q3: =IF(P3="","",IF(P3=P4,1,0)) ->  | R3: =IF(AND(Q3=0,Q2<>1,P3<>R2),P3,P4) ->  | S3: =IF(R3="","",IF(R3=R4,1,0)) ->  | T3: =IF(AND(S2=0,S2<>1,R3<>T2),R3,R4) -> 
A4: =IF(OR(ISTEXT(RTD("cqg.rtd",,"OrderData",""&B4&"","","OpenPosition",""&Display1!$D$3&"")),RTD("cqg.rtd",,"OrderData",""&B4&"","","OpenPosition",""&Display1!$D$3&"")=0),A3+0.0001,INT(A3)+1) -> 0.0003 | C4: 0 | D4: 4 | E4: 0 | F4: =IFERROR(VLOOKUP($U$1-36,$D$1:$E$80,2,FALSE),0) -> 0 | G4: 0 | H4: 4 | I4: 0 | J4: =IFERROR(VLOOKUP($V$1-36,$H$1:$I$80,2,FALSE),0) -> 0 | L4: =IF(K4="","",COUNT($K$1:$K$160)-(RANK(K4,$K$1:$K$160)+COUNTIF($K$1:K4,K4)-1)+1) ->  | M4: =E4 -> 0 | N4: 4
A5: =IF(OR(ISTEXT(RTD("cqg.rtd",,"OrderData",""&B5&"","","OpenPosition",""&Display1!$D$3&"")),RTD("cqg.rtd",,"OrderData",""&B5&"","","OpenPosition",""&Display1!$D$3&"")=0),A4+0.0001,INT(A4)+1) -> 0.0004 | C5: =IF(LOOKUP(D5,$A$1:$A$80)<>D5,0,1) -> 0 | D5: 5 | E5: 0 | F5: =IFERROR(VLOOKUP($U$1-35,$D$1:$E$80,2,FALSE),0) -> 0 | G5: 0 | H5: 5 | I5: 0 | J5: =IFERROR(VLOOKUP($V$1-35,$H$1:$I$80,2,FALSE),0) -> 0 | L5: =IF(K5="","",COUNT($K$1:$K$160)-(RANK(K5,$K$1:$K$160)+COUNTIF($K$1:K5,K5)-1)+1) ->  | M5: 0 | N5: 5 | R5: =IF(AND(Q5=0,Q4<>1,P5<>R4),P5,P6) -> 
A6: =IF(OR(ISTEXT(RTD("cqg.rtd",,"OrderData",""&B6&"","","OpenPosition",""&Display1!$D$3&"")),RTD("cqg.rtd",,"OrderData",""&B6&"","","OpenPosition",""&Display1!$D$3&"")=0),A5+0.0001,INT(A5)+1) -> 0.0005 | C6: 0 | D6: 6 | E6: 0 | F6: =IFERROR(VLOOKUP($U$1-34,$D$1:$E$80,2,FALSE),0) -> 0 | G6: 0 | H6: 6 | I6: 0 | J6: =IFERROR(VLOOKUP($V$1-34,$H$1:$I$80,2,FALSE),0) -> 0 | L6: =IF(K6="","",COUNT($K$1:$K$160)-(RANK(K6,$K$1:$K$160)+COUNTIF($K$1:K6,K6)-1)+1) ->  | M6: 0 | N6: 6 | R6: =IF(AND(Q6=0,Q5<>1,P6<>R5),P6,P7) -> 
A7: =IF(OR(ISTEXT(RTD("cqg.rtd",,"OrderData",""&B7&"","","OpenPosition",""&Display1!$D$3&"")),RTD("cqg.rtd",,"OrderData",""&B7&"","","OpenPosition",""&Display1!$D$3&"")=0),A6+0.0001,INT(A6)+1) -> 0.0006 | C7: 0 | D7: 7 | E7: 0 | F7: =IFERROR(VLOOKUP($U$1-33,$D$1:$E$80,2,FALSE),0) -> 0 | G7: 0 | H7: 7 | I7: 0 | J7: =IFERROR(VLOOKUP($V$1-33,$H$1:$I$80,2,FALSE),0) -> 0 | L7: =IF(K7="","",COUNT($K$1:$K$160)-(RANK(K7,$K$1:$K$160)+COUNTIF($K$1:K7,K7)-1)+1) ->  | M7: 0 | N7: 7
A8: =IF(OR(ISTEXT(RTD("cqg.rtd",,"OrderData",""&B8&"","","OpenPosition",""&Display1!$D$3&"")),RTD("cqg.rtd",,"OrderData",""&B8&"","","OpenPosition",""&Display1!$D$3&"")=0),A7+0.0001,INT(A7)+1) -> 0.0007 | C8: 0 | D8: 8 | E8: 0 | F8: =IFERROR(VLOOKUP($U$1-32,$D$1:$E$80,2,FALSE),0) -> 0 | G8: 0 | H8: 8 | I8: 0 | J8: =IFERROR(VLOOKUP($V$1-32,$H$1:$I$80,2,FALSE),0) -> 0 | L8: =IF(K8="","",COUNT($K$1:$K$160)-(RANK(K8,$K$1:$K$160)+COUNTIF($K$1:K8,K8)-1)+1) ->  | M8: 0 | N8: 8
A9: =IF(OR(ISTEXT(RTD("cqg.rtd",,"OrderData",""&B9&"","","OpenPosition",""&Display1!$D$3&"")),RTD("cqg.rtd",,"OrderData",""&B9&"","","OpenPosition",""&Display1!$D$3&"")=0),A8+0.0001,INT(A8)+1) -> 0.0008 | C9: 0 | D9: 9 | E9: 0 | F9: =IFERROR(VLOOKUP($U$1-31,$D$1:$E$80,2,FALSE),0) -> 0 | G9: 0 | H9: 9 | I9: 0 | J9: =IFERROR(VLOOKUP($V$1-31,$H$1:$I$80,2,FALSE),0) -> 0 | L9: =IF(K9="","",COUNT($K$1:$K$160)-(RANK(K9,$K$1:$K$160)+COUNTIF($K$1:K9,K9)-1)+1) ->  | M9: 0 | N9: 9 | T9: =IF(AND(S8=0,S8<>1,R9<>T8),R9,R10) ->  | AB9: =R9 -> 
A10: =IF(OR(ISTEXT(RTD("cqg.rtd",,"OrderData",""&B10&"","","OpenPosition",""&Display1!$D$3&"")),RTD("cqg.rtd",,"OrderData",""&B10&"","","OpenPosition",""&Display1!$D$3&"")=0),A9+0.0001,INT(A9)+1) -> 0.0009 | C10: 0 | D10: 10 | E10: 0 | F10: =IFERROR(VLOOKUP($U$1-30,$D$1:$E$80,2,FALSE),0) -> 0 | G10: 0 | H10: 10 | I10: 0 | J10: =IFERROR(VLOOKUP($V$1-30,$H$1:$I$80,2,FALSE),0) -> 0 | L10: =IF(K10="","",COUNT($K$1:$K$160)-(RANK(K10,$K$1:$K$160)+COUNTIF($K$1:K10,K10)-1)+1) ->  | M10: 0 | N10: 10 | V10: =IFERROR(INDIRECT("T"&$W$29-19),"") ->  | X10: =IF(V10="","",LEFT(RTD("cqg.rtd", ,"ContractData","C.US."&$X$1&$Y$1, "Symbol",, "T"),11)&V10) ->  | Y10: =IF(V10="","",LEFT(RTD("cqg.rtd", ,"ContractData","P.US."&$X$1&$Y$1, "Symbol",, "T"),11)&V10) ->  | Z10: =IF($V10="","",RTD("cqg.rtd",,"OrderData",""&$X10&"","","OpenPosition",""&$Z$1&"")) ->  | AA10: =IF($V10="","",RTD("cqg.rtd",,"OrderData",""&$Y10&"","","OpenPosition",""&$Z$1&"")) ->  | AC10: =IF(V10="","",RTD("cqg.rtd",,"ContractData",X10,"Delta",,"T")*Z10) ->  | AD10: =IF(V10="","",RTD("cqg.rtd",,"ContractData",Y10,"Delta",,"T")*AA10) ->  | AE10: =IF(V10="","",RTD("cqg.rtd",,"ContractData",X10,"Vega",,"T")*Z10) ->  | AF10: =IF(V10="","",RTD("cqg.rtd",,"ContractData",Y10,"Vega",,"T")*AA10) ->  | AG10: =IF(V10="","",RTD("cqg.rtd",,"ContractData",X10,"Gamma",,"T")*Z10) ->  | AH10: =IF(V10="","",RTD("cqg.rtd",,"ContractData",Y10,"Gamma",,"T")*AA10) ->  | AI10: =IF(V10="","",RTD("cqg.rtd",,"ContractData",X10,"Theta",,"T")*ABS(Z10)) ->  | AJ10: =IF(V10="","",RTD("cqg.rtd",,"ContractData",Y10,"Theta",,"T")*AA10) -> 
A11: =IF(OR(ISTEXT(RTD("cqg.rtd",,"OrderData",""&B11&"","","OpenPosition",""&Display1!$D$3&"")),RTD("cqg.rtd",,"OrderData",""&B11&"","","OpenPosition",""&Display1!$D$3&"")=0),A10+0.0001,INT(A10)+1) -> 0.001 | C11: 0 | D11: 11 | E11: 0 | F11: =IFERROR(VLOOKUP($U$1-29,$D$1:$E$80,2,FALSE),0) -> 0 | G11: 0 | H11: 11 | I11: 0 | J11: =IFERROR(VLOOKUP($V$1-29,$H$1:$I$80,2,FALSE),0) -> 0 | L11: =IF(K11="","",COUNT($K$1:$K$160)-(RANK(K11,$K$1:$K$160)+COUNTIF($K$1:K11,K11)-1)+1) ->  | M11: 0 | N11: 11 | U11: =IF(R11="","",IF(R11=R12,1,0)) ->  | V11: =IFERROR(INDIRECT("T"&$W$29-18),"") ->  | X11: =IF(V11="","",LEFT(RTD("cqg.rtd", ,"ContractData","C.US."&$X$1&$Y$1, "Symbol",, "T"),11)&V11) ->  | Y11: =IF(V11="","",LEFT(RTD("cqg.rtd", ,"ContractData","P.US."&$X$1&$Y$1, "Symbol",, "T"),11)&V11) ->  | Z11: =IF($V11="","",RTD("cqg.rtd",,"OrderData",""&$X11&"","","OpenPosition",""&$Z$1&"")) ->  | AA11: =IF($V11="","",RTD("cqg.rtd",,"OrderData",""&$Y11&"","","OpenPosition",""&$Z$1&"")) ->  | AC11: =IF(V11="","",RTD("cqg.rtd",,"ContractData",X11,"Delta",,"T")*Z11) ->  | AD11: =IF(V11="","",RTD("cqg.rtd",,"ContractData",Y11,"Delta",,"T")*AA11) ->  | AE11: =IF(V11="","",RTD("cqg.rtd",,"ContractData",X11,"Vega",,"T")*Z11) ->  | AF11: =IF(V11="","",RTD("cqg.rtd",,"ContractData",Y11,"Vega",,"T")*AA11) ->  | AG11: =IF(V11="","",RTD("cqg.rtd",,"ContractData",X11,"Gamma",,"T")*Z11) ->  | AH11: =IF(V11="","",RTD("cqg.rtd",,"ContractData",Y11,"Gamma",,"T")*AA11) ->  | AI11: =IF(V11="","",RTD("cqg.rtd",,"ContractData",X11,"Theta",,"T")*ABS(Z11)) ->  | AJ11: =IF(V11="","",RTD("cqg.rtd",,"ContractData",Y11,"Theta",,"T")*AA11) -> 
A12: =IF(OR(ISTEXT(RTD("cqg.rtd",,"OrderData",""&B12&"","","OpenPosition",""&Display1!$D$3&"")),RTD("cqg.rtd",,"OrderData",""&B12&"","","OpenPosition",""&Display1!$D$3&"")=0),A11+0.0001,INT(A11)+1) -> 0.0011 | C12: 0 | D12: 12 | E12: 0 | F12: =IFERROR(VLOOKUP($U$1-28,$D$1:$E$80,2,FALSE),0) -> 0 | G12: 0 | H12: 12 | I12: 0 | J12: =IFERROR(VLOOKUP($V$1-28,$H$1:$I$80,2,FALSE),0) -> 0 | L12: =IF(K12="","",COUNT($K$1:$K$160)-(RANK(K12,$K$1:$K$160)+COUNTIF($K$1:K12,K12)-1)+1) ->  | M12: 0 | N12: 12 | Q12: =IF(P12="","",IF(P12=P11,1,0)) ->  | V12: =IFERROR(INDIRECT("T"&$W$29-17),"") ->  | X12: =IF(V12="","",LEFT(RTD("cqg.rtd", ,"ContractData","C.US."&$X$1&$Y$1, "Symbol",, "T"),11)&V12) ->  | Y12: =IF(V12="","",LEFT(RTD("cqg.rtd", ,"ContractData","P.US."&$X$1&$Y$1, "Symbol",, "T"),11)&V12) ->  | Z12: =IF($V12="","",RTD("cqg.rtd",,"OrderData",""&$X12&"","","OpenPosition",""&$Z$1&"")) ->  | AA12: =IF($V12="","",RTD("cqg.rtd",,"OrderData",""&$Y12&"","","OpenPosition",""&$Z$1&"")) ->  | AC12: =IF(V12="","",RTD("cqg.rtd",,"ContractData",X12,"Delta",,"T")*Z12) ->  | AD12: =IF(V12="","",RTD("cqg.rtd",,"ContractData",Y12,"Delta",,"T")*AA12) ->  | AE12: =IF(V12="","",RTD("cqg.rtd",,"ContractData",X12,"Vega",,"T")*Z12) ->  | AF12: =IF(V12="","",RTD("cqg.rtd",,"ContractData",Y12,"Vega",,"T")*AA12) ->  | AG12: =IF(V12="","",RTD("cqg.rtd",,"ContractData",X12,"Gamma",,"T")*Z12) ->  | AH12: =IF(V12="","",RTD("cqg.rtd",,"ContractData",Y12,"Gamma",,"T")*AA12) ->  | AI12: =IF(V12="","",RTD("cqg.rtd",,"ContractData",X12,"Theta",,"T")*ABS(Z12)) ->  | AJ12: =IF(V12="","",RTD("cqg.rtd",,"ContractData",Y12,"Theta",,"T")*AA12) -> 
A13: =IF(OR(ISTEXT(RTD("cqg.rtd",,"OrderData",""&B13&"","","OpenPosition",""&Display1!$D$3&"")),RTD("cqg.rtd",,"OrderData",""&B13&"","","OpenPosition",""&Display1!$D$3&"")=0),A12+0.0001,INT(A12)+1) -> 0.0012 | C13: 0 | D13: 13 | E13: 0 | F13: =IFERROR(VLOOKUP($U$1-27,$D$1:$E$80,2,FALSE),0) -> 0 | G13: 0 | H13: 13 | I13: 0 | J13: =IFERROR(VLOOKUP($V$1-27,$H$1:$I$80,2,FALSE),0) -> 0 | L13: =IF(K13="","",COUNT($K$1:$K$160)-(RANK(K13,$K$1:$K$160)+COUNTIF($K$1:K13,K13)-1)+1) ->  | M13: 0 | N13: 13 | R13: =IF(AND(Q13=0,Q12<>1,P13<>R12),P13,P15) ->  | V13: =IFERROR(INDIRECT("T"&$W$29-16),"") ->  | X13: =IF(V13="","",LEFT(RTD("cqg.rtd", ,"ContractData","C.US."&$X$1&$Y$1, "Symbol",, "T"),11)&V13) ->  | Y13: =IF(V13="","",LEFT(RTD("cqg.rtd", ,"ContractData","P.US."&$X$1&$Y$1, "Symbol",, "T"),11)&V13) ->  | Z13: =IF($V13="","",RTD("cqg.rtd",,"OrderData",""&$X13&"","","OpenPosition",""&$Z$1&"")) ->  | AA13: =IF($V13="","",RTD("cqg.rtd",,"OrderData",""&$Y13&"","","OpenPosition",""&$Z$1&"")) ->  | AC13: =IF(V13="","",RTD("cqg.rtd",,"ContractData",X13,"Delta",,"T")*Z13) ->  | AD13: =IF(V13="","",RTD("cqg.rtd",,"ContractData",Y13,"Delta",,"T")*AA13) ->  | AE13: =IF(V13="","",RTD("cqg.rtd",,"ContractData",X13,"Vega",,"T")*Z13) ->  | AF13: =IF(V13="","",RTD("cqg.rtd",,"ContractData",Y13,"Vega",,"T")*AA13) ->  | AG13: =IF(V13="","",RTD("cqg.rtd",,"ContractData",X13,"Gamma",,"T")*Z13) ->  | AH13: =IF(V13="","",RTD("cqg.rtd",,"ContractData",Y13,"Gamma",,"T")*AA13) ->  | AI13: =IF(V13="","",RTD("cqg.rtd",,"ContractData",X13,"Theta",,"T")*ABS(Z13)) ->  | AJ13: =IF(V13="","",RTD("cqg.rtd",,"ContractData",Y13,"Theta",,"T")*AA13) -> 
A14: =IF(OR(ISTEXT(RTD("cqg.rtd",,"OrderData",""&B14&"","","OpenPosition",""&Display1!$D$3&"")),RTD("cqg.rtd",,"OrderData",""&B14&"","","OpenPosition",""&Display1!$D$3&"")=0),A13+0.0001,INT(A13)+1) -> 0.0013 | C14: 0 | D14: 14 | E14: 0 | F14: =IFERROR(VLOOKUP($U$1-26,$D$1:$E$80,2,FALSE),0) -> 0 | G14: 0 | H14: 14 | I14: 0 | J14: =IFERROR(VLOOKUP($V$1-26,$H$1:$I$80,2,FALSE),0) -> 0 | L14: =IF(K14="","",COUNT($K$1:$K$160)-(RANK(K14,$K$1:$K$160)+COUNTIF($K$1:K14,K14)-1)+1) ->  | M14: 0 | N14: 14 | V14: =IFERROR(INDIRECT("T"&$W$29-15),"") ->  | X14: =IF(V14="","",LEFT(RTD("cqg.rtd", ,"ContractData","C.US."&$X$1&$Y$1, "Symbol",, "T"),11)&V14) ->  | Y14: =IF(V14="","",LEFT(RTD("cqg.rtd", ,"ContractData","P.US."&$X$1&$Y$1, "Symbol",, "T"),11)&V14) ->  | Z14: =IF($V14="","",RTD("cqg.rtd",,"OrderData",""&$X14&"","","OpenPosition",""&$Z$1&"")) ->  | AA14: =IF($V14="","",RTD("cqg.rtd",,"OrderData",""&$Y14&"","","OpenPosition",""&$Z$1&"")) ->  | AC14: =IF(V14="","",RTD("cqg.rtd",,"ContractData",X14,"Delta",,"T")*Z14) ->  | AD14: =IF(V14="","",RTD("cqg.rtd",,"ContractData",Y14,"Delta",,"T")*AA14) ->  | AE14: =IF(V14="","",RTD("cqg.rtd",,"ContractData",X14,"Vega",,"T")*Z14) ->  | AF14: =IF(V14="","",RTD("cqg.rtd",,"ContractData",Y14,"Vega",,"T")*AA14) ->  | AG14: =IF(V14="","",RTD("cqg.rtd",,"ContractData",X14,"Gamma",,"T")*Z14) ->  | AH14: =IF(V14="","",RTD("cqg.rtd",,"ContractData",Y14,"Gamma",,"T")*AA14) ->  | AI14: =IF(V14="","",RTD("cqg.rtd",,"ContractData",X14,"Theta",,"T")*ABS(Z14)) ->  | AJ14: =IF(V14="","",RTD("cqg.rtd",,"ContractData",Y14,"Theta",,"T")*AA14) -> 
A15: =IF(OR(ISTEXT(RTD("cqg.rtd",,"OrderData",""&B15&"","","OpenPosition",""&Display1!$D$3&"")),RTD("cqg.rtd",,"OrderData",""&B15&"","","OpenPosition",""&Display1!$D$3&"")=0),A14+0.0001,INT(A14)+1) -> 0.0014 | C15: 0 | D15: 15 | E15: 0 | F15: =IFERROR(VLOOKUP($U$1-25,$D$1:$E$80,2,FALSE),0) -> 0 | G15: 0 | H15: 15 | I15: 0 | J15: =IFERROR(VLOOKUP($V$1-25,$H$1:$I$80,2,FALSE),0) -> 0 | L15: =IF(K15="","",COUNT($K$1:$K$160)-(RANK(K15,$K$1:$K$160)+COUNTIF($K$1:K15,K15)-1)+1) ->  | M15: 0 | N15: 15 | V15: =IFERROR(INDIRECT("T"&$W$29-14),"") ->  | X15: =IF(V15="","",LEFT(RTD("cqg.rtd", ,"ContractData","C.US."&$X$1&$Y$1, "Symbol",, "T"),11)&V15) ->  | Y15: =IF(V15="","",LEFT(RTD("cqg.rtd", ,"ContractData","P.US."&$X$1&$Y$1, "Symbol",, "T"),11)&V15) ->  | Z15: =IF($V15="","",RTD("cqg.rtd",,"OrderData",""&$X15&"","","OpenPosition",""&$Z$1&"")) ->  | AA15: =IF($V15="","",RTD("cqg.rtd",,"OrderData",""&$Y15&"","","OpenPosition",""&$Z$1&"")) ->  | AC15: =IF(V15="","",RTD("cqg.rtd",,"ContractData",X15,"Delta",,"T")*Z15) ->  | AD15: =IF(V15="","",RTD("cqg.rtd",,"ContractData",Y15,"Delta",,"T")*AA15) ->  | AE15: =IF(V15="","",RTD("cqg.rtd",,"ContractData",X15,"Vega",,"T")*Z15) ->  | AF15: =IF(V15="","",RTD("cqg.rtd",,"ContractData",Y15,"Vega",,"T")*AA15) ->  | AG15: =IF(V15="","",RTD("cqg.rtd",,"ContractData",X15,"Gamma",,"T")*Z15) ->  | AH15: =IF(V15="","",RTD("cqg.rtd",,"ContractData",Y15,"Gamma",,"T")*AA15) ->  | AI15: =IF(V15="","",RTD("cqg.rtd",,"ContractData",X15,"Theta",,"T")*ABS(Z15)) ->  | AJ15: =IF(V15="","",RTD("cqg.rtd",,"ContractData",Y15,"Theta",,"T")*AA15) -> 
A16: =IF(OR(ISTEXT(RTD("cqg.rtd",,"OrderData",""&B16&"","","OpenPosition",""&Display1!$D$3&"")),RTD("cqg.rtd",,"OrderData",""&B16&"","","OpenPosition",""&Display1!$D$3&"")=0),A15+0.0001,INT(A15)+1) -> 0.0015 | C16: 0 | D16: 16 | E16: 0 | F16: =IFERROR(VLOOKUP($U$1-24,$D$1:$E$80,2,FALSE),0) -> 0 | G16: 0 | H16: 16 | I16: 0 | J16: =IFERROR(VLOOKUP($V$1-24,$H$1:$I$80,2,FALSE),0) -> 0 | L16: =IF(K16="","",COUNT($K$1:$K$160)-(RANK(K16,$K$1:$K$160)+COUNTIF($K$1:K16,K16)-1)+1) ->  | M16: 0 | N16: 16 | V16: =IFERROR(INDIRECT("T"&$W$29-13),"") ->  | X16: =IF(V16="","",LEFT(RTD("cqg.rtd", ,"ContractData","C.US."&$X$1&$Y$1, "Symbol",, "T"),11)&V16) ->  | Y16: =IF(V16="","",LEFT(RTD("cqg.rtd", ,"ContractData","P.US."&$X$1&$Y$1, "Symbol",, "T"),11)&V16) ->  | Z16: =IF($V16="","",RTD("cqg.rtd",,"OrderData",""&$X16&"","","OpenPosition",""&$Z$1&"")) ->  | AA16: =IF($V16="","",RTD("cqg.rtd",,"OrderData",""&$Y16&"","","OpenPosition",""&$Z$1&"")) ->  | AC16: =IF(V16="","",RTD("cqg.rtd",,"ContractData",X16,"Delta",,"T")*Z16) ->  | AD16: =IF(V16="","",RTD("cqg.rtd",,"ContractData",Y16,"Delta",,"T")*AA16) ->  | AE16: =IF(V16="","",RTD("cqg.rtd",,"ContractData",X16,"Vega",,"T")*Z16) ->  | AF16: =IF(V16="","",RTD("cqg.rtd",,"ContractData",Y16,"Vega",,"T")*AA16) ->  | AG16: =IF(V16="","",RTD("cqg.rtd",,"ContractData",X16,"Gamma",,"T")*Z16) ->  | AH16: =IF(V16="","",RTD("cqg.rtd",,"ContractData",Y16,"Gamma",,"T")*AA16) ->  | AI16: =IF(V16="","",RTD("cqg.rtd",,"ContractData",X16,"Theta",,"T")*ABS(Z16)) ->  | AJ16: =IF(V16="","",RTD("cqg.rtd",,"ContractData",Y16,"Theta",,"T")*AA16) -> 
A17: =IF(OR(ISTEXT(RTD("cqg.rtd",,"OrderData",""&B17&"","","OpenPosition",""&Display1!$D$3&"")),RTD("cqg.rtd",,"OrderData",""&B17&"","","OpenPosition",""&Display1!$D$3&"")=0),A16+0.0001,INT(A16)+1) -> 0.0016 | C17: 0 | D17: 17 | E17: 0 | F17: =IFERROR(VLOOKUP($U$1-23,$D$1:$E$80,2,FALSE),0) -> 0 | G17: 0 | H17: 17 | I17: 0 | J17: =IFERROR(VLOOKUP($V$1-23,$H$1:$I$80,2,FALSE),0) -> 0 | L17: =IF(K17="","",COUNT($K$1:$K$160)-(RANK(K17,$K$1:$K$160)+COUNTIF($K$1:K17,K17)-1)+1) ->  | M17: 0 | N17: 17 | R17: =IF(AND(Q17=0,Q16<>1,P17<>R16),P17,P18) ->  | V17: =IFERROR(INDIRECT("T"&$W$29-12),"") ->  | X17: =IF(V17="","",LEFT(RTD("cqg.rtd", ,"ContractData","C.US."&$X$1&$Y$1, "Symbol",, "T"),11)&V17) ->  | Y17: =IF(V17="","",LEFT(RTD("cqg.rtd", ,"ContractData","P.US."&$X$1&$Y$1, "Symbol",, "T"),11)&V17) ->  | Z17: =IF($V17="","",RTD("cqg.rtd",,"OrderData",""&$X17&"","","OpenPosition",""&$Z$1&"")) ->  | AA17: =IF($V17="","",RTD("cqg.rtd",,"OrderData",""&$Y17&"","","OpenPosition",""&$Z$1&"")) ->  | AC17: =IF(V17="","",RTD("cqg.rtd",,"ContractData",X17,"Delta",,"T")*Z17) ->  | AD17: =IF(V17="","",RTD("cqg.rtd",,"ContractData",Y17,"Delta",,"T")*AA17) ->  | AE17: =IF(V17="","",RTD("cqg.rtd",,"ContractData",X17,"Vega",,"T")*Z17) ->  | AF17: =IF(V17="","",RTD("cqg.rtd",,"ContractData",Y17,"Vega",,"T")*AA17) ->  | AG17: =IF(V17="","",RTD("cqg.rtd",,"ContractData",X17,"Gamma",,"T")*Z17) ->  | AH17: =IF(V17="","",RTD("cqg.rtd",,"ContractData",Y17,"Gamma",,"T")*AA17) ->  | AI17: =IF(V17="","",RTD("cqg.rtd",,"ContractData",X17,"Theta",,"T")*ABS(Z17)) ->  | AJ17: =IF(V17="","",RTD("cqg.rtd",,"ContractData",Y17,"Theta",,"T")*AA17) -> 
A18: =IF(OR(ISTEXT(RTD("cqg.rtd",,"OrderData",""&B18&"","","OpenPosition",""&Display1!$D$3&"")),RTD("cqg.rtd",,"OrderData",""&B18&"","","OpenPosition",""&Display1!$D$3&"")=0),A17+0.0001,INT(A17)+1) -> 0.0017 | C18: 0 | D18: 18 | E18: 0 | F18: =IFERROR(VLOOKUP($U$1-22,$D$1:$E$80,2,FALSE),0) -> 0 | G18: 0 | H18: 18 | I18: 0 | J18: =IFERROR(VLOOKUP($V$1-22,$H$1:$I$80,2,FALSE),0) -> 0 | L18: =IF(K18="","",COUNT($K$1:$K$160)-(RANK(K18,$K$1:$K$160)+COUNTIF($K$1:K18,K18)-1)+1) ->  | M18: 0 | N18: 18 | V18: =IFERROR(INDIRECT("T"&$W$29-11),"") ->  | X18: =IF(V18="","",LEFT(RTD("cqg.rtd", ,"ContractData","C.US."&$X$1&$Y$1, "Symbol",, "T"),11)&V18) ->  | Y18: =IF(V18="","",LEFT(RTD("cqg.rtd", ,"ContractData","P.US."&$X$1&$Y$1, "Symbol",, "T"),11)&V18) ->  | Z18: =IF($V18="","",RTD("cqg.rtd",,"OrderData",""&$X18&"","","OpenPosition",""&$Z$1&"")) ->  | AA18: =IF($V18="","",RTD("cqg.rtd",,"OrderData",""&$Y18&"","","OpenPosition",""&$Z$1&"")) ->  | AC18: =IF(V18="","",RTD("cqg.rtd",,"ContractData",X18,"Delta",,"T")*Z18) ->  | AD18: =IF(V18="","",RTD("cqg.rtd",,"ContractData",Y18,"Delta",,"T")*AA18) ->  | AE18: =IF(V18="","",RTD("cqg.rtd",,"ContractData",X18,"Vega",,"T")*Z18) ->  | AF18: =IF(V18="","",RTD("cqg.rtd",,"ContractData",Y18,"Vega",,"T")*AA18) ->  | AG18: =IF(V18="","",RTD("cqg.rtd",,"ContractData",X18,"Gamma",,"T")*Z18) ->  | AH18: =IF(V18="","",RTD("cqg.rtd",,"ContractData",Y18,"Gamma",,"T")*AA18) ->  | AI18: =IF(V18="","",RTD("cqg.rtd",,"ContractData",X18,"Theta",,"T")*ABS(Z18)) ->  | AJ18: =IF(V18="","",RTD("cqg.rtd",,"ContractData",Y18,"Theta",,"T")*AA18) -> 
A19: =IF(OR(ISTEXT(RTD("cqg.rtd",,"OrderData",""&B19&"","","OpenPosition",""&Display1!$D$3&"")),RTD("cqg.rtd",,"OrderData",""&B19&"","","OpenPosition",""&Display1!$D$3&"")=0),A18+0.0001,INT(A18)+1) -> 0.0018 | C19: 0 | D19: 19 | E19: 0 | F19: =IFERROR(VLOOKUP($U$1-21,$D$1:$E$80,2,FALSE),0) -> 0 | G19: 0 | H19: 19 | I19: 0 | J19: =IFERROR(VLOOKUP($V$1-21,$H$1:$I$80,2,FALSE),0) -> 0 | L19: =IF(K19="","",COUNT($K$1:$K$160)-(RANK(K19,$K$1:$K$160)+COUNTIF($K$1:K19,K19)-1)+1) ->  | M19: 0 | N19: 19 | V19: =IFERROR(INDIRECT("T"&$W$29-10),"") ->  | X19: =IF(V19="","",LEFT(RTD("cqg.rtd", ,"ContractData","C.US."&$X$1&$Y$1, "Symbol",, "T"),11)&V19) ->  | Y19: =IF(V19="","",LEFT(RTD("cqg.rtd", ,"ContractData","P.US."&$X$1&$Y$1, "Symbol",, "T"),11)&V19) ->  | Z19: =IF($V19="","",RTD("cqg.rtd",,"OrderData",""&$X19&"","","OpenPosition",""&$Z$1&"")) ->  | AA19: =IF($V19="","",RTD("cqg.rtd",,"OrderData",""&$Y19&"","","OpenPosition",""&$Z$1&"")) ->  | AC19: =IF(V19="","",RTD("cqg.rtd",,"ContractData",X19,"Delta",,"T")*Z19) ->  | AD19: =IF(V19="","",RTD("cqg.rtd",,"ContractData",Y19,"Delta",,"T")*AA19) ->  | AE19: =IF(V19="","",RTD("cqg.rtd",,"ContractData",X19,"Vega",,"T")*Z19) ->  | AF19: =IF(V19="","",RTD("cqg.rtd",,"ContractData",Y19,"Vega",,"T")*AA19) ->  | AG19: =IF(V19="","",RTD("cqg.rtd",,"ContractData",X19,"Gamma",,"T")*Z19) ->  | AH19: =IF(V19="","",RTD("cqg.rtd",,"ContractData",Y19,"Gamma",,"T")*AA19) ->  | AI19: =IF(V19="","",RTD("cqg.rtd",,"ContractData",X19,"Theta",,"T")*ABS(Z19)) ->  | AJ19: =IF(V19="","",RTD("cqg.rtd",,"ContractData",Y19,"Theta",,"T")*AA19) -> 
A20: =IF(OR(ISTEXT(RTD("cqg.rtd",,"OrderData",""&B20&"","","OpenPosition",""&Display1!$D$3&"")),RTD("cqg.rtd",,"OrderData",""&B20&"","","OpenPosition",""&Display1!$D$3&"")=0),A19+0.0001,INT(A19)+1) -> 0.0019 | B20: =(LEFT(B21,SEARCH(Display1!$G$2,B21)+LEN(Display1!$G$2)+2))&RIGHT(B21,LEN(B21)-(SEARCH(Display1!$G$2,B21)+LEN(Display1!$G$2)+2))-Display1!$F$5 -> C.US.EW1K1619400 | C20: 0 | D20: 20 | E20: 0 | F20: =IFERROR(VLOOKUP($U$1-20,$D$1:$E$80,2,FALSE),0) -> 0 | G20: 0 | H20: 20 | I20: 0 | J20: =IFERROR(VLOOKUP($V$1-20,$H$1:$I$80,2,FALSE),0) -> 0 | L20: =IF(K20="","",COUNT($K$1:$K$160)-(RANK(K20,$K$1:$K$160)+COUNTIF($K$1:K20,K20)-1)+1) ->  | M20: 0 | N20: 20 | V20: =IFERROR(INDIRECT("T"&$W$29-9),"") ->  | X20: =IF(V20="","",LEFT(RTD("cqg.rtd", ,"ContractData","C.US."&$X$1&$Y$1, "Symbol",, "T"),11)&V20) ->  | Y20: =IF(V20="","",LEFT(RTD("cqg.rtd", ,"ContractData","P.US."&$X$1&$Y$1, "Symbol",, "T"),11)&V20) ->  | Z20: =IF($V20="","",RTD("cqg.rtd",,"OrderData",""&$X20&"","","OpenPosition",""&$Z$1&"")) ->  | AA20: =IF($V20="","",RTD("cqg.rtd",,"OrderData",""&$Y20&"","","OpenPosition",""&$Z$1&"")) ->  | AC20: =IF(V20="","",RTD("cqg.rtd",,"ContractData",X20,"Delta",,"T")*Z20) ->  | AD20: =IF(V20="","",RTD("cqg.rtd",,"ContractData",Y20,"Delta",,"T")*AA20) ->  | AE20: =IF(V20="","",RTD("cqg.rtd",,"ContractData",X20,"Vega",,"T")*Z20) ->  | AF20: =IF(V20="","",RTD("cqg.rtd",,"ContractData",Y20,"Vega",,"T")*AA20) ->  | AG20: =IF(V20="","",RTD("cqg.rtd",,"ContractData",X20,"Gamma",,"T")*Z20) ->  | AH20: =IF(V20="","",RTD("cqg.rtd",,"ContractData",Y20,"Gamma",,"T")*AA20) ->  | AI20: =IF(V20="","",RTD("cqg.rtd",,"ContractData",X20,"Theta",,"T")*ABS(Z20)) ->  | AJ20: =IF(V20="","",RTD("cqg.rtd",,"ContractData",Y20,"Theta",,"T")*AA20) -> 
A21: =IF(OR(ISTEXT(RTD("cqg.rtd",,"OrderData",""&B21&"","","OpenPosition",""&Display1!$D$3&"")),RTD("cqg.rtd",,"OrderData",""&B21&"","","OpenPosition",""&Display1!$D$3&"")=0),A20+0.0001,INT(A20)+1) -> 0.002 | B21: =(LEFT(B22,SEARCH(Display1!$G$2,B22)+LEN(Display1!$G$2)+2))&RIGHT(B22,LEN(B22)-(SEARCH(Display1!$G$2,B22)+LEN(Display1!$G$2)+2))-Display1!$F$5 -> C.US.EW1K1619450 | C21: 0 | D21: 21 | E21: 0 | F21: =IFERROR(VLOOKUP($U$1-19,$D$1:$E$80,2,FALSE),0) -> 0 | G21: 0 | H21: 21 | I21: 0 | J21: =IFERROR(VLOOKUP($V$1-19,$H$1:$I$80,2,FALSE),0) -> 0 | L21: =IF(K21="","",COUNT($K$1:$K$160)-(RANK(K21,$K$1:$K$160)+COUNTIF($K$1:K21,K21)-1)+1) ->  | M21: 0 | N21: 21 | V21: =IFERROR(INDIRECT("T"&$W$29-8),"") ->  | X21: =IF(V21="","",LEFT(RTD("cqg.rtd", ,"ContractData","C.US."&$X$1&$Y$1, "Symbol",, "T"),11)&V21) ->  | Y21: =IF(V21="","",LEFT(RTD("cqg.rtd", ,"ContractData","P.US."&$X$1&$Y$1, "Symbol",, "T"),11)&V21) ->  | Z21: =IF($V21="","",RTD("cqg.rtd",,"OrderData",""&$X21&"","","OpenPosition",""&$Z$1&"")) ->  | AA21: =IF($V21="","",RTD("cqg.rtd",,"OrderData",""&$Y21&"","","OpenPosition",""&$Z$1&"")) ->  | AC21: =IF(V21="","",RTD("cqg.rtd",,"ContractData",X21,"Delta",,"T")*Z21) ->  | AD21: =IF(V21="","",RTD("cqg.rtd",,"ContractData",Y21,"Delta",,"T")*AA21) ->  | AE21: =IF(V21="","",RTD("cqg.rtd",,"ContractData",X21,"Vega",,"T")*Z21) ->  | AF21: =IF(V21="","",RTD("cqg.rtd",,"ContractData",Y21,"Vega",,"T")*AA21) ->  | AG21: =IF(V21="","",RTD("cqg.rtd",,"ContractData",X21,"Gamma",,"T")*Z21) ->  | AH21: =IF(V21="","",RTD("cqg.rtd",,"ContractData",Y21,"Gamma",,"T")*AA21) ->  | AI21: =IF(V21="","",RTD("cqg.rtd",,"ContractData",X21,"Theta",,"T")*ABS(Z21)) ->  | AJ21: =IF(V21="","",RTD("cqg.rtd",,"ContractData",Y21,"Theta",,"T")*AA21) -> 
A22: =IF(OR(ISTEXT(RTD("cqg.rtd",,"OrderData",""&B22&"","","OpenPosition",""&Display1!$D$3&"")),RTD("cqg.rtd",,"OrderData",""&B22&"","","OpenPosition",""&Display1!$D$3&"")=0),A21+0.0001,INT(A21)+1) -> 0.0021 | B22: =(LEFT(B23,SEARCH(Display1!$G$2,B23)+LEN(Display1!$G$2)+2))&RIGHT(B23,LEN(B23)-(SEARCH(Display1!$G$2,B23)+LEN(Display1!$G$2)+2))-Display1!$F$5 -> C.US.EW1K1619500 | C22: 0 | D22: 22 | E22: 0 | F22: =IFERROR(VLOOKUP($U$1-18,$D$1:$E$80,2,FALSE),0) -> 0 | G22: 0 | H22: 22 | I22: 0 | J22: =IFERROR(VLOOKUP($V$1-18,$H$1:$I$80,2,FALSE),0) -> 0 | L22: =IF(K22="","",COUNT($K$1:$K$160)-(RANK(K22,$K$1:$K$160)+COUNTIF($K$1:K22,K22)-1)+1) ->  | M22: 0 | N22: 22 | V22: =IFERROR(INDIRECT("T"&$W$29-7),"") ->  | X22: =IF(V22="","",LEFT(RTD("cqg.rtd", ,"ContractData","C.US."&$X$1&$Y$1, "Symbol",, "T"),11)&V22) ->  | Y22: =IF(V22="","",LEFT(RTD("cqg.rtd", ,"ContractData","P.US."&$X$1&$Y$1, "Symbol",, "T"),11)&V22) ->  | Z22: =IF($V22="","",RTD("cqg.rtd",,"OrderData",""&$X22&"","","OpenPosition",""&$Z$1&"")) ->  | AA22: =IF($V22="","",RTD("cqg.rtd",,"OrderData",""&$Y22&"","","OpenPosition",""&$Z$1&"")) ->  | AC22: =IF(V22="","",RTD("cqg.rtd",,"ContractData",X22,"Delta",,"T")*Z22) ->  | AD22: =IF(V22="","",RTD("cqg.rtd",,"ContractData",Y22,"Delta",,"T")*AA22) ->  | AE22: =IF(V22="","",RTD("cqg.rtd",,"ContractData",X22,"Vega",,"T")*Z22) ->  | AF22: =IF(V22="","",RTD("cqg.rtd",,"ContractData",Y22,"Vega",,"T")*AA22) ->  | AG22: =IF(V22="","",RTD("cqg.rtd",,"ContractData",X22,"Gamma",,"T")*Z22) ->  | AH22: =IF(V22="","",RTD("cqg.rtd",,"ContractData",Y22,"Gamma",,"T")*AA22) ->  | AI22: =IF(V22="","",RTD("cqg.rtd",,"ContractData",X22,"Theta",,"T")*ABS(Z22)) ->  | AJ22: =IF(V22="","",RTD("cqg.rtd",,"ContractData",Y22,"Theta",,"T")*AA22) -> 
A23: =IF(OR(ISTEXT(RTD("cqg.rtd",,"OrderData",""&B23&"","","OpenPosition",""&Display1!$D$3&"")),RTD("cqg.rtd",,"OrderData",""&B23&"","","OpenPosition",""&Display1!$D$3&"")=0),A22+0.0001,INT(A22)+1) -> 0.0022 | B23: =(LEFT(B24,SEARCH(Display1!$G$2,B24)+LEN(Display1!$G$2)+2))&RIGHT(B24,LEN(B24)-(SEARCH(Display1!$G$2,B24)+LEN(Display1!$G$2)+2))-Display1!$F$5 -> C.US.EW1K1619550 | C23: 0 | D23: 23 | E23: 0 | F23: =IFERROR(VLOOKUP($U$1-17,$D$1:$E$80,2,FALSE),0) -> 0 | G23: 0 | H23: 23 | I23: 0 | J23: =IFERROR(VLOOKUP($V$1-17,$H$1:$I$80,2,FALSE),0) -> 0 | L23: =IF(K23="","",COUNT($K$1:$K$160)-(RANK(K23,$K$1:$K$160)+COUNTIF($K$1:K23,K23)-1)+1) ->  | M23: 0 | N23: 23 | V23: =IFERROR(INDIRECT("T"&$W$29-6),"") ->  | X23: =IF(V23="","",LEFT(RTD("cqg.rtd", ,"ContractData","C.US."&$X$1&$Y$1, "Symbol",, "T"),11)&V23) ->  | Y23: =IF(V23="","",LEFT(RTD("cqg.rtd", ,"ContractData","P.US."&$X$1&$Y$1, "Symbol",, "T"),11)&V23) ->  | Z23: =IF($V23="","",RTD("cqg.rtd",,"OrderData",""&$X23&"","","OpenPosition",""&$Z$1&"")) ->  | AA23: =IF($V23="","",RTD("cqg.rtd",,"OrderData",""&$Y23&"","","OpenPosition",""&$Z$1&"")) ->  | AC23: =IF(V23="","",RTD("cqg.rtd",,"ContractData",X23,"Delta",,"T")*Z23) ->  | AD23: =IF(V23="","",RTD("cqg.rtd",,"ContractData",Y23,"Delta",,"T")*AA23) ->  | AE23: =IF(V23="","",RTD("cqg.rtd",,"ContractData",X23,"Vega",,"T")*Z23) ->  | AF23: =IF(V23="","",RTD("cqg.rtd",,"ContractData",Y23,"Vega",,"T")*AA23) ->  | AG23: =IF(V23="","",RTD("cqg.rtd",,"ContractData",X23,"Gamma",,"T")*Z23) ->  | AH23: =IF(V23="","",RTD("cqg.rtd",,"ContractData",Y23,"Gamma",,"T")*AA23) ->  | AI23: =IF(V23="","",RTD("cqg.rtd",,"ContractData",X23,"Theta",,"T")*ABS(Z23)) ->  | AJ23: =IF(V23="","",RTD("cqg.rtd",,"ContractData",Y23,"Theta",,"T")*AA23) -> 
A24: =IF(OR(ISTEXT(RTD("cqg.rtd",,"OrderData",""&B24&"","","OpenPosition",""&Display1!$D$3&"")),RTD("cqg.rtd",,"OrderData",""&B24&"","","OpenPosition",""&Display1!$D$3&"")=0),A23+0.0001,INT(A23)+1) -> 0.0023 | B24: =(LEFT(B25,SEARCH(Display1!$G$2,B25)+LEN(Display1!$G$2)+2))&RIGHT(B25,LEN(B25)-(SEARCH(Display1!$G$2,B25)+LEN(Display1!$G$2)+2))-Display1!$F$5 -> C.US.EW1K1619600 | C24: 0 | D24: 24 | E24: 0 | F24: =IFERROR(VLOOKUP($U$1-16,$D$1:$E$80,2,FALSE),0) -> 0 | G24: 0 | H24: 24 | I24: 0 | J24: =IFERROR(VLOOKUP($V$1-1,$H$16:$I$80,2,FALSE),0) -> 0 | L24: =IF(K24="","",COUNT($K$1:$K$160)-(RANK(K24,$K$1:$K$160)+COUNTIF($K$1:K24,K24)-1)+1) ->  | M24: 0 | N24: 24 | V24: =IFERROR(INDIRECT("T"&$W$29-5),"") ->  | X24: =IF(V24="","",LEFT(RTD("cqg.rtd", ,"ContractData","C.US."&$X$1&$Y$1, "Symbol",, "T"),11)&V24) ->  | Y24: =IF(V24="","",LEFT(RTD("cqg.rtd", ,"ContractData","P.US."&$X$1&$Y$1, "Symbol",, "T"),11)&V24) ->  | Z24: =IF($V24="","",RTD("cqg.rtd",,"OrderData",""&$X24&"","","OpenPosition",""&$Z$1&"")) ->  | AA24: =IF($V24="","",RTD("cqg.rtd",,"OrderData",""&$Y24&"","","OpenPosition",""&$Z$1&"")) ->  | AC24: =IF(V24="","",RTD("cqg.rtd",,"ContractData",X24,"Delta",,"T")*Z24) ->  | AD24: =IF(V24="","",RTD("cqg.rtd",,"ContractData",Y24,"Delta",,"T")*AA24) ->  | AE24: =IF(V24="","",RTD("cqg.rtd",,"ContractData",X24,"Vega",,"T")*Z24) ->  | AF24: =IF(V24="","",RTD("cqg.rtd",,"ContractData",Y24,"Vega",,"T")*AA24) ->  | AG24: =IF(V24="","",RTD("cqg.rtd",,"ContractData",X24,"Gamma",,"T")*Z24) ->  | AH24: =IF(V24="","",RTD("cqg.rtd",,"ContractData",Y24,"Gamma",,"T")*AA24) ->  | AI24: =IF(V24="","",RTD("cqg.rtd",,"ContractData",X24,"Theta",,"T")*ABS(Z24)) ->  | AJ24: =IF(V24="","",RTD("cqg.rtd",,"ContractData",Y24,"Theta",,"T")*AA24) -> 
A25: =IF(OR(ISTEXT(RTD("cqg.rtd",,"OrderData",""&B25&"","","OpenPosition",""&Display1!$D$3&"")),RTD("cqg.rtd",,"OrderData",""&B25&"","","OpenPosition",""&Display1!$D$3&"")=0),A24+0.0001,INT(A24)+1) -> 0.0024 | B25: =(LEFT(B26,SEARCH(Display1!$G$2,B26)+LEN(Display1!$G$2)+2))&RIGHT(B26,LEN(B26)-(SEARCH(Display1!$G$2,B26)+LEN(Display1!$G$2)+2))-Display1!$F$5 -> C.US.EW1K1619650 | C25: 0 | D25: 25 | E25: 0 | F25: =IFERROR(VLOOKUP($U$1-15,$D$1:$E$80,2,FALSE),0) -> 0 | G25: 0 | H25: 25 | I25: 0 | J25: =IFERROR(VLOOKUP($V$1-15,$H$1:$I$80,2,FALSE),0) -> 0 | L25: =IF(K25="","",COUNT($K$1:$K$160)-(RANK(K25,$K$1:$K$160)+COUNTIF($K$1:K25,K25)-1)+1) ->  | M25: 0 | N25: 25 | V25: =IFERROR(INDIRECT("T"&$W$29-4),"") ->  | X25: =IF(V25="","",LEFT(RTD("cqg.rtd", ,"ContractData","C.US."&$X$1&$Y$1, "Symbol",, "T"),11)&V25) ->  | Y25: =IF(V25="","",LEFT(RTD("cqg.rtd", ,"ContractData","P.US."&$X$1&$Y$1, "Symbol",, "T"),11)&V25) ->  | Z25: =IF($V25="","",RTD("cqg.rtd",,"OrderData",""&$X25&"","","OpenPosition",""&$Z$1&"")) ->  | AA25: =IF($V25="","",RTD("cqg.rtd",,"OrderData",""&$Y25&"","","OpenPosition",""&$Z$1&"")) ->  | AC25: =IF(V25="","",RTD("cqg.rtd",,"ContractData",X25,"Delta",,"T")*Z25) ->  | AD25: =IF(V25="","",RTD("cqg.rtd",,"ContractData",Y25,"Delta",,"T")*AA25) ->  | AE25: =IF(V25="","",RTD("cqg.rtd",,"ContractData",X25,"Vega",,"T")*Z25) ->  | AF25: =IF(V25="","",RTD("cqg.rtd",,"ContractData",Y25,"Vega",,"T")*AA25) ->  | AG25: =IF(V25="","",RTD("cqg.rtd",,"ContractData",X25,"Gamma",,"T")*Z25) ->  | AH25: =IF(V25="","",RTD("cqg.rtd",,"ContractData",Y25,"Gamma",,"T")*AA25) ->  | AI25: =IF(V25="","",RTD("cqg.rtd",,"ContractData",X25,"Theta",,"T")*ABS(Z25)) ->  | AJ25: =IF(V25="","",RTD("cqg.rtd",,"ContractData",Y25,"Theta",,"T")*AA25) -> 
A26: =IF(OR(ISTEXT(RTD("cqg.rtd",,"OrderData",""&B26&"","","OpenPosition",""&Display1!$D$3&"")),RTD("cqg.rtd",,"OrderData",""&B26&"","","OpenPosition",""&Display1!$D$3&"")=0),A25+0.0001,INT(A25)+1) -> 0.0025 | B26: =(LEFT(B27,SEARCH(Display1!$G$2,B27)+LEN(Display1!$G$2)+2))&RIGHT(B27,LEN(B27)-(SEARCH(Display1!$G$2,B27)+LEN(Display1!$G$2)+2))-Display1!$F$5 -> C.US.EW1K1619700 | C26: 0 | D26: 26 | E26: 0 | F26: =IFERROR(VLOOKUP($U$1-14,$D$1:$E$80,2,FALSE),0) -> 0 | G26: 0 | H26: 26 | I26: 0 | J26: =IFERROR(VLOOKUP($V$1-14,$H$1:$I$80,2,FALSE),0) -> 0 | L26: =IF(K26="","",COUNT($K$1:$K$160)-(RANK(K26,$K$1:$K$160)+COUNTIF($K$1:K26,K26)-1)+1) ->  | M26: 0 | N26: 26 | V26: =IFERROR(INDIRECT("T"&$W$29-3),"") ->  | X26: =IF(V26="","",LEFT(RTD("cqg.rtd", ,"ContractData","C.US."&$X$1&$Y$1, "Symbol",, "T"),11)&V26) ->  | Y26: =IF(V26="","",LEFT(RTD("cqg.rtd", ,"ContractData","P.US."&$X$1&$Y$1, "Symbol",, "T"),11)&V26) ->  | Z26: =IF($V26="","",RTD("cqg.rtd",,"OrderData",""&$X26&"","","OpenPosition",""&$Z$1&"")) ->  | AA26: =IF($V26="","",RTD("cqg.rtd",,"OrderData",""&$Y26&"","","OpenPosition",""&$Z$1&"")) ->  | AC26: =IF(V26="","",RTD("cqg.rtd",,"ContractData",X26,"Delta",,"T")*Z26) ->  | AD26: =IF(V26="","",RTD("cqg.rtd",,"ContractData",Y26,"Delta",,"T")*AA26) ->  | AE26: =IF(V26="","",RTD("cqg.rtd",,"ContractData",X26,"Vega",,"T")*Z26) ->  | AF26: =IF(V26="","",RTD("cqg.rtd",,"ContractData",Y26,"Vega",,"T")*AA26) ->  | AG26: =IF(V26="","",RTD("cqg.rtd",,"ContractData",X26,"Gamma",,"T")*Z26) ->  | AH26: =IF(V26="","",RTD("cqg.rtd",,"ContractData",Y26,"Gamma",,"T")*AA26) ->  | AI26: =IF(V26="","",RTD("cqg.rtd",,"ContractData",X26,"Theta",,"T")*ABS(Z26)) ->  | AJ26: =IF(V26="","",RTD("cqg.rtd",,"ContractData",Y26,"Theta",,"T")*AA26) -> 
A27: =IF(OR(ISTEXT(RTD("cqg.rtd",,"OrderData",""&B27&"","","OpenPosition",""&Display1!$D$3&"")),RTD("cqg.rtd",,"OrderData",""&B27&"","","OpenPosition",""&Display1!$D$3&"")=0),A26+0.0001,INT(A26)+1) -> 0.0026 | B27: =(LEFT(B28,SEARCH(Display1!$G$2,B28)+LEN(Display1!$G$2)+2))&RIGHT(B28,LEN(B28)-(SEARCH(Display1!$G$2,B28)+LEN(Display1!$G$2)+2))-Display1!$F$5 -> C.US.EW1K1619750 | C27: 0 | D27: 27 | E27: 0 | F27: =IFERROR(VLOOKUP($U$1-13,$D$1:$E$80,2,FALSE),0) -> 0 | G27: 0 | H27: 27 | I27: 0 | J27: =IFERROR(VLOOKUP($V$1-1,$H$13:$I$80,2,FALSE),0) -> 0 | L27: =IF(K27="","",COUNT($K$1:$K$160)-(RANK(K27,$K$1:$K$160)+COUNTIF($K$1:K27,K27)-1)+1) ->  | M27: 0 | N27: 27 | V27: =IFERROR(INDIRECT("T"&$W$29-2),"") ->  | X27: =IF(V27="","",LEFT(RTD("cqg.rtd", ,"ContractData","C.US."&$X$1&$Y$1, "Symbol",, "T"),11)&V27) ->  | Y27: =IF(V27="","",LEFT(RTD("cqg.rtd", ,"ContractData","P.US."&$X$1&$Y$1, "Symbol",, "T"),11)&V27) ->  | Z27: =IF($V27="","",RTD("cqg.rtd",,"OrderData",""&$X27&"","","OpenPosition",""&$Z$1&"")) ->  | AA27: =IF($V27="","",RTD("cqg.rtd",,"OrderData",""&$Y27&"","","OpenPosition",""&$Z$1&"")) ->  | AC27: =IF(V27="","",RTD("cqg.rtd",,"ContractData",X27,"Delta",,"T")*Z27) ->  | AD27: =IF(V27="","",RTD("cqg.rtd",,"ContractData",Y27,"Delta",,"T")*AA27) ->  | AE27: =IF(V27="","",RTD("cqg.rtd",,"ContractData",X27,"Vega",,"T")*Z27) ->  | AF27: =IF(V27="","",RTD("cqg.rtd",,"ContractData",Y27,"Vega",,"T")*AA27) ->  | AG27: =IF(V27="","",RTD("cqg.rtd",,"ContractData",X27,"Gamma",,"T")*Z27) ->  | AH27: =IF(V27="","",RTD("cqg.rtd",,"ContractData",Y27,"Gamma",,"T")*AA27) ->  | AI27: =IF(V27="","",RTD("cqg.rtd",,"ContractData",X27,"Theta",,"T")*ABS(Z27)) ->  | AJ27: =IF(V27="","",RTD("cqg.rtd",,"ContractData",Y27,"Theta",,"T")*AA27) -> 
A28: =IF(OR(ISTEXT(RTD("cqg.rtd",,"OrderData",""&B28&"","","OpenPosition",""&Display1!$D$3&"")),RTD("cqg.rtd",,"OrderData",""&B28&"","","OpenPosition",""&Display1!$D$3&"")=0),A27+0.0001,INT(A27)+1) -> 0.0027 | B28: =(LEFT(B29,SEARCH(Display1!$G$2,B29)+LEN(Display1!$G$2)+2))&RIGHT(B29,LEN(B29)-(SEARCH(Display1!$G$2,B29)+LEN(Display1!$G$2)+2))-Display1!$F$5 -> C.US.EW1K1619800 | C28: 0 | D28: 28 | E28: 0 | F28: =IFERROR(VLOOKUP($U$1-12,$D$1:$E$80,2,FALSE),0) -> 0 | G28: 0 | H28: 28 | I28: 0 | J28: =IFERROR(VLOOKUP($V$1-12,$H$1:$I$80,2,FALSE),0) -> 0 | L28: =IF(K28="","",COUNT($K$1:$K$160)-(RANK(K28,$K$1:$K$160)+COUNTIF($K$1:K28,K28)-1)+1) ->  | M28: 0 | N28: 28 | V28: =IFERROR(INDIRECT("T"&$W$29-1),"") ->  | X28: =IF(V28="","",LEFT(RTD("cqg.rtd", ,"ContractData","C.US."&$X$1&$Y$1, "Symbol",, "T"),11)&V28) ->  | Y28: =IF(V28="","",LEFT(RTD("cqg.rtd", ,"ContractData","P.US."&$X$1&$Y$1, "Symbol",, "T"),11)&V28) ->  | Z28: =IF($V28="","",RTD("cqg.rtd",,"OrderData",""&$X28&"","","OpenPosition",""&$Z$1&"")) ->  | AA28: =IF($V28="","",RTD("cqg.rtd",,"OrderData",""&$Y28&"","","OpenPosition",""&$Z$1&"")) ->  | AC28: =IF(V28="","",RTD("cqg.rtd",,"ContractData",X28,"Delta",,"T")*Z28) ->  | AD28: =IF(V28="","",RTD("cqg.rtd",,"ContractData",Y28,"Delta",,"T")*AA28) ->  | AE28: =IF(V28="","",RTD("cqg.rtd",,"ContractData",X28,"Vega",,"T")*Z28) ->  | AF28: =IF(V28="","",RTD("cqg.rtd",,"ContractData",Y28,"Vega",,"T")*AA28) ->  | AG28: =IF(V28="","",RTD("cqg.rtd",,"ContractData",X28,"Gamma",,"T")*Z28) ->  | AH28: =IF(V28="","",RTD("cqg.rtd",,"ContractData",Y28,"Gamma",,"T")*AA28) ->  | AI28: =IF(V28="","",RTD("cqg.rtd",,"ContractData",X28,"Theta",,"T")*ABS(Z28)) ->  | AJ28: =IF(V28="","",RTD("cqg.rtd",,"ContractData",Y28,"Theta",,"T")*AA28) -> 
A29: =IF(OR(ISTEXT(RTD("cqg.rtd",,"OrderData",""&B29&"","","OpenPosition",""&Display1!$D$3&"")),RTD("cqg.rtd",,"OrderData",""&B29&"","","OpenPosition",""&Display1!$D$3&"")=0),A28+0.0001,INT(A28)+1) -> 0.0028 | B29: =(LEFT(B30,SEARCH(Display1!$G$2,B30)+LEN(Display1!$G$2)+2))&RIGHT(B30,LEN(B30)-(SEARCH(Display1!$G$2,B30)+LEN(Display1!$G$2)+2))-Display1!$F$5 -> C.US.EW1K1619850 | C29: 0 | D29: 29 | E29: 0 | F29: =IFERROR(VLOOKUP($U$1-11,$D$1:$E$80,2,FALSE),0) -> 0 | G29: 0 | H29: 29 | I29: 0 | J29: =IFERROR(VLOOKUP($V$1-11,$H$1:$I$80,2,FALSE),0) -> 0 | L29: =IF(K29="","",COUNT($K$1:$K$160)-(RANK(K29,$K$1:$K$160)+COUNTIF($K$1:K29,K29)-1)+1) ->  | M29: 0 | N29: 29 | V29: =INDIRECT("T"&$W$29) -> 20400 | W29: =W2 -> 1 | X29: =IF(V29="","",LEFT(RTD("cqg.rtd", ,"ContractData","C.US."&$X$1&$Y$1, "Symbol",, "T"),11)&V29) -> C.US.EW1K1620400 | Y29: =IF(V29="","",LEFT(RTD("cqg.rtd", ,"ContractData","P.US."&$X$1&$Y$1, "Symbol",, "T"),11)&V29) -> P.US.EW1K1620400 | Z29: =IF($V29="","",RTD("cqg.rtd",,"OrderData",""&$X29&"","","OpenPosition",""&$Z$1&"")) -> Specified Account or FcmAccountId is inconsistent with current login to gateway | AA29: =IF($V29="","",RTD("cqg.rtd",,"OrderData",""&$Y29&"","","OpenPosition",""&$Z$1&"")) -> Specified Account or FcmAccountId is inconsistent with current login to gateway | AC29: =IF(V29="","",RTD("cqg.rtd",,"ContractData",X29,"Delta",,"T")*Z29) ->  | AD29: =IF(V29="","",RTD("cqg.rtd",,"ContractData",Y29,"Delta",,"T")*AA29) ->  | AE29: =IF(V29="","",RTD("cqg.rtd",,"ContractData",X29,"Vega",,"T")*Z29) ->  | AF29: =IF(V29="","",RTD("cqg.rtd",,"ContractData",Y29,"Vega",,"T")*AA29) ->  | AG29: =IF(V29="","",RTD("cqg.rtd",,"ContractData",X29,"Gamma",,"T")*Z29) ->  | AH29: =IF(V29="","",RTD("cqg.rtd",,"ContractData",Y29,"Gamma",,"T")*AA29) ->  | AI29: =IF(V29="","",RTD("cqg.rtd",,"ContractData",X29,"Theta",,"T")*ABS(Z29)) ->  | AJ29: =IF(V29="","",RTD("cqg.rtd",,"ContractData",Y29,"Theta",,"T")*AA29) -> 
A30: =IF(OR(ISTEXT(RTD("cqg.rtd",,"OrderData",""&B30&"","","OpenPosition",""&Display1!$D$3&"")),RTD("cqg.rtd",,"OrderData",""&B30&"","","OpenPosition",""&Display1!$D$3&"")=0),A29+0.0001,INT(A29)+1) -> 0.0029 | B30: =(LEFT(B31,SEARCH(Display1!$G$2,B31)+LEN(Display1!$G$2)+2))&RIGHT(B31,LEN(B31)-(SEARCH(Display1!$G$2,B31)+LEN(Display1!$G$2)+2))-Display1!$F$5 -> C.US.EW1K1619900 | C30: 0 | D30: 30 | E30: 0 | F30: =IFERROR(VLOOKUP($U$1-10,$D$1:$E$80,2,FALSE),0) -> 0 | G30: 0 | H30: 30 | I30: 0 | J30: =IFERROR(VLOOKUP($V$1-10,$H$1:$I$80,2,FALSE),0) -> 0 | L30: =IF(K30="","",COUNT($K$1:$K$160)-(RANK(K30,$K$1:$K$160)+COUNTIF($K$1:K30,K30)-1)+1) ->  | M30: 0 | N30: 30 | V30: =IFERROR(INDIRECT("T"&$W$29+1),"") ->  | X30: =IF(V30="","",LEFT(RTD("cqg.rtd", ,"ContractData","C.US."&$X$1&$Y$1, "Symbol",, "T"),11)&V30) ->  | Y30: =IF(V30="","",LEFT(RTD("cqg.rtd", ,"ContractData","P.US."&$X$1&$Y$1, "Symbol",, "T"),11)&V30) ->  | Z30: =IF($V30="","",RTD("cqg.rtd",,"OrderData",""&$X30&"","","OpenPosition",""&$Z$1&"")) ->  | AA30: =IF($V30="","",RTD("cqg.rtd",,"OrderData",""&$Y30&"","","OpenPosition",""&$Z$1&"")) ->  | AC30: =IF(V30="","",RTD("cqg.rtd",,"ContractData",X30,"Delta",,"T")*Z30) ->  | AD30: =IF(V30="","",RTD("cqg.rtd",,"ContractData",Y30,"Delta",,"T")*AA30) ->  | AE30: =IF(V30="","",RTD("cqg.rtd",,"ContractData",X30,"Vega",,"T")*Z30) ->  | AF30: =IF(V30="","",RTD("cqg.rtd",,"ContractData",Y30,"Vega",,"T")*AA30) ->  | AG30: =IF(V30="","",RTD("cqg.rtd",,"ContractData",X30,"Gamma",,"T")*Z30) ->  | AH30: =IF(V30="","",RTD("cqg.rtd",,"ContractData",Y30,"Gamma",,"T")*AA30) ->  | AI30: =IF(V30="","",RTD("cqg.rtd",,"ContractData",X30,"Theta",,"T")*ABS(Z30)) ->  | AJ30: =IF(V30="","",RTD("cqg.rtd",,"ContractData",Y30,"Theta",,"T")*AA30) -> 
A31: =IF(OR(ISTEXT(RTD("cqg.rtd",,"OrderData",""&B31&"","","OpenPosition",""&Display1!$D$3&"")),RTD("cqg.rtd",,"OrderData",""&B31&"","","OpenPosition",""&Display1!$D$3&"")=0),A30+0.0001,INT(A30)+1) -> 0.003 | B31: =(LEFT(B32,SEARCH(Display1!$G$2,B32)+LEN(Display1!$G$2)+2))&RIGHT(B32,LEN(B32)-(SEARCH(Display1!$G$2,B32)+LEN(Display1!$G$2)+2))-Display1!$F$5 -> C.US.EW1K1619950 | C31: 0 | D31: 31 | E31: 0 | F31: =IFERROR(VLOOKUP($U$1-9,$D$1:$E$80,2,FALSE),0) -> 0 | G31: 0 | H31: 31 | I31: 0 | J31: =IFERROR(VLOOKUP($V$1-9,$H$1:$I$80,2,FALSE),0) -> 0 | L31: =IF(K31="","",COUNT($K$1:$K$160)-(RANK(K31,$K$1:$K$160)+COUNTIF($K$1:K31,K31)-1)+1) ->  | M31: 0 | N31: 31 | V31: =IFERROR(INDIRECT("T"&$W$29+2),"") ->  | X31: =IF(V31="","",LEFT(RTD("cqg.rtd", ,"ContractData","C.US."&$X$1&$Y$1, "Symbol",, "T"),11)&V31) ->  | Y31: =IF(V31="","",LEFT(RTD("cqg.rtd", ,"ContractData","P.US."&$X$1&$Y$1, "Symbol",, "T"),11)&V31) ->  | Z31: =IF($V31="","",RTD("cqg.rtd",,"OrderData",""&$X31&"","","OpenPosition",""&$Z$1&"")) ->  | AA31: =IF($V31="","",RTD("cqg.rtd",,"OrderData",""&$Y31&"","","OpenPosition",""&$Z$1&"")) ->  | AC31: =IF(V31="","",RTD("cqg.rtd",,"ContractData",X31,"Delta",,"T")*Z31) ->  | AD31: =IF(V31="","",RTD("cqg.rtd",,"ContractData",Y31,"Delta",,"T")*AA31) ->  | AE31: =IF(V31="","",RTD("cqg.rtd",,"ContractData",X31,"Vega",,"T")*Z31) ->  | AF31: =IF(V31="","",RTD("cqg.rtd",,"ContractData",Y31,"Vega",,"T")*AA31) ->  | AG31: =IF(V31="","",RTD("cqg.rtd",,"ContractData",X31,"Gamma",,"T")*Z31) ->  | AH31: =IF(V31="","",RTD("cqg.rtd",,"ContractData",Y31,"Gamma",,"T")*AA31) ->  | AI31: =IF(V31="","",RTD("cqg.rtd",,"ContractData",X31,"Theta",,"T")*ABS(Z31)) ->  | AJ31: =IF(V31="","",RTD("cqg.rtd",,"ContractData",Y31,"Theta",,"T")*AA31) -> 
A32: =IF(OR(ISTEXT(RTD("cqg.rtd",,"OrderData",""&B32&"","","OpenPosition",""&Display1!$D$3&"")),RTD("cqg.rtd",,"OrderData",""&B32&"","","OpenPosition",""&Display1!$D$3&"")=0),A31+0.0001,INT(A31)+1) -> 0.0031 | B32: =(LEFT(B33,SEARCH(Display1!$G$2,B33)+LEN(Display1!$G$2)+2))&RIGHT(B33,LEN(B33)-(SEARCH(Display1!$G$2,B33)+LEN(Display1!$G$2)+2))-Display1!$F$5 -> C.US.EW1K1620000 | C32: 0 | D32: 32 | E32: 0 | F32: =IFERROR(VLOOKUP($U$1-8,$D$1:$E$80,2,FALSE),0) -> 0 | G32: 0 | H32: 32 | I32: 0 | J32: =IFERROR(VLOOKUP($V$1-8,$H$1:$I$80,2,FALSE),0) -> 0 | L32: =IF(K32="","",COUNT($K$1:$K$160)-(RANK(K32,$K$1:$K$160)+COUNTIF($K$1:K32,K32)-1)+1) ->  | M32: 0 | N32: 32 | V32: =IFERROR(INDIRECT("T"&$W$29+3),"") ->  | X32: =IF(V32="","",LEFT(RTD("cqg.rtd", ,"ContractData","C.US."&$X$1&$Y$1, "Symbol",, "T"),11)&V32) ->  | Y32: =IF(V32="","",LEFT(RTD("cqg.rtd", ,"ContractData","P.US."&$X$1&$Y$1, "Symbol",, "T"),11)&V32) ->  | Z32: =IF($V32="","",RTD("cqg.rtd",,"OrderData",""&$X32&"","","OpenPosition",""&$Z$1&"")) ->  | AA32: =IF($V32="","",RTD("cqg.rtd",,"OrderData",""&$Y32&"","","OpenPosition",""&$Z$1&"")) ->  | AC32: =IF(V32="","",RTD("cqg.rtd",,"ContractData",X32,"Delta",,"T")*Z32) ->  | AD32: =IF(V32="","",RTD("cqg.rtd",,"ContractData",Y32,"Delta",,"T")*AA32) ->  | AE32: =IF(V32="","",RTD("cqg.rtd",,"ContractData",X32,"Vega",,"T")*Z32) ->  | AF32: =IF(V32="","",RTD("cqg.rtd",,"ContractData",Y32,"Vega",,"T")*AA32) ->  | AG32: =IF(V32="","",RTD("cqg.rtd",,"ContractData",X32,"Gamma",,"T")*Z32) ->  | AH32: =IF(V32="","",RTD("cqg.rtd",,"ContractData",Y32,"Gamma",,"T")*AA32) ->  | AI32: =IF(V32="","",RTD("cqg.rtd",,"ContractData",X32,"Theta",,"T")*ABS(Z32)) ->  | AJ32: =IF(V32="","",RTD("cqg.rtd",,"ContractData",Y32,"Theta",,"T")*AA32) -> 
A33: =IF(OR(ISTEXT(RTD("cqg.rtd",,"OrderData",""&B33&"","","OpenPosition",""&Display1!$D$3&"")),RTD("cqg.rtd",,"OrderData",""&B33&"","","OpenPosition",""&Display1!$D$3&"")=0),A32+0.0001,INT(A32)+1) -> 0.0032 | B33: =(LEFT(B34,SEARCH(Display1!$G$2,B34)+LEN(Display1!$G$2)+2))&RIGHT(B34,LEN(B34)-(SEARCH(Display1!$G$2,B34)+LEN(Display1!$G$2)+2))-Display1!$F$5 -> C.US.EW1K1620050 | C33: 0 | D33: 33 | E33: 0 | F33: =IFERROR(VLOOKUP($U$1-7,$D$1:$E$80,2,FALSE),0) -> 0 | G33: 0 | H33: 33 | I33: 0 | J33: =IFERROR(VLOOKUP($V$1-7,$H$1:$I$80,2,FALSE),0) -> 0 | L33: =IF(K33="","",COUNT($K$1:$K$160)-(RANK(K33,$K$1:$K$160)+COUNTIF($K$1:K33,K33)-1)+1) ->  | M33: 0 | N33: 33 | V33: =IFERROR(INDIRECT("T"&$W$29+4),"") ->  | X33: =IF(V33="","",LEFT(RTD("cqg.rtd", ,"ContractData","C.US."&$X$1&$Y$1, "Symbol",, "T"),11)&V33) ->  | Y33: =IF(V33="","",LEFT(RTD("cqg.rtd", ,"ContractData","P.US."&$X$1&$Y$1, "Symbol",, "T"),11)&V33) ->  | Z33: =IF($V33="","",RTD("cqg.rtd",,"OrderData",""&$X33&"","","OpenPosition",""&$Z$1&"")) ->  | AA33: =IF($V33="","",RTD("cqg.rtd",,"OrderData",""&$Y33&"","","OpenPosition",""&$Z$1&"")) ->  | AC33: =IF(V33="","",RTD("cqg.rtd",,"ContractData",X33,"Delta",,"T")*Z33) ->  | AD33: =IF(V33="","",RTD("cqg.rtd",,"ContractData",Y33,"Delta",,"T")*AA33) ->  | AE33: =IF(V33="","",RTD("cqg.rtd",,"ContractData",X33,"Vega",,"T")*Z33) ->  | AF33: =IF(V33="","",RTD("cqg.rtd",,"ContractData",Y33,"Vega",,"T")*AA33) ->  | AG33: =IF(V33="","",RTD("cqg.rtd",,"ContractData",X33,"Gamma",,"T")*Z33) ->  | AH33: =IF(V33="","",RTD("cqg.rtd",,"ContractData",Y33,"Gamma",,"T")*AA33) ->  | AI33: =IF(V33="","",RTD("cqg.rtd",,"ContractData",X33,"Theta",,"T")*ABS(Z33)) ->  | AJ33: =IF(V33="","",RTD("cqg.rtd",,"ContractData",Y33,"Theta",,"T")*AA33) -> 
A34: =IF(OR(ISTEXT(RTD("cqg.rtd",,"OrderData",""&B34&"","","OpenPosition",""&Display1!$D$3&"")),RTD("cqg.rtd",,"OrderData",""&B34&"","","OpenPosition",""&Display1!$D$3&"")=0),A33+0.0001,INT(A33)+1) -> 0.0033 | B34: =(LEFT(B35,SEARCH(Display1!$G$2,B35)+LEN(Display1!$G$2)+2))&RIGHT(B35,LEN(B35)-(SEARCH(Display1!$G$2,B35)+LEN(Display1!$G$2)+2))-Display1!$F$5 -> C.US.EW1K1620100 | C34: 0 | D34: 34 | E34: 0 | F34: =IFERROR(VLOOKUP($U$1-6,$D$1:$E$80,2,FALSE),0) -> 0 | G34: 0 | H34: 34 | I34: 0 | J34: =IFERROR(VLOOKUP($V$1-6,$H$1:$I$80,2,FALSE),0) -> 0 | L34: =IF(K34="","",COUNT($K$1:$K$160)-(RANK(K34,$K$1:$K$160)+COUNTIF($K$1:K34,K34)-1)+1) ->  | M34: 0 | N34: 34 | V34: =IFERROR(INDIRECT("T"&$W$29+5),"") ->  | X34: =IF(V34="","",LEFT(RTD("cqg.rtd", ,"ContractData","C.US."&$X$1&$Y$1, "Symbol",, "T"),11)&V34) ->  | Y34: =IF(V34="","",LEFT(RTD("cqg.rtd", ,"ContractData","P.US."&$X$1&$Y$1, "Symbol",, "T"),11)&V34) ->  | Z34: =IF($V34="","",RTD("cqg.rtd",,"OrderData",""&$X34&"","","OpenPosition",""&$Z$1&"")) ->  | AA34: =IF($V34="","",RTD("cqg.rtd",,"OrderData",""&$Y34&"","","OpenPosition",""&$Z$1&"")) ->  | AC34: =IF(V34="","",RTD("cqg.rtd",,"ContractData",X34,"Delta",,"T")*Z34) ->  | AD34: =IF(V34="","",RTD("cqg.rtd",,"ContractData",Y34,"Delta",,"T")*AA34) ->  | AE34: =IF(V34="","",RTD("cqg.rtd",,"ContractData",X34,"Vega",,"T")*Z34) ->  | AF34: =IF(V34="","",RTD("cqg.rtd",,"ContractData",Y34,"Vega",,"T")*AA34) ->  | AG34: =IF(V34="","",RTD("cqg.rtd",,"ContractData",X34,"Gamma",,"T")*Z34) ->  | AH34: =IF(V34="","",RTD("cqg.rtd",,"ContractData",Y34,"Gamma",,"T")*AA34) ->  | AI34: =IF(V34="","",RTD("cqg.rtd",,"ContractData",X34,"Theta",,"T")*ABS(Z34)) ->  | AJ34: =IF(V34="","",RTD("cqg.rtd",,"ContractData",Y34,"Theta",,"T")*AA34) -> 
A35: =IF(OR(ISTEXT(RTD("cqg.rtd",,"OrderData",""&B35&"","","OpenPosition",""&Display1!$D$3&"")),RTD("cqg.rtd",,"OrderData",""&B35&"","","OpenPosition",""&Display1!$D$3&"")=0),A34+0.0001,INT(A34)+1) -> 0.0034 | B35: =(LEFT(B36,SEARCH(Display1!$G$2,B36)+LEN(Display1!$G$2)+2))&RIGHT(B36,LEN(B36)-(SEARCH(Display1!$G$2,B36)+LEN(Display1!$G$2)+2))-Display1!$F$5 -> C.US.EW1K1620150 | C35: 0 | D35: 35 | E35: 0 | F35: =IFERROR(VLOOKUP($U$1-5,$D$1:$E$80,2,FALSE),0) -> 0 | G35: 0 | H35: 35 | I35: 0 | J35: =IFERROR(VLOOKUP($V$1-5,$H$1:$I$80,2,FALSE),0) -> 0 | L35: =IF(K35="","",COUNT($K$1:$K$160)-(RANK(K35,$K$1:$K$160)+COUNTIF($K$1:K35,K35)-1)+1) ->  | M35: 0 | N35: 35 | V35: =IFERROR(INDIRECT("T"&$W$29+6),"") ->  | X35: =IF(V35="","",LEFT(RTD("cqg.rtd", ,"ContractData","C.US."&$X$1&$Y$1, "Symbol",, "T"),11)&V35) ->  | Y35: =IF(V35="","",LEFT(RTD("cqg.rtd", ,"ContractData","P.US."&$X$1&$Y$1, "Symbol",, "T"),11)&V35) ->  | Z35: =IF($V35="","",RTD("cqg.rtd",,"OrderData",""&$X35&"","","OpenPosition",""&$Z$1&"")) ->  | AA35: =IF($V35="","",RTD("cqg.rtd",,"OrderData",""&$Y35&"","","OpenPosition",""&$Z$1&"")) ->  | AC35: =IF(V35="","",RTD("cqg.rtd",,"ContractData",X35,"Delta",,"T")*Z35) ->  | AD35: =IF(V35="","",RTD("cqg.rtd",,"ContractData",Y35,"Delta",,"T")*AA35) ->  | AE35: =IF(V35="","",RTD("cqg.rtd",,"ContractData",X35,"Vega",,"T")*Z35) ->  | AF35: =IF(V35="","",RTD("cqg.rtd",,"ContractData",Y35,"Vega",,"T")*AA35) ->  | AG35: =IF(V35="","",RTD("cqg.rtd",,"ContractData",X35,"Gamma",,"T")*Z35) ->  | AH35: =IF(V35="","",RTD("cqg.rtd",,"ContractData",Y35,"Gamma",,"T")*AA35) ->  | AI35: =IF(V35="","",RTD("cqg.rtd",,"ContractData",X35,"Theta",,"T")*ABS(Z35)) ->  | AJ35: =IF(V35="","",RTD("cqg.rtd",,"ContractData",Y35,"Theta",,"T")*AA35) -> 
A36: =IF(OR(ISTEXT(RTD("cqg.rtd",,"OrderData",""&B36&"","","OpenPosition",""&Display1!$D$3&"")),RTD("cqg.rtd",,"OrderData",""&B36&"","","OpenPosition",""&Display1!$D$3&"")=0),A35+0.0001,INT(A35)+1) -> 0.0035 | B36: =(LEFT(B37,SEARCH(Display1!$G$2,B37)+LEN(Display1!$G$2)+2))&RIGHT(B37,LEN(B37)-(SEARCH(Display1!$G$2,B37)+LEN(Display1!$G$2)+2))-Display1!$F$5 -> C.US.EW1K1620200 | C36: 0 | D36: 36 | E36: 0 | F36: =IFERROR(VLOOKUP($U$1-4,$D$1:$E$80,2,FALSE),0) -> 0 | G36: 0 | H36: 36 | I36: 0 | J36: =IFERROR(VLOOKUP($V$1-4,$H$1:$I$80,2,FALSE),0) -> 0 | L36: =IF(K36="","",COUNT($K$1:$K$160)-(RANK(K36,$K$1:$K$160)+COUNTIF($K$1:K36,K36)-1)+1) ->  | M36: 0 | N36: 36 | V36: =IFERROR(INDIRECT("T"&$W$29+7),"") ->  | X36: =IF(V36="","",LEFT(RTD("cqg.rtd", ,"ContractData","C.US."&$X$1&$Y$1, "Symbol",, "T"),11)&V36) ->  | Y36: =IF(V36="","",LEFT(RTD("cqg.rtd", ,"ContractData","P.US."&$X$1&$Y$1, "Symbol",, "T"),11)&V36) ->  | Z36: =IF($V36="","",RTD("cqg.rtd",,"OrderData",""&$X36&"","","OpenPosition",""&$Z$1&"")) ->  | AA36: =IF($V36="","",RTD("cqg.rtd",,"OrderData",""&$Y36&"","","OpenPosition",""&$Z$1&"")) ->  | AC36: =IF(V36="","",RTD("cqg.rtd",,"ContractData",X36,"Delta",,"T")*Z36) ->  | AD36: =IF(V36="","",RTD("cqg.rtd",,"ContractData",Y36,"Delta",,"T")*AA36) ->  | AE36: =IF(V36="","",RTD("cqg.rtd",,"ContractData",X36,"Vega",,"T")*Z36) ->  | AF36: =IF(V36="","",RTD("cqg.rtd",,"ContractData",Y36,"Vega",,"T")*AA36) ->  | AG36: =IF(V36="","",RTD("cqg.rtd",,"ContractData",X36,"Gamma",,"T")*Z36) ->  | AH36: =IF(V36="","",RTD("cqg.rtd",,"ContractData",Y36,"Gamma",,"T")*AA36) ->  | AI36: =IF(V36="","",RTD("cqg.rtd",,"ContractData",X36,"Theta",,"T")*ABS(Z36)) ->  | AJ36: =IF(V36="","",RTD("cqg.rtd",,"ContractData",Y36,"Theta",,"T")*AA36) -> 
A37: =IF(OR(ISTEXT(RTD("cqg.rtd",,"OrderData",""&B37&"","","OpenPosition",""&Display1!$D$3&"")),RTD("cqg.rtd",,"OrderData",""&B37&"","","OpenPosition",""&Display1!$D$3&"")=0),A36+0.0001,INT(A36)+1) -> 0.0036 | B37: =(LEFT(B38,SEARCH(Display1!$G$2,B38)+LEN(Display1!$G$2)+2))&RIGHT(B38,LEN(B38)-(SEARCH(Display1!$G$2,B38)+LEN(Display1!$G$2)+2))-Display1!$F$5 -> C.US.EW1K1620250 | C37: 0 | D37: 37 | E37: 0 | F37: =IFERROR(VLOOKUP($U$1-3,$D$1:$E$80,2,FALSE),0) -> 0 | G37: 0 | H37: 37 | I37: 0 | J37: =IFERROR(VLOOKUP($V$1-3,$H$1:$I$80,2,FALSE),0) -> 0 | L37: =IF(K37="","",COUNT($K$1:$K$160)-(RANK(K37,$K$1:$K$160)+COUNTIF($K$1:K37,K37)-1)+1) ->  | M37: 0 | N37: 37 | V37: =IFERROR(INDIRECT("T"&$W$29+8),"") ->  | X37: =IF(V37="","",LEFT(RTD("cqg.rtd", ,"ContractData","C.US."&$X$1&$Y$1, "Symbol",, "T"),11)&V37) ->  | Y37: =IF(V37="","",LEFT(RTD("cqg.rtd", ,"ContractData","P.US."&$X$1&$Y$1, "Symbol",, "T"),11)&V37) ->  | Z37: =IF($V37="","",RTD("cqg.rtd",,"OrderData",""&$X37&"","","OpenPosition",""&$Z$1&"")) ->  | AA37: =IF($V37="","",RTD("cqg.rtd",,"OrderData",""&$Y37&"","","OpenPosition",""&$Z$1&"")) ->  | AC37: =IF(V37="","",RTD("cqg.rtd",,"ContractData",X37,"Delta",,"T")*Z37) ->  | AD37: =IF(V37="","",RTD("cqg.rtd",,"ContractData",Y37,"Delta",,"T")*AA37) ->  | AE37: =IF(V37="","",RTD("cqg.rtd",,"ContractData",X37,"Vega",,"T")*Z37) ->  | AF37: =IF(V37="","",RTD("cqg.rtd",,"ContractData",Y37,"Vega",,"T")*AA37) ->  | AG37: =IF(V37="","",RTD("cqg.rtd",,"ContractData",X37,"Gamma",,"T")*Z37) ->  | AH37: =IF(V37="","",RTD("cqg.rtd",,"ContractData",Y37,"Gamma",,"T")*AA37) ->  | AI37: =IF(V37="","",RTD("cqg.rtd",,"ContractData",X37,"Theta",,"T")*ABS(Z37)) ->  | AJ37: =IF(V37="","",RTD("cqg.rtd",,"ContractData",Y37,"Theta",,"T")*AA37) -> 
A38: =IF(OR(ISTEXT(RTD("cqg.rtd",,"OrderData",""&B38&"","","OpenPosition",""&Display1!$D$3&"")),RTD("cqg.rtd",,"OrderData",""&B38&"","","OpenPosition",""&Display1!$D$3&"")=0),A37+0.0001,INT(A37)+1) -> 0.0037 | B38: =(LEFT(B39,SEARCH(Display1!$G$2,B39)+LEN(Display1!$G$2)+2))&RIGHT(B39,LEN(B39)-(SEARCH(Display1!$G$2,B39)+LEN(Display1!$G$2)+2))-Display1!$F$5 -> C.US.EW1K1620300 | C38: 0 | D38: 38 | E38: 0 | F38: =IFERROR(VLOOKUP($U$1-2,$D$1:$E$80,2,FALSE),0) -> 0 | G38: 0 | H38: 38 | I38: 0 | J38: =IFERROR(VLOOKUP($V$1-2,$H$1:$I$80,2,FALSE),0) -> 0 | L38: =IF(K38="","",COUNT($K$1:$K$160)-(RANK(K38,$K$1:$K$160)+COUNTIF($K$1:K38,K38)-1)+1) ->  | M38: 0 | N38: 38 | V38: =IFERROR(INDIRECT("T"&$W$29+9),"") ->  | X38: =IF(V38="","",LEFT(RTD("cqg.rtd", ,"ContractData","C.US."&$X$1&$Y$1, "Symbol",, "T"),11)&V38) ->  | Y38: =IF(V38="","",LEFT(RTD("cqg.rtd", ,"ContractData","P.US."&$X$1&$Y$1, "Symbol",, "T"),11)&V38) ->  | Z38: =IF($V38="","",RTD("cqg.rtd",,"OrderData",""&$X38&"","","OpenPosition",""&$Z$1&"")) ->  | AA38: =IF($V38="","",RTD("cqg.rtd",,"OrderData",""&$Y38&"","","OpenPosition",""&$Z$1&"")) ->  | AC38: =IF(V38="","",RTD("cqg.rtd",,"ContractData",X38,"Delta",,"T")*Z38) ->  | AD38: =IF(V38="","",RTD("cqg.rtd",,"ContractData",Y38,"Delta",,"T")*AA38) ->  | AE38: =IF(V38="","",RTD("cqg.rtd",,"ContractData",X38,"Vega",,"T")*Z38) ->  | AF38: =IF(V38="","",RTD("cqg.rtd",,"ContractData",Y38,"Vega",,"T")*AA38) ->  | AG38: =IF(V38="","",RTD("cqg.rtd",,"ContractData",X38,"Gamma",,"T")*Z38) ->  | AH38: =IF(V38="","",RTD("cqg.rtd",,"ContractData",Y38,"Gamma",,"T")*AA38) ->  | AI38: =IF(V38="","",RTD("cqg.rtd",,"ContractData",X38,"Theta",,"T")*ABS(Z38)) ->  | AJ38: =IF(V38="","",RTD("cqg.rtd",,"ContractData",Y38,"Theta",,"T")*AA38) -> 
A39: =IF(OR(ISTEXT(RTD("cqg.rtd",,"OrderData",""&B39&"","","OpenPosition",""&Display1!$D$3&"")),RTD("cqg.rtd",,"OrderData",""&B39&"","","OpenPosition",""&Display1!$D$3&"")=0),A38+0.0001,INT(A38)+1) -> 0.0038 | B39: =(LEFT(B40,SEARCH(Display1!$G$2,B40)+LEN(Display1!$G$2)+2))&RIGHT(B40,LEN(B40)-(SEARCH(Display1!$G$2,B40)+LEN(Display1!$G$2)+2))-Display1!$F$5 -> C.US.EW1K1620350 | C39: 0 | D39: 39 | E39: 0 | F39: =IFERROR(VLOOKUP($U$1-1,$D$1:$E$80,2,FALSE),0) -> 0 | G39: 0 | H39: 39 | I39: 0 | J39: =IFERROR(VLOOKUP($V$1-1,$H$1:$I$80,2,FALSE),0) -> 0 | L39: =IF(K39="","",COUNT($K$1:$K$160)-(RANK(K39,$K$1:$K$160)+COUNTIF($K$1:K39,K39)-1)+1) ->  | M39: 0 | N39: 39 | V39: =IFERROR(INDIRECT("T"&$W$29+10),"") ->  | X39: =IF(V39="","",LEFT(RTD("cqg.rtd", ,"ContractData","C.US."&$X$1&$Y$1, "Symbol",, "T"),11)&V39) ->  | Y39: =IF(V39="","",LEFT(RTD("cqg.rtd", ,"ContractData","P.US."&$X$1&$Y$1, "Symbol",, "T"),11)&V39) ->  | Z39: =IF($V39="","",RTD("cqg.rtd",,"OrderData",""&$X39&"","","OpenPosition",""&$Z$1&"")) ->  | AA39: =IF($V39="","",RTD("cqg.rtd",,"OrderData",""&$Y39&"","","OpenPosition",""&$Z$1&"")) ->  | AC39: =IF(V39="","",RTD("cqg.rtd",,"ContractData",X39,"Delta",,"T")*Z39) ->  | AD39: =IF(V39="","",RTD("cqg.rtd",,"ContractData",Y39,"Delta",,"T")*AA39) ->  | AE39: =IF(V39="","",RTD("cqg.rtd",,"ContractData",X39,"Vega",,"T")*Z39) ->  | AF39: =IF(V39="","",RTD("cqg.rtd",,"ContractData",Y39,"Vega",,"T")*AA39) ->  | AG39: =IF(V39="","",RTD("cqg.rtd",,"ContractData",X39,"Gamma",,"T")*Z39) ->  | AH39: =IF(V39="","",RTD("cqg.rtd",,"ContractData",Y39,"Gamma",,"T")*AA39) ->  | AI39: =IF(V39="","",RTD("cqg.rtd",,"ContractData",X39,"Theta",,"T")*ABS(Z39)) ->  | AJ39: =IF(V39="","",RTD("cqg.rtd",,"ContractData",Y39,"Theta",,"T")*AA39) -> 
A40: =INT(A39)+1 -> 1 | B40: =RTD("cqg.rtd", ,"ContractData", "C.US."&Display1!$G$2&Display1!$G$3&"", "Symbol",, "T") -> C.US.EW1K1620400 | C40: 0 | D40: 40 | E40: 0 | F40: =B40 -> C.US.EW1K1620400 | G40: 0 | H40: 40 | I40: 0 | J40: =B121 -> P.US.EW1K1620400 | L40: =IF(K40="","",COUNT($K$1:$K$160)-(RANK(K40,$K$1:$K$160)+COUNTIF($K$1:K40,K40)-1)+1) ->  | M40: 0 | N40: 40 | V40: =IFERROR(INDIRECT("T"&$W$29+11),"") ->  | X40: =IF(V40="","",LEFT(RTD("cqg.rtd", ,"ContractData","C.US."&$X$1&$Y$1, "Symbol",, "T"),11)&V40) ->  | Y40: =IF(V40="","",LEFT(RTD("cqg.rtd", ,"ContractData","P.US."&$X$1&$Y$1, "Symbol",, "T"),11)&V40) ->  | Z40: =IF($V40="","",RTD("cqg.rtd",,"OrderData",""&$X40&"","","OpenPosition",""&$Z$1&"")) ->  | AA40: =IF($V40="","",RTD("cqg.rtd",,"OrderData",""&$Y40&"","","OpenPosition",""&$Z$1&"")) ->  | AC40: =IF(V40="","",RTD("cqg.rtd",,"ContractData",X40,"Delta",,"T")*Z40) ->  | AD40: =IF(V40="","",RTD("cqg.rtd",,"ContractData",Y40,"Delta",,"T")*AA40) ->  | AE40: =IF(V40="","",RTD("cqg.rtd",,"ContractData",X40,"Vega",,"T")*Z40) ->  | AF40: =IF(V40="","",RTD("cqg.rtd",,"ContractData",Y40,"Vega",,"T")*AA40) ->  | AG40: =IF(V40="","",RTD("cqg.rtd",,"ContractData",X40,"Gamma",,"T")*Z40) ->  | AH40: =IF(V40="","",RTD("cqg.rtd",,"ContractData",Y40,"Gamma",,"T")*AA40) ->  | AI40: =IF(V40="","",RTD("cqg.rtd",,"ContractData",X40,"Theta",,"T")*ABS(Z40)) ->  | AJ40: =IF(V40="","",RTD("cqg.rtd",,"ContractData",Y40,"Theta",,"T")*AA40) -> 
A41: =IF(OR(ISTEXT(RTD("cqg.rtd",,"OrderData",""&B41&"","","OpenPosition",""&Display1!$D$3&"")),RTD("cqg.rtd",,"OrderData",""&B41&"","","OpenPosition",""&Display1!$D$3&"")=0),A40+0.0001,INT(A40)+1) -> 1.0001 | B41: =(LEFT(B40,SEARCH(Display1!$G$2,B40)+LEN(Display1!$G$2)+2))&RIGHT(B40,LEN(B40)-(SEARCH(Display1!$G$2,B40)+LEN(Display1!$G$2)+2))+Display1!$F$5 -> C.US.EW1K1620450 | C41: 0 | D41: 41 | E41: 0 | F41: =IFERROR(VLOOKUP($U$1+1,$D$1:$E$80,2,FALSE),0) -> 0 | G41: 0 | H41: 41 | I41: 0 | J41: =IFERROR(VLOOKUP($V$1+1,$H$1:$I$80,2,FALSE),0) -> 0 | L41: =IF(K41="","",COUNT($K$1:$K$160)-(RANK(K41,$K$1:$K$160)+COUNTIF($K$1:K41,K41)-1)+1) ->  | M41: 0 | N41: 41 | V41: =IFERROR(INDIRECT("T"&$W$29+12),"") ->  | X41: =IF(V41="","",LEFT(RTD("cqg.rtd", ,"ContractData","C.US."&$X$1&$Y$1, "Symbol",, "T"),11)&V41) ->  | Y41: =IF(V41="","",LEFT(RTD("cqg.rtd", ,"ContractData","P.US."&$X$1&$Y$1, "Symbol",, "T"),11)&V41) ->  | Z41: =IF($V41="","",RTD("cqg.rtd",,"OrderData",""&$X41&"","","OpenPosition",""&$Z$1&"")) ->  | AA41: =IF($V41="","",RTD("cqg.rtd",,"OrderData",""&$Y41&"","","OpenPosition",""&$Z$1&"")) ->  | AC41: =IF(V41="","",RTD("cqg.rtd",,"ContractData",X41,"Delta",,"T")*Z41) ->  | AD41: =IF(V41="","",RTD("cqg.rtd",,"ContractData",Y41,"Delta",,"T")*AA41) ->  | AE41: =IF(V41="","",RTD("cqg.rtd",,"ContractData",X41,"Vega",,"T")*Z41) ->  | AF41: =IF(V41="","",RTD("cqg.rtd",,"ContractData",Y41,"Vega",,"T")*AA41) ->  | AG41: =IF(V41="","",RTD("cqg.rtd",,"ContractData",X41,"Gamma",,"T")*Z41) ->  | AH41: =IF(V41="","",RTD("cqg.rtd",,"ContractData",Y41,"Gamma",,"T")*AA41) ->  | AI41: =IF(V41="","",RTD("cqg.rtd",,"ContractData",X41,"Theta",,"T")*ABS(Z41)) ->  | AJ41: =IF(V41="","",RTD("cqg.rtd",,"ContractData",Y41,"Theta",,"T")*AA41) -> 
A42: =IF(OR(ISTEXT(RTD("cqg.rtd",,"OrderData",""&B42&"","","OpenPosition",""&Display1!$D$3&"")),RTD("cqg.rtd",,"OrderData",""&B42&"","","OpenPosition",""&Display1!$D$3&"")=0),A41+0.0001,INT(A41)+1) -> 1.0002 | B42: =(LEFT(B41,SEARCH(Display1!$G$2,B41)+LEN(Display1!$G$2)+2))&RIGHT(B41,LEN(B41)-(SEARCH(Display1!$G$2,B41)+LEN(Display1!$G$2)+2))+Display1!$F$5 -> C.US.EW1K1620500 | C42: 0 | D42: 42 | E42: 0 | F42: =IFERROR(VLOOKUP($U$1+2,$D$1:$E$80,2,FALSE),0) -> 0 | G42: 0 | H42: 42 | I42: 0 | J42: =IFERROR(VLOOKUP($V$1+2,$H$1:$I$80,2,FALSE),0) -> 0 | L42: =IF(K42="","",COUNT($K$1:$K$160)-(RANK(K42,$K$1:$K$160)+COUNTIF($K$1:K42,K42)-1)+1) ->  | M42: 0 | N42: 42 | V42: =IFERROR(INDIRECT("T"&$W$29+13),"") ->  | X42: =IF(V42="","",LEFT(RTD("cqg.rtd", ,"ContractData","C.US."&$X$1&$Y$1, "Symbol",, "T"),11)&V42) ->  | Y42: =IF(V42="","",LEFT(RTD("cqg.rtd", ,"ContractData","P.US."&$X$1&$Y$1, "Symbol",, "T"),11)&V42) ->  | Z42: =IF($V42="","",RTD("cqg.rtd",,"OrderData",""&$X42&"","","OpenPosition",""&$Z$1&"")) ->  | AA42: =IF($V42="","",RTD("cqg.rtd",,"OrderData",""&$Y42&"","","OpenPosition",""&$Z$1&"")) ->  | AC42: =IF(V42="","",RTD("cqg.rtd",,"ContractData",X42,"Delta",,"T")*Z42) ->  | AD42: =IF(V42="","",RTD("cqg.rtd",,"ContractData",Y42,"Delta",,"T")*AA42) ->  | AE42: =IF(V42="","",RTD("cqg.rtd",,"ContractData",X42,"Vega",,"T")*Z42) ->  | AF42: =IF(V42="","",RTD("cqg.rtd",,"ContractData",Y42,"Vega",,"T")*AA42) ->  | AG42: =IF(V42="","",RTD("cqg.rtd",,"ContractData",X42,"Gamma",,"T")*Z42) ->  | AH42: =IF(V42="","",RTD("cqg.rtd",,"ContractData",Y42,"Gamma",,"T")*AA42) ->  | AI42: =IF(V42="","",RTD("cqg.rtd",,"ContractData",X42,"Theta",,"T")*ABS(Z42)) ->  | AJ42: =IF(V42="","",RTD("cqg.rtd",,"ContractData",Y42,"Theta",,"T")*AA42) -> 
A43: =IF(OR(ISTEXT(RTD("cqg.rtd",,"OrderData",""&B43&"","","OpenPosition",""&Display1!$D$3&"")),RTD("cqg.rtd",,"OrderData",""&B43&"","","OpenPosition",""&Display1!$D$3&"")=0),A42+0.0001,INT(A42)+1) -> 1.0003 | B43: =(LEFT(B42,SEARCH(Display1!$G$2,B42)+LEN(Display1!$G$2)+2))&RIGHT(B42,LEN(B42)-(SEARCH(Display1!$G$2,B42)+LEN(Display1!$G$2)+2))+Display1!$F$5 -> C.US.EW1K1620550 | C43: 0 | D43: 43 | E43: 0 | F43: =IFERROR(VLOOKUP($U$1+3,$D$1:$E$80,2,FALSE),0) -> 0 | G43: 0 | H43: 43 | I43: 0 | J43: =IFERROR(VLOOKUP($V$1+3,$H$1:$I$80,2,FALSE),0) -> 0 | L43: =IF(K43="","",COUNT($K$1:$K$160)-(RANK(K43,$K$1:$K$160)+COUNTIF($K$1:K43,K43)-1)+1) ->  | M43: 0 | N43: 43 | V43: =IFERROR(INDIRECT("T"&$W$29+14),"") ->  | X43: =IF(V43="","",LEFT(RTD("cqg.rtd", ,"ContractData","C.US."&$X$1&$Y$1, "Symbol",, "T"),11)&V43) ->  | Y43: =IF(V43="","",LEFT(RTD("cqg.rtd", ,"ContractData","P.US."&$X$1&$Y$1, "Symbol",, "T"),11)&V43) ->  | Z43: =IF($V43="","",RTD("cqg.rtd",,"OrderData",""&$X43&"","","OpenPosition",""&$Z$1&"")) ->  | AA43: =IF($V43="","",RTD("cqg.rtd",,"OrderData",""&$Y43&"","","OpenPosition",""&$Z$1&"")) ->  | AC43: =IF(V43="","",RTD("cqg.rtd",,"ContractData",X43,"Delta",,"T")*Z43) ->  | AD43: =IF(V43="","",RTD("cqg.rtd",,"ContractData",Y43,"Delta",,"T")*AA43) ->  | AE43: =IF(V43="","",RTD("cqg.rtd",,"ContractData",X43,"Vega",,"T")*Z43) ->  | AF43: =IF(V43="","",RTD("cqg.rtd",,"ContractData",Y43,"Vega",,"T")*AA43) ->  | AG43: =IF(V43="","",RTD("cqg.rtd",,"ContractData",X43,"Gamma",,"T")*Z43) ->  | AH43: =IF(V43="","",RTD("cqg.rtd",,"ContractData",Y43,"Gamma",,"T")*AA43) ->  | AI43: =IF(V43="","",RTD("cqg.rtd",,"ContractData",X43,"Theta",,"T")*ABS(Z43)) ->  | AJ43: =IF(V43="","",RTD("cqg.rtd",,"ContractData",Y43,"Theta",,"T")*AA43) -> 
A44: =IF(OR(ISTEXT(RTD("cqg.rtd",,"OrderData",""&B44&"","","OpenPosition",""&Display1!$D$3&"")),RTD("cqg.rtd",,"OrderData",""&B44&"","","OpenPosition",""&Display1!$D$3&"")=0),A43+0.0001,INT(A43)+1) -> 1.0004 | B44: =(LEFT(B43,SEARCH(Display1!$G$2,B43)+LEN(Display1!$G$2)+2))&RIGHT(B43,LEN(B43)-(SEARCH(Display1!$G$2,B43)+LEN(Display1!$G$2)+2))+Display1!$F$5 -> C.US.EW1K1620600 | C44: 0 | D44: 44 | E44: 0 | F44: =IFERROR(VLOOKUP($U$1+4,$D$1:$E$80,2,FALSE),0) -> 0 | G44: 0 | H44: 44 | I44: 0 | J44: =IFERROR(VLOOKUP($V$1+4,$H$1:$I$80,2,FALSE),0) -> 0 | L44: =IF(K44="","",COUNT($K$1:$K$160)-(RANK(K44,$K$1:$K$160)+COUNTIF($K$1:K44,K44)-1)+1) ->  | M44: 0 | N44: 44 | V44: =IFERROR(INDIRECT("T"&$W$29+15),"") ->  | X44: =IF(V44="","",LEFT(RTD("cqg.rtd", ,"ContractData","C.US."&$X$1&$Y$1, "Symbol",, "T"),11)&V44) ->  | Y44: =IF(V44="","",LEFT(RTD("cqg.rtd", ,"ContractData","P.US."&$X$1&$Y$1, "Symbol",, "T"),11)&V44) ->  | Z44: =IF($V44="","",RTD("cqg.rtd",,"OrderData",""&$X44&"","","OpenPosition",""&$Z$1&"")) ->  | AA44: =IF($V44="","",RTD("cqg.rtd",,"OrderData",""&$Y44&"","","OpenPosition",""&$Z$1&"")) ->  | AC44: =IF(V44="","",RTD("cqg.rtd",,"ContractData",X44,"Delta",,"T")*Z44) ->  | AD44: =IF(V44="","",RTD("cqg.rtd",,"ContractData",Y44,"Delta",,"T")*AA44) ->  | AE44: =IF(V44="","",RTD("cqg.rtd",,"ContractData",X44,"Vega",,"T")*Z44) ->  | AF44: =IF(V44="","",RTD("cqg.rtd",,"ContractData",Y44,"Vega",,"T")*AA44) ->  | AG44: =IF(V44="","",RTD("cqg.rtd",,"ContractData",X44,"Gamma",,"T")*Z44) ->  | AH44: =IF(V44="","",RTD("cqg.rtd",,"ContractData",Y44,"Gamma",,"T")*AA44) ->  | AI44: =IF(V44="","",RTD("cqg.rtd",,"ContractData",X44,"Theta",,"T")*ABS(Z44)) ->  | AJ44: =IF(V44="","",RTD("cqg.rtd",,"ContractData",Y44,"Theta",,"T")*AA44) -> 
A45: =IF(OR(ISTEXT(RTD("cqg.rtd",,"OrderData",""&B45&"","","OpenPosition",""&Display1!$D$3&"")),RTD("cqg.rtd",,"OrderData",""&B45&"","","OpenPosition",""&Display1!$D$3&"")=0),A44+0.0001,INT(A44)+1) -> 1.0005 | B45: =(LEFT(B44,SEARCH(Display1!$G$2,B44)+LEN(Display1!$G$2)+2))&RIGHT(B44,LEN(B44)-(SEARCH(Display1!$G$2,B44)+LEN(Display1!$G$2)+2))+Display1!$F$5 -> C.US.EW1K1620650 | C45: 0 | D45: 45 | E45: 0 | F45: =IFERROR(VLOOKUP($U$1+5,$D$1:$E$80,2,FALSE),0) -> 0 | G45: 0 | H45: 45 | I45: 0 | J45: =IFERROR(VLOOKUP($V$1+5,$H$1:$I$80,2,FALSE),0) -> 0 | L45: =IF(K45="","",COUNT($K$1:$K$160)-(RANK(K45,$K$1:$K$160)+COUNTIF($K$1:K45,K45)-1)+1) ->  | M45: 0 | N45: 45 | V45: =IFERROR(INDIRECT("T"&$W$29+16),"") ->  | X45: =IF(V45="","",LEFT(RTD("cqg.rtd", ,"ContractData","C.US."&$X$1&$Y$1, "Symbol",, "T"),11)&V45) ->  | Y45: =IF(V45="","",LEFT(RTD("cqg.rtd", ,"ContractData","P.US."&$X$1&$Y$1, "Symbol",, "T"),11)&V45) ->  | Z45: =IF($V45="","",RTD("cqg.rtd",,"OrderData",""&$X45&"","","OpenPosition",""&$Z$1&"")) ->  | AA45: =IF($V45="","",RTD("cqg.rtd",,"OrderData",""&$Y45&"","","OpenPosition",""&$Z$1&"")) ->  | AC45: =IF(V45="","",RTD("cqg.rtd",,"ContractData",X45,"Delta",,"T")*Z45) ->  | AD45: =IF(V45="","",RTD("cqg.rtd",,"ContractData",Y45,"Delta",,"T")*AA45) ->  | AE45: =IF(V45="","",RTD("cqg.rtd",,"ContractData",X45,"Vega",,"T")*Z45) ->  | AF45: =IF(V45="","",RTD("cqg.rtd",,"ContractData",Y45,"Vega",,"T")*AA45) ->  | AG45: =IF(V45="","",RTD("cqg.rtd",,"ContractData",X45,"Gamma",,"T")*Z45) ->  | AH45: =IF(V45="","",RTD("cqg.rtd",,"ContractData",Y45,"Gamma",,"T")*AA45) ->  | AI45: =IF(V45="","",RTD("cqg.rtd",,"ContractData",X45,"Theta",,"T")*ABS(Z45)) ->  | AJ45: =IF(V45="","",RTD("cqg.rtd",,"ContractData",Y45,"Theta",,"T")*AA45) -> 
A46: =IF(OR(ISTEXT(RTD("cqg.rtd",,"OrderData",""&B46&"","","OpenPosition",""&Display1!$D$3&"")),RTD("cqg.rtd",,"OrderData",""&B46&"","","OpenPosition",""&Display1!$D$3&"")=0),A45+0.0001,INT(A45)+1) -> 1.0006 | B46: =(LEFT(B45,SEARCH(Display1!$G$2,B45)+LEN(Display1!$G$2)+2))&RIGHT(B45,LEN(B45)-(SEARCH(Display1!$G$2,B45)+LEN(Display1!$G$2)+2))+Display1!$F$5 -> C.US.EW1K1620700 | C46: 0 | D46: 46 | E46: 0 | F46: =IFERROR(VLOOKUP($U$1+6,$D$1:$E$80,2,FALSE),0) -> 0 | G46: 0 | H46: 46 | I46: 0 | J46: =IFERROR(VLOOKUP($V$1+6,$H$1:$I$80,2,FALSE),0) -> 0 | L46: =IF(K46="","",COUNT($K$1:$K$160)-(RANK(K46,$K$1:$K$160)+COUNTIF($K$1:K46,K46)-1)+1) ->  | M46: 0 | N46: 46 | V46: =IFERROR(INDIRECT("T"&$W$29+17),"") ->  | X46: =IF(V46="","",LEFT(RTD("cqg.rtd", ,"ContractData","C.US."&$X$1&$Y$1, "Symbol",, "T"),11)&V46) ->  | Y46: =IF(V46="","",LEFT(RTD("cqg.rtd", ,"ContractData","P.US."&$X$1&$Y$1, "Symbol",, "T"),11)&V46) ->  | Z46: =IF($V46="","",RTD("cqg.rtd",,"OrderData",""&$X46&"","","OpenPosition",""&$Z$1&"")) ->  | AA46: =IF($V46="","",RTD("cqg.rtd",,"OrderData",""&$Y46&"","","OpenPosition",""&$Z$1&"")) ->  | AC46: =IF(V46="","",RTD("cqg.rtd",,"ContractData",X46,"Delta",,"T")*Z46) ->  | AD46: =IF(V46="","",RTD("cqg.rtd",,"ContractData",Y46,"Delta",,"T")*AA46) ->  | AE46: =IF(V46="","",RTD("cqg.rtd",,"ContractData",X46,"Vega",,"T")*Z46) ->  | AF46: =IF(V46="","",RTD("cqg.rtd",,"ContractData",Y46,"Vega",,"T")*AA46) ->  | AG46: =IF(V46="","",RTD("cqg.rtd",,"ContractData",X46,"Gamma",,"T")*Z46) ->  | AH46: =IF(V46="","",RTD("cqg.rtd",,"ContractData",Y46,"Gamma",,"T")*AA46) ->  | AI46: =IF(V46="","",RTD("cqg.rtd",,"ContractData",X46,"Theta",,"T")*ABS(Z46)) ->  | AJ46: =IF(V46="","",RTD("cqg.rtd",,"ContractData",Y46,"Theta",,"T")*AA46) -> 
A47: =IF(OR(ISTEXT(RTD("cqg.rtd",,"OrderData",""&B47&"","","OpenPosition",""&Display1!$D$3&"")),RTD("cqg.rtd",,"OrderData",""&B47&"","","OpenPosition",""&Display1!$D$3&"")=0),A46+0.0001,INT(A46)+1) -> 1.0007 | B47: =(LEFT(B46,SEARCH(Display1!$G$2,B46)+LEN(Display1!$G$2)+2))&RIGHT(B46,LEN(B46)-(SEARCH(Display1!$G$2,B46)+LEN(Display1!$G$2)+2))+Display1!$F$5 -> C.US.EW1K1620750 | C47: 0 | D47: 47 | E47: 0 | F47: =IFERROR(VLOOKUP($U$1+7,$D$1:$E$80,2,FALSE),0) -> 0 | G47: 0 | H47: 47 | I47: 0 | J47: =IFERROR(VLOOKUP($V$1+7,$H$1:$I$80,2,FALSE),0) -> 0 | L47: =IF(K47="","",COUNT($K$1:$K$160)-(RANK(K47,$K$1:$K$160)+COUNTIF($K$1:K47,K47)-1)+1) ->  | M47: 0 | N47: 47 | V47: =IFERROR(INDIRECT("T"&$W$29+18),"") ->  | X47: =IF(V47="","",LEFT(RTD("cqg.rtd", ,"ContractData","C.US."&$X$1&$Y$1, "Symbol",, "T"),11)&V47) ->  | Y47: =IF(V47="","",LEFT(RTD("cqg.rtd", ,"ContractData","P.US."&$X$1&$Y$1, "Symbol",, "T"),11)&V47) ->  | Z47: =IF($V47="","",RTD("cqg.rtd",,"OrderData",""&$X47&"","","OpenPosition",""&$Z$1&"")) ->  | AA47: =IF($V47="","",RTD("cqg.rtd",,"OrderData",""&$Y47&"","","OpenPosition",""&$Z$1&"")) ->  | AC47: =IF(V47="","",RTD("cqg.rtd",,"ContractData",X47,"Delta",,"T")*Z47) ->  | AD47: =IF(V47="","",RTD("cqg.rtd",,"ContractData",Y47,"Delta",,"T")*AA47) ->  | AE47: =IF(V47="","",RTD("cqg.rtd",,"ContractData",X47,"Vega",,"T")*Z47) ->  | AF47: =IF(V47="","",RTD("cqg.rtd",,"ContractData",Y47,"Vega",,"T")*AA47) ->  | AG47: =IF(V47="","",RTD("cqg.rtd",,"ContractData",X47,"Gamma",,"T")*Z47) ->  | AH47: =IF(V47="","",RTD("cqg.rtd",,"ContractData",Y47,"Gamma",,"T")*AA47) ->  | AI47: =IF(V47="","",RTD("cqg.rtd",,"ContractData",X47,"Theta",,"T")*ABS(Z47)) ->  | AJ47: =IF(V47="","",RTD("cqg.rtd",,"ContractData",Y47,"Theta",,"T")*AA47) -> 
A48: =IF(OR(ISTEXT(RTD("cqg.rtd",,"OrderData",""&B48&"","","OpenPosition",""&Display1!$D$3&"")),RTD("cqg.rtd",,"OrderData",""&B48&"","","OpenPosition",""&Display1!$D$3&"")=0),A47+0.0001,INT(A47)+1) -> 1.0008 | B48: =(LEFT(B47,SEARCH(Display1!$G$2,B47)+LEN(Display1!$G$2)+2))&RIGHT(B47,LEN(B47)-(SEARCH(Display1!$G$2,B47)+LEN(Display1!$G$2)+2))+Display1!$F$5 -> C.US.EW1K1620800 | C48: 0 | D48: 48 | E48: 0 | F48: =IFERROR(VLOOKUP($U$1+8,$D$1:$E$80,2,FALSE),0) -> 0 | G48: 0 | H48: 48 | I48: 0 | J48: =IFERROR(VLOOKUP($V$1+8,$H$1:$I$80,2,FALSE),0) -> 0 | L48: =IF(K48="","",COUNT($K$1:$K$160)-(RANK(K48,$K$1:$K$160)+COUNTIF($K$1:K48,K48)-1)+1) ->  | M48: 0 | N48: 48 | V48: =IFERROR(INDIRECT("T"&$W$29+19),"") ->  | X48: =IF(V48="","",LEFT(RTD("cqg.rtd", ,"ContractData","C.US."&$X$1&$Y$1, "Symbol",, "T"),11)&V48) ->  | Y48: =IF(V48="","",LEFT(RTD("cqg.rtd", ,"ContractData","P.US."&$X$1&$Y$1, "Symbol",, "T"),11)&V48) ->  | Z48: =IF($V48="","",RTD("cqg.rtd",,"OrderData",""&$X48&"","","OpenPosition",""&$Z$1&"")) ->  | AA48: =IF($V48="","",RTD("cqg.rtd",,"OrderData",""&$Y48&"","","OpenPosition",""&$Z$1&"")) ->  | AC48: =IF(V48="","",RTD("cqg.rtd",,"ContractData",X48,"Delta",,"T")*Z48) ->  | AD48: =IF(V48="","",RTD("cqg.rtd",,"ContractData",Y48,"Delta",,"T")*AA48) ->  | AE48: =IF(V48="","",RTD("cqg.rtd",,"ContractData",X48,"Vega",,"T")*Z48) ->  | AF48: =IF(V48="","",RTD("cqg.rtd",,"ContractData",Y48,"Vega",,"T")*AA48) ->  | AG48: =IF(V48="","",RTD("cqg.rtd",,"ContractData",X48,"Gamma",,"T")*Z48) ->  | AH48: =IF(V48="","",RTD("cqg.rtd",,"ContractData",Y48,"Gamma",,"T")*AA48) ->  | AI48: =IF(V48="","",RTD("cqg.rtd",,"ContractData",X48,"Theta",,"T")*ABS(Z48)) ->  | AJ48: =IF(V48="","",RTD("cqg.rtd",,"ContractData",Y48,"Theta",,"T")*AA48) -> 
A49: =IF(OR(ISTEXT(RTD("cqg.rtd",,"OrderData",""&B49&"","","OpenPosition",""&Display1!$D$3&"")),RTD("cqg.rtd",,"OrderData",""&B49&"","","OpenPosition",""&Display1!$D$3&"")=0),A48+0.0001,INT(A48)+1) -> 1.0009 | B49: =(LEFT(B48,SEARCH(Display1!$G$2,B48)+LEN(Display1!$G$2)+2))&RIGHT(B48,LEN(B48)-(SEARCH(Display1!$G$2,B48)+LEN(Display1!$G$2)+2))+Display1!$F$5 -> C.US.EW1K1620850 | C49: 0 | D49: 49 | E49: 0 | F49: =IFERROR(VLOOKUP($U$1+9,$D$1:$E$80,2,FALSE),0) -> 0 | G49: 0 | H49: 49 | I49: 0 | J49: =IFERROR(VLOOKUP($V$1+9,$H$1:$I$80,2,FALSE),0) -> 0 | L49: =IF(K49="","",COUNT($K$1:$K$160)-(RANK(K49,$K$1:$K$160)+COUNTIF($K$1:K49,K49)-1)+1) ->  | M49: 0 | N49: 49 | V49: =IFERROR(INDIRECT("T"&$W$29+20),"") ->  | X49: =IF(V49="","",LEFT(RTD("cqg.rtd", ,"ContractData","C.US."&$X$1&$Y$1, "Symbol",, "T"),11)&V49) ->  | Y49: =IF(V49="","",LEFT(RTD("cqg.rtd", ,"ContractData","P.US."&$X$1&$Y$1, "Symbol",, "T"),11)&V49) ->  | Z49: =IF($V49="","",RTD("cqg.rtd",,"OrderData",""&$X49&"","","OpenPosition",""&$Z$1&"")) ->  | AA49: =IF($V49="","",RTD("cqg.rtd",,"OrderData",""&$Y49&"","","OpenPosition",""&$Z$1&"")) ->  | AC49: =IF(V49="","",RTD("cqg.rtd",,"ContractData",X49,"Delta",,"T")*Z49) ->  | AD49: =IF(V49="","",RTD("cqg.rtd",,"ContractData",Y49,"Delta",,"T")*AA49) ->  | AE49: =IF(V49="","",RTD("cqg.rtd",,"ContractData",X49,"Vega",,"T")*Z49) ->  | AF49: =IF(V49="","",RTD("cqg.rtd",,"ContractData",Y49,"Vega",,"T")*AA49) ->  | AG49: =IF(V49="","",RTD("cqg.rtd",,"ContractData",X49,"Gamma",,"T")*Z49) ->  | AH49: =IF(V49="","",RTD("cqg.rtd",,"ContractData",Y49,"Gamma",,"T")*AA49) ->  | AI49: =IF(V49="","",RTD("cqg.rtd",,"ContractData",X49,"Theta",,"T")*ABS(Z49)) ->  | AJ49: =IF(V49="","",RTD("cqg.rtd",,"ContractData",Y49,"Theta",,"T")*AA49) -> 
A50: =IF(OR(ISTEXT(RTD("cqg.rtd",,"OrderData",""&B50&"","","OpenPosition",""&Display1!$D$3&"")),RTD("cqg.rtd",,"OrderData",""&B50&"","","OpenPosition",""&Display1!$D$3&"")=0),A49+0.0001,INT(A49)+1) -> 1.001 | B50: =(LEFT(B49,SEARCH(Display1!$G$2,B49)+LEN(Display1!$G$2)+2))&RIGHT(B49,LEN(B49)-(SEARCH(Display1!$G$2,B49)+LEN(Display1!$G$2)+2))+Display1!$F$5 -> C.US.EW1K1620900 | C50: 0 | D50: 50 | E50: 0 | F50: =IFERROR(VLOOKUP($U$1+10,$D$10:$E$80,2,FALSE),0) -> 0 | G50: 0 | H50: 50 | I50: 0 | J50: =IFERROR(VLOOKUP($V$1+10,$H$1:$I$80,2,FALSE),0) -> 0 | L50: =IF(K50="","",COUNT($K$1:$K$160)-(RANK(K50,$K$1:$K$160)+COUNTIF($K$1:K50,K50)-1)+1) ->  | M50: 0 | N50: 50 | X50: =IF(V50="","",LEFT(RTD("cqg.rtd", ,"ContractData","C.US."&$X$1&$Y$1, "Symbol",, "T"),11)&V50) ->  | Y50: =IF(V50="","",LEFT(RTD("cqg.rtd", ,"ContractData","P.US."&$X$1&$Y$1, "Symbol",, "T"),11)&V50) ->  | AC50: =SUM(AC10:AC49)+SUM(AD10:AD49) ->  | AE50: =SUM(AE10:AE49)+SUM(AF10:AF49) ->  | AG50: =SUM(AG10:AG49)+SUM(AH10:AH49) ->  | AI50: =SUM(AI10:AI49)+SUM(AJ10:AJ49) -> 
A51: =IF(OR(ISTEXT(RTD("cqg.rtd",,"OrderData",""&B51&"","","OpenPosition",""&Display1!$D$3&"")),RTD("cqg.rtd",,"OrderData",""&B51&"","","OpenPosition",""&Display1!$D$3&"")=0),A50+0.0001,INT(A50)+1) -> 1.0011 | B51: =(LEFT(B50,SEARCH(Display1!$G$2,B50)+LEN(Display1!$G$2)+2))&RIGHT(B50,LEN(B50)-(SEARCH(Display1!$G$2,B50)+LEN(Display1!$G$2)+2))+Display1!$F$5 -> C.US.EW1K1620950 | C51: 0 | D51: 51 | E51: 0 | F51: =IFERROR(VLOOKUP($U$1+11,$D$1:$E$80,2,FALSE),0) -> 0 | G51: 0 | H51: 51 | I51: 0 | J51: =IFERROR(VLOOKUP($V$1+11,$H$1:$I$80,2,FALSE),0) -> 0 | L51: =IF(K51="","",COUNT($K$1:$K$160)-(RANK(K51,$K$1:$K$160)+COUNTIF($K$1:K51,K51)-1)+1) ->  | M51: 0 | N51: 51 | X51: =IF(V51="","",LEFT(RTD("cqg.rtd", ,"ContractData","C.US."&$X$1&$Y$1, "Symbol",, "T"),11)&V51) ->  | Y51: =IF(V51="","",LEFT(RTD("cqg.rtd", ,"ContractData","P.US."&$X$1&$Y$1, "Symbol",, "T"),11)&V51) ->  | AC51: Delta | AE51: Vega | AG51: Gamma | AI51: Theta
A52: =IF(OR(ISTEXT(RTD("cqg.rtd",,"OrderData",""&B52&"","","OpenPosition",""&Display1!$D$3&"")),RTD("cqg.rtd",,"OrderData",""&B52&"","","OpenPosition",""&Display1!$D$3&"")=0),A51+0.0001,INT(A51)+1) -> 1.0012 | B52: =(LEFT(B51,SEARCH(Display1!$G$2,B51)+LEN(Display1!$G$2)+2))&RIGHT(B51,LEN(B51)-(SEARCH(Display1!$G$2,B51)+LEN(Display1!$G$2)+2))+Display1!$F$5 -> C.US.EW1K1621000 | C52: 0 | D52: 52 | E52: 0 | F52: =IFERROR(VLOOKUP($U$1+12,$D$1:$E$80,2,FALSE),0) -> 0 | G52: 0 | H52: 52 | I52: 0 | J52: =IFERROR(VLOOKUP($V$1+12,$H$1:$I$80,2,FALSE),0) -> 0 | L52: =IF(K52="","",COUNT($K$1:$K$160)-(RANK(K52,$K$1:$K$160)+COUNTIF($K$1:K52,K52)-1)+1) ->  | M52: 0 | N52: 52 | X52: =IF(V52="","",LEFT(RTD("cqg.rtd", ,"ContractData","C.US."&$X$1&$Y$1, "Symbol",, "T"),11)&V52) ->  | Y52: =IF(V52="","",LEFT(RTD("cqg.rtd", ,"ContractData","P.US."&$X$1&$Y$1, "Symbol",, "T"),11)&V52) ->  | Z52: =SUM(Z10:Z49) -> 0 | AA52: =SUM(AA10:AA49) -> 0
A53: =IF(OR(ISTEXT(RTD("cqg.rtd",,"OrderData",""&B53&"","","OpenPosition",""&Display1!$D$3&"")),RTD("cqg.rtd",,"OrderData",""&B53&"","","OpenPosition",""&Display1!$D$3&"")=0),A52+0.0001,INT(A52)+1) -> 1.0013 | B53: =(LEFT(B52,SEARCH(Display1!$G$2,B52)+LEN(Display1!$G$2)+2))&RIGHT(B52,LEN(B52)-(SEARCH(Display1!$G$2,B52)+LEN(Display1!$G$2)+2))+Display1!$F$5 -> C.US.EW1K1621050 | C53: 0 | D53: 53 | E53: 0 | F53: =IFERROR(VLOOKUP($U$1+13,$D$1:$E$80,2,FALSE),0) -> 0 | G53: 0 | H53: 53 | I53: 0 | J53: =IFERROR(VLOOKUP($V$1+13,$H$1:$I$80,2,FALSE),0) -> 0 | L53: =IF(K53="","",COUNT($K$1:$K$160)-(RANK(K53,$K$1:$K$160)+COUNTIF($K$1:K53,K53)-1)+1) ->  | M53: 0 | N53: 53 | X53: =IF(V53="","",LEFT(RTD("cqg.rtd", ,"ContractData","C.US."&$X$1&$Y$1, "Symbol",, "T"),11)&V53) ->  | Y53: =IF(V53="","",LEFT(RTD("cqg.rtd", ,"ContractData","P.US."&$X$1&$Y$1, "Symbol",, "T"),11)&V53) -> 
A54: =IF(OR(ISTEXT(RTD("cqg.rtd",,"OrderData",""&B54&"","","OpenPosition",""&Display1!$D$3&"")),RTD("cqg.rtd",,"OrderData",""&B54&"","","OpenPosition",""&Display1!$D$3&"")=0),A53+0.0001,INT(A53)+1) -> 1.0014 | B54: =(LEFT(B53,SEARCH(Display1!$G$2,B53)+LEN(Display1!$G$2)+2))&RIGHT(B53,LEN(B53)-(SEARCH(Display1!$G$2,B53)+LEN(Display1!$G$2)+2))+Display1!$F$5 -> C.US.EW1K1621100 | C54: 0 | D54: 54 | E54: 0 | F54: =IFERROR(VLOOKUP($U$1+14,$D$1:$E$80,2,FALSE),0) -> 0 | G54: 0 | H54: 54 | I54: 0 | J54: =IFERROR(VLOOKUP($V$1+14,$H$1:$I$80,2,FALSE),0) -> 0 | L54: =IF(K54="","",COUNT($K$1:$K$160)-(RANK(K54,$K$1:$K$160)+COUNTIF($K$1:K54,K54)-1)+1) ->  | M54: 0 | N54: 54 | X54: =IF(V54="","",LEFT(RTD("cqg.rtd", ,"ContractData","C.US."&$X$1&$Y$1, "Symbol",, "T"),11)&V54) ->  | Y54: =IF(V54="","",LEFT(RTD("cqg.rtd", ,"ContractData","P.US."&$X$1&$Y$1, "Symbol",, "T"),11)&V54) -> 
A55: =IF(OR(ISTEXT(RTD("cqg.rtd",,"OrderData",""&B55&"","","OpenPosition",""&Display1!$D$3&"")),RTD("cqg.rtd",,"OrderData",""&B55&"","","OpenPosition",""&Display1!$D$3&"")=0),A54+0.0001,INT(A54)+1) -> 1.0015 | B55: =(LEFT(B54,SEARCH(Display1!$G$2,B54)+LEN(Display1!$G$2)+2))&RIGHT(B54,LEN(B54)-(SEARCH(Display1!$G$2,B54)+LEN(Display1!$G$2)+2))+Display1!$F$5 -> C.US.EW1K1621150 | C55: 0 | D55: 55 | E55: 0 | F55: =IFERROR(VLOOKUP($U$1+15,$D$1:$E$80,2,FALSE),0) -> 0 | G55: 0 | H55: 55 | I55: 0 | J55: =IFERROR(VLOOKUP($V$1+15,$H$1:$I$80,2,FALSE),0) -> 0 | L55: =IF(K55="","",COUNT($K$1:$K$160)-(RANK(K55,$K$1:$K$160)+COUNTIF($K$1:K55,K55)-1)+1) ->  | M55: 0 | N55: 55 | X55: =IF(V55="","",LEFT(RTD("cqg.rtd", ,"ContractData","C.US."&$X$1&$Y$1, "Symbol",, "T"),11)&V55) ->  | Y55: =IF(V55="","",LEFT(RTD("cqg.rtd", ,"ContractData","P.US."&$X$1&$Y$1, "Symbol",, "T"),11)&V55) -> 
A56: =IF(OR(ISTEXT(RTD("cqg.rtd",,"OrderData",""&B56&"","","OpenPosition",""&Display1!$D$3&"")),RTD("cqg.rtd",,"OrderData",""&B56&"","","OpenPosition",""&Display1!$D$3&"")=0),A55+0.0001,INT(A55)+1) -> 1.0016 | B56: =(LEFT(B55,SEARCH(Display1!$G$2,B55)+LEN(Display1!$G$2)+2))&RIGHT(B55,LEN(B55)-(SEARCH(Display1!$G$2,B55)+LEN(Display1!$G$2)+2))+Display1!$F$5 -> C.US.EW1K1621200 | C56: 0 | D56: 56 | E56: 0 | F56: =IFERROR(VLOOKUP($U$1+16,$D$1:$E$80,2,FALSE),0) -> 0 | G56: 0 | H56: 56 | I56: 0 | J56: =IFERROR(VLOOKUP($V$1+16,$H$1:$I$80,2,FALSE),0) -> 0 | L56: =IF(K56="","",COUNT($K$1:$K$160)-(RANK(K56,$K$1:$K$160)+COUNTIF($K$1:K56,K56)-1)+1) ->  | M56: 0 | N56: 56 | X56: =IF(V56="","",LEFT(RTD("cqg.rtd", ,"ContractData","C.US."&$X$1&$Y$1, "Symbol",, "T"),11)&V56) ->  | Y56: =IF(V56="","",LEFT(RTD("cqg.rtd", ,"ContractData","P.US."&$X$1&$Y$1, "Symbol",, "T"),11)&V56) -> 
A57: =IF(OR(ISTEXT(RTD("cqg.rtd",,"OrderData",""&B57&"","","OpenPosition",""&Display1!$D$3&"")),RTD("cqg.rtd",,"OrderData",""&B57&"","","OpenPosition",""&Display1!$D$3&"")=0),A56+0.0001,INT(A56)+1) -> 1.0017 | B57: =(LEFT(B56,SEARCH(Display1!$G$2,B56)+LEN(Display1!$G$2)+2))&RIGHT(B56,LEN(B56)-(SEARCH(Display1!$G$2,B56)+LEN(Display1!$G$2)+2))+Display1!$F$5 -> C.US.EW1K1621250 | C57: 0 | D57: 57 | E57: 0 | F57: =IFERROR(VLOOKUP($U$1+17,$D$1:$E$80,2,FALSE),0) -> 0 | G57: 0 | H57: 57 | I57: 0 | J57: =IFERROR(VLOOKUP($V$1+17,$H$1:$I$80,2,FALSE),0) -> 0 | L57: =IF(K57="","",COUNT($K$1:$K$160)-(RANK(K57,$K$1:$K$160)+COUNTIF($K$1:K57,K57)-1)+1) ->  | M57: 0 | N57: 57 | X57: =IF(V57="","",LEFT(RTD("cqg.rtd", ,"ContractData","C.US."&$X$1&$Y$1, "Symbol",, "T"),11)&V57) ->  | Y57: =IF(V57="","",LEFT(RTD("cqg.rtd", ,"ContractData","P.US."&$X$1&$Y$1, "Symbol",, "T"),11)&V57) -> 
A58: =IF(OR(ISTEXT(RTD("cqg.rtd",,"OrderData",""&B58&"","","OpenPosition",""&Display1!$D$3&"")),RTD("cqg.rtd",,"OrderData",""&B58&"","","OpenPosition",""&Display1!$D$3&"")=0),A57+0.0001,INT(A57)+1) -> 1.0018 | B58: =(LEFT(B57,SEARCH(Display1!$G$2,B57)+LEN(Display1!$G$2)+2))&RIGHT(B57,LEN(B57)-(SEARCH(Display1!$G$2,B57)+LEN(Display1!$G$2)+2))+Display1!$F$5 -> C.US.EW1K1621300 | C58: 0 | D58: 58 | E58: 0 | F58: =IFERROR(VLOOKUP($U$1+18,$D$1:$E$80,2,FALSE),0) -> 0 | G58: 0 | H58: 58 | I58: 0 | J58: =IFERROR(VLOOKUP($V$1+18,$H$1:$I$80,2,FALSE),0) -> 0 | L58: =IF(K58="","",COUNT($K$1:$K$160)-(RANK(K58,$K$1:$K$160)+COUNTIF($K$1:K58,K58)-1)+1) ->  | M58: 0 | N58: 58 | X58: =IF(V58="","",LEFT(RTD("cqg.rtd", ,"ContractData","C.US."&$X$1&$Y$1, "Symbol",, "T"),11)&V58) ->  | Y58: =IF(V58="","",LEFT(RTD("cqg.rtd", ,"ContractData","P.US."&$X$1&$Y$1, "Symbol",, "T"),11)&V58) -> 
A59: =IF(OR(ISTEXT(RTD("cqg.rtd",,"OrderData",""&B59&"","","OpenPosition",""&Display1!$D$3&"")),RTD("cqg.rtd",,"OrderData",""&B59&"","","OpenPosition",""&Display1!$D$3&"")=0),A58+0.0001,INT(A58)+1) -> 1.0019 | B59: =(LEFT(B58,SEARCH(Display1!$G$2,B58)+LEN(Display1!$G$2)+2))&RIGHT(B58,LEN(B58)-(SEARCH(Display1!$G$2,B58)+LEN(Display1!$G$2)+2))+Display1!$F$5 -> C.US.EW1K1621350 | C59: 0 | D59: 59 | E59: 0 | F59: =IFERROR(VLOOKUP($U$1+19,$D$1:$E$80,2,FALSE),0) -> 0 | G59: 0 | H59: 59 | I59: 0 | J59: =IFERROR(VLOOKUP($V$1+19,$H$1:$I$80,2,FALSE),0) -> 0 | L59: =IF(K59="","",COUNT($K$1:$K$160)-(RANK(K59,$K$1:$K$160)+COUNTIF($K$1:K59,K59)-1)+1) ->  | M59: 0 | N59: 59 | X59: =IF(V59="","",LEFT(RTD("cqg.rtd", ,"ContractData","C.US."&$X$1&$Y$1, "Symbol",, "T"),11)&V59) ->  | Y59: =IF(V59="","",LEFT(RTD("cqg.rtd", ,"ContractData","P.US."&$X$1&$Y$1, "Symbol",, "T"),11)&V59) -> 
A60: =IF(OR(ISTEXT(RTD("cqg.rtd",,"OrderData",""&B60&"","","OpenPosition",""&Display1!$D$3&"")),RTD("cqg.rtd",,"OrderData",""&B60&"","","OpenPosition",""&Display1!$D$3&"")=0),A59+0.0001,INT(A59)+1) -> 1.002 | B60: =(LEFT(B59,SEARCH(Display1!$G$2,B59)+LEN(Display1!$G$2)+2))&RIGHT(B59,LEN(B59)-(SEARCH(Display1!$G$2,B59)+LEN(Display1!$G$2)+2))+Display1!$F$5 -> C.US.EW1K1621400 | C60: 0 | D60: 60 | E60: 0 | F60: =IFERROR(VLOOKUP($U$1+20,$D$1:$E$80,2,FALSE),0) -> 0 | G60: 0 | H60: 60 | I60: 0 | J60: =IFERROR(VLOOKUP($V$1+20,$H$1:$I$80,2,FALSE),0) -> 0 | L60: =IF(K60="","",COUNT($K$1:$K$160)-(RANK(K60,$K$1:$K$160)+COUNTIF($K$1:K60,K60)-1)+1) ->  | M60: 0 | N60: 60
A61: =IF(OR(ISTEXT(RTD("cqg.rtd",,"OrderData",""&B61&"","","OpenPosition",""&Display1!$D$3&"")),RTD("cqg.rtd",,"OrderData",""&B61&"","","OpenPosition",""&Display1!$D$3&"")=0),A60+0.0001,INT(A60)+1) -> 1.0021 | C61: 0 | D61: 61 | E61: 0 | F61: =IFERROR(VLOOKUP($U$1+21,$D$1:$E$80,2,FALSE),0) -> 0 | G61: 0 | H61: 61 | I61: 0 | J61: =IFERROR(VLOOKUP($V$1+21,$H$1:$I$80,2,FALSE),0) -> 0 | L61: =IF(K61="","",COUNT($K$1:$K$160)-(RANK(K61,$K$1:$K$160)+COUNTIF($K$1:K61,K61)-1)+1) ->  | M61: 0 | N61: 61
A62: =IF(OR(ISTEXT(RTD("cqg.rtd",,"OrderData",""&B62&"","","OpenPosition",""&Display1!$D$3&"")),RTD("cqg.rtd",,"OrderData",""&B62&"","","OpenPosition",""&Display1!$D$3&"")=0),A61+0.0001,INT(A61)+1) -> 1.0022 | C62: 0 | D62: 62 | E62: 0 | F62: =IFERROR(VLOOKUP($U$1+22,$D$1:$E$80,2,FALSE),0) -> 0 | G62: 0 | H62: 62 | I62: 0 | J62: =IFERROR(VLOOKUP($V$1+22,$H$1:$I$80,2,FALSE),0) -> 0 | L62: =IF(K62="","",COUNT($K$1:$K$160)-(RANK(K62,$K$1:$K$160)+COUNTIF($K$1:K62,K62)-1)+1) ->  | M62: 0 | N62: 62
A63: =IF(OR(ISTEXT(RTD("cqg.rtd",,"OrderData",""&B63&"","","OpenPosition",""&Display1!$D$3&"")),RTD("cqg.rtd",,"OrderData",""&B63&"","","OpenPosition",""&Display1!$D$3&"")=0),A62+0.0001,INT(A62)+1) -> 1.0023 | C63: 0 | D63: 63 | E63: 0 | F63: =IFERROR(VLOOKUP($U$1+23,$D$1:$E$80,2,FALSE),0) -> 0 | G63: 0 | H63: 63 | I63: 0 | J63: =IFERROR(VLOOKUP($V$1+23,$H$1:$I$80,2,FALSE),0) -> 0 | L63: =IF(K63="","",COUNT($K$1:$K$160)-(RANK(K63,$K$1:$K$160)+COUNTIF($K$1:K63,K63)-1)+1) ->  | M63: 0 | N63: 63
A64: =IF(OR(ISTEXT(RTD("cqg.rtd",,"OrderData",""&B64&"","","OpenPosition",""&Display1!$D$3&"")),RTD("cqg.rtd",,"OrderData",""&B64&"","","OpenPosition",""&Display1!$D$3&"")=0),A63+0.0001,INT(A63)+1) -> 1.0024 | C64: 0 | D64: 64 | E64: 0 | F64: =IFERROR(VLOOKUP($U$1+24,$D$1:$E$80,2,FALSE),0) -> 0 | G64: 0 | H64: 64 | I64: 0 | J64: =IFERROR(VLOOKUP($V$1+24,$H$1:$I$80,2,FALSE),0) -> 0 | L64: =IF(K64="","",COUNT($K$1:$K$160)-(RANK(K64,$K$1:$K$160)+COUNTIF($K$1:K64,K64)-1)+1) ->  | M64: 0 | N64: 64
A65: =IF(OR(ISTEXT(RTD("cqg.rtd",,"OrderData",""&B65&"","","OpenPosition",""&Display1!$D$3&"")),RTD("cqg.rtd",,"OrderData",""&B65&"","","OpenPosition",""&Display1!$D$3&"")=0),A64+0.0001,INT(A64)+1) -> 1.0025 | C65: 0 | D65: 65 | E65: 0 | F65: =IFERROR(VLOOKUP($U$1+25,$D$1:$E$80,2,FALSE),0) -> 0 | G65: 0 | H65: 65 | I65: 0 | J65: =IFERROR(VLOOKUP($V$1+25,$H$1:$I$80,2,FALSE),0) -> 0 | L65: =IF(K65="","",COUNT($K$1:$K$160)-(RANK(K65,$K$1:$K$160)+COUNTIF($K$1:K65,K65)-1)+1) ->  | M65: 0 | N65: 65
A66: =IF(OR(ISTEXT(RTD("cqg.rtd",,"OrderData",""&B66&"","","OpenPosition",""&Display1!$D$3&"")),RTD("cqg.rtd",,"OrderData",""&B66&"","","OpenPosition",""&Display1!$D$3&"")=0),A65+0.0001,INT(A65)+1) -> 1.0026 | C66: =IF(LOOKUP(D66,$A$1:$A$80)<>D66,0,1) -> 0 | D66: 66 | E66: =IF(C66=1,VLOOKUP(D66,$A$1:$B$80,2),0) -> 0 | F66: =IFERROR(VLOOKUP($U$1+26,$D$1:$E$80,2,FALSE),0) -> 0 | G66: =IF(LOOKUP(D146,$A$81:$A$161)<>D146,0,1) -> 0 | H66: 66 | I66: =IF(G66=1,VLOOKUP(H66,$A$81:$B$161,2),0) -> 0 | J66: =IFERROR(VLOOKUP($V$1+26,$H$1:$I$80,2,FALSE),0) -> 0 | K66: =IF(E66=0,"",RIGHT(E66,5)*1) ->  | L66: =IF(K66="","",COUNT($K$1:$K$160)-(RANK(K66,$K$1:$K$160)+COUNTIF($K$1:K66,K66)-1)+1) ->  | M66: =E66 -> 0 | N66: 66 | O66: =VLOOKUP(N66,$L$1:$M$160,2,FALSE) ->  | P66: =IFERROR(RIGHT(O66,5)*1,"") -> 
A67: =IF(OR(ISTEXT(RTD("cqg.rtd",,"OrderData",""&B67&"","","OpenPosition",""&Display1!$D$3&"")),RTD("cqg.rtd",,"OrderData",""&B67&"","","OpenPosition",""&Display1!$D$3&"")=0),A66+0.0001,INT(A66)+1) -> 1.0027 | C67: 0 | D67: =D66+1 -> 67 | E67: 0 | F67: =IFERROR(VLOOKUP($U$1+27,$D$1:$E$80,2,FALSE),0) -> 0 | G67: 0 | H67: =H66+1 -> 67 | I67: 0 | J67: =IFERROR(VLOOKUP($V$1+27,$H$1:$I$80,2,FALSE),0) -> 0 | L67: =IF(K67="","",COUNT($K$1:$K$160)-(RANK(K67,$K$1:$K$160)+COUNTIF($K$1:K67,K67)-1)+1) ->  | M67: 0 | N67: =N66+1 -> 67 | Q67: =IF(P67="","",IF(P67=P66,1,0)) ->  | R67: =IF(AND(Q67=0,Q66<>1,P67<>R66),P67,P68) ->  | S67: =IF(R67="","",IF(R67=R68,1,0)) -> 
A68: =IF(OR(ISTEXT(RTD("cqg.rtd",,"OrderData",""&B68&"","","OpenPosition",""&Display1!$D$3&"")),RTD("cqg.rtd",,"OrderData",""&B68&"","","OpenPosition",""&Display1!$D$3&"")=0),A67+0.0001,INT(A67)+1) -> 1.0028 | C68: 0 | D68: 68 | E68: 0 | F68: =IFERROR(VLOOKUP($U$1+28,$D$1:$E$80,2,FALSE),0) -> 0 | G68: 0 | H68: 68 | I68: 0 | J68: =IFERROR(VLOOKUP($V$1+28,$H$1:$I$80,2,FALSE),0) -> 0 | L68: =IF(K68="","",COUNT($K$1:$K$160)-(RANK(K68,$K$1:$K$160)+COUNTIF($K$1:K68,K68)-1)+1) ->  | M68: 0 | N68: 68
A69: =IF(OR(ISTEXT(RTD("cqg.rtd",,"OrderData",""&B69&"","","OpenPosition",""&Display1!$D$3&"")),RTD("cqg.rtd",,"OrderData",""&B69&"","","OpenPosition",""&Display1!$D$3&"")=0),A68+0.0001,INT(A68)+1) -> 1.0029 | C69: 0 | D69: 69 | E69: 0 | F69: =IFERROR(VLOOKUP($U$1+29,$D$1:$E$80,2,FALSE),0) -> 0 | G69: 0 | H69: 69 | I69: 0 | J69: =IFERROR(VLOOKUP($V$1+29,$H$1:$I$80,2,FALSE),0) -> 0 | L69: =IF(K69="","",COUNT($K$1:$K$160)-(RANK(K69,$K$1:$K$160)+COUNTIF($K$1:K69,K69)-1)+1) ->  | M69: 0 | N69: 69
A70: =IF(OR(ISTEXT(RTD("cqg.rtd",,"OrderData",""&B70&"","","OpenPosition",""&Display1!$D$3&"")),RTD("cqg.rtd",,"OrderData",""&B70&"","","OpenPosition",""&Display1!$D$3&"")=0),A69+0.0001,INT(A69)+1) -> 1.003 | C70: 0 | D70: 70 | E70: 0 | F70: =IFERROR(VLOOKUP($U$1+30,$D$1:$E$80,2,FALSE),0) -> 0 | G70: 0 | H70: 70 | I70: 0 | J70: =IFERROR(VLOOKUP($V$1+30,$H$1:$I$80,2,FALSE),0) -> 0 | L70: =IF(K70="","",COUNT($K$1:$K$160)-(RANK(K70,$K$1:$K$160)+COUNTIF($K$1:K70,K70)-1)+1) ->  | M70: 0 | N70: 70
A71: =IF(OR(ISTEXT(RTD("cqg.rtd",,"OrderData",""&B71&"","","OpenPosition",""&Display1!$D$3&"")),RTD("cqg.rtd",,"OrderData",""&B71&"","","OpenPosition",""&Display1!$D$3&"")=0),A70+0.0001,INT(A70)+1) -> 1.0031 | C71: 0 | D71: 71 | E71: 0 | F71: =IFERROR(VLOOKUP($U$1+31,$D$1:$E$80,2,FALSE),0) -> 0 | G71: 0 | H71: 71 | I71: 0 | J71: =IFERROR(VLOOKUP($V$1+31,$H$1:$I$80,2,FALSE),0) -> 0 | L71: =IF(K71="","",COUNT($K$1:$K$160)-(RANK(K71,$K$1:$K$160)+COUNTIF($K$1:K71,K71)-1)+1) ->  | M71: 0 | N71: 71
A72: =IF(OR(ISTEXT(RTD("cqg.rtd",,"OrderData",""&B72&"","","OpenPosition",""&Display1!$D$3&"")),RTD("cqg.rtd",,"OrderData",""&B72&"","","OpenPosition",""&Display1!$D$3&"")=0),A71+0.0001,INT(A71)+1) -> 1.0032 | C72: 0 | D72: 72 | E72: 0 | F72: =IFERROR(VLOOKUP($U$1+32,$D$1:$E$80,2,FALSE),0) -> 0 | G72: 0 | H72: 72 | I72: 0 | J72: =IFERROR(VLOOKUP($V$1+32,$H$1:$I$80,2,FALSE),0) -> 0 | L72: =IF(K72="","",COUNT($K$1:$K$160)-(RANK(K72,$K$1:$K$160)+COUNTIF($K$1:K72,K72)-1)+1) ->  | M72: 0 | N72: 72
A73: =IF(OR(ISTEXT(RTD("cqg.rtd",,"OrderData",""&B73&"","","OpenPosition",""&Display1!$D$3&"")),RTD("cqg.rtd",,"OrderData",""&B73&"","","OpenPosition",""&Display1!$D$3&"")=0),A72+0.0001,INT(A72)+1) -> 1.0033 | C73: 0 | D73: 73 | E73: 0 | F73: =IFERROR(VLOOKUP($U$1+33,$D$1:$E$80,2,FALSE),0) -> 0 | G73: 0 | H73: 73 | I73: 0 | J73: =IFERROR(VLOOKUP($V$1+33,$H$1:$I$80,2,FALSE),0) -> 0 | L73: =IF(K73="","",COUNT($K$1:$K$160)-(RANK(K73,$K$1:$K$160)+COUNTIF($K$1:K73,K73)-1)+1) ->  | M73: 0 | N73: 73 | T73: =IF(AND(S72=0,S72<>1,R73<>T72),R73,R74) -> 
A74: =IF(OR(ISTEXT(RTD("cqg.rtd",,"OrderData",""&B74&"","","OpenPosition",""&Display1!$D$3&"")),RTD("cqg.rtd",,"OrderData",""&B74&"","","OpenPosition",""&Display1!$D$3&"")=0),A73+0.0001,INT(A73)+1) -> 1.0034 | C74: 0 | D74: 74 | E74: 0 | F74: =IFERROR(VLOOKUP($U$1+34,$D$1:$E$80,2,FALSE),0) -> 0 | G74: 0 | H74: 74 | I74: 0 | J74: =IFERROR(VLOOKUP($V$1+34,$H$1:$I$80,2,FALSE),0) -> 0 | L74: =IF(K74="","",COUNT($K$1:$K$160)-(RANK(K74,$K$1:$K$160)+COUNTIF($K$1:K74,K74)-1)+1) ->  | M74: 0 | N74: 74
A75: =IF(OR(ISTEXT(RTD("cqg.rtd",,"OrderData",""&B75&"","","OpenPosition",""&Display1!$D$3&"")),RTD("cqg.rtd",,"OrderData",""&B75&"","","OpenPosition",""&Display1!$D$3&"")=0),A74+0.0001,INT(A74)+1) -> 1.0035 | C75: 0 | D75: 75 | E75: 0 | F75: =IFERROR(VLOOKUP($U$1+35,$D$1:$E$80,2,FALSE),0) -> 0 | G75: 0 | H75: 75 | I75: 0 | J75: =IFERROR(VLOOKUP($V$1+35,$H$1:$I$80,2,FALSE),0) -> 0 | L75: =IF(K75="","",COUNT($K$1:$K$160)-(RANK(K75,$K$1:$K$160)+COUNTIF($K$1:K75,K75)-1)+1) ->  | M75: 0 | N75: 75
A76: =IF(OR(ISTEXT(RTD("cqg.rtd",,"OrderData",""&B76&"","","OpenPosition",""&Display1!$D$3&"")),RTD("cqg.rtd",,"OrderData",""&B76&"","","OpenPosition",""&Display1!$D$3&"")=0),A75+0.0001,INT(A75)+1) -> 1.0036 | C76: 0 | D76: 76 | E76: 0 | F76: =IFERROR(VLOOKUP($U$1+36,$D$1:$E$80,2,FALSE),0) -> 0 | G76: 0 | H76: 76 | I76: 0 | J76: =IFERROR(VLOOKUP($V$1+36,$H$1:$I$80,2,FALSE),0) -> 0 | L76: =IF(K76="","",COUNT($K$1:$K$160)-(RANK(K76,$K$1:$K$160)+COUNTIF($K$1:K76,K76)-1)+1) ->  | M76: 0 | N76: 76
A77: =IF(OR(ISTEXT(RTD("cqg.rtd",,"OrderData",""&B77&"","","OpenPosition",""&Display1!$D$3&"")),RTD("cqg.rtd",,"OrderData",""&B77&"","","OpenPosition",""&Display1!$D$3&"")=0),A76+0.0001,INT(A76)+1) -> 1.0037 | C77: 0 | D77: 77 | E77: 0 | F77: =IFERROR(VLOOKUP($U$1+37,$D$1:$E$80,2,FALSE),0) -> 0 | G77: 0 | H77: 77 | I77: 0 | J77: =IFERROR(VLOOKUP($V$1+37,$H$1:$I$80,2,FALSE),0) -> 0 | L77: =IF(K77="","",COUNT($K$1:$K$160)-(RANK(K77,$K$1:$K$160)+COUNTIF($K$1:K77,K77)-1)+1) ->  | M77: 0 | N77: 77
A78: =IF(OR(ISTEXT(RTD("cqg.rtd",,"OrderData",""&B78&"","","OpenPosition",""&Display1!$D$3&"")),RTD("cqg.rtd",,"OrderData",""&B78&"","","OpenPosition",""&Display1!$D$3&"")=0),A77+0.0001,INT(A77)+1) -> 1.0038 | C78: 0 | D78: 78 | E78: 0 | F78: =IFERROR(VLOOKUP($U$1+38,$D$1:$E$80,2,FALSE),0) -> 0 | G78: 0 | H78: 78 | I78: 0 | J78: =IFERROR(VLOOKUP($V$1+38,$H$1:$I$80,2,FALSE),0) -> 0 | L78: =IF(K78="","",COUNT($K$1:$K$160)-(RANK(K78,$K$1:$K$160)+COUNTIF($K$1:K78,K78)-1)+1) ->  | M78: 0 | N78: 78
A79: =IF(OR(ISTEXT(RTD("cqg.rtd",,"OrderData",""&B79&"","","OpenPosition",""&Display1!$D$3&"")),RTD("cqg.rtd",,"OrderData",""&B79&"","","OpenPosition",""&Display1!$D$3&"")=0),A78+0.0001,INT(A78)+1) -> 1.0039 | C79: 0 | D79: 79 | E79: 0 | F79: =IFERROR(VLOOKUP($U$1+39,$D$1:$E$80,2,FALSE),0) -> 0 | G79: 0 | H79: 79 | I79: 0 | J79: =IFERROR(VLOOKUP($V$1+39,$H$1:$I$80,2,FALSE),0) -> 0 | L79: =IF(K79="","",COUNT($K$1:$K$160)-(RANK(K79,$K$1:$K$160)+COUNTIF($K$1:K79,K79)-1)+1) ->  | M79: 0 | N79: 79
A80: =IF(OR(ISTEXT(RTD("cqg.rtd",,"OrderData",""&B80&"","","OpenPosition",""&Display1!$D$3&"")),RTD("cqg.rtd",,"OrderData",""&B80&"","","OpenPosition",""&Display1!$D$3&"")=0),A79+0.0001,INT(A79)+1) -> 1.004 | C80: 0 | D80: 80 | E80: 0 | F80: =IFERROR(VLOOKUP($U$1+40,$D$1:$E$80,2,FALSE),0) -> 0 | G80: 0 | H80: 80 | I80: 0 | J80: =IFERROR(VLOOKUP($V$1+40,$H$1:$I$80,2,FALSE),0) -> 0 | L80: =IF(K80="","",COUNT($K$1:$K$160)-(RANK(K80,$K$1:$K$160)+COUNTIF($K$1:K80,K80)-1)+1) ->  | M80: 0 | N80: 80
A81: =IF(OR(ISTEXT(RTD("cqg.rtd",,"OrderData",""&B81&"","","OpenPosition",""&Display1!$D$3&"")),RTD("cqg.rtd",,"OrderData",""&B81&"","","OpenPosition",""&Display1!$D$3&"")=0),0,0) -> 0 | C81: =IF(LOOKUP(D81,$A$81:$A$161)<>D81,0,1) -> 1 | D81: 1 | E81: =IF(C81=1,VLOOKUP(D1,$A$81:$B$161,2),0) -> P.US.EW1K1620400 | K81: =IF(I1=0,"",RIGHT(I1,5)*1) -> 20400 | L81: =IF(K81="","",COUNT($K$1:$K$160)-(RANK(K81,$K$1:$K$160)+COUNTIF($K$1:K81,K81)-1)+1) -> 1 | M81: =I1 -> P.US.EW1K1620400 | N81: 81
A82: =IF(OR(ISTEXT(RTD("cqg.rtd",,"OrderData",""&B82&"","","OpenPosition",""&Display1!$D$3&"")),RTD("cqg.rtd",,"OrderData",""&B82&"","","OpenPosition",""&Display1!$D$3&"")=0),A81+0.0001,INT(A81)+1) -> 0.0001 | C82: =IF(LOOKUP(D82,$A$81:$A$161)<>D82,0,1) -> 0 | D82: =D81+1 -> 2 | E82: =IF(C82=1,VLOOKUP(D2,$A$81:$B$161,2),0) -> 0 | K82: =IF(I2=0,"",RIGHT(I2,5)*1) ->  | L82: =IF(K82="","",COUNT($K$1:$K$160)-(RANK(K82,$K$1:$K$160)+COUNTIF($K$1:K82,K82)-1)+1) ->  | M82: =I2 -> 0 | N82: 82
A83: =IF(OR(ISTEXT(RTD("cqg.rtd",,"OrderData",""&B83&"","","OpenPosition",""&Display1!$D$3&"")),RTD("cqg.rtd",,"OrderData",""&B83&"","","OpenPosition",""&Display1!$D$3&"")=0),A82+0.0001,INT(A82)+1) -> 0.0002 | C83: 0 | D83: =D82+1 -> 3 | E83: 0 | L83: =IF(K83="","",COUNT($K$1:$K$160)-(RANK(K83,$K$1:$K$160)+COUNTIF($K$1:K83,K83)-1)+1) ->  | M83: 0 | N83: 83
A84: =IF(OR(ISTEXT(RTD("cqg.rtd",,"OrderData",""&B84&"","","OpenPosition",""&Display1!$D$3&"")),RTD("cqg.rtd",,"OrderData",""&B84&"","","OpenPosition",""&Display1!$D$3&"")=0),A83+0.0001,INT(A83)+1) -> 0.0003 | C84: 0 | D84: 4 | E84: 0 | L84: =IF(K84="","",COUNT($K$1:$K$160)-(RANK(K84,$K$1:$K$160)+COUNTIF($K$1:K84,K84)-1)+1) ->  | M84: 0 | N84: 84
A85: =IF(OR(ISTEXT(RTD("cqg.rtd",,"OrderData",""&B85&"","","OpenPosition",""&Display1!$D$3&"")),RTD("cqg.rtd",,"OrderData",""&B85&"","","OpenPosition",""&Display1!$D$3&"")=0),A84+0.0001,INT(A84)+1) -> 0.0004 | C85: 0 | D85: 5 | E85: 0 | L85: =IF(K85="","",COUNT($K$1:$K$160)-(RANK(K85,$K$1:$K$160)+COUNTIF($K$1:K85,K85)-1)+1) ->  | M85: 0 | N85: 85
A86: =IF(OR(ISTEXT(RTD("cqg.rtd",,"OrderData",""&B86&"","","OpenPosition",""&Display1!$D$3&"")),RTD("cqg.rtd",,"OrderData",""&B86&"","","OpenPosition",""&Display1!$D$3&"")=0),A85+0.0001,INT(A85)+1) -> 0.0005 | C86: 0 | D86: 6 | E86: 0 | L86: =IF(K86="","",COUNT($K$1:$K$160)-(RANK(K86,$K$1:$K$160)+COUNTIF($K$1:K86,K86)-1)+1) ->  | M86: 0 | N86: 86
A87: =IF(OR(ISTEXT(RTD("cqg.rtd",,"OrderData",""&B87&"","","OpenPosition",""&Display1!$D$3&"")),RTD("cqg.rtd",,"OrderData",""&B87&"","","OpenPosition",""&Display1!$D$3&"")=0),A86+0.0001,INT(A86)+1) -> 0.0006 | C87: 0 | D87: 7 | E87: 0 | L87: =IF(K87="","",COUNT($K$1:$K$160)-(RANK(K87,$K$1:$K$160)+COUNTIF($K$1:K87,K87)-1)+1) ->  | M87: 0 | N87: 87
A88: =IF(OR(ISTEXT(RTD("cqg.rtd",,"OrderData",""&B88&"","","OpenPosition",""&Display1!$D$3&"")),RTD("cqg.rtd",,"OrderData",""&B88&"","","OpenPosition",""&Display1!$D$3&"")=0),A87+0.0001,INT(A87)+1) -> 0.0007 | C88: 0 | D88: 8 | E88: 0 | L88: =IF(K88="","",COUNT($K$1:$K$160)-(RANK(K88,$K$1:$K$160)+COUNTIF($K$1:K88,K88)-1)+1) ->  | M88: 0 | N88: 88
A89: =IF(OR(ISTEXT(RTD("cqg.rtd",,"OrderData",""&B89&"","","OpenPosition",""&Display1!$D$3&"")),RTD("cqg.rtd",,"OrderData",""&B89&"","","OpenPosition",""&Display1!$D$3&"")=0),A88+0.0001,INT(A88)+1) -> 0.0008 | C89: 0 | D89: 9 | E89: 0 | L89: =IF(K89="","",COUNT($K$1:$K$160)-(RANK(K89,$K$1:$K$160)+COUNTIF($K$1:K89,K89)-1)+1) ->  | M89: 0 | N89: 89
A90: =IF(OR(ISTEXT(RTD("cqg.rtd",,"OrderData",""&B90&"","","OpenPosition",""&Display1!$D$3&"")),RTD("cqg.rtd",,"OrderData",""&B90&"","","OpenPosition",""&Display1!$D$3&"")=0),A89+0.0001,INT(A89)+1) -> 0.0009 | C90: 0 | D90: 10 | E90: 0 | L90: =IF(K90="","",COUNT($K$1:$K$160)-(RANK(K90,$K$1:$K$160)+COUNTIF($K$1:K90,K90)-1)+1) ->  | M90: 0 | N90: 90
A91: =IF(OR(ISTEXT(RTD("cqg.rtd",,"OrderData",""&B91&"","","OpenPosition",""&Display1!$D$3&"")),RTD("cqg.rtd",,"OrderData",""&B91&"","","OpenPosition",""&Display1!$D$3&"")=0),A90+0.0001,INT(A90)+1) -> 0.001 | C91: 0 | D91: 11 | E91: 0 | L91: =IF(K91="","",COUNT($K$1:$K$160)-(RANK(K91,$K$1:$K$160)+COUNTIF($K$1:K91,K91)-1)+1) ->  | M91: 0 | N91: 91
A92: =IF(OR(ISTEXT(RTD("cqg.rtd",,"OrderData",""&B92&"","","OpenPosition",""&Display1!$D$3&"")),RTD("cqg.rtd",,"OrderData",""&B92&"","","OpenPosition",""&Display1!$D$3&"")=0),A91+0.0001,INT(A91)+1) -> 0.0011 | C92: 0 | D92: 12 | E92: 0 | L92: =IF(K92="","",COUNT($K$1:$K$160)-(RANK(K92,$K$1:$K$160)+COUNTIF($K$1:K92,K92)-1)+1) ->  | M92: 0 | N92: 92
A93: =IF(OR(ISTEXT(RTD("cqg.rtd",,"OrderData",""&B93&"","","OpenPosition",""&Display1!$D$3&"")),RTD("cqg.rtd",,"OrderData",""&B93&"","","OpenPosition",""&Display1!$D$3&"")=0),A92+0.0001,INT(A92)+1) -> 0.0012 | C93: 0 | D93: 13 | E93: 0 | L93: =IF(K93="","",COUNT($K$1:$K$160)-(RANK(K93,$K$1:$K$160)+COUNTIF($K$1:K93,K93)-1)+1) ->  | M93: 0 | N93: 93
A94: =IF(OR(ISTEXT(RTD("cqg.rtd",,"OrderData",""&B94&"","","OpenPosition",""&Display1!$D$3&"")),RTD("cqg.rtd",,"OrderData",""&B94&"","","OpenPosition",""&Display1!$D$3&"")=0),A93+0.0001,INT(A93)+1) -> 0.0013 | C94: 0 | D94: 14 | E94: 0 | L94: =IF(K94="","",COUNT($K$1:$K$160)-(RANK(K94,$K$1:$K$160)+COUNTIF($K$1:K94,K94)-1)+1) ->  | M94: 0 | N94: 94
A95: =IF(OR(ISTEXT(RTD("cqg.rtd",,"OrderData",""&B95&"","","OpenPosition",""&Display1!$D$3&"")),RTD("cqg.rtd",,"OrderData",""&B95&"","","OpenPosition",""&Display1!$D$3&"")=0),A94+0.0001,INT(A94)+1) -> 0.0014 | C95: 0 | D95: 15 | E95: 0 | L95: =IF(K95="","",COUNT($K$1:$K$160)-(RANK(K95,$K$1:$K$160)+COUNTIF($K$1:K95,K95)-1)+1) ->  | M95: 0 | N95: 95
A96: =IF(OR(ISTEXT(RTD("cqg.rtd",,"OrderData",""&B96&"","","OpenPosition",""&Display1!$D$3&"")),RTD("cqg.rtd",,"OrderData",""&B96&"","","OpenPosition",""&Display1!$D$3&"")=0),A95+0.0001,INT(A95)+1) -> 0.0015 | C96: 0 | D96: 16 | E96: 0 | L96: =IF(K96="","",COUNT($K$1:$K$160)-(RANK(K96,$K$1:$K$160)+COUNTIF($K$1:K96,K96)-1)+1) ->  | M96: 0 | N96: 96
A97: =IF(OR(ISTEXT(RTD("cqg.rtd",,"OrderData",""&B97&"","","OpenPosition",""&Display1!$D$3&"")),RTD("cqg.rtd",,"OrderData",""&B97&"","","OpenPosition",""&Display1!$D$3&"")=0),A96+0.0001,INT(A96)+1) -> 0.0016 | C97: 0 | D97: 17 | E97: 0 | L97: =IF(K97="","",COUNT($K$1:$K$160)-(RANK(K97,$K$1:$K$160)+COUNTIF($K$1:K97,K97)-1)+1) ->  | M97: 0 | N97: 97
A98: =IF(OR(ISTEXT(RTD("cqg.rtd",,"OrderData",""&B98&"","","OpenPosition",""&Display1!$D$3&"")),RTD("cqg.rtd",,"OrderData",""&B98&"","","OpenPosition",""&Display1!$D$3&"")=0),A97+0.0001,INT(A97)+1) -> 0.0017 | C98: 0 | D98: 18 | E98: 0 | L98: =IF(K98="","",COUNT($K$1:$K$160)-(RANK(K98,$K$1:$K$160)+COUNTIF($K$1:K98,K98)-1)+1) ->  | M98: 0 | N98: 98
A99: =IF(OR(ISTEXT(RTD("cqg.rtd",,"OrderData",""&B99&"","","OpenPosition",""&Display1!$D$3&"")),RTD("cqg.rtd",,"OrderData",""&B99&"","","OpenPosition",""&Display1!$D$3&"")=0),A98+0.0001,INT(A98)+1) -> 0.0018 | C99: 0 | D99: 19 | E99: 0 | L99: =IF(K99="","",COUNT($K$1:$K$160)-(RANK(K99,$K$1:$K$160)+COUNTIF($K$1:K99,K99)-1)+1) ->  | M99: 0 | N99: 99
A100: =IF(OR(ISTEXT(RTD("cqg.rtd",,"OrderData",""&B100&"","","OpenPosition",""&Display1!$D$3&"")),RTD("cqg.rtd",,"OrderData",""&B100&"","","OpenPosition",""&Display1!$D$3&"")=0),A99+0.0001,INT(A99)+1) -> 0.0019 | C100: 0 | D100: 20 | E100: 0 | L100: =IF(K100="","",COUNT($K$1:$K$160)-(RANK(K100,$K$1:$K$160)+COUNTIF($K$1:K100,K100)-1)+1) ->  | M100: 0 | N100: 100
A101: =IF(OR(ISTEXT(RTD("cqg.rtd",,"OrderData",""&B101&"","","OpenPosition",""&Display1!$D$3&"")),RTD("cqg.rtd",,"OrderData",""&B101&"","","OpenPosition",""&Display1!$D$3&"")=0),A100+0.0001,INT(A100)+1) -> 0.002 | B101: =(LEFT(B102,SEARCH(Display1!$G$2,B102)+LEN(Display1!$G$2)+2))&RIGHT(B102,LEN(B102)-(SEARCH(Display1!$G$2,B102)+LEN(Display1!$G$2)+2))-Display1!$F$5 -> P.US.EW1K1619400 | C101: 0 | D101: 21 | E101: 0 | L101: =IF(K101="","",COUNT($K$1:$K$160)-(RANK(K101,$K$1:$K$160)+COUNTIF($K$1:K101,K101)-1)+1) ->  | M101: 0 | N101: 101
A102: =IF(OR(ISTEXT(RTD("cqg.rtd",,"OrderData",""&B102&"","","OpenPosition",""&Display1!$D$3&"")),RTD("cqg.rtd",,"OrderData",""&B102&"","","OpenPosition",""&Display1!$D$3&"")=0),A101+0.0001,INT(A101)+1) -> 0.0021 | B102: =(LEFT(B103,SEARCH(Display1!$G$2,B103)+LEN(Display1!$G$2)+2))&RIGHT(B103,LEN(B103)-(SEARCH(Display1!$G$2,B103)+LEN(Display1!$G$2)+2))-Display1!$F$5 -> P.US.EW1K1619450 | C102: 0 | D102: 22 | E102: 0 | L102: =IF(K102="","",COUNT($K$1:$K$160)-(RANK(K102,$K$1:$K$160)+COUNTIF($K$1:K102,K102)-1)+1) ->  | M102: 0 | N102: 102
A103: =IF(OR(ISTEXT(RTD("cqg.rtd",,"OrderData",""&B103&"","","OpenPosition",""&Display1!$D$3&"")),RTD("cqg.rtd",,"OrderData",""&B103&"","","OpenPosition",""&Display1!$D$3&"")=0),A102+0.0001,INT(A102)+1) -> 0.0022 | B103: =(LEFT(B104,SEARCH(Display1!$G$2,B104)+LEN(Display1!$G$2)+2))&RIGHT(B104,LEN(B104)-(SEARCH(Display1!$G$2,B104)+LEN(Display1!$G$2)+2))-Display1!$F$5 -> P.US.EW1K1619500 | C103: 0 | D103: 23 | E103: 0 | L103: =IF(K103="","",COUNT($K$1:$K$160)-(RANK(K103,$K$1:$K$160)+COUNTIF($K$1:K103,K103)-1)+1) ->  | M103: 0 | N103: 103
A104: =IF(OR(ISTEXT(RTD("cqg.rtd",,"OrderData",""&B104&"","","OpenPosition",""&Display1!$D$3&"")),RTD("cqg.rtd",,"OrderData",""&B104&"","","OpenPosition",""&Display1!$D$3&"")=0),A103+0.0001,INT(A103)+1) -> 0.0023 | B104: =(LEFT(B105,SEARCH(Display1!$G$2,B105)+LEN(Display1!$G$2)+2))&RIGHT(B105,LEN(B105)-(SEARCH(Display1!$G$2,B105)+LEN(Display1!$G$2)+2))-Display1!$F$5 -> P.US.EW1K1619550 | C104: 0 | D104: 24 | E104: 0 | L104: =IF(K104="","",COUNT($K$1:$K$160)-(RANK(K104,$K$1:$K$160)+COUNTIF($K$1:K104,K104)-1)+1) ->  | M104: 0 | N104: 104
A105: =IF(OR(ISTEXT(RTD("cqg.rtd",,"OrderData",""&B105&"","","OpenPosition",""&Display1!$D$3&"")),RTD("cqg.rtd",,"OrderData",""&B105&"","","OpenPosition",""&Display1!$D$3&"")=0),A104+0.0001,INT(A104)+1) -> 0.0024 | B105: =(LEFT(B106,SEARCH(Display1!$G$2,B106)+LEN(Display1!$G$2)+2))&RIGHT(B106,LEN(B106)-(SEARCH(Display1!$G$2,B106)+LEN(Display1!$G$2)+2))-Display1!$F$5 -> P.US.EW1K1619600 | C105: 0 | D105: 25 | E105: 0 | L105: =IF(K105="","",COUNT($K$1:$K$160)-(RANK(K105,$K$1:$K$160)+COUNTIF($K$1:K105,K105)-1)+1) ->  | M105: 0 | N105: 105
A106: =IF(OR(ISTEXT(RTD("cqg.rtd",,"OrderData",""&B106&"","","OpenPosition",""&Display1!$D$3&"")),RTD("cqg.rtd",,"OrderData",""&B106&"","","OpenPosition",""&Display1!$D$3&"")=0),A105+0.0001,INT(A105)+1) -> 0.0025 | B106: =(LEFT(B107,SEARCH(Display1!$G$2,B107)+LEN(Display1!$G$2)+2))&RIGHT(B107,LEN(B107)-(SEARCH(Display1!$G$2,B107)+LEN(Display1!$G$2)+2))-Display1!$F$5 -> P.US.EW1K1619650 | C106: 0 | D106: 26 | E106: 0 | L106: =IF(K106="","",COUNT($K$1:$K$160)-(RANK(K106,$K$1:$K$160)+COUNTIF($K$1:K106,K106)-1)+1) ->  | M106: 0 | N106: 106
A107: =IF(OR(ISTEXT(RTD("cqg.rtd",,"OrderData",""&B107&"","","OpenPosition",""&Display1!$D$3&"")),RTD("cqg.rtd",,"OrderData",""&B107&"","","OpenPosition",""&Display1!$D$3&"")=0),A106+0.0001,INT(A106)+1) -> 0.0026 | B107: =(LEFT(B108,SEARCH(Display1!$G$2,B108)+LEN(Display1!$G$2)+2))&RIGHT(B108,LEN(B108)-(SEARCH(Display1!$G$2,B108)+LEN(Display1!$G$2)+2))-Display1!$F$5 -> P.US.EW1K1619700 | C107: 0 | D107: 27 | E107: 0 | L107: =IF(K107="","",COUNT($K$1:$K$160)-(RANK(K107,$K$1:$K$160)+COUNTIF($K$1:K107,K107)-1)+1) ->  | M107: 0 | N107: 107
A108: =IF(OR(ISTEXT(RTD("cqg.rtd",,"OrderData",""&B108&"","","OpenPosition",""&Display1!$D$3&"")),RTD("cqg.rtd",,"OrderData",""&B108&"","","OpenPosition",""&Display1!$D$3&"")=0),A107+0.0001,INT(A107)+1) -> 0.0027 | B108: =(LEFT(B109,SEARCH(Display1!$G$2,B109)+LEN(Display1!$G$2)+2))&RIGHT(B109,LEN(B109)-(SEARCH(Display1!$G$2,B109)+LEN(Display1!$G$2)+2))-Display1!$F$5 -> P.US.EW1K1619750 | C108: 0 | D108: 28 | E108: 0 | L108: =IF(K108="","",COUNT($K$1:$K$160)-(RANK(K108,$K$1:$K$160)+COUNTIF($K$1:K108,K108)-1)+1) ->  | M108: 0 | N108: 108
A109: =IF(OR(ISTEXT(RTD("cqg.rtd",,"OrderData",""&B109&"","","OpenPosition",""&Display1!$D$3&"")),RTD("cqg.rtd",,"OrderData",""&B109&"","","OpenPosition",""&Display1!$D$3&"")=0),A108+0.0001,INT(A108)+1) -> 0.0028 | B109: =(LEFT(B110,SEARCH(Display1!$G$2,B110)+LEN(Display1!$G$2)+2))&RIGHT(B110,LEN(B110)-(SEARCH(Display1!$G$2,B110)+LEN(Display1!$G$2)+2))-Display1!$F$5 -> P.US.EW1K1619800 | C109: 0 | D109: 29 | E109: 0 | L109: =IF(K109="","",COUNT($K$1:$K$160)-(RANK(K109,$K$1:$K$160)+COUNTIF($K$1:K109,K109)-1)+1) ->  | M109: 0 | N109: 109
A110: =IF(OR(ISTEXT(RTD("cqg.rtd",,"OrderData",""&B110&"","","OpenPosition",""&Display1!$D$3&"")),RTD("cqg.rtd",,"OrderData",""&B110&"","","OpenPosition",""&Display1!$D$3&"")=0),A109+0.0001,INT(A109)+1) -> 0.0029 | B110: =(LEFT(B111,SEARCH(Display1!$G$2,B111)+LEN(Display1!$G$2)+2))&RIGHT(B111,LEN(B111)-(SEARCH(Display1!$G$2,B111)+LEN(Display1!$G$2)+2))-Display1!$F$5 -> P.US.EW1K1619850 | C110: 0 | D110: 30 | E110: 0 | L110: =IF(K110="","",COUNT($K$1:$K$160)-(RANK(K110,$K$1:$K$160)+COUNTIF($K$1:K110,K110)-1)+1) ->  | M110: 0 | N110: 110
A111: =IF(OR(ISTEXT(RTD("cqg.rtd",,"OrderData",""&B111&"","","OpenPosition",""&Display1!$D$3&"")),RTD("cqg.rtd",,"OrderData",""&B111&"","","OpenPosition",""&Display1!$D$3&"")=0),A110+0.0001,INT(A110)+1) -> 0.003 | B111: =(LEFT(B112,SEARCH(Display1!$G$2,B112)+LEN(Display1!$G$2)+2))&RIGHT(B112,LEN(B112)-(SEARCH(Display1!$G$2,B112)+LEN(Display1!$G$2)+2))-Display1!$F$5 -> P.US.EW1K1619900 | C111: 0 | D111: 31 | E111: 0 | L111: =IF(K111="","",COUNT($K$1:$K$160)-(RANK(K111,$K$1:$K$160)+COUNTIF($K$1:K111,K111)-1)+1) ->  | M111: 0 | N111: 111
A112: =IF(OR(ISTEXT(RTD("cqg.rtd",,"OrderData",""&B112&"","","OpenPosition",""&Display1!$D$3&"")),RTD("cqg.rtd",,"OrderData",""&B112&"","","OpenPosition",""&Display1!$D$3&"")=0),A111+0.0001,INT(A111)+1) -> 0.0031 | B112: =(LEFT(B113,SEARCH(Display1!$G$2,B113)+LEN(Display1!$G$2)+2))&RIGHT(B113,LEN(B113)-(SEARCH(Display1!$G$2,B113)+LEN(Display1!$G$2)+2))-Display1!$F$5 -> P.US.EW1K1619950 | C112: 0 | D112: 32 | E112: 0 | L112: =IF(K112="","",COUNT($K$1:$K$160)-(RANK(K112,$K$1:$K$160)+COUNTIF($K$1:K112,K112)-1)+1) ->  | M112: 0 | N112: 112
A113: =IF(OR(ISTEXT(RTD("cqg.rtd",,"OrderData",""&B113&"","","OpenPosition",""&Display1!$D$3&"")),RTD("cqg.rtd",,"OrderData",""&B113&"","","OpenPosition",""&Display1!$D$3&"")=0),A112+0.0001,INT(A112)+1) -> 0.0032 | B113: =(LEFT(B114,SEARCH(Display1!$G$2,B114)+LEN(Display1!$G$2)+2))&RIGHT(B114,LEN(B114)-(SEARCH(Display1!$G$2,B114)+LEN(Display1!$G$2)+2))-Display1!$F$5 -> P.US.EW1K1620000 | C113: 0 | D113: 33 | E113: 0 | L113: =IF(K113="","",COUNT($K$1:$K$160)-(RANK(K113,$K$1:$K$160)+COUNTIF($K$1:K113,K113)-1)+1) ->  | M113: 0 | N113: 113
A114: =IF(OR(ISTEXT(RTD("cqg.rtd",,"OrderData",""&B114&"","","OpenPosition",""&Display1!$D$3&"")),RTD("cqg.rtd",,"OrderData",""&B114&"","","OpenPosition",""&Display1!$D$3&"")=0),A113+0.0001,INT(A113)+1) -> 0.0033 | B114: =(LEFT(B115,SEARCH(Display1!$G$2,B115)+LEN(Display1!$G$2)+2))&RIGHT(B115,LEN(B115)-(SEARCH(Display1!$G$2,B115)+LEN(Display1!$G$2)+2))-Display1!$F$5 -> P.US.EW1K1620050 | C114: 0 | D114: 34 | E114: 0 | L114: =IF(K114="","",COUNT($K$1:$K$160)-(RANK(K114,$K$1:$K$160)+COUNTIF($K$1:K114,K114)-1)+1) ->  | M114: 0 | N114: 114
A115: =IF(OR(ISTEXT(RTD("cqg.rtd",,"OrderData",""&B115&"","","OpenPosition",""&Display1!$D$3&"")),RTD("cqg.rtd",,"OrderData",""&B115&"","","OpenPosition",""&Display1!$D$3&"")=0),A114+0.0001,INT(A114)+1) -> 0.0034 | B115: =(LEFT(B116,SEARCH(Display1!$G$2,B116)+LEN(Display1!$G$2)+2))&RIGHT(B116,LEN(B116)-(SEARCH(Display1!$G$2,B116)+LEN(Display1!$G$2)+2))-Display1!$F$5 -> P.US.EW1K1620100 | C115: 0 | D115: 35 | E115: 0 | L115: =IF(K115="","",COUNT($K$1:$K$160)-(RANK(K115,$K$1:$K$160)+COUNTIF($K$1:K115,K115)-1)+1) ->  | M115: 0 | N115: 115
A116: =IF(OR(ISTEXT(RTD("cqg.rtd",,"OrderData",""&B116&"","","OpenPosition",""&Display1!$D$3&"")),RTD("cqg.rtd",,"OrderData",""&B116&"","","OpenPosition",""&Display1!$D$3&"")=0),A115+0.0001,INT(A115)+1) -> 0.0035 | B116: =(LEFT(B117,SEARCH(Display1!$G$2,B117)+LEN(Display1!$G$2)+2))&RIGHT(B117,LEN(B117)-(SEARCH(Display1!$G$2,B117)+LEN(Display1!$G$2)+2))-Display1!$F$5 -> P.US.EW1K1620150 | C116: 0 | D116: 36 | E116: 0 | L116: =IF(K116="","",COUNT($K$1:$K$160)-(RANK(K116,$K$1:$K$160)+COUNTIF($K$1:K116,K116)-1)+1) ->  | M116: 0 | N116: 116
A117: =IF(OR(ISTEXT(RTD("cqg.rtd",,"OrderData",""&B117&"","","OpenPosition",""&Display1!$D$3&"")),RTD("cqg.rtd",,"OrderData",""&B117&"","","OpenPosition",""&Display1!$D$3&"")=0),A116+0.0001,INT(A116)+1) -> 0.0036 | B117: =(LEFT(B118,SEARCH(Display1!$G$2,B118)+LEN(Display1!$G$2)+2))&RIGHT(B118,LEN(B118)-(SEARCH(Display1!$G$2,B118)+LEN(Display1!$G$2)+2))-Display1!$F$5 -> P.US.EW1K1620200 | C117: 0 | D117: 37 | E117: 0 | L117: =IF(K117="","",COUNT($K$1:$K$160)-(RANK(K117,$K$1:$K$160)+COUNTIF($K$1:K117,K117)-1)+1) ->  | M117: 0 | N117: 117
A118: =IF(OR(ISTEXT(RTD("cqg.rtd",,"OrderData",""&B118&"","","OpenPosition",""&Display1!$D$3&"")),RTD("cqg.rtd",,"OrderData",""&B118&"","","OpenPosition",""&Display1!$D$3&"")=0),A117+0.0001,INT(A117)+1) -> 0.0037 | B118: =(LEFT(B119,SEARCH(Display1!$G$2,B119)+LEN(Display1!$G$2)+2))&RIGHT(B119,LEN(B119)-(SEARCH(Display1!$G$2,B119)+LEN(Display1!$G$2)+2))-Display1!$F$5 -> P.US.EW1K1620250 | C118: 0 | D118: 38 | E118: 0 | L118: =IF(K118="","",COUNT($K$1:$K$160)-(RANK(K118,$K$1:$K$160)+COUNTIF($K$1:K118,K118)-1)+1) ->  | M118: 0 | N118: 118
A119: =IF(OR(ISTEXT(RTD("cqg.rtd",,"OrderData",""&B119&"","","OpenPosition",""&Display1!$D$3&"")),RTD("cqg.rtd",,"OrderData",""&B119&"","","OpenPosition",""&Display1!$D$3&"")=0),A118+0.0001,INT(A118)+1) -> 0.0038 | B119: =(LEFT(B120,SEARCH(Display1!$G$2,B120)+LEN(Display1!$G$2)+2))&RIGHT(B120,LEN(B120)-(SEARCH(Display1!$G$2,B120)+LEN(Display1!$G$2)+2))-Display1!$F$5 -> P.US.EW1K1620300 | C119: 0 | D119: 39 | E119: 0 | L119: =IF(K119="","",COUNT($K$1:$K$160)-(RANK(K119,$K$1:$K$160)+COUNTIF($K$1:K119,K119)-1)+1) ->  | M119: 0 | N119: 119
A120: =IF(OR(ISTEXT(RTD("cqg.rtd",,"OrderData",""&B120&"","","OpenPosition",""&Display1!$D$3&"")),RTD("cqg.rtd",,"OrderData",""&B120&"","","OpenPosition",""&Display1!$D$3&"")=0),A119+0.0001,INT(A119)+1) -> 0.0039 | B120: =(LEFT(B121,SEARCH(Display1!$G$2,B121)+LEN(Display1!$G$2)+2))&RIGHT(B121,LEN(B121)-(SEARCH(Display1!$G$2,B121)+LEN(Display1!$G$2)+2))-Display1!$F$5 -> P.US.EW1K1620350 | C120: 0 | D120: 40 | E120: 0 | L120: =IF(K120="","",COUNT($K$1:$K$160)-(RANK(K120,$K$1:$K$160)+COUNTIF($K$1:K120,K120)-1)+1) ->  | M120: 0 | N120: 120
A121: =INT(A120)+1 -> 1 | B121: =RTD("cqg.rtd", ,"ContractData", "P.US."&Display1!$G$2&Display1!$G$3&"", "Symbol",, "T") -> P.US.EW1K1620400 | C121: 0 | D121: 41 | E121: 0 | L121: =IF(K121="","",COUNT($K$1:$K$160)-(RANK(K121,$K$1:$K$160)+COUNTIF($K$1:K121,K121)-1)+1) ->  | M121: 0 | N121: 121
A122: =IF(OR(ISTEXT(RTD("cqg.rtd",,"OrderData",""&B122&"","","OpenPosition",""&Display1!$D$3&"")),RTD("cqg.rtd",,"OrderData",""&B122&"","","OpenPosition",""&Display1!$D$3&"")=0),A121+0.0001,INT(A121)+1) -> 1.0001 | B122: =(LEFT(B121,SEARCH(Display1!$G$2,B121)+LEN(Display1!$G$2)+2))&RIGHT(B121,LEN(B121)-(SEARCH(Display1!$G$2,B121)+LEN(Display1!$G$2)+2))+Display1!$F$5 -> P.US.EW1K1620450 | C122: 0 | D122: 42 | E122: 0 | L122: =IF(K122="","",COUNT($K$1:$K$160)-(RANK(K122,$K$1:$K$160)+COUNTIF($K$1:K122,K122)-1)+1) ->  | M122: 0 | N122: 122
A123: =IF(OR(ISTEXT(RTD("cqg.rtd",,"OrderData",""&B123&"","","OpenPosition",""&Display1!$D$3&"")),RTD("cqg.rtd",,"OrderData",""&B123&"","","OpenPosition",""&Display1!$D$3&"")=0),A122+0.0001,INT(A122)+1) -> 1.0002 | B123: =(LEFT(B122,SEARCH(Display1!$G$2,B122)+LEN(Display1!$G$2)+2))&RIGHT(B122,LEN(B122)-(SEARCH(Display1!$G$2,B122)+LEN(Display1!$G$2)+2))+Display1!$F$5 -> P.US.EW1K1620500 | C123: 0 | D123: 43 | E123: 0 | L123: =IF(K123="","",COUNT($K$1:$K$160)-(RANK(K123,$K$1:$K$160)+COUNTIF($K$1:K123,K123)-1)+1) ->  | M123: 0 | N123: 123
A124: =IF(OR(ISTEXT(RTD("cqg.rtd",,"OrderData",""&B124&"","","OpenPosition",""&Display1!$D$3&"")),RTD("cqg.rtd",,"OrderData",""&B124&"","","OpenPosition",""&Display1!$D$3&"")=0),A123+0.0001,INT(A123)+1) -> 1.0003 | B124: =(LEFT(B123,SEARCH(Display1!$G$2,B123)+LEN(Display1!$G$2)+2))&RIGHT(B123,LEN(B123)-(SEARCH(Display1!$G$2,B123)+LEN(Display1!$G$2)+2))+Display1!$F$5 -> P.US.EW1K1620550 | C124: 0 | D124: 44 | E124: 0 | L124: =IF(K124="","",COUNT($K$1:$K$160)-(RANK(K124,$K$1:$K$160)+COUNTIF($K$1:K124,K124)-1)+1) ->  | M124: 0 | N124: 124
A125: =IF(OR(ISTEXT(RTD("cqg.rtd",,"OrderData",""&B125&"","","OpenPosition",""&Display1!$D$3&"")),RTD("cqg.rtd",,"OrderData",""&B125&"","","OpenPosition",""&Display1!$D$3&"")=0),A124+0.0001,INT(A124)+1) -> 1.0004 | B125: =(LEFT(B124,SEARCH(Display1!$G$2,B124)+LEN(Display1!$G$2)+2))&RIGHT(B124,LEN(B124)-(SEARCH(Display1!$G$2,B124)+LEN(Display1!$G$2)+2))+Display1!$F$5 -> P.US.EW1K1620600 | C125: 0 | D125: 45 | E125: 0 | L125: =IF(K125="","",COUNT($K$1:$K$160)-(RANK(K125,$K$1:$K$160)+COUNTIF($K$1:K125,K125)-1)+1) ->  | M125: 0 | N125: 125
A126: =IF(OR(ISTEXT(RTD("cqg.rtd",,"OrderData",""&B126&"","","OpenPosition",""&Display1!$D$3&"")),RTD("cqg.rtd",,"OrderData",""&B126&"","","OpenPosition",""&Display1!$D$3&"")=0),A125+0.0001,INT(A125)+1) -> 1.0005 | B126: =(LEFT(B125,SEARCH(Display1!$G$2,B125)+LEN(Display1!$G$2)+2))&RIGHT(B125,LEN(B125)-(SEARCH(Display1!$G$2,B125)+LEN(Display1!$G$2)+2))+Display1!$F$5 -> P.US.EW1K1620650 | C126: 0 | D126: 46 | E126: 0 | L126: =IF(K126="","",COUNT($K$1:$K$160)-(RANK(K126,$K$1:$K$160)+COUNTIF($K$1:K126,K126)-1)+1) ->  | M126: 0 | N126: 126
A127: =IF(OR(ISTEXT(RTD("cqg.rtd",,"OrderData",""&B127&"","","OpenPosition",""&Display1!$D$3&"")),RTD("cqg.rtd",,"OrderData",""&B127&"","","OpenPosition",""&Display1!$D$3&"")=0),A126+0.0001,INT(A126)+1) -> 1.0006 | B127: =(LEFT(B126,SEARCH(Display1!$G$2,B126)+LEN(Display1!$G$2)+2))&RIGHT(B126,LEN(B126)-(SEARCH(Display1!$G$2,B126)+LEN(Display1!$G$2)+2))+Display1!$F$5 -> P.US.EW1K1620700 | C127: 0 | D127: 47 | E127: 0 | L127: =IF(K127="","",COUNT($K$1:$K$160)-(RANK(K127,$K$1:$K$160)+COUNTIF($K$1:K127,K127)-1)+1) ->  | M127: 0 | N127: 127
A128: =IF(OR(ISTEXT(RTD("cqg.rtd",,"OrderData",""&B128&"","","OpenPosition",""&Display1!$D$3&"")),RTD("cqg.rtd",,"OrderData",""&B128&"","","OpenPosition",""&Display1!$D$3&"")=0),A127+0.0001,INT(A127)+1) -> 1.0007 | B128: =(LEFT(B127,SEARCH(Display1!$G$2,B127)+LEN(Display1!$G$2)+2))&RIGHT(B127,LEN(B127)-(SEARCH(Display1!$G$2,B127)+LEN(Display1!$G$2)+2))+Display1!$F$5 -> P.US.EW1K1620750 | C128: 0 | D128: 48 | E128: 0 | L128: =IF(K128="","",COUNT($K$1:$K$160)-(RANK(K128,$K$1:$K$160)+COUNTIF($K$1:K128,K128)-1)+1) ->  | M128: 0 | N128: 128
A129: =IF(OR(ISTEXT(RTD("cqg.rtd",,"OrderData",""&B129&"","","OpenPosition",""&Display1!$D$3&"")),RTD("cqg.rtd",,"OrderData",""&B129&"","","OpenPosition",""&Display1!$D$3&"")=0),A128+0.0001,INT(A128)+1) -> 1.0008 | B129: =(LEFT(B128,SEARCH(Display1!$G$2,B128)+LEN(Display1!$G$2)+2))&RIGHT(B128,LEN(B128)-(SEARCH(Display1!$G$2,B128)+LEN(Display1!$G$2)+2))+Display1!$F$5 -> P.US.EW1K1620800 | C129: 0 | D129: 49 | E129: 0 | L129: =IF(K129="","",COUNT($K$1:$K$160)-(RANK(K129,$K$1:$K$160)+COUNTIF($K$1:K129,K129)-1)+1) ->  | M129: 0 | N129: 129
A130: =IF(OR(ISTEXT(RTD("cqg.rtd",,"OrderData",""&B130&"","","OpenPosition",""&Display1!$D$3&"")),RTD("cqg.rtd",,"OrderData",""&B130&"","","OpenPosition",""&Display1!$D$3&"")=0),A129+0.0001,INT(A129)+1) -> 1.0009 | B130: =(LEFT(B129,SEARCH(Display1!$G$2,B129)+LEN(Display1!$G$2)+2))&RIGHT(B129,LEN(B129)-(SEARCH(Display1!$G$2,B129)+LEN(Display1!$G$2)+2))+Display1!$F$5 -> P.US.EW1K1620850 | C130: 0 | D130: 50 | E130: 0 | L130: =IF(K130="","",COUNT($K$1:$K$160)-(RANK(K130,$K$1:$K$160)+COUNTIF($K$1:K130,K130)-1)+1) ->  | M130: 0 | N130: 130 | O130: =VLOOKUP(N130,$L$1:$M$160,2,FALSE) ->  | P130: =IFERROR(RIGHT(O130,5)*1,"") -> 
A131: =IF(OR(ISTEXT(RTD("cqg.rtd",,"OrderData",""&B131&"","","OpenPosition",""&Display1!$D$3&"")),RTD("cqg.rtd",,"OrderData",""&B131&"","","OpenPosition",""&Display1!$D$3&"")=0),A130+0.0001,INT(A130)+1) -> 1.001 | B131: =(LEFT(B130,SEARCH(Display1!$G$2,B130)+LEN(Display1!$G$2)+2))&RIGHT(B130,LEN(B130)-(SEARCH(Display1!$G$2,B130)+LEN(Display1!$G$2)+2))+Display1!$F$5 -> P.US.EW1K1620900 | C131: 0 | D131: 51 | E131: 0 | L131: =IF(K131="","",COUNT($K$1:$K$160)-(RANK(K131,$K$1:$K$160)+COUNTIF($K$1:K131,K131)-1)+1) ->  | M131: 0 | N131: =N130+1 -> 131 | Q131: =IF(P131="","",IF(P131=P130,1,0)) ->  | R131: =IF(AND(Q131=0,Q130<>1,P131<>R130),P131,P132) ->  | S131: =IF(R131="","",IF(R131=R132,1,0)) -> 
A132: =IF(OR(ISTEXT(RTD("cqg.rtd",,"OrderData",""&B132&"","","OpenPosition",""&Display1!$D$3&"")),RTD("cqg.rtd",,"OrderData",""&B132&"","","OpenPosition",""&Display1!$D$3&"")=0),A131+0.0001,INT(A131)+1) -> 1.0011 | B132: =(LEFT(B131,SEARCH(Display1!$G$2,B131)+LEN(Display1!$G$2)+2))&RIGHT(B131,LEN(B131)-(SEARCH(Display1!$G$2,B131)+LEN(Display1!$G$2)+2))+Display1!$F$5 -> P.US.EW1K1620950 | C132: 0 | D132: 52 | E132: 0 | L132: =IF(K132="","",COUNT($K$1:$K$160)-(RANK(K132,$K$1:$K$160)+COUNTIF($K$1:K132,K132)-1)+1) ->  | M132: 0 | N132: 132
A133: =IF(OR(ISTEXT(RTD("cqg.rtd",,"OrderData",""&B133&"","","OpenPosition",""&Display1!$D$3&"")),RTD("cqg.rtd",,"OrderData",""&B133&"","","OpenPosition",""&Display1!$D$3&"")=0),A132+0.0001,INT(A132)+1) -> 1.0012 | B133: =(LEFT(B132,SEARCH(Display1!$G$2,B132)+LEN(Display1!$G$2)+2))&RIGHT(B132,LEN(B132)-(SEARCH(Display1!$G$2,B132)+LEN(Display1!$G$2)+2))+Display1!$F$5 -> P.US.EW1K1621000 | C133: 0 | D133: 53 | E133: 0 | L133: =IF(K133="","",COUNT($K$1:$K$160)-(RANK(K133,$K$1:$K$160)+COUNTIF($K$1:K133,K133)-1)+1) ->  | M133: 0 | N133: 133
A134: =IF(OR(ISTEXT(RTD("cqg.rtd",,"OrderData",""&B134&"","","OpenPosition",""&Display1!$D$3&"")),RTD("cqg.rtd",,"OrderData",""&B134&"","","OpenPosition",""&Display1!$D$3&"")=0),A133+0.0001,INT(A133)+1) -> 1.0013 | B134: =(LEFT(B133,SEARCH(Display1!$G$2,B133)+LEN(Display1!$G$2)+2))&RIGHT(B133,LEN(B133)-(SEARCH(Display1!$G$2,B133)+LEN(Display1!$G$2)+2))+Display1!$F$5 -> P.US.EW1K1621050 | C134: 0 | D134: 54 | E134: 0 | L134: =IF(K134="","",COUNT($K$1:$K$160)-(RANK(K134,$K$1:$K$160)+COUNTIF($K$1:K134,K134)-1)+1) ->  | M134: 0 | N134: 134
A135: =IF(OR(ISTEXT(RTD("cqg.rtd",,"OrderData",""&B135&"","","OpenPosition",""&Display1!$D$3&"")),RTD("cqg.rtd",,"OrderData",""&B135&"","","OpenPosition",""&Display1!$D$3&"")=0),A134+0.0001,INT(A134)+1) -> 1.0014 | B135: =(LEFT(B134,SEARCH(Display1!$G$2,B134)+LEN(Display1!$G$2)+2))&RIGHT(B134,LEN(B134)-(SEARCH(Display1!$G$2,B134)+LEN(Display1!$G$2)+2))+Display1!$F$5 -> P.US.EW1K1621100 | C135: 0 | D135: 55 | E135: 0 | L135: =IF(K135="","",COUNT($K$1:$K$160)-(RANK(K135,$K$1:$K$160)+COUNTIF($K$1:K135,K135)-1)+1) ->  | M135: 0 | N135: 135
A136: =IF(OR(ISTEXT(RTD("cqg.rtd",,"OrderData",""&B136&"","","OpenPosition",""&Display1!$D$3&"")),RTD("cqg.rtd",,"OrderData",""&B136&"","","OpenPosition",""&Display1!$D$3&"")=0),A135+0.0001,INT(A135)+1) -> 1.0015 | B136: =(LEFT(B135,SEARCH(Display1!$G$2,B135)+LEN(Display1!$G$2)+2))&RIGHT(B135,LEN(B135)-(SEARCH(Display1!$G$2,B135)+LEN(Display1!$G$2)+2))+Display1!$F$5 -> P.US.EW1K1621150 | C136: 0 | D136: 56 | E136: 0 | L136: =IF(K136="","",COUNT($K$1:$K$160)-(RANK(K136,$K$1:$K$160)+COUNTIF($K$1:K136,K136)-1)+1) ->  | M136: 0 | N136: 136
A137: =IF(OR(ISTEXT(RTD("cqg.rtd",,"OrderData",""&B137&"","","OpenPosition",""&Display1!$D$3&"")),RTD("cqg.rtd",,"OrderData",""&B137&"","","OpenPosition",""&Display1!$D$3&"")=0),A136+0.0001,INT(A136)+1) -> 1.0016 | B137: =(LEFT(B136,SEARCH(Display1!$G$2,B136)+LEN(Display1!$G$2)+2))&RIGHT(B136,LEN(B136)-(SEARCH(Display1!$G$2,B136)+LEN(Display1!$G$2)+2))+Display1!$F$5 -> P.US.EW1K1621200 | C137: 0 | D137: 57 | E137: 0 | L137: =IF(K137="","",COUNT($K$1:$K$160)-(RANK(K137,$K$1:$K$160)+COUNTIF($K$1:K137,K137)-1)+1) ->  | M137: 0 | N137: 137 | T137: =IF(AND(S136=0,S136<>1,R137<>T136),R137,R138) -> 
A138: =IF(OR(ISTEXT(RTD("cqg.rtd",,"OrderData",""&B138&"","","OpenPosition",""&Display1!$D$3&"")),RTD("cqg.rtd",,"OrderData",""&B138&"","","OpenPosition",""&Display1!$D$3&"")=0),A137+0.0001,INT(A137)+1) -> 1.0017 | B138: =(LEFT(B137,SEARCH(Display1!$G$2,B137)+LEN(Display1!$G$2)+2))&RIGHT(B137,LEN(B137)-(SEARCH(Display1!$G$2,B137)+LEN(Display1!$G$2)+2))+Display1!$F$5 -> P.US.EW1K1621250 | C138: 0 | D138: 58 | E138: 0 | L138: =IF(K138="","",COUNT($K$1:$K$160)-(RANK(K138,$K$1:$K$160)+COUNTIF($K$1:K138,K138)-1)+1) ->  | M138: 0 | N138: 138
A139: =IF(OR(ISTEXT(RTD("cqg.rtd",,"OrderData",""&B139&"","","OpenPosition",""&Display1!$D$3&"")),RTD("cqg.rtd",,"OrderData",""&B139&"","","OpenPosition",""&Display1!$D$3&"")=0),A138+0.0001,INT(A138)+1) -> 1.0018 | B139: =(LEFT(B138,SEARCH(Display1!$G$2,B138)+LEN(Display1!$G$2)+2))&RIGHT(B138,LEN(B138)-(SEARCH(Display1!$G$2,B138)+LEN(Display1!$G$2)+2))+Display1!$F$5 -> P.US.EW1K1621300 | C139: 0 | D139: 59 | E139: 0 | L139: =IF(K139="","",COUNT($K$1:$K$160)-(RANK(K139,$K$1:$K$160)+COUNTIF($K$1:K139,K139)-1)+1) ->  | M139: 0 | N139: 139
A140: =IF(OR(ISTEXT(RTD("cqg.rtd",,"OrderData",""&B140&"","","OpenPosition",""&Display1!$D$3&"")),RTD("cqg.rtd",,"OrderData",""&B140&"","","OpenPosition",""&Display1!$D$3&"")=0),A139+0.0001,INT(A139)+1) -> 1.0019 | B140: =(LEFT(B139,SEARCH(Display1!$G$2,B139)+LEN(Display1!$G$2)+2))&RIGHT(B139,LEN(B139)-(SEARCH(Display1!$G$2,B139)+LEN(Display1!$G$2)+2))+Display1!$F$5 -> P.US.EW1K1621350 | C140: 0 | D140: 60 | E140: 0 | L140: =IF(K140="","",COUNT($K$1:$K$160)-(RANK(K140,$K$1:$K$160)+COUNTIF($K$1:K140,K140)-1)+1) ->  | M140: 0 | N140: 140
A141: =IF(OR(ISTEXT(RTD("cqg.rtd",,"OrderData",""&B141&"","","OpenPosition",""&Display1!$D$3&"")),RTD("cqg.rtd",,"OrderData",""&B141&"","","OpenPosition",""&Display1!$D$3&"")=0),A140+0.0001,INT(A140)+1) -> 1.002 | B141: =(LEFT(B140,SEARCH(Display1!$G$2,B140)+LEN(Display1!$G$2)+2))&RIGHT(B140,LEN(B140)-(SEARCH(Display1!$G$2,B140)+LEN(Display1!$G$2)+2))+Display1!$F$5 -> P.US.EW1K1621400 | C141: 0 | D141: 61 | E141: 0 | L141: =IF(K141="","",COUNT($K$1:$K$160)-(RANK(K141,$K$1:$K$160)+COUNTIF($K$1:K141,K141)-1)+1) ->  | M141: 0 | N141: 141
A142: =IF(OR(ISTEXT(RTD("cqg.rtd",,"OrderData",""&B142&"","","OpenPosition",""&Display1!$D$3&"")),RTD("cqg.rtd",,"OrderData",""&B142&"","","OpenPosition",""&Display1!$D$3&"")=0),A141+0.0001,INT(A141)+1) -> 1.0021 | C142: 0 | D142: 62 | E142: 0 | L142: =IF(K142="","",COUNT($K$1:$K$160)-(RANK(K142,$K$1:$K$160)+COUNTIF($K$1:K142,K142)-1)+1) ->  | M142: 0 | N142: 142
A143: =IF(OR(ISTEXT(RTD("cqg.rtd",,"OrderData",""&B143&"","","OpenPosition",""&Display1!$D$3&"")),RTD("cqg.rtd",,"OrderData",""&B143&"","","OpenPosition",""&Display1!$D$3&"")=0),A142+0.0001,INT(A142)+1) -> 1.0022 | C143: 0 | D143: 63 | E143: 0 | L143: =IF(K143="","",COUNT($K$1:$K$160)-(RANK(K143,$K$1:$K$160)+COUNTIF($K$1:K143,K143)-1)+1) ->  | M143: 0 | N143: 143
A144: =IF(OR(ISTEXT(RTD("cqg.rtd",,"OrderData",""&B144&"","","OpenPosition",""&Display1!$D$3&"")),RTD("cqg.rtd",,"OrderData",""&B144&"","","OpenPosition",""&Display1!$D$3&"")=0),A143+0.0001,INT(A143)+1) -> 1.0023 | C144: 0 | D144: 64 | E144: 0 | L144: =IF(K144="","",COUNT($K$1:$K$160)-(RANK(K144,$K$1:$K$160)+COUNTIF($K$1:K144,K144)-1)+1) ->  | M144: 0 | N144: 144
A145: =IF(OR(ISTEXT(RTD("cqg.rtd",,"OrderData",""&B145&"","","OpenPosition",""&Display1!$D$3&"")),RTD("cqg.rtd",,"OrderData",""&B145&"","","OpenPosition",""&Display1!$D$3&"")=0),A144+0.0001,INT(A144)+1) -> 1.0024 | C145: 0 | D145: 65 | E145: 0 | L145: =IF(K145="","",COUNT($K$1:$K$160)-(RANK(K145,$K$1:$K$160)+COUNTIF($K$1:K145,K145)-1)+1) ->  | M145: 0 | N145: 145
A146: =IF(OR(ISTEXT(RTD("cqg.rtd",,"OrderData",""&B146&"","","OpenPosition",""&Display1!$D$3&"")),RTD("cqg.rtd",,"OrderData",""&B146&"","","OpenPosition",""&Display1!$D$3&"")=0),A145+0.0001,INT(A145)+1) -> 1.0025 | C146: =IF(LOOKUP(D146,$A$81:$A$161)<>D146,0,1) -> 0 | D146: 66 | E146: =IF(C146=1,VLOOKUP(D66,$A$81:$B$161,2),0) -> 0 | K146: =IF(I66=0,"",RIGHT(I66,5)*1) ->  | L146: =IF(K146="","",COUNT($K$1:$K$160)-(RANK(K146,$K$1:$K$160)+COUNTIF($K$1:K146,K146)-1)+1) ->  | M146: =I66 -> 0 | N146: 146
A147: =IF(OR(ISTEXT(RTD("cqg.rtd",,"OrderData",""&B147&"","","OpenPosition",""&Display1!$D$3&"")),RTD("cqg.rtd",,"OrderData",""&B147&"","","OpenPosition",""&Display1!$D$3&"")=0),A146+0.0001,INT(A146)+1) -> 1.0026 | C147: 0 | D147: =D146+1 -> 67 | E147: 0 | L147: =IF(K147="","",COUNT($K$1:$K$160)-(RANK(K147,$K$1:$K$160)+COUNTIF($K$1:K147,K147)-1)+1) ->  | M147: 0 | N147: 147
A148: =IF(OR(ISTEXT(RTD("cqg.rtd",,"OrderData",""&B148&"","","OpenPosition",""&Display1!$D$3&"")),RTD("cqg.rtd",,"OrderData",""&B148&"","","OpenPosition",""&Display1!$D$3&"")=0),A147+0.0001,INT(A147)+1) -> 1.0027 | C148: 0 | D148: 68 | E148: 0 | L148: =IF(K148="","",COUNT($K$1:$K$160)-(RANK(K148,$K$1:$K$160)+COUNTIF($K$1:K148,K148)-1)+1) ->  | M148: 0 | N148: 148
A149: =IF(OR(ISTEXT(RTD("cqg.rtd",,"OrderData",""&B149&"","","OpenPosition",""&Display1!$D$3&"")),RTD("cqg.rtd",,"OrderData",""&B149&"","","OpenPosition",""&Display1!$D$3&"")=0),A148+0.0001,INT(A148)+1) -> 1.0028 | C149: 0 | D149: 69 | E149: 0 | L149: =IF(K149="","",COUNT($K$1:$K$160)-(RANK(K149,$K$1:$K$160)+COUNTIF($K$1:K149,K149)-1)+1) ->  | M149: 0 | N149: 149
A150: =IF(OR(ISTEXT(RTD("cqg.rtd",,"OrderData",""&B150&"","","OpenPosition",""&Display1!$D$3&"")),RTD("cqg.rtd",,"OrderData",""&B150&"","","OpenPosition",""&Display1!$D$3&"")=0),A149+0.0001,INT(A149)+1) -> 1.0029 | C150: 0 | D150: 70 | E150: 0 | L150: =IF(K150="","",COUNT($K$1:$K$160)-(RANK(K150,$K$1:$K$160)+COUNTIF($K$1:K150,K150)-1)+1) ->  | M150: 0 | N150: 150
A151: =IF(OR(ISTEXT(RTD("cqg.rtd",,"OrderData",""&B151&"","","OpenPosition",""&Display1!$D$3&"")),RTD("cqg.rtd",,"OrderData",""&B151&"","","OpenPosition",""&Display1!$D$3&"")=0),A150+0.0001,INT(A150)+1) -> 1.003 | C151: 0 | D151: 71 | E151: 0 | L151: =IF(K151="","",COUNT($K$1:$K$160)-(RANK(K151,$K$1:$K$160)+COUNTIF($K$1:K151,K151)-1)+1) ->  | M151: 0 | N151: 151
A152: =IF(OR(ISTEXT(RTD("cqg.rtd",,"OrderData",""&B152&"","","OpenPosition",""&Display1!$D$3&"")),RTD("cqg.rtd",,"OrderData",""&B152&"","","OpenPosition",""&Display1!$D$3&"")=0),A151+0.0001,INT(A151)+1) -> 1.0031 | C152: 0 | D152: 72 | E152: 0 | L152: =IF(K152="","",COUNT($K$1:$K$160)-(RANK(K152,$K$1:$K$160)+COUNTIF($K$1:K152,K152)-1)+1) ->  | M152: 0 | N152: 152
A153: =IF(OR(ISTEXT(RTD("cqg.rtd",,"OrderData",""&B153&"","","OpenPosition",""&Display1!$D$3&"")),RTD("cqg.rtd",,"OrderData",""&B153&"","","OpenPosition",""&Display1!$D$3&"")=0),A152+0.0001,INT(A152)+1) -> 1.0032 | C153: 0 | D153: 73 | E153: 0 | L153: =IF(K153="","",COUNT($K$1:$K$160)-(RANK(K153,$K$1:$K$160)+COUNTIF($K$1:K153,K153)-1)+1) ->  | M153: 0 | N153: 153
A154: =IF(OR(ISTEXT(RTD("cqg.rtd",,"OrderData",""&B154&"","","OpenPosition",""&Display1!$D$3&"")),RTD("cqg.rtd",,"OrderData",""&B154&"","","OpenPosition",""&Display1!$D$3&"")=0),A153+0.0001,INT(A153)+1) -> 1.0033 | C154: 0 | D154: 74 | E154: 0 | L154: =IF(K154="","",COUNT($K$1:$K$160)-(RANK(K154,$K$1:$K$160)+COUNTIF($K$1:K154,K154)-1)+1) ->  | M154: 0 | N154: 154
A155: =IF(OR(ISTEXT(RTD("cqg.rtd",,"OrderData",""&B155&"","","OpenPosition",""&Display1!$D$3&"")),RTD("cqg.rtd",,"OrderData",""&B155&"","","OpenPosition",""&Display1!$D$3&"")=0),A154+0.0001,INT(A154)+1) -> 1.0034 | C155: 0 | D155: 75 | E155: 0 | L155: =IF(K155="","",COUNT($K$1:$K$160)-(RANK(K155,$K$1:$K$160)+COUNTIF($K$1:K155,K155)-1)+1) ->  | M155: 0 | N155: 155
A156: =IF(OR(ISTEXT(RTD("cqg.rtd",,"OrderData",""&B156&"","","OpenPosition",""&Display1!$D$3&"")),RTD("cqg.rtd",,"OrderData",""&B156&"","","OpenPosition",""&Display1!$D$3&"")=0),A155+0.0001,INT(A155)+1) -> 1.0035 | C156: 0 | D156: 76 | E156: 0 | L156: =IF(K156="","",COUNT($K$1:$K$160)-(RANK(K156,$K$1:$K$160)+COUNTIF($K$1:K156,K156)-1)+1) ->  | M156: 0 | N156: 156
A157: =IF(OR(ISTEXT(RTD("cqg.rtd",,"OrderData",""&B157&"","","OpenPosition",""&Display1!$D$3&"")),RTD("cqg.rtd",,"OrderData",""&B157&"","","OpenPosition",""&Display1!$D$3&"")=0),A156+0.0001,INT(A156)+1) -> 1.0036 | C157: 0 | D157: 77 | E157: 0 | L157: =IF(K157="","",COUNT($K$1:$K$160)-(RANK(K157,$K$1:$K$160)+COUNTIF($K$1:K157,K157)-1)+1) ->  | M157: 0 | N157: 157
A158: =IF(OR(ISTEXT(RTD("cqg.rtd",,"OrderData",""&B158&"","","OpenPosition",""&Display1!$D$3&"")),RTD("cqg.rtd",,"OrderData",""&B158&"","","OpenPosition",""&Display1!$D$3&"")=0),A157+0.0001,INT(A157)+1) -> 1.0037 | C158: 0 | D158: 78 | E158: 0 | L158: =IF(K158="","",COUNT($K$1:$K$160)-(RANK(K158,$K$1:$K$160)+COUNTIF($K$1:K158,K158)-1)+1) ->  | M158: 0 | N158: 158
A159: =IF(OR(ISTEXT(RTD("cqg.rtd",,"OrderData",""&B159&"","","OpenPosition",""&Display1!$D$3&"")),RTD("cqg.rtd",,"OrderData",""&B159&"","","OpenPosition",""&Display1!$D$3&"")=0),A158+0.0001,INT(A158)+1) -> 1.0038 | C159: 0 | D159: 79 | E159: 0 | L159: =IF(K159="","",COUNT($K$1:$K$160)-(RANK(K159,$K$1:$K$160)+COUNTIF($K$1:K159,K159)-1)+1) ->  | M159: 0 | N159: 159 | T159: =IF(AND(S158=0,S158<>1,R159<>T158),R159,R160) -> 0
A160: =IF(OR(ISTEXT(RTD("cqg.rtd",,"OrderData",""&B160&"","","OpenPosition",""&Display1!$D$3&"")),RTD("cqg.rtd",,"OrderData",""&B160&"","","OpenPosition",""&Display1!$D$3&"")=0),A159+0.0001,INT(A159)+1) -> 1.0039 | C160: 0 | D160: 80 | E160: 0 | L160: =IF(K160="","",COUNT($K$1:$K$160)-(RANK(K160,$K$1:$K$160)+COUNTIF($K$1:K160,K160)-1)+1) ->  | M160: 0 | N160: 160 | R160: =IF(AND(Q160=0,Q159<>1,P160<>R159),P160,P161) -> 0 | S160: 1 | T160: =IF(AND(S159=0,S159<>1,R160<>T159),R160,R161) -> 0
A161: =IF(OR(ISTEXT(RTD("cqg.rtd",,"OrderData",""&B161&"","","OpenPosition",""&Display1!$D$3&"")),RTD("cqg.rtd",,"OrderData",""&B161&"","","OpenPosition",""&Display1!$D$3&"")=0),A160+0.0001,INT(A160)+1) -> 1.004 | C161: 0 | D161: 81 | E161: 0
A1766: =IF(OR(ISTEXT(RTD("cqg.rtd",,"OrderData",""&B1766&"","","OpenPosition",""&Display1!$D$3&"")),RTD("cqg.rtd",,"OrderData",""&B1766&"","","OpenPosition",""&Display1!$D$3&"")=0),A1765+0.0001,INT(A1765)+1) -> 0.0001 | B1766: =RTD("cqg.rtd", ,"ContractData", "F.US."&Display1!$V$3&"", "LongSymbol",, "T") -> 768: Current Message -> Not found: F.US.
A1767: =IF(OR(ISTEXT(RTD("cqg.rtd",,"OrderData",""&B1767&"","","OpenPosition",""&Display1!$D$3&"")),RTD("cqg.rtd",,"OrderData",""&B1767&"","","OpenPosition",""&Display1!$D$3&"")=0),A1766+0.0001,INT(A1766)+1) -> 0.0002 | B1767: =RTD("cqg.rtd", ,"ContractData", "F.US."&Display1!$W$3&"", "LongSymbol",, "T") -> 768: Current Message -> Not found: F.US.
A1768: =IF(OR(ISTEXT(RTD("cqg.rtd",,"OrderData",""&B1768&"","","OpenPosition",""&Display1!$D$3&"")),RTD("cqg.rtd",,"OrderData",""&B1768&"","","OpenPosition",""&Display1!$D$3&"")=0),A1767+0.0001,INT(A1767)+1) -> 0.0003 | B1768: =RTD("cqg.rtd", ,"ContractData", "F.US."&Display1!$X$3&"", "LongSymbol",, "T") -> 768: Current Message -> Not found: F.US.
B1769: =Display1!D3 -> 0

Sheet First (3) (hidden)
A1: =IF(ISTEXT(RTD("cqg.rtd",,"OrderData",""&B1&"","","OpenPosition",""&Display1!$D$3&"")),0,IF(RTD("cqg.rtd",,"OrderData",""&B1&"","","OpenPosition",""&Display1!$D$3&"")<>0,1,0)) -> 0 | C1: =IF(LOOKUP(D1,$A$1:$A$80)<>D1,0,1) -> 1 | D1: 1 | E1: =IF(C1=1,VLOOKUP(D1,$A$1:$B$80,2),0) -> C.US.EW2J1620400 | F1: =IFERROR(VLOOKUP($U$1-39,$D$1:$E$80,2,FALSE),0) -> 0 | G1: =IF(LOOKUP(D81,$A$81:$A$161)<>D81,0,1) -> 1 | H1: 1 | I1: =IF(G1=1,VLOOKUP(H1,$A$81:$B$161,2),0) -> P.US.EW2J1620400 | J1: =IFERROR(VLOOKUP($V$1-39,$H$1:$I$80,2,FALSE),0) -> 0 | K1: =IF(E1=0,"",RIGHT(E1,5)*1) -> 20400 | L1: =IF(K1="","",COUNT($K$1:$K$160)-(RANK(K1,$K$1:$K$160)+COUNTIF($K$1:K1,K1)-1)+1) -> 2 | M1: =E1 -> C.US.EW2J1620400 | N1: 1 | O1: =VLOOKUP(N1,$L$1:$M$160,2,FALSE) -> P.US.EW2J1620400 | P1: =IFERROR(RIGHT(O1,5)*1,"") -> 20400 | Q1: =IF(P1="","",IF(P1=P2,1,0)) -> 1 | R1: =IF(Q1=0,P1,P2) -> 20400 | S1: =IF(R1="","",IF(R1=R2,1,0)) -> 0 | T1: =IF(S1=0,R1,R2) -> 20400 | U1: =IFERROR(MATCH(B40,E1:E80,0),0) -> 1 | V1: =MATCH(B121,I1:I80,1) -> 1 | W1: =MATCH(J40,O1:O22,0) -> 1 | X1: =Display1!H2 -> EW2 | Y1: =Display1!H3 -> ?1 | Z1: =Display2!D5 -> 0
A2: =IF(OR(ISTEXT(RTD("cqg.rtd",,"OrderData",""&B2&"","","OpenPosition",""&Display1!$D$3&"")),RTD("cqg.rtd",,"OrderData",""&B2&"","","OpenPosition",""&Display1!$D$3&"")=0),A1+0.0001,INT(A1)+1) -> 0.0001 | C2: =IF(LOOKUP(D2,$A$1:$A$80)<>D2,0,1) -> 0 | D2: =D1+1 -> 2 | E2: =IF(C2=1,VLOOKUP(D2,$A$1:$B$80,2),0) -> 0 | F2: =IFERROR(VLOOKUP($U$1-38,$D$1:$E$80,2,FALSE),0) -> 0 | G2: =IF(LOOKUP(D82,$A$81:$A$161)<>D82,0,1) -> 0 | H2: =H1+1 -> 2 | I2: =IF(G2=1,VLOOKUP(H2,$A$81:$B$161,2),0) -> 0 | J2: =IFERROR(VLOOKUP($V$1-38,$H$1:$I$80,2,FALSE),0) -> 0 | K2: =IF(E2=0,"",RIGHT(E2,5)*1) ->  | L2: =IF(K2="","",COUNT($K$1:$K$160)-(RANK(K2,$K$1:$K$160)+COUNTIF($K$1:K2,K2)-1)+1) ->  | M2: =E2 -> 0 | N2: =N1+1 -> 2 | O2: =VLOOKUP(N2,$L$1:$M$160,2,FALSE) -> C.US.EW2J1620400 | P2: =IFERROR(RIGHT(O2,5)*1,"") -> 20400 | Q2: =IF(P2="","",IF(P2=P3,1,0)) -> 0 | R2: =IF(AND(Q2=0,Q1<>1,P2<>R1),P2,P3) ->  | S2: =IF(R2="","",IF(R2=R3,1,0)) ->  | T2: =IF(AND(S1=0,S1<>1,R2<>T1),R2,R3) ->  | V2: =INDIRECT("R"&W1) -> 20400 | W2: =MATCH(V2,T1:T158) -> 1
A3: =IF(OR(ISTEXT(RTD("cqg.rtd",,"OrderData",""&B3&"","","OpenPosition",""&Display1!$D$3&"")),RTD("cqg.rtd",,"OrderData",""&B3&"","","OpenPosition",""&Display1!$D$3&"")=0),A2+0.0001,INT(A2)+1) -> 0.0002 | C3: 0 | D3: =D2+1 -> 3 | E3: 0 | F3: =IFERROR(VLOOKUP($U$1-37,$D$1:$E$80,2,FALSE),0) -> 0 | G3: 0 | H3: =H2+1 -> 3 | I3: 0 | J3: =IFERROR(VLOOKUP($V$1-37,$H$1:$I$80,2,FALSE),0) -> 0 | L3: =IF(K3="","",COUNT($K$1:$K$160)-(RANK(K3,$K$1:$K$160)+COUNTIF($K$1:K3,K3)-1)+1) ->  | M3: 0 | N3: =N2+1 -> 3 | O3: =VLOOKUP(N3,$L$1:$M$160,2,FALSE) ->  | Q3: =IF(P3="","",IF(P3=P4,1,0)) ->  | R3: =IF(AND(Q3=0,Q2<>1,P3<>R2),P3,P4) ->  | S3: =IF(R3="","",IF(R3=R4,1,0)) ->  | T3: =IF(AND(S2=0,S2<>1,R3<>T2),R3,R4) -> 
A4: =IF(OR(ISTEXT(RTD("cqg.rtd",,"OrderData",""&B4&"","","OpenPosition",""&Display1!$D$3&"")),RTD("cqg.rtd",,"OrderData",""&B4&"","","OpenPosition",""&Display1!$D$3&"")=0),A3+0.0001,INT(A3)+1) -> 0.0003 | C4: 0 | D4: 4 | E4: 0 | F4: =IFERROR(VLOOKUP($U$1-36,$D$1:$E$80,2,FALSE),0) -> 0 | G4: 0 | H4: 4 | I4: 0 | J4: =IFERROR(VLOOKUP($V$1-36,$H$1:$I$80,2,FALSE),0) -> 0 | L4: =IF(K4="","",COUNT($K$1:$K$160)-(RANK(K4,$K$1:$K$160)+COUNTIF($K$1:K4,K4)-1)+1) ->  | M4: 0 | N4: 4
A5: =IF(OR(ISTEXT(RTD("cqg.rtd",,"OrderData",""&B5&"","","OpenPosition",""&Display1!$D$3&"")),RTD("cqg.rtd",,"OrderData",""&B5&"","","OpenPosition",""&Display1!$D$3&"")=0),A4+0.0001,INT(A4)+1) -> 0.0004 | C5: =IF(LOOKUP(D5,$A$1:$A$80)<>D5,0,1) -> 0 | D5: 5 | E5: 0 | F5: =IFERROR(VLOOKUP($U$1-35,$D$1:$E$80,2,FALSE),0) -> 0 | G5: 0 | H5: 5 | I5: 0 | J5: =IFERROR(VLOOKUP($V$1-35,$H$1:$I$80,2,FALSE),0) -> 0 | L5: =IF(K5="","",COUNT($K$1:$K$160)-(RANK(K5,$K$1:$K$160)+COUNTIF($K$1:K5,K5)-1)+1) ->  | M5: 0 | N5: 5 | R5: =IF(AND(Q5=0,Q4<>1,P5<>R4),P5,P6) -> 
A6: =IF(OR(ISTEXT(RTD("cqg.rtd",,"OrderData",""&B6&"","","OpenPosition",""&Display1!$D$3&"")),RTD("cqg.rtd",,"OrderData",""&B6&"","","OpenPosition",""&Display1!$D$3&"")=0),A5+0.0001,INT(A5)+1) -> 0.0005 | C6: 0 | D6: 6 | E6: 0 | F6: =IFERROR(VLOOKUP($U$1-34,$D$1:$E$80,2,FALSE),0) -> 0 | G6: 0 | H6: 6 | I6: 0 | J6: =IFERROR(VLOOKUP($V$1-34,$H$1:$I$80,2,FALSE),0) -> 0 | L6: =IF(K6="","",COUNT($K$1:$K$160)-(RANK(K6,$K$1:$K$160)+COUNTIF($K$1:K6,K6)-1)+1) ->  | M6: 0 | N6: 6 | R6: =IF(AND(Q6=0,Q5<>1,P6<>R5),P6,P7) -> 
A7: =IF(OR(ISTEXT(RTD("cqg.rtd",,"OrderData",""&B7&"","","OpenPosition",""&Display1!$D$3&"")),RTD("cqg.rtd",,"OrderData",""&B7&"","","OpenPosition",""&Display1!$D$3&"")=0),A6+0.0001,INT(A6)+1) -> 0.0006 | C7: 0 | D7: 7 | E7: 0 | F7: =IFERROR(VLOOKUP($U$1-33,$D$1:$E$80,2,FALSE),0) -> 0 | G7: 0 | H7: 7 | I7: 0 | J7: =IFERROR(VLOOKUP($V$1-33,$H$1:$I$80,2,FALSE),0) -> 0 | L7: =IF(K7="","",COUNT($K$1:$K$160)-(RANK(K7,$K$1:$K$160)+COUNTIF($K$1:K7,K7)-1)+1) ->  | M7: 0 | N7: 7
A8: =IF(OR(ISTEXT(RTD("cqg.rtd",,"OrderData",""&B8&"","","OpenPosition",""&Display1!$D$3&"")),RTD("cqg.rtd",,"OrderData",""&B8&"","","OpenPosition",""&Display1!$D$3&"")=0),A7+0.0001,INT(A7)+1) -> 0.0007 | C8: 0 | D8: 8 | E8: 0 | F8: =IFERROR(VLOOKUP($U$1-32,$D$1:$E$80,2,FALSE),0) -> 0 | G8: 0 | H8: 8 | I8: 0 | J8: =IFERROR(VLOOKUP($V$1-32,$H$1:$I$80,2,FALSE),0) -> 0 | L8: =IF(K8="","",COUNT($K$1:$K$160)-(RANK(K8,$K$1:$K$160)+COUNTIF($K$1:K8,K8)-1)+1) ->  | M8: 0 | N8: 8
A9: =IF(OR(ISTEXT(RTD("cqg.rtd",,"OrderData",""&B9&"","","OpenPosition",""&Display1!$D$3&"")),RTD("cqg.rtd",,"OrderData",""&B9&"","","OpenPosition",""&Display1!$D$3&"")=0),A8+0.0001,INT(A8)+1) -> 0.0008 | C9: 0 | D9: 9 | E9: 0 | F9: =IFERROR(VLOOKUP($U$1-31,$D$1:$E$80,2,FALSE),0) -> 0 | G9: 0 | H9: 9 | I9: 0 | J9: =IFERROR(VLOOKUP($V$1-31,$H$1:$I$80,2,FALSE),0) -> 0 | L9: =IF(K9="","",COUNT($K$1:$K$160)-(RANK(K9,$K$1:$K$160)+COUNTIF($K$1:K9,K9)-1)+1) ->  | M9: 0 | N9: 9
A10: =IF(OR(ISTEXT(RTD("cqg.rtd",,"OrderData",""&B10&"","","OpenPosition",""&Display1!$D$3&"")),RTD("cqg.rtd",,"OrderData",""&B10&"","","OpenPosition",""&Display1!$D$3&"")=0),A9+0.0001,INT(A9)+1) -> 0.0009 | C10: 0 | D10: 10 | E10: 0 | F10: =IFERROR(VLOOKUP($U$1-30,$D$1:$E$80,2,FALSE),0) -> 0 | G10: 0 | H10: 10 | I10: 0 | J10: =IFERROR(VLOOKUP($V$1-30,$H$1:$I$80,2,FALSE),0) -> 0 | L10: =IF(K10="","",COUNT($K$1:$K$160)-(RANK(K10,$K$1:$K$160)+COUNTIF($K$1:K10,K10)-1)+1) ->  | M10: 0 | N10: 10 | V10: =IFERROR(INDIRECT("T"&$W$29-19),"") ->  | X10: =IF(V10="","",LEFT(RTD("cqg.rtd", ,"ContractData","C.US."&$X$1&$Y$1, "Symbol",, "T"),11)&V10) ->  | Y10: =IF(V10="","",LEFT(RTD("cqg.rtd", ,"ContractData","P.US."&$X$1&$Y$1, "Symbol",, "T"),11)&V10) ->  | Z10: =IF($V10="","",RTD("cqg.rtd",,"OrderData",""&$X10&"","","OpenPosition",""&$Z$1&"")) ->  | AA10: =IF($V10="","",RTD("cqg.rtd",,"OrderData",""&$Y10&"","","OpenPosition",""&$Z$1&"")) ->  | AB10: =R10 ->  | AC10: =IF(V10="","",RTD("cqg.rtd",,"ContractData",X10,"Delta",,"T")*Z10) ->  | AD10: =IF(V10="","",RTD("cqg.rtd",,"ContractData",Y10,"Delta",,"T")*AA10) ->  | AE10: =IF(V10="","",RTD("cqg.rtd",,"ContractData",X10,"Vega",,"T")*Z10) ->  | AF10: =IF(V10="","",RTD("cqg.rtd",,"ContractData",Y10,"Vega",,"T")*AA10) ->  | AG10: =IF(V10="","",RTD("cqg.rtd",,"ContractData",X10,"Gamma",,"T")*Z10) ->  | AH10: =IF(V10="","",RTD("cqg.rtd",,"ContractData",Y10,"Gamma",,"T")*AA10) ->  | AI10: =IF(V10="","",RTD("cqg.rtd",,"ContractData",X10,"Theta",,"T")*ABS(Z10)) ->  | AJ10: =IF(V10="","",RTD("cqg.rtd",,"ContractData",Y10,"Theta",,"T")*AA10) -> 
A11: =IF(OR(ISTEXT(RTD("cqg.rtd",,"OrderData",""&B11&"","","OpenPosition",""&Display1!$D$3&"")),RTD("cqg.rtd",,"OrderData",""&B11&"","","OpenPosition",""&Display1!$D$3&"")=0),A10+0.0001,INT(A10)+1) -> 0.001 | C11: 0 | D11: 11 | E11: 0 | F11: =IFERROR(VLOOKUP($U$1-29,$D$1:$E$80,2,FALSE),0) -> 0 | G11: 0 | H11: 11 | I11: 0 | J11: =IFERROR(VLOOKUP($V$1-29,$H$1:$I$80,2,FALSE),0) -> 0 | L11: =IF(K11="","",COUNT($K$1:$K$160)-(RANK(K11,$K$1:$K$160)+COUNTIF($K$1:K11,K11)-1)+1) ->  | M11: 0 | N11: 11 | U11: =IF(R11="","",IF(R11=R12,1,0)) ->  | V11: =IFERROR(INDIRECT("T"&$W$29-18),"") ->  | X11: =IF(V11="","",LEFT(RTD("cqg.rtd", ,"ContractData","C.US."&$X$1&$Y$1, "Symbol",, "T"),11)&V11) ->  | Y11: =IF(V11="","",LEFT(RTD("cqg.rtd", ,"ContractData","P.US."&$X$1&$Y$1, "Symbol",, "T"),11)&V11) ->  | Z11: =IF($V11="","",RTD("cqg.rtd",,"OrderData",""&$X11&"","","OpenPosition",""&$Z$1&"")) ->  | AA11: =IF($V11="","",RTD("cqg.rtd",,"OrderData",""&$Y11&"","","OpenPosition",""&$Z$1&"")) ->  | AC11: =IF(V11="","",RTD("cqg.rtd",,"ContractData",X11,"Delta",,"T")*Z11) ->  | AD11: =IF(V11="","",RTD("cqg.rtd",,"ContractData",Y11,"Delta",,"T")*AA11) ->  | AE11: =IF(V11="","",RTD("cqg.rtd",,"ContractData",X11,"Vega",,"T")*Z11) ->  | AF11: =IF(V11="","",RTD("cqg.rtd",,"ContractData",Y11,"Vega",,"T")*AA11) ->  | AG11: =IF(V11="","",RTD("cqg.rtd",,"ContractData",X11,"Gamma",,"T")*Z11) ->  | AH11: =IF(V11="","",RTD("cqg.rtd",,"ContractData",Y11,"Gamma",,"T")*AA11) ->  | AI11: =IF(V11="","",RTD("cqg.rtd",,"ContractData",X11,"Theta",,"T")*ABS(Z11)) ->  | AJ11: =IF(V11="","",RTD("cqg.rtd",,"ContractData",Y11,"Theta",,"T")*AA11) -> 
A12: =IF(OR(ISTEXT(RTD("cqg.rtd",,"OrderData",""&B12&"","","OpenPosition",""&Display1!$D$3&"")),RTD("cqg.rtd",,"OrderData",""&B12&"","","OpenPosition",""&Display1!$D$3&"")=0),A11+0.0001,INT(A11)+1) -> 0.0011 | C12: 0 | D12: 12 | E12: 0 | F12: =IFERROR(VLOOKUP($U$1-28,$D$1:$E$80,2,FALSE),0) -> 0 | G12: 0 | H12: 12 | I12: 0 | J12: =IFERROR(VLOOKUP($V$1-28,$H$1:$I$80,2,FALSE),0) -> 0 | L12: =IF(K12="","",COUNT($K$1:$K$160)-(RANK(K12,$K$1:$K$160)+COUNTIF($K$1:K12,K12)-1)+1) ->  | M12: 0 | N12: 12 | Q12: =IF(P12="","",IF(P12=P11,1,0)) ->  | V12: =IFERROR(INDIRECT("T"&$W$29-17),"") ->  | X12: =IF(V12="","",LEFT(RTD("cqg.rtd", ,"ContractData","C.US."&$X$1&$Y$1, "Symbol",, "T"),11)&V12) ->  | Y12: =IF(V12="","",LEFT(RTD("cqg.rtd", ,"ContractData","P.US."&$X$1&$Y$1, "Symbol",, "T"),11)&V12) ->  | Z12: =IF($V12="","",RTD("cqg.rtd",,"OrderData",""&$X12&"","","OpenPosition",""&$Z$1&"")) ->  | AA12: =IF($V12="","",RTD("cqg.rtd",,"OrderData",""&$Y12&"","","OpenPosition",""&$Z$1&"")) ->  | AC12: =IF(V12="","",RTD("cqg.rtd",,"ContractData",X12,"Delta",,"T")*Z12) ->  | AD12: =IF(V12="","",RTD("cqg.rtd",,"ContractData",Y12,"Delta",,"T")*AA12) ->  | AE12: =IF(V12="","",RTD("cqg.rtd",,"ContractData",X12,"Vega",,"T")*Z12) ->  | AF12: =IF(V12="","",RTD("cqg.rtd",,"ContractData",Y12,"Vega",,"T")*AA12) ->  | AG12: =IF(V12="","",RTD("cqg.rtd",,"ContractData",X12,"Gamma",,"T")*Z12) ->  | AH12: =IF(V12="","",RTD("cqg.rtd",,"ContractData",Y12,"Gamma",,"T")*AA12) ->  | AI12: =IF(V12="","",RTD("cqg.rtd",,"ContractData",X12,"Theta",,"T")*ABS(Z12)) ->  | AJ12: =IF(V12="","",RTD("cqg.rtd",,"ContractData",Y12,"Theta",,"T")*AA12) -> 
A13: =IF(OR(ISTEXT(RTD("cqg.rtd",,"OrderData",""&B13&"","","OpenPosition",""&Display1!$D$3&"")),RTD("cqg.rtd",,"OrderData",""&B13&"","","OpenPosition",""&Display1!$D$3&"")=0),A12+0.0001,INT(A12)+1) -> 0.0012 | C13: 0 | D13: 13 | E13: 0 | F13: =IFERROR(VLOOKUP($U$1-27,$D$1:$E$80,2,FALSE),0) -> 0 | G13: 0 | H13: 13 | I13: 0 | J13: =IFERROR(VLOOKUP($V$1-27,$H$1:$I$80,2,FALSE),0) -> 0 | L13: =IF(K13="","",COUNT($K$1:$K$160)-(RANK(K13,$K$1:$K$160)+COUNTIF($K$1:K13,K13)-1)+1) ->  | M13: 0 | N13: 13 | R13: =IF(AND(Q13=0,Q12<>1,P13<>R12),P13,P15) ->  | V13: =IFERROR(INDIRECT("T"&$W$29-16),"") ->  | X13: =IF(V13="","",LEFT(RTD("cqg.rtd", ,"ContractData","C.US."&$X$1&$Y$1, "Symbol",, "T"),11)&V13) ->  | Y13: =IF(V13="","",LEFT(RTD("cqg.rtd", ,"ContractData","P.US."&$X$1&$Y$1, "Symbol",, "T"),11)&V13) ->  | Z13: =IF($V13="","",RTD("cqg.rtd",,"OrderData",""&$X13&"","","OpenPosition",""&$Z$1&"")) ->  | AA13: =IF($V13="","",RTD("cqg.rtd",,"OrderData",""&$Y13&"","","OpenPosition",""&$Z$1&"")) ->  | AC13: =IF(V13="","",RTD("cqg.rtd",,"ContractData",X13,"Delta",,"T")*Z13) ->  | AD13: =IF(V13="","",RTD("cqg.rtd",,"ContractData",Y13,"Delta",,"T")*AA13) ->  | AE13: =IF(V13="","",RTD("cqg.rtd",,"ContractData",X13,"Vega",,"T")*Z13) ->  | AF13: =IF(V13="","",RTD("cqg.rtd",,"ContractData",Y13,"Vega",,"T")*AA13) ->  | AG13: =IF(V13="","",RTD("cqg.rtd",,"ContractData",X13,"Gamma",,"T")*Z13) ->  | AH13: =IF(V13="","",RTD("cqg.rtd",,"ContractData",Y13,"Gamma",,"T")*AA13) ->  | AI13: =IF(V13="","",RTD("cqg.rtd",,"ContractData",X13,"Theta",,"T")*ABS(Z13)) ->  | AJ13: =IF(V13="","",RTD("cqg.rtd",,"ContractData",Y13,"Theta",,"T")*AA13) -> 
A14: =IF(OR(ISTEXT(RTD("cqg.rtd",,"OrderData",""&B14&"","","OpenPosition",""&Display1!$D$3&"")),RTD("cqg.rtd",,"OrderData",""&B14&"","","OpenPosition",""&Display1!$D$3&"")=0),A13+0.0001,INT(A13)+1) -> 0.0013 | C14: 0 | D14: 14 | E14: 0 | F14: =IFERROR(VLOOKUP($U$1-26,$D$1:$E$80,2,FALSE),0) -> 0 | G14: 0 | H14: 14 | I14: 0 | J14: =IFERROR(VLOOKUP($V$1-26,$H$1:$I$80,2,FALSE),0) -> 0 | L14: =IF(K14="","",COUNT($K$1:$K$160)-(RANK(K14,$K$1:$K$160)+COUNTIF($K$1:K14,K14)-1)+1) ->  | M14: 0 | N14: 14 | V14: =IFERROR(INDIRECT("T"&$W$29-15),"") ->  | X14: =IF(V14="","",LEFT(RTD("cqg.rtd", ,"ContractData","C.US."&$X$1&$Y$1, "Symbol",, "T"),11)&V14) ->  | Y14: =IF(V14="","",LEFT(RTD("cqg.rtd", ,"ContractData","P.US."&$X$1&$Y$1, "Symbol",, "T"),11)&V14) ->  | Z14: =IF($V14="","",RTD("cqg.rtd",,"OrderData",""&$X14&"","","OpenPosition",""&$Z$1&"")) ->  | AA14: =IF($V14="","",RTD("cqg.rtd",,"OrderData",""&$Y14&"","","OpenPosition",""&$Z$1&"")) ->  | AC14: =IF(V14="","",RTD("cqg.rtd",,"ContractData",X14,"Delta",,"T")*Z14) ->  | AD14: =IF(V14="","",RTD("cqg.rtd",,"ContractData",Y14,"Delta",,"T")*AA14) ->  | AE14: =IF(V14="","",RTD("cqg.rtd",,"ContractData",X14,"Vega",,"T")*Z14) ->  | AF14: =IF(V14="","",RTD("cqg.rtd",,"ContractData",Y14,"Vega",,"T")*AA14) ->  | AG14: =IF(V14="","",RTD("cqg.rtd",,"ContractData",X14,"Gamma",,"T")*Z14) ->  | AH14: =IF(V14="","",RTD("cqg.rtd",,"ContractData",Y14,"Gamma",,"T")*AA14) ->  | AI14: =IF(V14="","",RTD("cqg.rtd",,"ContractData",X14,"Theta",,"T")*ABS(Z14)) ->  | AJ14: =IF(V14="","",RTD("cqg.rtd",,"ContractData",Y14,"Theta",,"T")*AA14) -> 
A15: =IF(OR(ISTEXT(RTD("cqg.rtd",,"OrderData",""&B15&"","","OpenPosition",""&Display1!$D$3&"")),RTD("cqg.rtd",,"OrderData",""&B15&"","","OpenPosition",""&Display1!$D$3&"")=0),A14+0.0001,INT(A14)+1) -> 0.0014 | C15: 0 | D15: 15 | E15: 0 | F15: =IFERROR(VLOOKUP($U$1-25,$D$1:$E$80,2,FALSE),0) -> 0 | G15: 0 | H15: 15 | I15: 0 | J15: =IFERROR(VLOOKUP($V$1-25,$H$1:$I$80,2,FALSE),0) -> 0 | L15: =IF(K15="","",COUNT($K$1:$K$160)-(RANK(K15,$K$1:$K$160)+COUNTIF($K$1:K15,K15)-1)+1) ->  | M15: 0 | N15: 15 | V15: =IFERROR(INDIRECT("T"&$W$29-14),"") ->  | X15: =IF(V15="","",LEFT(RTD("cqg.rtd", ,"ContractData","C.US."&$X$1&$Y$1, "Symbol",, "T"),11)&V15) ->  | Y15: =IF(V15="","",LEFT(RTD("cqg.rtd", ,"ContractData","P.US."&$X$1&$Y$1, "Symbol",, "T"),11)&V15) ->  | Z15: =IF($V15="","",RTD("cqg.rtd",,"OrderData",""&$X15&"","","OpenPosition",""&$Z$1&"")) ->  | AA15: =IF($V15="","",RTD("cqg.rtd",,"OrderData",""&$Y15&"","","OpenPosition",""&$Z$1&"")) ->  | AC15: =IF(V15="","",RTD("cqg.rtd",,"ContractData",X15,"Delta",,"T")*Z15) ->  | AD15: =IF(V15="","",RTD("cqg.rtd",,"ContractData",Y15,"Delta",,"T")*AA15) ->  | AE15: =IF(V15="","",RTD("cqg.rtd",,"ContractData",X15,"Vega",,"T")*Z15) ->  | AF15: =IF(V15="","",RTD("cqg.rtd",,"ContractData",Y15,"Vega",,"T")*AA15) ->  | AG15: =IF(V15="","",RTD("cqg.rtd",,"ContractData",X15,"Gamma",,"T")*Z15) ->  | AH15: =IF(V15="","",RTD("cqg.rtd",,"ContractData",Y15,"Gamma",,"T")*AA15) ->  | AI15: =IF(V15="","",RTD("cqg.rtd",,"ContractData",X15,"Theta",,"T")*ABS(Z15)) ->  | AJ15: =IF(V15="","",RTD("cqg.rtd",,"ContractData",Y15,"Theta",,"T")*AA15) -> 
A16: =IF(OR(ISTEXT(RTD("cqg.rtd",,"OrderData",""&B16&"","","OpenPosition",""&Display1!$D$3&"")),RTD("cqg.rtd",,"OrderData",""&B16&"","","OpenPosition",""&Display1!$D$3&"")=0),A15+0.0001,INT(A15)+1) -> 0.0015 | C16: 0 | D16: 16 | E16: 0 | F16: =IFERROR(VLOOKUP($U$1-24,$D$1:$E$80,2,FALSE),0) -> 0 | G16: 0 | H16: 16 | I16: 0 | J16: =IFERROR(VLOOKUP($V$1-24,$H$1:$I$80,2,FALSE),0) -> 0 | L16: =IF(K16="","",COUNT($K$1:$K$160)-(RANK(K16,$K$1:$K$160)+COUNTIF($K$1:K16,K16)-1)+1) ->  | M16: 0 | N16: 16 | V16: =IFERROR(INDIRECT("T"&$W$29-13),"") ->  | X16: =IF(V16="","",LEFT(RTD("cqg.rtd", ,"ContractData","C.US."&$X$1&$Y$1, "Symbol",, "T"),11)&V16) ->  | Y16: =IF(V16="","",LEFT(RTD("cqg.rtd", ,"ContractData","P.US."&$X$1&$Y$1, "Symbol",, "T"),11)&V16) ->  | Z16: =IF($V16="","",RTD("cqg.rtd",,"OrderData",""&$X16&"","","OpenPosition",""&$Z$1&"")) ->  | AA16: =IF($V16="","",RTD("cqg.rtd",,"OrderData",""&$Y16&"","","OpenPosition",""&$Z$1&"")) ->  | AC16: =IF(V16="","",RTD("cqg.rtd",,"ContractData",X16,"Delta",,"T")*Z16) ->  | AD16: =IF(V16="","",RTD("cqg.rtd",,"ContractData",Y16,"Delta",,"T")*AA16) ->  | AE16: =IF(V16="","",RTD("cqg.rtd",,"ContractData",X16,"Vega",,"T")*Z16) ->  | AF16: =IF(V16="","",RTD("cqg.rtd",,"ContractData",Y16,"Vega",,"T")*AA16) ->  | AG16: =IF(V16="","",RTD("cqg.rtd",,"ContractData",X16,"Gamma",,"T")*Z16) ->  | AH16: =IF(V16="","",RTD("cqg.rtd",,"ContractData",Y16,"Gamma",,"T")*AA16) ->  | AI16: =IF(V16="","",RTD("cqg.rtd",,"ContractData",X16,"Theta",,"T")*ABS(Z16)) ->  | AJ16: =IF(V16="","",RTD("cqg.rtd",,"ContractData",Y16,"Theta",,"T")*AA16) -> 
A17: =IF(OR(ISTEXT(RTD("cqg.rtd",,"OrderData",""&B17&"","","OpenPosition",""&Display1!$D$3&"")),RTD("cqg.rtd",,"OrderData",""&B17&"","","OpenPosition",""&Display1!$D$3&"")=0),A16+0.0001,INT(A16)+1) -> 0.0016 | C17: 0 | D17: 17 | E17: 0 | F17: =IFERROR(VLOOKUP($U$1-23,$D$1:$E$80,2,FALSE),0) -> 0 | G17: 0 | H17: 17 | I17: 0 | J17: =IFERROR(VLOOKUP($V$1-23,$H$1:$I$80,2,FALSE),0) -> 0 | L17: =IF(K17="","",COUNT($K$1:$K$160)-(RANK(K17,$K$1:$K$160)+COUNTIF($K$1:K17,K17)-1)+1) ->  | M17: 0 | N17: 17 | R17: =IF(AND(Q17=0,Q16<>1,P17<>R16),P17,P18) ->  | V17: =IFERROR(INDIRECT("T"&$W$29-12),"") ->  | X17: =IF(V17="","",LEFT(RTD("cqg.rtd", ,"ContractData","C.US."&$X$1&$Y$1, "Symbol",, "T"),11)&V17) ->  | Y17: =IF(V17="","",LEFT(RTD("cqg.rtd", ,"ContractData","P.US."&$X$1&$Y$1, "Symbol",, "T"),11)&V17) ->  | Z17: =IF($V17="","",RTD("cqg.rtd",,"OrderData",""&$X17&"","","OpenPosition",""&$Z$1&"")) ->  | AA17: =IF($V17="","",RTD("cqg.rtd",,"OrderData",""&$Y17&"","","OpenPosition",""&$Z$1&"")) ->  | AC17: =IF(V17="","",RTD("cqg.rtd",,"ContractData",X17,"Delta",,"T")*Z17) ->  | AD17: =IF(V17="","",RTD("cqg.rtd",,"ContractData",Y17,"Delta",,"T")*AA17) ->  | AE17: =IF(V17="","",RTD("cqg.rtd",,"ContractData",X17,"Vega",,"T")*Z17) ->  | AF17: =IF(V17="","",RTD("cqg.rtd",,"ContractData",Y17,"Vega",,"T")*AA17) ->  | AG17: =IF(V17="","",RTD("cqg.rtd",,"ContractData",X17,"Gamma",,"T")*Z17) ->  | AH17: =IF(V17="","",RTD("cqg.rtd",,"ContractData",Y17,"Gamma",,"T")*AA17) ->  | AI17: =IF(V17="","",RTD("cqg.rtd",,"ContractData",X17,"Theta",,"T")*ABS(Z17)) ->  | AJ17: =IF(V17="","",RTD("cqg.rtd",,"ContractData",Y17,"Theta",,"T")*AA17) -> 
